{"text_format":"1","workbook":"xlsx","n_sheets":28,"sheets":["Application Form","Customer Information","Ts and Cs","Required Documents","AssignmentForm","Guidelines ","Worksheet","Smart T-Stats","Integrated Controls","Pre Inspection Form","Post Inspection Form","Qualifying_Index","References","Tables","ProposedEquipment0","Admin","AIRFLOW FORM","AIRFLOW FORM 2","AIRFLOW FORM 3","AIRFLOW FORM 4","AIRFLOW FORM 5","AIRFLOW FORM 6","AIRFLOW FORM 7","AIRFLOW FORM 8","AIRFLOW FORM 9","AIRFLOW FORM 10","Project Completion Form","Development"],"not_rendered":{"charts":0,"images":84,"macros":1,"external_links":6,"defined_names":219,"comments":3,"pivot_tables":0},"unopened":[],"bounds":{"document_bytes":16777216,"sheet_cells":100000,"rows_first":2000,"rows_last":500,"rows_between":2000,"halvings":0,"cell_chars":16384,"cell_head_chars":4096},"cells_cut":0,"cells_raw":0,"read":"whole","date_system":"1900"}

{"sheet":"Application Form","index":0,"n_rows":127,"n_cols":9,"rows_kept":127,"cut":false,"hidden":true,"merged":[[119,1,119,10],[121,4,121,6],[124,1,124,10],[126,1,126,10],[114,1,114,3],[114,4,114,6],[114,8,114,9],[115,1,115,3],[115,4,115,6],[115,8,115,9],[110,1,110,3],[110,4,110,6],[110,8,110,9],[112,1,112,9],[113,1,113,3],[113,4,113,6],[113,8,113,9],[108,1,108,3],[108,4,108,6],[108,8,108,9],[109,1,109,3],[109,4,109,6],[109,8,109,9],[107,1,107,3],[107,4,107,6],[107,8,107,9],[101,1,101,3],[101,4,101,6],[101,8,101,9],[102,1,102,3],[102,4,102,6],[102,8,102,9],[104,1,104,3],[105,1,105,9],[106,1,106,3],[106,4,106,6],[106,8,106,9],[97,1,97,3],[97,4,97,6],[97,8,97,9],[99,1,99,9],[100,1,100,3],[100,4,100,6],[100,8,100,9],[95,1,95,3],[95,4,95,6],[95,8,95,9],[96,1,96,3],[96,4,96,6],[96,8,96,9],[93,1,93,3],[93,4,93,6],[93,8,93,9],[94,1,94,3],[94,4,94,6],[94,8,94,9],[92,1,92,9],[70,7,70,9],[72,4,72,6],[72,8,72,9],[74,4,74,6],[76,4,76,5],[78,4,78,5],[80,4,80,6],[82,4,82,5],[84,4,84,6],[86,4,86,5],[88,1,88,10],[68,1,68,10],[0,1,0,10],[1,2,1,8],[3,1,3,10],[9,2,9,10],[45,2,45,10],[46,2,46,10],[47,2,47,10],[48,2,48,10],[60,1,60,10],[65,1,65,10],[66,2,66,8]]}
[null,{"$f":"Development!A3&\" Residential Rebate Application Form\"","v":"2019 Residential Rebate Application Form"}]
[null,null,"PSEG Long Island's Residential Central Air Conditioning Program, Central Air Conditioners, Heat Pumps, Ductless Mini Split Systems."]
[]
[null,"REBATE OPTION 2: Choose any Central Air Conditioning (CAC) Contractor"]
[]
[null,"Directions:"]
[null,"1.","Customer hires a contractor (at least three estimates are recommended prior to selection)."]
[null,"2.","Customer has a qualifying system installed."]
[null,"3.",{"$f":"\"Customer fills out and signs the \"&Development!A3&\" Residential Rebate Application Form.\"","v":"Customer fills out and signs the 2019 Residential Rebate Application Form."}]
[null,"4.",{"$f":"\"Customer submits \"&Development!A3&\" Residential Rebate Application Form and all required documentation listed below. Copy all forms prior to submission/keep a copy for your records.\"","v":"Customer submits 2019 Residential Rebate Application Form and all required documentation listed below. Copy all forms prior to submission/keep a copy for your records."}]
[null,"5.","If all required paperwork is correct and all rebate requirements are fulfilled, a rebate check will be sent to the customer."]
[]
[null,"Required Documents Checklist:"]
[]
[]
[]
[]
[null,null,"▪","Customer name and installation address matching electric account holder information"]
[null,null,"▪","Equipment manufacturer"]
[null,null,"▪","Condenser model number and serial number"]
[null,null,"▪","Coil/Air Handler model number and serial number"]
[null,null,"▪","Total Cost"]
[]
[]
[null,null,"Eligible Equipment Table:"]
[]
[]
[]
[]
[]
[]
[]
[]
[]
[]
[]
[]
[]
[]
[null,"Rebate Requirements / Terms and Conditions:"]
[null,"1.","There must be a PSEG Long Island residential electric account at the installation site in the applicant’s name."]
[null,"2.",{"$f":"\"Unit(s) must be purchased and installed between \"&TEXT(DATE(Development!A3,1,1),\"M/D/YY\")&\" and \"&TEXT(DATE(Development!A3,12,31),\"M/D/YY\")&\".\"","v":"Unit(s) must be purchased and installed between 1/1/19 and 12/31/19."}]
[null,"3.",{"$f":"\"Rebate application must be submitted within 90 days of purchase and postmarked no later than \"&TEXT(DATE(Development!A3,12,31),\"M/D/YY\")&\".\"","v":"Rebate application must be submitted within 90 days of purchase and postmarked no later than 12/31/19."}]
[null,"4.","Please allow up to 60 days for delivery of the rebate check."]
[null,"5.","Some ENERGY STAR® qualified equipment may not be eligible for this rebate. Qualifying units must be listed in the AHRI directory."]
[null,"6.","It is the customer’s responsibility to ensure contractor has proper licenses, certifications and insurance. Installation is to be properly permitted (or received authorization). Documents, including but not limited to, permits and surveys are to be provided upon request."]
[null,"7.","Replacement of systems less than five years old, that were rebated, are not eligible for a rebate unless the SEER level of the\nreplacement unit is higher than the existing unit by at least one full SEER level."]
[null,"8.","All units, including Ductless Mini Split Systems, must be installed with the matching pieces specified in the AHRI directory. These rebates apply to new and replacement total system installations performed during the term of this rebate program. The Condenser (outdoor), and Coil/ Air Handler (indoor) must be installed new and constitute one unit. Partial system replacements do not qualify."]
[null,"9.","PSEG Long Island reserves the right to inspect the equipment installation to ensure compliance with program requirements.\nFailure to allow PSEG Long Island access to the equipment will result in a denial of the rebate application."]
[null,"10.","PSEG Long Island is not responsible for any tax liability imposed as a result of rebate payments."]
[null,"11.","PSEG Long Island reserves the right to use the customer rebate to credit accounts in arrears."]
[null,"12.","PSEG Long Island is not responsible for lost or undeliverable mail or email."]
[]
[null,"Submit Signed Application Form and all Required Documents:"]
[null,null,"By Email: Preferred method for timely processing - coolhomesli@pseg.com"]
[null,null,"By Mail: PSEG Long Island's Residential CAC Program"]
[null,null,null,"395 North Service Road, Suite 409, Melville, NY 11747"]
[]
[]
[]
[null,"Any Questions? Call PSEG Long Island's Infoline at 1-800-692-2626 or visit PSEG Long Island's website for more information at www.psegliny.com/efficiency"]
[]
[]
[]
[]
[null,{"$f":"Development!A3&\" Residential Rebate Application Form\"","v":"2019 Residential Rebate Application Form"}]
[null,null,"PSEG Long Island's Residential Central Air Conditioning Program, Central Air Conditioners, Heat Pumps, Ductless Mini Split Systems."]
[]
[null,"Customer Information:"]
[]
[null,"Your PSEG Long Island Residential Account Number (found on the back of your bill): "]
[]
[null,"Your Name:",null,null,null,null,null,"E-Mail:"]
[]
[null,"Account/Installation Address:"]
[]
[null,"City:",null,null,null,null,"State:",null,"Zip:"]
[]
[null,"Home Telephone:",null,null,null,null,"Work Telephone:"]
[]
[null,"Mailing Address: (if different)"]
[]
[null,"City:",null,null,null,null,"State:",null,"Zip:"]
[]
[null,"Installation Contractor Name:",null,null,null,null,null,null,"Contractor Telephone:"]
[]
[null,"Installation Date:"]
[]
[null,"Product Information:"]
[]
[null,"Unit Number 1:"]
[]
[null,"New Equipment"]
[null,"Manufacturer:",null,null,null,null,null,"AHRI Reference No:"]
[null,"Condenser Model No. (outdoor):",null,null,null,null,null,"SEER Rating:"]
[null,"Condenser Serial No. (outdoor):",null,null,null,null,null,"EER Rating:"]
[null,"Coil/Air Handler Model No. (Indoor):",null,null,null,null,null,"HSPF Rating (Heat Pump Only):"]
[null,"Coil/Air Handler Serial No. (Indoor):",null,null,null,null,null,"Tons:"]
[]
[null,"Existing Equipment"]
[null,"Manufacturer:",null,null,null,null,null,"SEER Rating:"]
[null,"Condenser Model No. (outdoor):",null,null,null,null,null,"EER Rating:"]
[null,"Coil/Air Handler Model No. (Indoor):",null,null,null,null,null,"Tons:"]
[]
[null,"Unit Number 2:\n(if applicable)"]
[null,"New Equipment"]
[null,"Manufacturer:",null,null,null,null,null,"AHRI Reference No:"]
[null,"Condenser Model No. (outdoor):",null,null,null,null,null,"SEER Rating:"]
[null,"Condenser Serial No. (outdoor):",null,null,null,null,null,"EER Rating:"]
[null,"Coil/Air Handler Model No. (Indoor):",null,null,null,null,null,"HSPF Rating (Heat Pump Only):"]
[null,"Coil/Air Handler Serial No. (Indoor):",null,null,null,null,null,"Tons:"]
[]
[null,"Existing Equipment"]
[null,"Manufacturer:",null,null,null,null,null,"SEER Rating:"]
[null,"Condenser Model No. (outdoor):",null,null,null,null,null,"EER Rating:"]
[null,"Coil/Air Handler Model No. (Indoor):",null,null,null,null,null,"Tons:"]
[]
[null,null,null,null,null,null,null,null,"Total Rebate Amount Expected: $"]
[]
[null,"I certify that I purchased the unit(s) on the enclosed invoice and /or contract and that they were installed at the location indicated. I agree to the terms and conditions stated on this application (see rebate requirements)."]
[]
[null,"Customer's Signature:",null,null,null,null,null,null,"Date:"]
[]
[]
[null,"PSEG Long Island administrators the rebate program on behalf of the Long Island Power Authority, the rebate program sponsor. Please visit www.psegliny.com/efficiency for more details."]
[]
[null,"Any Questions? Call PSEG Long Island's Infoline at 1-800-692-2626 or visit PSEG Long Island's website for more information at www.psegliny.com/efficiency"]

{"sheet":"Customer Information","index":1,"n_rows":48,"n_cols":12,"rows_kept":48,"cut":false,"hidden":false,"merged":[[36,10,36,11],[26,10,26,11],[27,10,27,11],[47,3,47,5],[47,6,47,8],[37,0,37,11],[39,0,39,11],[40,0,40,1],[40,2,40,8],[42,0,42,1],[42,2,42,8],[42,10,42,11],[32,0,32,11],[33,0,33,1],[33,2,33,5],[33,8,33,11],[35,0,35,11],[13,2,13,8],[26,0,26,1],[26,2,26,5],[27,0,27,1],[27,2,27,5],[23,0,23,1],[23,2,23,5],[24,0,24,1],[24,2,24,5],[24,8,24,9],[25,0,25,1],[25,2,25,5],[19,2,19,8],[19,9,19,11],[21,0,21,11],[25,10,25,11],[9,8,9,9],[9,10,9,11],[10,0,10,1],[10,2,10,5],[10,8,10,9],[10,10,10,11],[7,0,7,1],[7,2,7,5],[7,8,7,9],[8,0,8,1],[8,2,8,5],[8,8,8,9],[8,10,8,11],[9,0,9,1],[0,0,0,7],[1,0,1,7],[2,0,2,11],[3,0,3,11],[4,0,4,1],[4,2,4,5],[4,10,4,11],[9,2,9,5],[5,0,5,1],[5,2,5,5],[5,10,5,11],[6,0,6,1],[6,2,6,5],[6,8,6,9]]}
["2019 Residential Efficiency Program"]
[{"$f":"\"Home Comfort Whole House Air-Source Heat Pump Pilot \nRebate Application, Version \"&Development!A2","v":"Home Comfort Whole House Air-Source Heat Pump Pilot \nRebate Application, Version 2.0"}]
["The Whole House Air-Source Heat Pump Pilot Rebate Application offers equipment rebates to PSEG Long Island customers who replace their existing electric resistance heating system with an energy efficiency, properly sized, air-source heat pump and customers who install an air-source heat pump that meets 100% of the home heating load. All projects require pre and post inspections as per program guidelines."]
["Customer Information"]
["Account No:",null,null,null,null,null,null,null,null,"Rate Code:"]
["Customer Name:",null,null,null,null,null,null,null,null,"Installation Date: "]
["Installation Address:",null,null,null,null,null,null,"City:",null,null,"Zip:"]
["Mailing Address:\n(If different than above)",null,null,null,null,null,null,"City:",null,null,"Zip:"]
[null,null,null,null,null,null,null,null,"Home Phone:"]
["Alternate Contact:",null,null,null,null,null,null,null,"Cell Phone:"]
["E-Mail Address:",null,null,null,null,null,null,null,"Size of Home (sq. ft.)"]
[]
["Application Type:"]
[]
["Primary Heating Equipment:"]
[]
["Primary Heating  Source:"]
[]
["Rebate Payment Method:"]
[]
[]
["Contractor Information"]
[]
["Contractor Name:"]
["Contractor Address:",null,null,null,null,null,null,"City:",null,null,"Zip:"]
["Contact Name/Title:",null,null,null,null,null,null,null,null,"Business Phone:"]
["Tax ID #:",null,null,null,null,null,null,null,null,"Cell Phone:"]
["E-Mail Address:",null,null,null,null,null,null,null,null,"Fax:"]
[]
["I certify that the system to be installed will be in accordance with ACCA Manual J version 8.0 calculations and that the calculation was performed using ACCA-approved software.  I also "]
["certify that the unit(s) will be installed at the location indicated above.  I agree to the terms and conditions stated on this application (see eligibility requirements)."]
[]
["Disclaimer: Terms and conditions are subject to change without notice, including early termination of this promotion. No additional fees apply. The rebate will be issued in the form of a check unless otherwise indicated. PSEG Long Island administers the rebate program on behalf of the Long Island Power Authority, the rebate program sponsor. Please visit www.psegliny.com/efficiency for more details. "]
["Contact Name/Title:",null,null,null,null,null,null,"Signature: "]
[]
["Rebate"]
[null,null,null,null,null,null,null,null,null,"Total Estimated Customer Rebate Amount (Calculated from Equipment Worksheet and Smart Thermostats Worksheet):",{"$f":"Worksheet!X54+'Smart T-Stats'!K33","v":0}]
["*Disclaimer: Terms and conditions are subject to change without notice, including early termination of this promotion. No additional fees apply. The rebate may be issued in the form of a check. PSEG Long Island administers the rebate program on behalf of the Long Island Power Authority, the rebate program sponsor. Please visit www.PSEGLINY.com/Efficiency for more details."]
[]
["Certification Statement:  \nCustomer has read, understands and agrees to be bound by the Terms and Conditions set forth herein, and agrees to abide by them.  Customer certifies that  the unit(s) described on the proposal provided by a QIV Participating Contractor will be installed at the location indicated. By participating in this program, Customer agrees on behalf of itself and any successor in interest or assignee that PSEG Long Island obtains and/or retains ownership of all rights to existing and future emission credits, renewable energy rights to existing and future emissions credits, renewable energy green tags, tradable renewable certificates and/or any and all other environmental benefits associated with the installation of the ECMs. Customer certifies that the information provided in the herein is true and accurate.  Customer further certifies that the energy saving products described herein have or will be installed in the Home indicated above and will not be resold.  As specified herein, Customer agrees to permit PSEG Long Island to: (1) verify the purchase invoices and product installations and (2) upon request, install and remove load-monitoring equipment at the Home.  Customer acknowledges that the rights and obligations in this application shall be binding upon assignees, successors and future owners of the Home.  Customer agrees to include restrictions contained in this agreement in any leases, sales, contracts, or other similar documents relating to the use and ownership of the Home.  Customer acknowledge that, consistent with PSEG Long Island’s Efficiency Long Island program policies and procedures, PSEG Long Island may pro-rate a rebate or incentive (the “Rebate”) if the Customer purchases less than its full electric requirements from PSEG Long Island.  Customer further acknowledges that PSEG Long Island may require the Customer to repay all or a portion of the Rebate received if, within five (5) years of receipt of the Rebate, the Customer ceases purchasing its full electric requirements from PSEG Long Island or increases its use of electric power from non-PSEG Long Island sources at the Home, other than through the Long Island Choice Program.\n"]
["Customer Name:\n(Print)"]
[]
["Customer Signature:\nDuly authorized representative",null,null,null,null,null,null,null,null,"Date:"]
[]
[]
[null,null,null,null,null,null,null,null,null,"For PSEG Long Island use only:","Application ID:"]
[]
["Application Version:",{"$f":"Development!$A$4&\"_\"&Development!$A$2","v":"11.15.19_2.0"},null,null,null,null,null,null,null,null,"Effective:",{"$f":"Development!A4","v":"11.15.19"}]

{"sheet":"Ts and Cs","index":2,"n_rows":29,"n_cols":11,"rows_kept":29,"cut":false,"hidden":false,"merged":[[60,1,60,11],[76,1,76,11],[77,1,77,11],[62,1,62,11],[38,1,38,11],[40,1,40,11],[53,1,53,11],[54,1,54,11],[58,1,58,11],[50,1,50,11],[52,1,52,11],[78,1,78,11],[63,1,63,11],[65,1,65,11],[66,1,66,11],[68,1,68,11],[70,1,70,11],[74,1,74,11],[26,2,26,10],[32,1,32,11],[34,1,34,11],[44,1,44,11],[46,1,46,11],[42,1,42,11],[31,1,31,11],[28,3,28,5],[28,6,28,8],[29,1,29,11],[35,1,35,11],[20,2,20,10],[6,2,6,10],[7,2,7,10],[8,2,8,10],[9,2,9,10],[10,2,10,10],[13,2,13,10],[21,2,21,10],[22,2,22,10],[23,2,23,10],[24,2,24,10],[25,2,25,10],[0,0,0,6],[11,2,11,10],[19,2,19,10],[1,0,1,6],[14,2,14,10],[2,0,2,4],[4,2,4,10],[5,2,5,10],[12,2,12,10]]}
[{"$f":"Development!$A$3&\" Residential Efficiency Program\"","v":"2019 Residential Efficiency Program"}]
[{"$f":"'Customer Information'!A2:H2","v":"Home Comfort Whole House Air-Source Heat Pump Pilot \nRebate Application, Version 2.0"}]
["Terms and Conditions"]
[]
[null,"1.",{"$f":"\"Units must be installed after \"&Development!A4","v":"Units must be installed after 11.15.19"}]
[null,"2.","The participating Customer must have or obtain a PSEG Long Island residential electric account prior to payment"]
[null,"3.","Qualifying units must be listed in the AHRI directory at the time of installation (Visit www.ahridirectory.org/ to verify equipment eligibility). Program Manager document review and approval required"]
[null,"4.","Split systems must be installed with the matching pieces specified in the AHRI directory at the time of installation"]
[null,"5.","These incentives apply to installations performed during the term of this rebate program (The heat pump unit and air handler / fan coil must both be installed new. Partial system replacements do not qualify)"]
[null,"6.","All qualifying units installed at a residence must be documented on the same application (additional sheets may be attached if necessary)"]
[null,"7.","Retrofit of systems less than five years old, that were rebated by PSEG Long Island, are not eligible for another rebate unless the SEER level of the replacement unit is higher than the existing unit by at least 1 full SEER level"]
[null,"8.","Participating Contractors must use an ACCA approved Manual J version 8 software package to perform the load calculation, and then size the unit(s) accordingly \n(Visit http://www.acca.org/software/ for a current list of ACCA approved Manual J version 8 software) "]
[null,"9.","Integrated controls must be installed with the air-source heat pump in the Whole House Solution scenario if secondary/supplementary heating in the form of gas, oil, or propane is present. If integrated controls are not installed, the project will no longer be eligible as a Whole House Solution, and will not be eligible for this pilot offering. This condition is not applicable to customers with electric resistance heating"]
[null,"10.","Installation must be completed after the application has been received and contain all  required documentation, which includes:"]
[null,null,"a. Completed Worksheet "]
[null,null,"b. ACCA approved Manual J V8 software load calculation printout for all Whole House Solution Installations"]
[null,null,"c. Invoice or Contract must contain total cost (dollar amount), equipment make, model & serial number as well as Customer name, installation address, and installation date"]
[null,null,"d. Equipment Spec Sheet printout from the AHRI On-Line Directory please indicate AHRI Reference # on worksheet (or emulated testing certification if applicable)"]
[null,null,"e. Rebate Assignment Form"]
[null,"11.","PSEG Long Island reserves the right to inspect and test the equipment installation, and review the original contract in order to ensure compliance with program requirements. Failure to allow PSEG Long Island access to the equipment, or original contract, will result in a denial of the rebate application"]
[null,"12.","PSEG Long Island is not responsible for email not received"]
[null,"13.","PSEG Long Island is not responsible for any tax liability imposed as a result of rebate payments"]
[null,"14.","PSEG Long Island reserves the right to use the Customer rebate to credit accounts in arrears"]
[null,"15.","Please allow up to 60 days for the delivery of the rebate check or bill credit"]
[null,"16.",{"$f":"\"Applications must be received by December 10, \"&Development!$A$3","v":"Applications must be received by December 10, 2019"}]
[null,"17.","PSEG Long Island reserves the right to modify or withdraw these incentives, and to adjust the eligibility requirements, at any time"]
[null,"18.","By providing a telephone number you are giving consent to be contacted at that number about matters that are closely related to the utility service"]
[]
["Application Version:",null,{"$f":"Development!$A$4&\"_\"&Development!$A$2","v":"11.15.19_2.0"},null,null,null,null,null,null,"Effective:",{"$f":"Development!$A$4","v":"11.15.19"}]

{"sheet":"Required Documents","index":3,"n_rows":55,"n_cols":8,"rows_kept":55,"cut":false,"hidden":false,"merged":[[0,0,0,3],[33,1,33,2],[50,1,50,8],[49,1,49,7]]}
[{"$f":"Development!$A$3&\" Residential Efficiency Program\"","v":"2019 Residential Efficiency Program"}]
[null,"Required Documents Checklist"]
[]
[null,"Required Documents for Pre Approval"]
[null,"Document:",null,"Responsible Party"]
[null,null,null,"Customer/Contractor"]
[null,null,null,"Customer/Contractor"]
[null,null,null,"Customer/Contractor"]
[null,null,null,"Contractor"]
[null,null,null,"Customer/Contractor"]
[null,null,null,"PSEG Long Island Project Manager"]
[]
[null,"Required Documents for Payment"]
[null,"Document:",null,"Responsible Party"]
[null,null,null,"Customer/Contractor"]
[null,null,null,"Contractor"]
[null,null,null,"Contractor"]
[null,null,null,"Contractor"]
[null,null,null,"PSEG Long Island Project Manager"]
[]
[]
[]
[]
[]
[]
[]
[]
[]
[]
[]
[]
[]
[]
[]
[]
[]
[]
[]
[]
[]
[]
[]
[]
[]
[]
[]
[]
[]
[]
[null,"PSEG Long Island may require additional documentation not listed in the check boxes above as deemed necessary to properly process any rebates."]
[null,"Any hard copy documents provided by Customer must be scanned and emailed to PSEG Long Island by Contractor"]
[]
[]
[]
[null,"Application Version:",{"$f":"Development!$A$4&\"_\"&Development!$A$2","v":"11.15.19_2.0"},null,null,null,"Effective:",{"$f":"Development!$A$4","v":"11.15.19"}]

{"sheet":"AssignmentForm","index":4,"n_rows":41,"n_cols":12,"rows_kept":41,"cut":false,"hidden":true,"merged":[[0,0,0,7],[1,0,1,7],[2,0,2,11],[3,0,3,11],[4,0,4,1],[4,2,4,5],[4,10,4,11],[8,2,8,5],[8,8,8,9],[8,10,8,11],[5,0,5,1],[5,2,5,5],[5,8,5,9],[6,0,6,1],[6,2,6,5],[6,8,6,9],[7,2,7,5],[7,8,7,9],[7,10,7,11],[8,0,8,1],[7,0,7,1],[9,10,9,11],[12,0,12,11],[13,0,13,1],[13,2,13,5],[13,8,13,10],[9,0,9,1],[9,2,9,5],[9,8,9,9],[14,0,14,1],[14,2,14,5],[14,8,14,9],[15,0,15,1],[15,2,15,5],[15,8,15,9],[20,0,20,11],[23,1,23,11],[26,0,26,1],[26,2,26,8],[16,0,16,1],[16,2,16,5],[17,0,17,1],[17,2,17,5],[16,8,16,9],[40,3,40,5],[40,6,40,8],[17,8,17,9],[21,10,21,11],[28,0,28,1],[28,2,28,8],[28,10,28,11],[29,1,29,2],[29,3,29,5],[29,6,29,8],[29,9,29,10],[30,0,30,1],[30,2,30,8],[32,0,32,1],[32,2,32,8],[32,10,32,11]]}
[{"$f":"Development!$A$3&\" Residential Efficiency Program\"","v":"2019 Residential Efficiency Program"}]
["Home Comfort Participating Contractors Assignment Form"]
["The Home Comfort Rebate Program offers rebates to PSEG Long Island customers who install an energy efficient, properly sized heating or air conditioning system. \nProjects are subject to post-inspection."]
["Customer Information"]
["Customer Name:",null,{"$f":"IF('Customer Information'!C6=\"\",\"\",'Customer Information'!C6)","v":""}]
["Installation Address:",null,{"$f":"IF('Customer Information'!C7=\"\",\"\",'Customer Information'!C7)","v":""},null,null,null,null,"City:",{"$f":"IF('Customer Information'!I7=\"\",\"\",'Customer Information'!I7)","v":""},null,"Zip:",{"$f":"IF('Customer Information'!L7=\"\",\"\",'Customer Information'!L7)","v":""}]
["Mailing Address:\n(If different than above)",null,{"$f":"IF('Customer Information'!C8=\"\",\"\",'Customer Information'!C8)","v":""},null,null,null,null,"City:",{"$f":"IF('Customer Information'!I8=\"\",\"\",'Customer Information'!I8)","v":""},null,"Zip:",{"$f":"IF('Customer Information'!L8=\"\",\"\",'Customer Information'!L8)","v":""}]
[null,null,{"$f":"IF('Customer Information'!C9=\"\",\"\",'Customer Information'!C9)","v":""},null,null,null,null,null,"Home Phone:",null,{"$f":"IF('Customer Information'!K9=\"\",\"\",'Customer Information'!K9)","v":""}]
["Alternate Contact:",null,{"$f":"IF('Customer Information'!C10=\"\",\"\",'Customer Information'!C10)","v":""},null,null,null,null,null,"Cell Phone:",null,{"$f":"IF('Customer Information'!K10=\"\",\"\",'Customer Information'!K10)","v":""}]
["E-Mail Address:",null,{"$f":"IF('Customer Information'!C11=\"\",\"\",'Customer Information'!C11)","v":""}]
[]
[]
["Contractor Information"]
["Contractor Name:",null,{"$f":"IF('Customer Information'!C24=\"\",\"\",'Customer Information'!C24)","v":""}]
["Contractor Address:",null,{"$f":"IF('Customer Information'!C25=\"\",\"\",'Customer Information'!C25)","v":""},null,null,null,null,"City:",{"$f":"IF('Customer Information'!I25=\"\",\"\",'Customer Information'!I25)","v":""},null,"Zip:",{"$f":"IF('Customer Information'!L25=\"\",\"\",'Customer Information'!L25)","v":""}]
["Contact Name/Title:",null,{"$f":"IF('Customer Information'!C26=\"\",\"\",'Customer Information'!C26)","v":""},null,null,null,null,"Business Phone:",{"$f":"IF('Customer Information'!K26=\"\",\"\",'Customer Information'!K26)","v":""}]
["Tax ID #:",null,{"$f":"IF('Customer Information'!C27=\"\",\"\",'Customer Information'!C27)","v":""},null,null,null,null,"Cell Phone:",{"$f":"IF('Customer Information'!K27=\"\",\"\",'Customer Information'!K27)","v":""}]
["E-Mail Address:",null,{"$f":"IF('Customer Information'!C28=\"\",\"\",'Customer Information'!C28)","v":""},null,null,null,null,"Fax:",{"$f":"IF('Customer Information'!K28=\"\",\"\",'Customer Information'!K28)","v":""}]
[]
[]
["Rebate"]
[null,null,null,null,null,null,null,null,null,"Total Estimated Customer Rebate Amount (Calculated from Equipment Worksheet and Smart Thermostat Worksheet):",{"$f":"IF('Customer Information'!K37=\"\",\"\",'Customer Information'!K37)","v":0}]
[]
[null,"As the payee of the above referenced Home Comfort Rebate, I, Customer, hereby assign my rights and interest in the payment of said rebate to Assignee as indicated below.\n \nI certify that the electric account listed above is not in arrears and that I have supplied the contractor with a copy of the latest PSEGLI bill for the listed account, showing that the account is active and that there is no previous balance owed on the account.  Rebates can not be assigned to the contractor if the PSEGLI account is in arrears.\n\nIf the PSEGLI account goes into arrears while the rebate is being processed, PSEGLI will apply the Home Comfort Rebate to those arrears before remitting the balance of the rebate, if any, to my Assignee.  I also understand that PSEGLI’s application of all, or a portion of, the Rebate to any arrears on my PSEGLI account does not reduce the amount I am responsible to pay my Assignee (I will still owe my contractor the Rebate amount applied to my PSEGLI account). Please forward my rebate to the Assignee listed directly above. \n\nI also understand that I am responsible to inform PSEGLI (via email to coolhomesli@pseg.com or in writing to PSEG Long Island, Home Comfort Program, 15 Park Drive, Melville, NY 11747) of any changes to this assignment.\n"]
[]
[]
["Customer Name:\n(Print)"]
[]
["Accepted and Agreed To Payee:\n(Customer Signature)",null,null,null,null,null,null,null,null,"Date:"]
[]
["Contractor Name\n(Print)"]
[]
["Accepted and Agreed To Assignee:\n(Duly Authorized Representative Signature)",null,null,null,null,null,null,null,null,"Date:"]
[]
[]
[]
[]
[]
[]
[]
["Application Version:",{"$f":"Development!$A$4&\"_\"&Development!$A$2","v":"11.15.19_2.0"},null,null,null,null,null,null,null,null,"Effective:",{"$f":"Development!$A$4","v":"11.15.19"}]

{"sheet":"Guidelines ","index":5,"n_rows":53,"n_cols":12,"rows_kept":53,"cut":false,"hidden":false,"merged":[[1,251,1,255],[5,1,5,11],[10,1,10,11],[1,161,1,170],[1,171,1,180],[1,201,1,210],[1,211,1,220],[1,221,1,230],[1,241,1,250],[1,111,1,120],[1,51,1,60],[0,171,0,180],[0,181,0,190],[0,191,0,200],[0,201,0,210],[0,211,0,220],[0,251,0,255],[0,151,0,160],[1,81,1,90],[1,91,1,100],[1,101,1,110],[1,231,1,240],[1,181,1,190],[1,191,1,200],[0,221,0,230],[0,111,0,120],[0,161,0,170],[0,141,0,150],[1,141,1,150],[1,151,1,160],[0,231,0,240],[0,241,0,250],[52,3,52,5],[52,6,52,8],[0,0,0,6],[0,21,0,30],[0,31,0,40],[22,0,22,11],[11,1,11,11],[1,31,1,40],[15,1,15,11],[26,0,26,11],[49,1,49,11],[1,0,1,6],[1,21,1,30],[38,1,38,10],[16,1,16,2],[12,1,12,11],[0,131,0,140],[0,121,0,130],[1,131,1,140],[1,121,1,130],[1,71,1,80],[0,101,0,110],[0,91,0,100],[0,71,0,80],[14,1,14,11],[17,1,17,11],[0,81,0,90],[1,41,1,50],[0,41,0,50],[0,51,0,60],[1,61,1,70],[0,61,0,70]]}
[{"$f":"Development!$A$3&\" Residential Efficiency Program\"","v":"2019 Residential Efficiency Program"}]
[{"$f":"'Customer Information'!A2:H2","v":"Home Comfort Whole House Air-Source Heat Pump Pilot \nRebate Application, Version 2.0"}]
["Rebate Guidelines"]
["*",{"$f":"\"Units must be installed after \"&Development!$A$4","v":"Units must be installed after 11.15.19"}]
["*","Premises must be serviced by a residential account/meter which must be in Customer's name before final payment"]
["*","Complete Customer Information section of application and appropriate worksheets.  (Incomplete applications will not be accepted)"]
["*","One application per residence every 5 years unless new equipment is 1 full SEER level higher than existing"]
["*","Projets require pre-inspection."]
["*","Projects require PSEG Long Island pre-approval"]
["*","Projects may be post inspected by PSEG Long Island to ensure compliance with program requirements"]
["*","If the proposed equipment is listed in the measure-specific eligibility tables, the rebate amount will be determined according to corresponding worksheet, one of which must be completed for each measure type  "]
["*","All equipment must be UL listed "]
["*","Eligible equipment criteria may be updated or modified regularly"]
["*","Measure-specific eligibility requirements apply"]
["*","Where eligible products are required to be listed with an approved rating agency (i.e. ENERGY STAR; CEE), products must be installed and used in accordance with the rating condition for which it was approved"]
["*","If proposed equipment is a Cold Climate Air Source Heat Pump (ASHP), equipment must be listed with NEEP and visible on its Cold Climate Air Source Heat Pump Specifications Product Listing:"]
[null,"www.NEEP.org"]
["*","Customers must agree to PSEG Long Island’s Terms and Conditions found within this application"]
["*","Total rebates will not exceed 70% of total project cost"]
["*","The Whole House Solution rebate is only available for ducted and ductless cold climate air-source heat pumps sized for 100%-130% of the peak heating load of the home, as calculated by the Manual J."]
["*","Integrated controls must be installed with the air-source heat pump in the Whole House Solution scenario if secondary/supplementary heating in the form of gas, oil, or propane is present."]
[null,"If integrated controls are not installed, the project will no longer be eligible as a Whole House Solution, and will not be eligible for this pilot offering. This condition is not applicable to customers with electric resistance heating."]
["Customer Requirements/Steps to Participate"]
["*","Choose a licensed HVAC Contractor "]
["*","Print, complete, sign and date the Customer Information section of Application and provide to installation contractor"]
[]
["Contractor Requirements "]
["*","Complete Airflow/Refrigerant and Equipment schedule worksheets from this application"]
["*","Complete appropriate worksheet from this Application"]
["*","Perform the ACCA approved Manual J software calculation"]
["*","Ensure equipment is listed in the AHRI directory"]
["*","Submit application to PSEG Long Island. Upon receipt, PSEG Long Island will schedule a pre-inspection."]
["*","After pre-inspection, project will be validated for pre-approval. Upon approval, customer will receive a pre-approval email."]
["*","After preapproval is obtained, customer may purchase and contractor may install equipment"]
["*","Ensure that split systems are installed with the matching pieces specified in the AHRI directory"]
["*","Install properly sized qualifying equipment"]
["*","Once Project is Complete submit the following:"]
["*","If the installation differs from pre-approval, please submit new worksheet"]
["*","Invoice (must contain total cost, equipment make, model, & serial number as well as Customer name, installation address and date), \n  save document as: \"Invoice_<customer name>.pdf\""]
["*","AHRI Certificate, save document as: \"AHRI_<customer name>.pdf\""]
["*","Manual J version 8 report, save document as: \"Manual_J_<customer name>.pdf\""]
["*","Projection Completion Form (filled out and signed by Customer and Contractor), save document as: \"PCF_<customer name>.pdf\""]
["*","Assignment form (if applicable), save document as: \"Assignment_<customer name>.pdf\""]
[]
[null,"Manual J report and Airflow & Charge form are required for All Whole House Solution Installation"]
[]
[]
[null,"Contractor must electronically submit documents to:",null,null,"HomeComfortLI@pseg.com",null,"Subject Line should read: HC Application - Customer Name"]
[]
["*","A PSEG Long Island representative may contact you to schedule a post-inspection "]
[]
[]
["Application Version:",null,{"$f":"Development!$A$4&\"_\"&Development!$A$2","v":"11.15.19_2.0"},null,null,null,null,null,null,null,"Effective:",{"$f":"Development!$A$4","v":"11.15.19"}]

{"sheet":"Worksheet","index":6,"n_rows":72,"n_cols":28,"rows_kept":72,"cut":false,"hidden":false,"merged":[[20,1,20,8],[20,14,20,17],[20,18,20,22],[21,20,21,22],[21,14,21,15],[21,16,21,17],[28,14,28,15],[21,18,21,19],[28,18,28,19],[25,21,25,22],[27,21,27,22],[28,21,28,22],[22,9,23,9],[22,10,23,10],[22,11,23,11],[22,12,23,12],[22,14,23,14],[22,15,23,15],[22,16,23,16],[22,17,23,17],[22,18,23,18],[22,19,23,19],[22,20,23,20],[60,1,61,1],[60,7,60,12],[50,5,50,6],[50,2,50,4],[44,21,44,22],[62,15,62,17],[63,15,63,17],[64,15,64,17],[65,15,65,17],[63,5,63,6],[63,7,63,8],[62,5,62,6],[65,5,65,6],[64,2,64,3],[63,2,63,3],[50,21,50,22],[61,21,61,22],[62,18,62,19],[63,18,63,19],[64,18,64,19],[65,18,65,19],[61,11,61,12],[65,2,65,3],[62,7,62,8],[43,5,43,6],[41,5,41,6],[44,5,44,6],[45,5,45,6],[46,5,46,6],[47,5,47,6],[60,2,60,6],[49,5,49,6],[48,5,48,6],[47,2,47,4],[48,2,48,4],[49,2,49,4],[45,2,45,4],[46,2,46,4],[42,5,42,6],[71,7,71,8],[71,2,71,3],[71,5,71,6],[70,2,70,3],[70,5,70,6],[71,9,71,10],[70,9,70,10],[70,21,70,22],[69,21,69,22],[69,5,69,6],[70,7,70,8],[69,7,69,8],[69,9,69,10],[69,18,69,19],[70,18,70,19],[71,18,71,19],[69,15,69,17],[70,15,70,17],[71,15,71,17],[69,2,69,3],[71,11,71,12],[64,5,64,6],[67,5,67,6],[66,5,66,6],[68,5,68,6],[66,7,66,8],[67,7,67,8],[68,7,68,8],[64,7,64,8],[65,7,65,8],[71,23,71,24],[68,21,68,22],[71,21,71,22],[6,2,6,8],[69,23,69,24],[62,21,62,22],[63,23,63,24],[64,23,64,24],[65,23,65,24],[63,21,63,22],[65,21,65,22],[64,21,64,22],[62,2,62,3],[43,2,43,4],[44,2,44,4],[38,5,39,6],[38,8,39,8],[61,7,61,8],[61,5,61,6],[61,2,61,3],[41,2,41,4],[67,2,67,3],[66,2,66,3],[68,2,68,3],[68,9,68,10],[66,9,66,10],[61,18,61,19],[60,20,60,24],[60,14,60,19],[61,15,61,17],[66,15,66,17],[66,21,66,22],[70,23,70,24],[67,15,67,17],[66,18,66,19],[67,18,67,19],[68,18,68,19],[68,15,68,17],[61,9,61,10],[66,23,66,24],[70,11,70,12],[69,11,69,12],[68,11,68,12],[63,9,63,10],[62,9,62,10],[64,9,64,10],[65,9,65,10],[67,9,67,10],[44,23,44,24],[67,11,67,12],[66,11,66,12],[65,11,65,12],[64,11,64,12],[63,11,63,12],[62,11,62,12],[43,23,43,24],[43,21,43,22],[67,23,67,24],[68,23,68,24],[56,23,56,24],[45,23,45,24],[46,23,46,24],[46,21,46,22],[45,21,45,22],[62,23,62,24],[61,23,61,24],[47,21,47,22],[48,21,48,22],[49,21,49,22],[47,23,47,24],[50,23,50,24],[53,23,53,24],[49,23,49,24],[48,23,48,24],[67,21,67,22],[38,1,39,1],[21,5,21,8],[22,6,23,6],[22,7,23,7],[41,21,41,22],[22,8,23,8],[42,2,42,4],[24,1,24,4],[25,1,25,4],[38,2,39,4],[21,11,21,12],[38,15,38,19],[21,9,21,10],[39,21,39,22],[38,21,38,24],[39,23,39,24],[38,9,38,12],[38,7,39,7],[27,1,27,4],[41,23,41,24],[42,21,42,22],[42,23,42,24],[26,1,26,4],[22,21,23,22],[11,1,11,12],[28,9,28,10],[2,1,2,26],[3,1,3,26],[16,1,16,4],[17,1,17,4],[18,1,18,4],[12,1,14,4],[12,5,12,8],[12,9,12,10],[12,11,12,12],[13,5,14,5],[13,6,14,6],[13,7,14,7],[13,8,14,8],[15,1,15,4],[28,1,28,4],[21,1,23,4],[22,5,23,5],[13,9,14,9],[13,10,14,10],[13,11,14,11],[13,12,14,12],[20,9,20,12]]}
[null,{"$f":"Development!$A$3&\" Residential Efficiency Program\"","v":"2019 Residential Efficiency Program"}]
[null,{"$f":"\"Eligibility Tables & Worksheet, Version \"&Development!A2","v":"Eligibility Tables & Worksheet, Version 2.0"}]
[null,"Important: In order to properly use worksheet, all macros MUST be enabled.  Please read all instructions thoroughly before submitting forms"]
[null," (Keep a copy for your records)"]
[null,"Instructions:"]
[null,"1.","Select the appropriate check boxes on the Customer Information tab prior to filling out the tables below.."]
[null,"2.","Select New Equipment Type from drop down menu."]
[null,"3.","Enter Tonnage (in BTUh) and all applicable Efficiency ratings (SEER, EER, HSPF,COP).  "]
[]
[null,"Eligibility & Rebate Tables"]
[]
[]
[]
[]
[]
[]
[]
[]
[]
[]
[]
[]
[]
[]
[]
[]
[]
[]
[]
[]
[]
[]
[]
[null,"Worksheet"]
[]
[]
[]
[null,{"$f":"IF(COUNTIF(Qualifying_Index!B27:B36,\"Cold Climate\")>0,\"*Please note all cold climate units require NEEP verification\",\"\")","v":""},null,null,null,null,null,null,null,null,null,null,null,null,null,{"$f":"IF(AND(References!G14=0,OR(References!A21<>2,References!A21<>4)),\"PLEASE SELECT HEATING SOURCE ON CUSTOMER INFORMATION TAB\",\"\")","v":"PLEASE SELECT HEATING SOURCE ON CUSTOMER INFORMATION TAB"}]
[null,"Unit","New Equipment Type",null,null,"AHRI Cooling BTUh",null,"AHRI Heating BTUh","AHRI Reference No.","Unit Efficiency",null,null,null,null,null,"Existing Equipment",null,null,null,null,null,"Rebate per System"]
[null,null,null,null,null,null,null,null,null,"SEER","EER","HSPF/COP","Tier",null,null,"Equipment Type","Cooling Btuh","SEER","EER","HSPF/COP",null,"Customer",null,"Contractor"]
[null,null,null,null,null,null,null,null,null,null,null,null,null,null,null,null,null,null,null,null,null,null,null,null,null,null,null,{"$f":"IF(COUNTIF(V42:V51,\"Missing Info\")>0,\"Please complete all required information to the left as well as below\",\"\")","v":""}]
[null,1,null,null,null,null,null,null,null,null,null,null,{"$f":"IF(N42=\"Missing Info\",\"\",Qualifying_Index!X27)","v":""},{"$f":"IF(References!$A$15=TRUE,Qualifying_Index!AN27,Qualifying_Index!AO27)","v":"Missing Info"},null,null,null,null,null,null,null,{"$f":"IF(C42=\"\",\"\",IF(References!$H$14=\"\",\"\",IF(N42=\"Missing Info\",\"Missing Info\",IF(M42=\"DNQ\",\"DNQ\",Qualifying_Index!Y27))))","v":""},null,{"$f":"IF(OR(Qualifying_Index!AT27=\"PTHP\",C42=\"\",References!$A$15=FALSE),\"\",IF(References!$H$36=\"\",\"\",IF(N42=\"Missing Info\",\"Missing Info\",IF(V42=\"DNQ\",\"DNQ\",Qualifying_Index!AC27))))","v":""}]
[null,2,null,null,null,null,null,null,null,null,null,null,{"$f":"IF(N43=\"Missing Info\",\"\",Qualifying_Index!X28)","v":""},{"$f":"IF(References!$A$15=TRUE,Qualifying_Index!AN28,Qualifying_Index!AO28)","v":"Missing Info"},null,null,null,null,null,null,null,{"$f":"IF(C43=\"\",\"\",IF(References!$H$14=\"\",\"\",IF(N43=\"Missing Info\",\"Missing Info\",IF(M43=\"DNQ\",\"DNQ\",Qualifying_Index!Y28))))","v":""},null,{"$f":"IF(OR(Qualifying_Index!AT28=\"PTHP\",C43=\"\",References!$A$15=FALSE),\"\",IF(References!$H$36=\"\",\"\",IF(N43=\"Missing Info\",\"Missing Info\",IF(V43=\"DNQ\",\"DNQ\",Qualifying_Index!AC28))))","v":""}]
[null,3,null,null,null,null,null,null,null,null,null,null,{"$f":"IF(N44=\"Missing Info\",\"\",Qualifying_Index!X29)","v":""},{"$f":"IF(References!$A$15=TRUE,Qualifying_Index!AN29,Qualifying_Index!AO29)","v":"Missing Info"},null,null,null,null,null,null,null,{"$f":"IF(C44=\"\",\"\",IF(References!$H$14=\"\",\"\",IF(N44=\"Missing Info\",\"Missing Info\",IF(M44=\"DNQ\",\"DNQ\",Qualifying_Index!Y29))))","v":""},null,{"$f":"IF(OR(Qualifying_Index!AT29=\"PTHP\",C44=\"\",References!$A$15=FALSE),\"\",IF(References!$H$36=\"\",\"\",IF(N44=\"Missing Info\",\"Missing Info\",IF(V44=\"DNQ\",\"DNQ\",Qualifying_Index!AC29))))","v":""}]
[null,4,null,null,null,null,null,null,null,null,null,null,{"$f":"IF(N45=\"Missing Info\",\"\",Qualifying_Index!X30)","v":""},{"$f":"IF(References!$A$15=TRUE,Qualifying_Index!AN30,Qualifying_Index!AO30)","v":"Missing Info"},null,null,null,null,null,null,null,{"$f":"IF(C45=\"\",\"\",IF(References!$H$14=\"\",\"\",IF(N45=\"Missing Info\",\"Missing Info\",IF(M45=\"DNQ\",\"DNQ\",Qualifying_Index!Y30))))","v":""},null,{"$f":"IF(OR(Qualifying_Index!AT30=\"PTHP\",C45=\"\",References!$A$15=FALSE),\"\",IF(References!$H$36=\"\",\"\",IF(N45=\"Missing Info\",\"Missing Info\",IF(V45=\"DNQ\",\"DNQ\",Qualifying_Index!AC30))))","v":""}]
[null,5,null,null,null,null,null,null,null,null,null,null,{"$f":"IF(N46=\"Missing Info\",\"\",Qualifying_Index!X31)","v":""},{"$f":"IF(References!$A$15=TRUE,Qualifying_Index!AN31,Qualifying_Index!AO31)","v":"Missing Info"},null,null,null,null,null,null,null,{"$f":"IF(C46=\"\",\"\",IF(References!$H$14=\"\",\"\",IF(N46=\"Missing Info\",\"Missing Info\",IF(M46=\"DNQ\",\"DNQ\",Qualifying_Index!Y31))))","v":""},null,{"$f":"IF(OR(Qualifying_Index!AT31=\"PTHP\",C46=\"\",References!$A$15=FALSE),\"\",IF(References!$H$36=\"\",\"\",IF(N46=\"Missing Info\",\"Missing Info\",IF(V46=\"DNQ\",\"DNQ\",Qualifying_Index!AC31))))","v":""}]
[null,6,null,null,null,null,null,null,null,null,null,null,{"$f":"IF(N47=\"Missing Info\",\"\",Qualifying_Index!X32)","v":""},{"$f":"IF(References!$A$15=TRUE,Qualifying_Index!AN32,Qualifying_Index!AO32)","v":"Missing Info"},null,null,null,null,null,null,null,{"$f":"IF(C47=\"\",\"\",IF(References!$H$14=\"\",\"\",IF(N47=\"Missing Info\",\"Missing Info\",IF(M47=\"DNQ\",\"DNQ\",Qualifying_Index!Y32))))","v":""},null,{"$f":"IF(OR(Qualifying_Index!AT32=\"PTHP\",C47=\"\",References!$A$15=FALSE),\"\",IF(References!$H$36=\"\",\"\",IF(N47=\"Missing Info\",\"Missing Info\",IF(V47=\"DNQ\",\"DNQ\",Qualifying_Index!AC32))))","v":""}]
[null,7,null,null,null,null,null,null,null,null,null,null,{"$f":"IF(N48=\"Missing Info\",\"\",Qualifying_Index!X33)","v":""},{"$f":"IF(References!$A$15=TRUE,Qualifying_Index!AN33,Qualifying_Index!AO33)","v":"Missing Info"},null,null,null,null,null,null,null,{"$f":"IF(C48=\"\",\"\",IF(References!$H$14=\"\",\"\",IF(N48=\"Missing Info\",\"Missing Info\",IF(M48=\"DNQ\",\"DNQ\",Qualifying_Index!Y33))))","v":""},null,{"$f":"IF(OR(Qualifying_Index!AT33=\"PTHP\",C48=\"\",References!$A$15=FALSE),\"\",IF(References!$H$36=\"\",\"\",IF(N48=\"Missing Info\",\"Missing Info\",IF(V48=\"DNQ\",\"DNQ\",Qualifying_Index!AC33))))","v":""}]
[null,8,null,null,null,null,null,null,null,null,null,null,{"$f":"IF(N49=\"Missing Info\",\"\",Qualifying_Index!X34)","v":""},{"$f":"IF(References!$A$15=TRUE,Qualifying_Index!AN34,Qualifying_Index!AO34)","v":"Missing Info"},null,null,null,null,null,null,null,{"$f":"IF(C49=\"\",\"\",IF(References!$H$14=\"\",\"\",IF(N49=\"Missing Info\",\"Missing Info\",IF(M49=\"DNQ\",\"DNQ\",Qualifying_Index!Y34))))","v":""},null,{"$f":"IF(OR(Qualifying_Index!AT34=\"PTHP\",C49=\"\",References!$A$15=FALSE),\"\",IF(References!$H$36=\"\",\"\",IF(N49=\"Missing Info\",\"Missing Info\",IF(V49=\"DNQ\",\"DNQ\",Qualifying_Index!AC34))))","v":""}]
[null,9,null,null,null,null,null,null,null,null,null,null,{"$f":"IF(N50=\"Missing Info\",\"\",Qualifying_Index!X35)","v":""},{"$f":"IF(References!$A$15=TRUE,Qualifying_Index!AN35,Qualifying_Index!AO35)","v":"Missing Info"},null,null,null,null,null,null,null,{"$f":"IF(C50=\"\",\"\",IF(References!$H$14=\"\",\"\",IF(N50=\"Missing Info\",\"Missing Info\",IF(M50=\"DNQ\",\"DNQ\",Qualifying_Index!Y35))))","v":""},null,{"$f":"IF(OR(Qualifying_Index!AT35=\"PTHP\",C50=\"\",References!$A$15=FALSE),\"\",IF(References!$H$36=\"\",\"\",IF(N50=\"Missing Info\",\"Missing Info\",IF(V50=\"DNQ\",\"DNQ\",Qualifying_Index!AC35))))","v":""}]
[null,10,null,null,null,null,null,null,null,null,null,null,{"$f":"IF(N51=\"Missing Info\",\"\",Qualifying_Index!X36)","v":""},{"$f":"IF(References!$A$15=TRUE,Qualifying_Index!AN36,Qualifying_Index!AO36)","v":"Missing Info"},null,null,null,null,null,null,null,{"$f":"IF(C51=\"\",\"\",IF(References!$H$14=\"\",\"\",IF(N51=\"Missing Info\",\"Missing Info\",IF(M51=\"DNQ\",\"DNQ\",Qualifying_Index!Y36))))","v":""},null,{"$f":"IF(OR(Qualifying_Index!AT36=\"PTHP\",C51=\"\",References!$A$15=FALSE),\"\",IF(References!$H$36=\"\",\"\",IF(N51=\"Missing Info\",\"Missing Info\",IF(V51=\"DNQ\",\"DNQ\",Qualifying_Index!AC36))))","v":""}]
[]
[null,null,null,null,null,null,null,null,null,null,null,null,null,null,null,null,null,null,null,null,null,null,null,null,"Total Customer Rebate Amount:"]
[null,null,null,null,null,null,null,null,null,null,null,null,null,null,null,null,null,null,null,null,null,null,null,{"$f":"IF(SUM(V42:V51)=\"\",\"\",SUM(V42:V51))","v":0}]
[]
[null,null,null,null,null,null,null,null,null,null,null,null,null,null,null,null,null,null,null,null,null,null,null,null,"Total Contractor Incentive Amount:"]
[null,null,null,null,null,null,null,null,null,null,null,null,null,null,null,null,null,null,null,null,null,null,null,{"$f":"IF(SUM(X42:X51)<1,\"\",SUM(X42:X51))","v":""}]
[null,"Installed System Specifications"]
[]
[]
[null,"Unit","Condenser",null,null,null,null,"Coil/Air Handler",null,null,null,null,null,null,"Existing Equipment",null,null,null,null,null,"Manual J"]
[null,null,"Manufacturer",null,"Model Number","Serial Number",null,"Manufacturer",null,"Model Number",null,"Serial Number",null,null,"Operating?","Manufacturer",null,null,"Model",null,"Btu Cooling","Btu Heating",null,"Pass/Fail"]
[null,1,null,null,null,null,null,null,null,null,null,null,null,null,null,null,null,null,null,null,null,null,null,{"$f":"IF(AND(U63=\"\",V63=\"\"),\"\",Qualifying_Index!AK27)","v":""}]
[null,2,null,null,null,null,null,null,null,null,null,null,null,null,null,null,null,null,null,null,null,null,null,{"$f":"IF(AND(U64=\"\",V64=\"\"),\"\",Qualifying_Index!AK28)","v":""}]
[null,3,null,null,null,null,null,null,null,null,null,null,null,null,null,null,null,null,null,null,null,null,null,{"$f":"IF(AND(U65=\"\",V65=\"\"),\"\",Qualifying_Index!AK29)","v":""}]
[null,4,null,null,null,null,null,null,null,null,null,null,null,null,null,null,null,null,null,null,null,null,null,{"$f":"IF(AND(U66=\"\",V66=\"\"),\"\",Qualifying_Index!AK30)","v":""}]
[null,5,null,null,null,null,null,null,null,null,null,null,null,null,null,null,null,null,null,null,null,null,null,{"$f":"IF(AND(U67=\"\",V67=\"\"),\"\",Qualifying_Index!AK31)","v":""}]
[null,6,null,null,null,null,null,null,null,null,null,null,null,null,null,null,null,null,null,null,null,null,null,{"$f":"IF(AND(U68=\"\",V68=\"\"),\"\",Qualifying_Index!AK32)","v":""}]
[null,7,null,null,null,null,null,null,null,null,null,null,null,null,null,null,null,null,null,null,null,null,null,{"$f":"IF(AND(U69=\"\",V69=\"\"),\"\",Qualifying_Index!AK33)","v":""}]
[null,8,null,null,null,null,null,null,null,null,null,null,null,null,null,null,null,null,null,null,null,null,null,{"$f":"IF(AND(U70=\"\",V70=\"\"),\"\",Qualifying_Index!AK34)","v":""}]
[null,9,null,null,null,null,null,null,null,null,null,null,null,null,null,null,null,null,null,null,null,null,null,{"$f":"IF(AND(U71=\"\",V71=\"\"),\"\",Qualifying_Index!AK35)","v":""}]
[null,10,null,null,null,null,null,null,null,null,null,null,null,null,null,null,null,null,null,null,null,null,null,{"$f":"IF(AND(U72=\"\",V72=\"\"),\"\",Qualifying_Index!AK36)","v":""}]

{"sheet":"Smart T-Stats","index":7,"n_rows":43,"n_cols":11,"rows_kept":43,"cut":false,"hidden":true,"merged":[[27,1,27,2],[28,1,28,2],[29,1,29,2],[30,1,30,2],[22,1,22,2],[23,1,23,2],[24,1,24,2],[25,1,25,2],[26,1,26,2],[3,1,3,10],[19,1,19,2],[20,1,20,2],[21,1,21,2],[11,2,11,3],[11,4,11,5],[12,2,13,3],[12,4,13,5],[8,2,8,8]]}
[]
[null,{"$f":"Development!$A$3&\" Residential Efficiency Program\"","v":"2019 Residential Efficiency Program"}]
[null,{"$f":"\"Smart Thermostat Eligibility Table & Worksheet, Version \"&Development!A2","v":"Smart Thermostat Eligibility Table & Worksheet, Version 2.0"}]
[null,"Smart thermostat incentives are limited to one thermostat per unit and cannot replace an existing Smart thermostat. Smart thermostat must control the installed unit in order to be eligible for an incentive.Thermostats must be installed by a QIV contractor or by a Home Performance with ENERGY STAR contractor."]
[]
[null,"Instructions:"]
[]
[null,"1.","Enter Manufacturer, Approved Thermostat, Model Number and Serial Number."]
[null,"2.","If new thermostat is to be connected to a unit identified on the Worksheet tab, please indicate the unit number from Column B. of the Worksheet tab in Column G under \"Unit Controlled\"."]
[null,"3.","If thermostat was installed during a Home Performance with ENERGY STAR project, please check the appropriate check box"]
[]
[null,null,"Eligible Equipment",null,"Customer Incentive (per unit)"]
[null,null,"Wi-Fi Enabled Smart Thermostat",null,35]
[]
[]
[]
[]
[null,"In order to qualify for an incentive, Smart thermostats must be listed at. ",null,null,"https://enrollmythermostat.com/faqs/pseg-long-island-faq/"]
[]
[null,"Manufacturer",null,"Approved Thermostat","Model Number","Serial Number","Unit Controlled","Primary Cooling","Heating Type",null,"Customer Incentive"]
[null,null,null,null,null,null,null,null,null,{"$f":"IF(H21=\"\",\"\",IF(References!$C$33=TRUE,\"HP Thermostat\",IF(OR(RIGHT(H21,2)=\"HP\",I21=\"Electric Heat\"),\"CH Thermostat Heating Cooling\",\"CH Thermostat Cooling\")))","v":""},{"$f":"IF(OR(B21=\"\",D21=\"\",F21=\"\",,H21=\"\",I21=\"\"),\"\",35)","v":""}]
[null,null,null,null,null,null,null,null,null,{"$f":"IF(H22=\"\",\"\",IF(References!$C$33=TRUE,\"HP Thermostat\",IF(OR(RIGHT(H22,2)=\"HP\",I22=\"Electric Heat\"),\"CH Thermostat Heating Cooling\",\"CH Thermostat Cooling\")))","v":""},{"$f":"IF(OR(B22=\"\",D22=\"\",F22=\"\",,H22=\"\",I22=\"\"),\"\",35)","v":""}]
[null,null,null,null,null,null,null,null,null,{"$f":"IF(H23=\"\",\"\",IF(References!$C$33=TRUE,\"HP Thermostat\",IF(OR(RIGHT(H23,2)=\"HP\",I23=\"Electric Heat\"),\"CH Thermostat Heating Cooling\",\"CH Thermostat Cooling\")))","v":""},""]
[null,null,null,null,null,null,null,null,null,{"$f":"IF(H24=\"\",\"\",IF(References!$C$33=TRUE,\"HP Thermostat\",IF(OR(RIGHT(H24,2)=\"HP\",I24=\"Electric Heat\"),\"CH Thermostat Heating Cooling\",\"CH Thermostat Cooling\")))","v":""},""]
[null,null,null,null,null,null,null,null,null,{"$f":"IF(H25=\"\",\"\",IF(References!$C$33=TRUE,\"HP Thermostat\",IF(OR(RIGHT(H25,2)=\"HP\",I25=\"Electric Heat\"),\"CH Thermostat Heating Cooling\",\"CH Thermostat Cooling\")))","v":""},""]
[null,null,null,null,null,null,null,null,null,{"$f":"IF(H26=\"\",\"\",IF(References!$C$33=TRUE,\"HP Thermostat\",IF(OR(RIGHT(H26,2)=\"HP\",I26=\"Electric Heat\"),\"CH Thermostat Heating Cooling\",\"CH Thermostat Cooling\")))","v":""},""]
[null,null,null,null,null,null,null,null,null,{"$f":"IF(H27=\"\",\"\",IF(References!$C$33=TRUE,\"HP Thermostat\",IF(OR(RIGHT(H27,2)=\"HP\",I27=\"Electric Heat\"),\"CH Thermostat Heating Cooling\",\"CH Thermostat Cooling\")))","v":""},""]
[null,null,null,null,null,null,null,null,null,{"$f":"IF(H28=\"\",\"\",IF(References!$C$33=TRUE,\"HP Thermostat\",IF(OR(RIGHT(H28,2)=\"HP\",I28=\"Electric Heat\"),\"CH Thermostat Heating Cooling\",\"CH Thermostat Cooling\")))","v":""},""]
[null,null,null,null,null,null,null,null,null,{"$f":"IF(H29=\"\",\"\",IF(References!$C$33=TRUE,\"HP Thermostat\",IF(OR(RIGHT(H29,2)=\"HP\",I29=\"Electric Heat\"),\"CH Thermostat Heating Cooling\",\"CH Thermostat Cooling\")))","v":""},""]
[null,null,null,null,null,null,null,null,null,{"$f":"IF(H30=\"\",\"\",IF(References!$C$33=TRUE,\"HP Thermostat\",IF(OR(RIGHT(H30,2)=\"HP\",I30=\"Electric Heat\"),\"CH Thermostat Heating Cooling\",\"CH Thermostat Cooling\")))","v":""},""]
[null,null,null,null,null,null,null,null,null,{"$f":"IF(H31=\"\",\"\",IF(References!$C$33=TRUE,\"HP Thermostat\",IF(OR(RIGHT(H31,2)=\"HP\",I31=\"Electric Heat\"),\"CH Thermostat Heating Cooling\",\"CH Thermostat Cooling\")))","v":""},""]
[]
[null,null,null,null,null,null,null,"Smart Thermostat Rebate Amount:",null,null,{"$f":"SUM(K21:K31)","v":0}]
[]
[]
[]
[]
[]
[]
[]
[]
[]
[null,"Application Version:",null,{"$f":"Development!$A$4&\"_\"&Development!$A$2","v":"11.15.19_2.0"},null,null,null,"Effective:",null,null,{"$f":"Development!$A$4","v":"11.15.19"}]

{"sheet":"Integrated Controls","index":8,"n_rows":37,"n_cols":10,"rows_kept":37,"cut":false,"hidden":true,"merged":[[9,2,9,4],[3,1,3,7],[19,1,19,2],[20,1,20,2],[21,1,21,2],[22,1,22,2],[23,1,23,2],[24,1,24,2],[13,1,13,2],[14,1,14,2],[15,1,15,2],[16,1,16,2],[17,1,17,2],[18,1,18,2]]}
[]
[null,{"$f":"Development!$A$3&\" Residential Efficiency Program\"","v":"2019 Residential Efficiency Program"}]
[null,{"$f":"\"Integrated Controls and Dual Fuel Thermostat Worksheet, Version \"&Development!A2","v":"Integrated Controls and Dual Fuel Thermostat Worksheet, Version 2.0"}]
[null,"If the customer will have fossil fuel back up heat present after the proposed equipment is installed, Integrated Controls, or Dual Fuel Thermostats must be installed. For Ductless Systems,  Integrated Controls will be required to ensure that all Ductless Heat Pumps can communicate with the thermostat."]
[]
[null,"Instructions:"]
[]
[null,"1.","Choose whether Integrated Controls or only a Dual Fuel Thermostat will be installed.",null,null,null,"Technology","Customer Incentive"]
[null,"2.","Enter Manufacturer, Approved Thermostat, Model Number and Serial Number.",null,null,null,"Integrated Controls",500]
[null,null,null,null,null,null,"Dual Fuel Thermostat",500]
[]
[]
[]
[null,"Technology Type",null,"Manufacturer","Approved Thermostat","Model Number","Serial Number","Customer Incentive"]
[null,null,null,null,null,null,null,{"$f":"IF(OR(B15=\"\",D15=\"\",E15=\"\",F15=\"\",G15=\"\"),\"\",500)","v":""}]
[null,null,null,null,null,null,null,null,{"$f":"IF(#REF!=\"\",\"\",IF(References!$C$33=TRUE,\"HP Thermostat\",IF(OR(RIGHT(#REF!,2)=\"HP\",H16=\"Electric Heat\"),\"CH Thermostat Heating Cooling\",\"CH Thermostat Cooling\")))","v":{"$error":"#REF!"}},{"$f":"IF(OR(B16=\"\",D16=\"\",F16=\"\",,#REF!=\"\",H16=\"\"),\"\",35)","v":{"$error":"#REF!"}}]
[null,null,null,null,null,null,null,null,{"$f":"IF(#REF!=\"\",\"\",IF(References!$C$33=TRUE,\"HP Thermostat\",IF(OR(RIGHT(#REF!,2)=\"HP\",H17=\"Electric Heat\"),\"CH Thermostat Heating Cooling\",\"CH Thermostat Cooling\")))","v":{"$error":"#REF!"}},{"$f":"IF(OR(B17=\"\",D17=\"\",F17=\"\",,#REF!=\"\",H17=\"\"),\"\",35)","v":{"$error":"#REF!"}}]
[null,null,null,null,null,null,null,null,{"$f":"IF(#REF!=\"\",\"\",IF(References!$C$33=TRUE,\"HP Thermostat\",IF(OR(RIGHT(#REF!,2)=\"HP\",H18=\"Electric Heat\"),\"CH Thermostat Heating Cooling\",\"CH Thermostat Cooling\")))","v":{"$error":"#REF!"}},{"$f":"IF(OR(B18=\"\",D18=\"\",F18=\"\",,#REF!=\"\",H18=\"\"),\"\",35)","v":{"$error":"#REF!"}}]
[null,null,null,null,null,null,null,null,{"$f":"IF(#REF!=\"\",\"\",IF(References!$C$33=TRUE,\"HP Thermostat\",IF(OR(RIGHT(#REF!,2)=\"HP\",H19=\"Electric Heat\"),\"CH Thermostat Heating Cooling\",\"CH Thermostat Cooling\")))","v":{"$error":"#REF!"}},{"$f":"IF(OR(B19=\"\",D19=\"\",F19=\"\",,#REF!=\"\",H19=\"\"),\"\",35)","v":{"$error":"#REF!"}}]
[null,null,null,null,null,null,null,null,{"$f":"IF(#REF!=\"\",\"\",IF(References!$C$33=TRUE,\"HP Thermostat\",IF(OR(RIGHT(#REF!,2)=\"HP\",H20=\"Electric Heat\"),\"CH Thermostat Heating Cooling\",\"CH Thermostat Cooling\")))","v":{"$error":"#REF!"}},{"$f":"IF(OR(B20=\"\",D20=\"\",F20=\"\",,#REF!=\"\",H20=\"\"),\"\",35)","v":{"$error":"#REF!"}}]
[null,null,null,null,null,null,null,null,{"$f":"IF(#REF!=\"\",\"\",IF(References!$C$33=TRUE,\"HP Thermostat\",IF(OR(RIGHT(#REF!,2)=\"HP\",H21=\"Electric Heat\"),\"CH Thermostat Heating Cooling\",\"CH Thermostat Cooling\")))","v":{"$error":"#REF!"}},{"$f":"IF(OR(B21=\"\",D21=\"\",F21=\"\",,#REF!=\"\",H21=\"\"),\"\",35)","v":{"$error":"#REF!"}}]
[null,null,null,null,null,null,null,null,{"$f":"IF(#REF!=\"\",\"\",IF(References!$C$33=TRUE,\"HP Thermostat\",IF(OR(RIGHT(#REF!,2)=\"HP\",H22=\"Electric Heat\"),\"CH Thermostat Heating Cooling\",\"CH Thermostat Cooling\")))","v":{"$error":"#REF!"}},{"$f":"IF(OR(B22=\"\",D22=\"\",F22=\"\",,#REF!=\"\",H22=\"\"),\"\",35)","v":{"$error":"#REF!"}}]
[null,null,null,null,null,null,null,null,{"$f":"IF(#REF!=\"\",\"\",IF(References!$C$33=TRUE,\"HP Thermostat\",IF(OR(RIGHT(#REF!,2)=\"HP\",H23=\"Electric Heat\"),\"CH Thermostat Heating Cooling\",\"CH Thermostat Cooling\")))","v":{"$error":"#REF!"}},{"$f":"IF(OR(B23=\"\",D23=\"\",F23=\"\",,#REF!=\"\",H23=\"\"),\"\",35)","v":{"$error":"#REF!"}}]
[null,null,null,null,null,null,null,null,{"$f":"IF(#REF!=\"\",\"\",IF(References!$C$33=TRUE,\"HP Thermostat\",IF(OR(RIGHT(#REF!,2)=\"HP\",H24=\"Electric Heat\"),\"CH Thermostat Heating Cooling\",\"CH Thermostat Cooling\")))","v":{"$error":"#REF!"}},{"$f":"IF(OR(B24=\"\",D24=\"\",F24=\"\",,#REF!=\"\",H24=\"\"),\"\",35)","v":{"$error":"#REF!"}}]
[null,null,null,null,null,null,null,null,{"$f":"IF(#REF!=\"\",\"\",IF(References!$C$33=TRUE,\"HP Thermostat\",IF(OR(RIGHT(#REF!,2)=\"HP\",H25=\"Electric Heat\"),\"CH Thermostat Heating Cooling\",\"CH Thermostat Cooling\")))","v":{"$error":"#REF!"}},{"$f":"IF(OR(B25=\"\",D25=\"\",F25=\"\",,#REF!=\"\",H25=\"\"),\"\",35)","v":{"$error":"#REF!"}}]
[]
[null,null,null,null,null,null,null,null,null,{"$f":"SUM(J15:J25)","v":{"$error":"#REF!"}}]
[]
[]
[]
[]
[]
[]
[]
[]
[]
[null,"Application Version:",null,{"$f":"Development!$A$4&\"_\"&Development!$A$2","v":"11.15.19_2.0"},null,null,null,null,null,{"$f":"Development!$A$4","v":"11.15.19"}]

{"sheet":"Pre Inspection Form","index":9,"n_rows":77,"n_cols":13,"rows_kept":77,"cut":false,"hidden":false,"merged":[[5,9,5,12],[23,2,23,3],[11,9,11,12],[53,2,53,3],[53,4,53,5],[53,6,53,7],[43,4,43,5],[43,6,43,7],[34,2,34,3],[35,2,35,3],[38,2,38,3],[46,2,46,3],[46,4,46,5],[46,6,46,7],[45,2,45,3],[45,4,45,5],[45,6,45,7],[34,5,34,6],[35,5,35,6],[36,5,36,6],[37,5,37,6],[38,5,38,6],[44,2,44,3],[44,4,44,5],[44,6,44,7],[51,4,51,5],[51,6,51,7],[23,5,23,6],[24,7,24,8],[25,7,25,8],[23,7,23,8],[28,5,28,6],[29,5,29,6],[26,3,26,5],[26,8,26,10],[24,2,24,3],[25,2,25,3],[24,5,24,6],[25,5,25,6],[50,2,50,3],[50,4,50,5],[50,6,50,7],[50,8,50,9],[46,8,46,9],[46,10,46,11],[47,2,47,3],[47,4,47,5],[47,6,47,7],[65,4,65,5],[65,6,65,7],[61,6,61,7],[28,2,28,3],[28,8,28,9],[28,10,28,11],[29,2,29,3],[29,8,29,9],[29,10,29,11],[42,8,42,9],[42,10,42,11],[43,2,43,3],[35,8,35,9],[35,10,35,11],[36,10,36,11],[37,2,37,3],[36,2,36,3],[36,8,36,9],[37,8,37,9],[37,10,37,11],[43,8,43,9],[43,10,43,11],[51,8,51,9],[51,10,51,11],[5,2,5,5],[9,2,9,5],[11,2,11,5],[13,2,13,5],[17,2,17,5],[34,10,34,11],[32,2,32,3],[32,8,32,9],[32,10,32,11],[33,10,33,11],[33,8,33,9],[33,2,33,3],[34,8,34,9],[32,5,32,6],[33,5,33,6],[30,2,30,3],[30,8,30,9],[30,10,30,11],[31,10,31,11],[31,8,31,9],[31,2,31,3],[30,5,30,6],[31,5,31,6],[19,2,19,5],[69,2,69,3],[69,4,69,5],[69,6,69,7],[38,8,38,9],[38,10,38,11],[71,3,71,4],[71,5,71,6],[71,7,71,8],[71,9,71,10],[62,6,62,7],[66,6,66,7],[66,2,66,3],[61,2,61,3],[63,6,63,7],[64,6,64,7],[56,5,56,7],[42,2,42,3],[42,4,42,5],[42,6,42,7],[60,2,60,3],[60,4,60,5],[60,6,60,7],[49,2,49,3],[66,4,66,5],[76,3,76,6],[73,1,73,11],[74,1,74,11],[72,2,72,11],[47,8,47,9],[47,10,47,11],[48,2,48,3],[61,4,61,5],[62,4,62,5],[63,4,63,5],[64,4,64,5],[70,2,70,3],[70,4,70,5],[62,2,62,3],[63,2,63,3],[64,2,64,3],[65,2,65,3],[70,6,70,7],[67,2,67,3],[67,4,67,5],[67,6,67,7],[68,2,68,3],[68,4,68,5],[68,6,68,7],[13,9,13,10],[76,10,76,12],[3,1,3,5],[53,8,53,9],[53,10,53,11],[52,2,52,3],[50,10,50,11],[49,4,49,5],[49,6,49,7],[52,4,52,5],[52,6,52,7],[52,8,52,9],[52,10,52,11],[49,8,49,9],[49,10,49,11],[44,8,44,9],[44,10,44,11],[45,8,45,9],[45,10,45,11],[48,4,48,5],[48,6,48,7],[48,8,48,9],[48,10,48,11],[51,2,51,3]]}
[null,{"$f":"Development!$A$3&\" Residential Efficiency Program\"","v":"2019 Residential Efficiency Program"}]
[]
[]
[null,{"$f":"\"Pre-Inspection Form, Version \"&Development!A2","v":"Pre-Inspection Form, Version 2.0"}]
[]
[null,"Performed By:",null,null,null,null,null,null,"Account No:",{"$f":"IF('Customer Information'!C5=\"\",\"\",'Customer Information'!C5)","v":""}]
[]
[]
[null,"Customer Information"]
[null,"Customer Name:",{"$f":"IF('Customer Information'!C6=\"\",\"\",'Customer Information'!C6)","v":""},null,null,null,null,null,"Address:",{"$f":"IF('Customer Information'!C7=\"\",\"\",'Customer Information'!C7)","v":""}]
[]
[null,"Town:",{"$f":"IF('Customer Information'!I7=\"\",\"\",'Customer Information'!I7)","v":""},null,null,null,null,null,"Phone:",{"$f":"IF('Customer Information'!K9=\"\",\"\",'Customer Information'!K9)","v":""}]
[]
[null,"Inspector:",null,null,null,null,null,null,"Date:"]
[]
[]
[null,"Contractor Information"]
[null,"Company:",{"$f":"IF('Customer Information'!C25=\"\",\"\",'Customer Information'!C25)","v":""},null,null,null,null,null,"Contact Name:",{"$f":"IF('Customer Information'!C26=\"\",\"\",'Customer Information'!C26)","v":""}]
[]
[null,"Phone:",{"$f":"IF('Customer Information'!K27=\"\",\"\",'Customer Information'!K27)","v":""},null,null,null,null,null,"Application ID:",{"$f":"IF('Customer Information'!L46=\"\",\"\",'Customer Information'!L46)","v":""}]
[]
[null,"Existing Equipment Details"]
[null,"Heating Information"]
[null,null,"Heating Equipment",null,"Heating Fuel","Matching?",null,"Equipment Tonnage"]
[null,"Primary:",{"$f":"IF(References!H14=\"New Construction\",\"New Construction\",References!$L$4)","v":"Other"},null,{"$f":"References!$H$14","v":""}]
[null,"Secondary:"]
[]
[null,"Cooling Information"]
[null,"Unit #","Type",null,"Manufacturer","Model #",null,"Tonnage","Operating?",null,"Efficiency Rating",null,"Matching?"]
[null,1,{"$f":"IF(Worksheet!P42=\"\",\"\",Worksheet!P42)","v":""},null,{"$f":"IF(Worksheet!P63=\"\",\"\",Worksheet!P63)","v":""},{"$f":"IF(Worksheet!S63=\"\",\"\",Worksheet!S63)","v":""},null,{"$f":"IF(Worksheet!Q42=\"\",\"\",Worksheet!Q42)","v":""},{"$f":"IF(Worksheet!O63=\"\",\"\",Worksheet!O63)","v":""},null,{"$f":"IF(Worksheet!C42=\"\",\"\",IF(Worksheet!T42=\"\",Worksheet!R42&\" SEER / \"&Worksheet!S42&\" EER\",IF(Worksheet!C42=\"Packaged Terminal Heat Pump\",Worksheet!R42&\" SEER / \"&Worksheet!S42&\" EER / \"&Worksheet!T42&\" COP\",Worksheet!R42&\" SEER / \"&Worksheet!S42&\" EER / \"&Worksheet!T42&\" HSPF\")))","v":""}]
[null,{"$f":"B30+1","v":2},{"$f":"IF(Worksheet!P43=\"\",\"\",Worksheet!P43)","v":""},null,{"$f":"IF(Worksheet!P64=\"\",\"\",Worksheet!P64)","v":""},{"$f":"IF(Worksheet!S64=\"\",\"\",Worksheet!S64)","v":""},null,{"$f":"IF(Worksheet!Q43=\"\",\"\",Worksheet!Q43)","v":""},{"$f":"IF(Worksheet!O64=\"\",\"\",Worksheet!O64)","v":""},null,{"$f":"IF(Worksheet!C43=\"\",\"\",IF(Worksheet!T43=\"\",Worksheet!R43&\" SEER / \"&Worksheet!S43&\" EER\",IF(Worksheet!C43=\"Packaged Terminal Heat Pump\",Worksheet!R43&\" SEER / \"&Worksheet!S43&\" EER / \"&Worksheet!T43&\" COP\",Worksheet!R43&\" SEER / \"&Worksheet!S43&\" EER / \"&Worksheet!T43&\" HSPF\")))","v":""}]
[null,3,{"$f":"IF(Worksheet!P44=\"\",\"\",Worksheet!P44)","v":""},null,{"$f":"IF(Worksheet!P65=\"\",\"\",Worksheet!P65)","v":""},{"$f":"IF(Worksheet!S65=\"\",\"\",Worksheet!S65)","v":""},null,{"$f":"IF(Worksheet!Q44=\"\",\"\",Worksheet!Q44)","v":""},{"$f":"IF(Worksheet!O65=\"\",\"\",Worksheet!O65)","v":""},null,{"$f":"IF(Worksheet!C44=\"\",\"\",IF(Worksheet!T44=\"\",Worksheet!R44&\" SEER / \"&Worksheet!S44&\" EER\",IF(Worksheet!C44=\"Packaged Terminal Heat Pump\",Worksheet!R44&\" SEER / \"&Worksheet!S44&\" EER / \"&Worksheet!T44&\" COP\",Worksheet!R44&\" SEER / \"&Worksheet!S44&\" EER / \"&Worksheet!T44&\" HSPF\")))","v":""}]
[null,4,{"$f":"IF(Worksheet!P45=\"\",\"\",Worksheet!P45)","v":""},null,{"$f":"IF(Worksheet!P66=\"\",\"\",Worksheet!P66)","v":""},{"$f":"IF(Worksheet!S66=\"\",\"\",Worksheet!S66)","v":""},null,{"$f":"IF(Worksheet!Q45=\"\",\"\",Worksheet!Q45)","v":""},{"$f":"IF(Worksheet!O66=\"\",\"\",Worksheet!O66)","v":""},null,{"$f":"IF(Worksheet!C45=\"\",\"\",IF(Worksheet!T45=\"\",Worksheet!R45&\" SEER / \"&Worksheet!S45&\" EER\",IF(Worksheet!C45=\"Packaged Terminal Heat Pump\",Worksheet!R45&\" SEER / \"&Worksheet!S45&\" EER / \"&Worksheet!T45&\" COP\",Worksheet!R45&\" SEER / \"&Worksheet!S45&\" EER / \"&Worksheet!T45&\" HSPF\")))","v":""}]
[null,5,{"$f":"IF(Worksheet!P46=\"\",\"\",Worksheet!P46)","v":""},null,{"$f":"IF(Worksheet!P67=\"\",\"\",Worksheet!P67)","v":""},{"$f":"IF(Worksheet!S67=\"\",\"\",Worksheet!S67)","v":""},null,{"$f":"IF(Worksheet!Q46=\"\",\"\",Worksheet!Q46)","v":""},{"$f":"IF(Worksheet!O67=\"\",\"\",Worksheet!O67)","v":""},null,{"$f":"IF(Worksheet!C46=\"\",\"\",IF(Worksheet!T46=\"\",Worksheet!R46&\" SEER / \"&Worksheet!S46&\" EER\",IF(Worksheet!C46=\"Packaged Terminal Heat Pump\",Worksheet!R46&\" SEER / \"&Worksheet!S46&\" EER / \"&Worksheet!T46&\" COP\",Worksheet!R46&\" SEER / \"&Worksheet!S46&\" EER / \"&Worksheet!T46&\" HSPF\")))","v":""}]
[null,6,{"$f":"IF(Worksheet!P47=\"\",\"\",Worksheet!P47)","v":""},null,{"$f":"IF(Worksheet!P68=\"\",\"\",Worksheet!P68)","v":""},{"$f":"IF(Worksheet!S68=\"\",\"\",Worksheet!S68)","v":""},null,{"$f":"IF(Worksheet!Q47=\"\",\"\",Worksheet!Q47)","v":""},{"$f":"IF(Worksheet!O68=\"\",\"\",Worksheet!O68)","v":""},null,{"$f":"IF(Worksheet!C47=\"\",\"\",IF(Worksheet!T47=\"\",Worksheet!R47&\" SEER / \"&Worksheet!S47&\" EER\",IF(Worksheet!C47=\"Packaged Terminal Heat Pump\",Worksheet!R47&\" SEER / \"&Worksheet!S47&\" EER / \"&Worksheet!T47&\" COP\",Worksheet!R47&\" SEER / \"&Worksheet!S47&\" EER / \"&Worksheet!T47&\" HSPF\")))","v":""}]
[null,7,{"$f":"IF(Worksheet!P48=\"\",\"\",Worksheet!P48)","v":""},null,{"$f":"IF(Worksheet!P69=\"\",\"\",Worksheet!P69)","v":""},{"$f":"IF(Worksheet!S69=\"\",\"\",Worksheet!S69)","v":""},null,{"$f":"IF(Worksheet!Q48=\"\",\"\",Worksheet!Q48)","v":""},{"$f":"IF(Worksheet!O69=\"\",\"\",Worksheet!O69)","v":""},null,{"$f":"IF(Worksheet!C48=\"\",\"\",IF(Worksheet!T48=\"\",Worksheet!R48&\" SEER / \"&Worksheet!S48&\" EER\",IF(Worksheet!C48=\"Packaged Terminal Heat Pump\",Worksheet!R48&\" SEER / \"&Worksheet!S48&\" EER / \"&Worksheet!T48&\" COP\",Worksheet!R48&\" SEER / \"&Worksheet!S48&\" EER / \"&Worksheet!T48&\" HSPF\")))","v":""}]
[null,8,{"$f":"IF(Worksheet!P49=\"\",\"\",Worksheet!P49)","v":""},null,{"$f":"IF(Worksheet!P70=\"\",\"\",Worksheet!P70)","v":""},{"$f":"IF(Worksheet!S70=\"\",\"\",Worksheet!S70)","v":""},null,{"$f":"IF(Worksheet!Q49=\"\",\"\",Worksheet!Q49)","v":""},{"$f":"IF(Worksheet!O70=\"\",\"\",Worksheet!O70)","v":""},null,{"$f":"IF(Worksheet!C49=\"\",\"\",IF(Worksheet!T49=\"\",Worksheet!R49&\" SEER / \"&Worksheet!S49&\" EER\",IF(Worksheet!C49=\"Packaged Terminal Heat Pump\",Worksheet!R49&\" SEER / \"&Worksheet!S49&\" EER / \"&Worksheet!T49&\" COP\",Worksheet!R49&\" SEER / \"&Worksheet!S49&\" EER / \"&Worksheet!T49&\" HSPF\")))","v":""}]
[null,9,{"$f":"IF(Worksheet!P50=\"\",\"\",Worksheet!P50)","v":""},null,{"$f":"IF(Worksheet!P71=\"\",\"\",Worksheet!P71)","v":""},{"$f":"IF(Worksheet!S71=\"\",\"\",Worksheet!S71)","v":""},null,{"$f":"IF(Worksheet!Q50=\"\",\"\",Worksheet!Q50)","v":""},{"$f":"IF(Worksheet!O71=\"\",\"\",Worksheet!O71)","v":""},null,{"$f":"IF(Worksheet!C50=\"\",\"\",IF(Worksheet!T50=\"\",Worksheet!R50&\" SEER / \"&Worksheet!S50&\" EER\",IF(Worksheet!C50=\"Packaged Terminal Heat Pump\",Worksheet!R50&\" SEER / \"&Worksheet!S50&\" EER / \"&Worksheet!T50&\" COP\",Worksheet!R50&\" SEER / \"&Worksheet!S50&\" EER / \"&Worksheet!T50&\" HSPF\")))","v":""}]
[null,10,{"$f":"IF(Worksheet!P51=\"\",\"\",Worksheet!P51)","v":""},null,{"$f":"IF(Worksheet!P72=\"\",\"\",Worksheet!P72)","v":""},{"$f":"IF(Worksheet!S72=\"\",\"\",Worksheet!S72)","v":""},null,{"$f":"IF(Worksheet!Q51=\"\",\"\",Worksheet!Q51)","v":""},{"$f":"IF(Worksheet!O72=\"\",\"\",Worksheet!O72)","v":""},null,{"$f":"IF(Worksheet!C51=\"\",\"\",IF(Worksheet!T51=\"\",Worksheet!R51&\" SEER / \"&Worksheet!S51&\" EER\",IF(Worksheet!C51=\"Packaged Terminal Heat Pump\",Worksheet!R51&\" SEER / \"&Worksheet!S51&\" EER / \"&Worksheet!T51&\" COP\",Worksheet!R51&\" SEER / \"&Worksheet!S51&\" EER / \"&Worksheet!T51&\" HSPF\")))","v":""}]
[]
[]
[null,"Smart Thermostats"]
[null,"Unit #","Type",null,"Manufacturer",null,"Model #",null,"Serial #",null,"Matches \nInvoice"]
[null,1]
[null,{"$f":"B44+1","v":2}]
[null,3]
[null,4]
[null,5]
[null,6]
[null,7]
[null,8]
[null,9]
[null,10]
[null,11]
[]
[null,"Inspection Analysis"]
[null,null,null,null,"Fail Reason*:"]
[]
[null,"ACCA Manual J (Total Tons):",null,""]
[]
[null,null,"ACCA Manual J (BTU)",null,"AHRI Certificate Number:",null,"AHRI Ratings:"]
[null,"Unit 1","",null,"",null,"",null,null,24]
[null,"Unit 2","",null,"",null,"",null,null,29]
[null,"Unit 3","",null,"",null,"",null,null,34]
[null,"Unit 4 ","",null,"",null,"",null,null,39]
[null,"Unit 5","",null,"",null,"",null,null,44]
[null,"Unit 6","",null,"",null,"",null,null,49]
[null,"Unit 7","",null,"",null,"",null,null,54]
[null,"Unit 8","",null,"",null,"",null,null,59]
[null,"Unit 9","",null,"",null,"",null,null,64]
[null,"Unit 10","",null,"",null,"",null,null,69]
[]
[null,"Notes:"]
[]
[]
[]
[null,"Customer Signature:",null,null,null,null,null,null,null,"Date:"]

{"sheet":"Post Inspection Form","index":10,"n_rows":76,"n_cols":11,"rows_kept":76,"cut":false,"hidden":false,"merged":[[38,9,38,11],[64,4,64,5],[64,6,64,7],[60,6,60,7],[65,4,65,5],[31,2,31,3],[31,4,31,5],[31,6,31,7],[32,2,32,3],[32,4,32,5],[32,6,32,7],[35,2,35,3],[35,4,35,5],[35,6,35,7],[45,2,45,3],[45,4,45,5],[45,6,45,7],[44,2,44,3],[44,4,44,5],[44,6,44,7],[43,2,43,3],[43,4,43,5],[43,6,43,7],[49,2,49,3],[49,4,49,5],[20,2,20,5],[20,8,20,11],[14,8,14,9],[25,2,25,3],[25,4,25,5],[25,6,25,7],[25,8,25,9],[25,10,25,11],[26,2,26,3],[26,4,26,5],[26,6,26,7],[26,8,26,9],[26,10,26,11],[31,10,31,11],[29,2,29,3],[29,4,29,5],[29,6,29,7],[29,8,29,9],[29,10,29,11],[30,10,30,11],[30,8,30,9],[30,6,30,7],[30,4,30,5],[6,2,6,5],[6,8,6,11],[10,2,10,5],[10,8,10,11],[12,2,12,5],[12,8,12,11],[14,2,14,5],[18,2,18,5],[18,8,18,11],[30,2,30,3],[31,8,31,9],[27,2,27,3],[27,4,27,5],[27,6,27,7],[27,8,27,9],[27,10,27,11],[28,10,28,11],[28,8,28,9],[28,6,28,7],[28,4,28,5],[28,2,28,3],[48,2,48,3],[41,8,41,9],[41,10,41,11],[42,2,42,3],[42,4,42,5],[42,6,42,7],[32,8,32,9],[32,10,32,11],[33,10,33,11],[34,2,34,3],[34,4,34,5],[33,2,33,3],[33,4,33,5],[33,6,33,7],[33,8,33,9],[34,6,34,7],[34,8,34,9],[34,10,34,11],[42,8,42,9],[42,10,42,11],[47,4,47,5],[47,6,47,7],[47,8,47,9],[38,3,38,6],[67,4,67,5],[67,6,67,7],[68,2,68,3],[68,4,68,5],[68,6,68,7],[35,8,35,9],[35,10,35,11],[70,3,70,4],[70,5,70,6],[70,7,70,8],[70,9,70,10],[61,6,61,7],[65,6,65,7],[65,2,65,3],[60,2,60,3],[62,6,62,7],[63,6,63,7],[55,5,55,7],[41,2,41,3],[41,4,41,5],[41,6,41,7],[59,2,59,3],[59,4,59,5],[59,6,59,7],[75,3,75,6],[72,1,72,11],[73,1,73,11],[71,2,71,11],[75,10,75,11],[47,2,47,3],[60,4,60,5],[61,4,61,5],[62,4,62,5],[63,4,63,5],[69,2,69,3],[69,4,69,5],[61,2,61,3],[62,2,62,3],[63,2,63,3],[64,2,64,3],[69,6,69,7],[66,2,66,3],[66,4,66,5],[66,6,66,7],[52,2,52,3],[52,4,52,5],[52,6,52,7],[67,2,67,3],[44,10,44,11],[45,8,45,9],[45,10,45,11],[46,2,46,3],[46,4,46,5],[46,6,46,7],[46,8,46,9],[46,10,46,11],[47,10,47,11],[38,1,38,2],[38,7,38,8],[52,8,52,9],[52,10,52,11],[51,2,51,3],[49,10,49,11],[48,4,48,5],[48,6,48,7],[51,4,51,5],[51,6,51,7],[51,8,51,9],[51,10,51,11],[50,2,50,3],[50,4,50,5],[50,6,50,7],[50,8,50,9],[50,10,50,11],[49,6,49,7],[49,8,49,9],[48,8,48,9],[48,10,48,11],[43,8,43,9],[43,10,43,11],[44,8,44,9]]}
[null,{"$f":"Development!$A$3&\" Residential Efficiency Program\"","v":"2019 Residential Efficiency Program"}]
[]
[]
[null,{"$f":"\"Post-Inspection Form, Version \"&Development!A2","v":"Post-Inspection Form, Version 2.0"}]
[]
[]
[null,"Performed By:",null,null,null,null,null,"Account No:",{"$f":"IF('Customer Information'!C5=\"\",\"\",'Customer Information'!C5)","v":""}]
[]
[]
[null,"Customer Information"]
[null,"Customer Name:",{"$f":"IF('Customer Information'!C6=\"\",\"\",'Customer Information'!C6)","v":""},null,null,null,null,"Address:",{"$f":"IF('Customer Information'!C7=\"\",\"\",'Customer Information'!C7)","v":""}]
[]
[null,"Town:",{"$f":"IF('Customer Information'!I7=\"\",\"\",'Customer Information'!I7)","v":""},null,null,null,null,"Phone:",{"$f":"IF('Customer Information'!K9=\"\",\"\",'Customer Information'!K9)","v":""}]
[]
[null,"Inspector:",null,null,null,null,null,"Date:"]
[]
[]
[null,"Contractor Information"]
[null,"Company:",{"$f":"IF('Customer Information'!C25=\"\",\"\",'Customer Information'!C25)","v":""},null,null,null,null,"Contact Name:",{"$f":"IF('Customer Information'!C26=\"\",\"\",'Customer Information'!C26)","v":""}]
[]
[null,"Phone:",{"$f":"IF('Customer Information'!K27=\"\",\"\",'Customer Information'!K27)","v":""},null,null,null,null,"Application ID:",{"$f":"IF('Customer Information'!L46=\"\",\"\",'Customer Information'!L46)","v":""}]
[]
[null,"New Equipment Details"]
[]
[null,"Heat Pump Units"]
[null,"Unit #","Type",null,"Manufacturer",null,"Model #",null,"Serial #",null,"Matches \nInvoice"]
[null,1,{"$f":"IF(Worksheet!C42=\"\",\"\",Worksheet!C42)","v":""},null,{"$f":"IF(Worksheet!C63=\"\",\"\",Worksheet!C63)","v":""},null,{"$f":"IF(Worksheet!E63=\"\",\"\",Worksheet!E63)","v":""},null,{"$f":"IF(Worksheet!F63=\"\",\"\",Worksheet!F63)","v":""}]
[null,{"$f":"B27+1","v":2},{"$f":"IF(Worksheet!C43=\"\",\"\",Worksheet!C43)","v":""},null,{"$f":"IF(Worksheet!C64=\"\",\"\",Worksheet!C64)","v":""},null,{"$f":"IF(Worksheet!E64=\"\",\"\",Worksheet!E64)","v":""},null,{"$f":"IF(Worksheet!F64=\"\",\"\",Worksheet!F64)","v":""}]
[null,{"$f":"B28+1","v":3},{"$f":"IF(Worksheet!C44=\"\",\"\",Worksheet!C44)","v":""},null,{"$f":"IF(Worksheet!C65=\"\",\"\",Worksheet!C65)","v":""},null,{"$f":"IF(Worksheet!E65=\"\",\"\",Worksheet!E65)","v":""},null,{"$f":"IF(Worksheet!F65=\"\",\"\",Worksheet!F65)","v":""}]
[null,4,{"$f":"IF(Worksheet!C45=\"\",\"\",Worksheet!C45)","v":""},null,{"$f":"IF(Worksheet!C66=\"\",\"\",Worksheet!C66)","v":""},null,{"$f":"IF(Worksheet!E66=\"\",\"\",Worksheet!E66)","v":""},null,{"$f":"IF(Worksheet!F66=\"\",\"\",Worksheet!F66)","v":""}]
[null,5,{"$f":"IF(Worksheet!C46=\"\",\"\",Worksheet!C46)","v":""},null,{"$f":"IF(Worksheet!C67=\"\",\"\",Worksheet!C67)","v":""},null,{"$f":"IF(Worksheet!E67=\"\",\"\",Worksheet!E67)","v":""},null,{"$f":"IF(Worksheet!F67=\"\",\"\",Worksheet!F67)","v":""}]
[null,6,{"$f":"IF(Worksheet!C47=\"\",\"\",Worksheet!C47)","v":""},null,{"$f":"IF(Worksheet!C68=\"\",\"\",Worksheet!C68)","v":""},null,{"$f":"IF(Worksheet!E68=\"\",\"\",Worksheet!E68)","v":""},null,{"$f":"IF(Worksheet!F68=\"\",\"\",Worksheet!F68)","v":""}]
[null,7,{"$f":"IF(Worksheet!C48=\"\",\"\",Worksheet!C48)","v":""},null,{"$f":"IF(Worksheet!C69=\"\",\"\",Worksheet!C69)","v":""},null,{"$f":"IF(Worksheet!E69=\"\",\"\",Worksheet!E69)","v":""},null,{"$f":"IF(Worksheet!F69=\"\",\"\",Worksheet!F69)","v":""}]
[null,8,{"$f":"IF(Worksheet!C49=\"\",\"\",Worksheet!C49)","v":""},null,{"$f":"IF(Worksheet!C70=\"\",\"\",Worksheet!C70)","v":""},null,{"$f":"IF(Worksheet!E70=\"\",\"\",Worksheet!E70)","v":""},null,{"$f":"IF(Worksheet!F70=\"\",\"\",Worksheet!F70)","v":""}]
[null,9,{"$f":"IF(Worksheet!C50=\"\",\"\",Worksheet!C50)","v":""},null,{"$f":"IF(Worksheet!C71=\"\",\"\",Worksheet!C71)","v":""},null,{"$f":"IF(Worksheet!E71=\"\",\"\",Worksheet!E71)","v":""},null,{"$f":"IF(Worksheet!F71=\"\",\"\",Worksheet!F71)","v":""}]
[null,10,{"$f":"IF(Worksheet!C51=\"\",\"\",Worksheet!C51)","v":""},null,{"$f":"IF(Worksheet!C72=\"\",\"\",Worksheet!C72)","v":""},null,{"$f":"IF(Worksheet!E72=\"\",\"\",Worksheet!E72)","v":""},null,{"$f":"IF(Worksheet!F72=\"\",\"\",Worksheet!F72)","v":""}]
[]
[]
[null,"Secondary Heating Source?",null,null,null,null,null,"Integrated Controls?"]
[]
[null,"Smart Thermostats"]
[null,"Unit #","Type",null,"Manufacturer",null,"Model #",null,"Serial #",null,"Matches \nInvoice"]
[null,1,{"$f":"IF('Smart T-Stats'!K21=35,\"Smart Thermostat\",\"\")","v":""},null,{"$f":"IF($C43=\"\",\"\",'Smart T-Stats'!B21)","v":""},null,{"$f":"IF($C43=\"\",\"\",'Smart T-Stats'!D21)","v":""},null,{"$f":"IF($C43=\"\",\"\",'Smart T-Stats'!F21)","v":""}]
[null,{"$f":"B43+1","v":2},{"$f":"IF('Smart T-Stats'!K22=35,\"Smart Thermostat\",\"\")","v":""},null,{"$f":"IF($C44=\"\",\"\",'Smart T-Stats'!C22)","v":""},null,{"$f":"IF($C44=\"\",\"\",'Smart T-Stats'!D22)","v":""},null,{"$f":"IF($C44=\"\",\"\",'Smart T-Stats'!F22)","v":""}]
[null,{"$f":"B44+1","v":3},{"$f":"IF('Smart T-Stats'!K23=35,\"Smart Thermostat\",\"\")","v":""},null,{"$f":"IF($C45=\"\",\"\",'Smart T-Stats'!C23)","v":""},null,{"$f":"IF($C45=\"\",\"\",'Smart T-Stats'!D23)","v":""},null,{"$f":"IF($C45=\"\",\"\",'Smart T-Stats'!F23)","v":""}]
[null,4,{"$f":"IF('Smart T-Stats'!K24=35,\"Smart Thermostat\",\"\")","v":""},null,{"$f":"IF($C46=\"\",\"\",'Smart T-Stats'!C24)","v":""},null,{"$f":"IF($C46=\"\",\"\",'Smart T-Stats'!D24)","v":""},null,{"$f":"IF($C46=\"\",\"\",'Smart T-Stats'!F24)","v":""}]
[null,5,{"$f":"IF('Smart T-Stats'!K25=35,\"Smart Thermostat\",\"\")","v":""},null,{"$f":"IF($C47=\"\",\"\",'Smart T-Stats'!C25)","v":""},null,{"$f":"IF($C47=\"\",\"\",'Smart T-Stats'!D25)","v":""},null,{"$f":"IF($C47=\"\",\"\",'Smart T-Stats'!F25)","v":""}]
[null,6,{"$f":"IF('Smart T-Stats'!K26=35,\"Smart Thermostat\",\"\")","v":""},null,{"$f":"IF($C48=\"\",\"\",'Smart T-Stats'!C26)","v":""},null,{"$f":"IF($C48=\"\",\"\",'Smart T-Stats'!D26)","v":""},null,{"$f":"IF($C48=\"\",\"\",'Smart T-Stats'!F26)","v":""}]
[null,7,{"$f":"IF('Smart T-Stats'!K27=35,\"Smart Thermostat\",\"\")","v":""},null,{"$f":"IF($C49=\"\",\"\",'Smart T-Stats'!C27)","v":""},null,{"$f":"IF($C49=\"\",\"\",'Smart T-Stats'!D27)","v":""},null,{"$f":"IF($C49=\"\",\"\",'Smart T-Stats'!F27)","v":""}]
[null,8,{"$f":"IF('Smart T-Stats'!K28=35,\"Smart Thermostat\",\"\")","v":""},null,{"$f":"IF($C50=\"\",\"\",'Smart T-Stats'!C28)","v":""},null,{"$f":"IF($C50=\"\",\"\",'Smart T-Stats'!D28)","v":""},null,{"$f":"IF($C50=\"\",\"\",'Smart T-Stats'!F28)","v":""}]
[null,9,{"$f":"IF('Smart T-Stats'!K29=35,\"Smart Thermostat\",\"\")","v":""},null,{"$f":"IF($C51=\"\",\"\",'Smart T-Stats'!C29)","v":""},null,{"$f":"IF($C51=\"\",\"\",'Smart T-Stats'!D29)","v":""},null,{"$f":"IF($C51=\"\",\"\",'Smart T-Stats'!F29)","v":""}]
[null,10,{"$f":"IF('Smart T-Stats'!K30=35,\"Smart Thermostat\",\"\")","v":""},null,{"$f":"IF($C52=\"\",\"\",'Smart T-Stats'!C30)","v":""},null,{"$f":"IF($C52=\"\",\"\",'Smart T-Stats'!D30)","v":""},null,{"$f":"IF($C52=\"\",\"\",'Smart T-Stats'!F30)","v":""}]
[null,11,{"$f":"IF('Smart T-Stats'!K31=35,\"Smart Thermostat\",\"\")","v":""},null,{"$f":"IF($C53=\"\",\"\",'Smart T-Stats'!C31)","v":""},null,{"$f":"IF($C53=\"\",\"\",'Smart T-Stats'!D31)","v":""},null,{"$f":"IF($C53=\"\",\"\",'Smart T-Stats'!F31)","v":""}]
[]
[null,"Inspection Analysis"]
[null,null,null,null,"Fail Reason*:"]
[]
[null,"ACCA Manual J (Total Tons):",null,{"$f":"IF(References!A15,IF(SUM(C61:D70)<=0,\"\",SUM(C61:D70)/12000),\"N/A\")","v":""}]
[]
[null,null,"ACCA Manual J (BTU)",null,"AHRI Certificate Number:",null,"AHRI Ratings:"]
[null,"Unit 1",{"$f":"IF(OR(References!$A$15,Worksheet!C63=\"\"),IF(Worksheet!U63=\"\",\"\",Worksheet!U63),\"N/A\")","v":""},null,{"$f":"IF(Worksheet!I42=\"\",\"\",Worksheet!I42)","v":""},null,{"$f":"IF(Worksheet!C42=\"\",\"\",IF(Worksheet!L42=\"\",Worksheet!J42&\" SEER / \"&Worksheet!K42&\" EER\",IF(Worksheet!C42=\"Packaged Terminal Heat Pump\",Worksheet!J42&\" SEER / \"&Worksheet!K42&\" EER / \"&Worksheet!L42&\" COP\",Worksheet!J42&\" SEER / \"&Worksheet!K42&\" EER / \"&Worksheet!L42&\" HSPF\")))","v":""},null,null,{"$f":"((MID(B61,SEARCH(\" \",B61,1)+1,LEN(B61)-SEARCH(\" \",B61,1))-1)*5+ROW(Worksheet!$B$36))","v":36}]
[null,"Unit 2",{"$f":"IF(OR(References!$A$15,Worksheet!C64=\"\"),IF(Worksheet!U64=\"\",\"\",Worksheet!U64),\"N/A\")","v":""},null,{"$f":"IF(Worksheet!I43=\"\",\"\",Worksheet!I43)","v":""},null,{"$f":"IF(Worksheet!C43=\"\",\"\",IF(Worksheet!L43=\"\",Worksheet!J43&\" SEER / \"&Worksheet!K43&\" EER\",IF(Worksheet!C43=\"Packaged Terminal Heat Pump\",Worksheet!J43&\" SEER / \"&Worksheet!K43&\" EER / \"&Worksheet!L43&\" COP\",Worksheet!J43&\" SEER / \"&Worksheet!K43&\" EER / \"&Worksheet!L43&\" HSPF\")))","v":""},null,null,{"$f":"((MID(B62,SEARCH(\" \",B62,1)+1,LEN(B62)-SEARCH(\" \",B62,1))-1)*5+ROW(Worksheet!$B$36))","v":41}]
[null,"Unit 3",{"$f":"IF(OR(References!$A$15,Worksheet!C65=\"\"),IF(Worksheet!U65=\"\",\"\",Worksheet!U65),\"N/A\")","v":""},null,{"$f":"IF(Worksheet!I44=\"\",\"\",Worksheet!I44)","v":""},null,{"$f":"IF(Worksheet!C44=\"\",\"\",IF(Worksheet!L44=\"\",Worksheet!J44&\" SEER / \"&Worksheet!K44&\" EER\",IF(Worksheet!C44=\"Packaged Terminal Heat Pump\",Worksheet!J44&\" SEER / \"&Worksheet!K44&\" EER / \"&Worksheet!L44&\" COP\",Worksheet!J44&\" SEER / \"&Worksheet!K44&\" EER / \"&Worksheet!L44&\" HSPF\")))","v":""},null,null,{"$f":"((MID(B63,SEARCH(\" \",B63,1)+1,LEN(B63)-SEARCH(\" \",B63,1))-1)*5+ROW(Worksheet!$B$36))","v":46}]
[null,"Unit 4 ",{"$f":"IF(OR(References!$A$15,Worksheet!C66=\"\"),IF(Worksheet!U66=\"\",\"\",Worksheet!U66),\"N/A\")","v":""},null,{"$f":"IF(Worksheet!I45=\"\",\"\",Worksheet!I45)","v":""},null,{"$f":"IF(Worksheet!C45=\"\",\"\",IF(Worksheet!L45=\"\",Worksheet!J45&\" SEER / \"&Worksheet!K45&\" EER\",IF(Worksheet!C45=\"Packaged Terminal Heat Pump\",Worksheet!J45&\" SEER / \"&Worksheet!K45&\" EER / \"&Worksheet!L45&\" COP\",Worksheet!J45&\" SEER / \"&Worksheet!K45&\" EER / \"&Worksheet!L45&\" HSPF\")))","v":""},null,null,{"$f":"((MID(B64,SEARCH(\" \",B64,1)+1,LEN(B64)-SEARCH(\" \",B64,1))-1)*5+ROW(Worksheet!$B$36))","v":51}]
[null,"Unit 5",{"$f":"IF(OR(References!$A$15,Worksheet!C67=\"\"),IF(Worksheet!U67=\"\",\"\",Worksheet!U67),\"N/A\")","v":""},null,{"$f":"IF(Worksheet!I46=\"\",\"\",Worksheet!I46)","v":""},null,{"$f":"IF(Worksheet!C46=\"\",\"\",IF(Worksheet!L46=\"\",Worksheet!J46&\" SEER / \"&Worksheet!K46&\" EER\",IF(Worksheet!C46=\"Packaged Terminal Heat Pump\",Worksheet!J46&\" SEER / \"&Worksheet!K46&\" EER / \"&Worksheet!L46&\" COP\",Worksheet!J46&\" SEER / \"&Worksheet!K46&\" EER / \"&Worksheet!L46&\" HSPF\")))","v":""},null,null,{"$f":"((MID(B65,SEARCH(\" \",B65,1)+1,LEN(B65)-SEARCH(\" \",B65,1))-1)*5+ROW(Worksheet!$B$36))","v":56}]
[null,"Unit 6",{"$f":"IF(OR(References!$A$15,Worksheet!C68=\"\"),IF(Worksheet!U68=\"\",\"\",Worksheet!U68),\"N/A\")","v":""},null,{"$f":"IF(Worksheet!I47=\"\",\"\",Worksheet!I47)","v":""},null,{"$f":"IF(Worksheet!C47=\"\",\"\",IF(Worksheet!L47=\"\",Worksheet!J47&\" SEER / \"&Worksheet!K47&\" EER\",IF(Worksheet!C47=\"Packaged Terminal Heat Pump\",Worksheet!J47&\" SEER / \"&Worksheet!K47&\" EER / \"&Worksheet!L47&\" COP\",Worksheet!J47&\" SEER / \"&Worksheet!K47&\" EER / \"&Worksheet!L47&\" HSPF\")))","v":""},null,null,{"$f":"((MID(B66,SEARCH(\" \",B66,1)+1,LEN(B66)-SEARCH(\" \",B66,1))-1)*5+ROW(Worksheet!$B$36))","v":61}]
[null,"Unit 7",{"$f":"IF(OR(References!$A$15,Worksheet!C69=\"\"),IF(Worksheet!U69=\"\",\"\",Worksheet!U69),\"N/A\")","v":""},null,{"$f":"IF(Worksheet!I48=\"\",\"\",Worksheet!I48)","v":""},null,{"$f":"IF(Worksheet!C48=\"\",\"\",IF(Worksheet!L48=\"\",Worksheet!J48&\" SEER / \"&Worksheet!K48&\" EER\",IF(Worksheet!C48=\"Packaged Terminal Heat Pump\",Worksheet!J48&\" SEER / \"&Worksheet!K48&\" EER / \"&Worksheet!L48&\" COP\",Worksheet!J48&\" SEER / \"&Worksheet!K48&\" EER / \"&Worksheet!L48&\" HSPF\")))","v":""},null,null,{"$f":"((MID(B67,SEARCH(\" \",B67,1)+1,LEN(B67)-SEARCH(\" \",B67,1))-1)*5+ROW(Worksheet!$B$36))","v":66}]
[null,"Unit 8",{"$f":"IF(OR(References!$A$15,Worksheet!C70=\"\"),IF(Worksheet!U70=\"\",\"\",Worksheet!U70),\"N/A\")","v":""},null,{"$f":"IF(Worksheet!I49=\"\",\"\",Worksheet!I49)","v":""},null,{"$f":"IF(Worksheet!C49=\"\",\"\",IF(Worksheet!L49=\"\",Worksheet!J49&\" SEER / \"&Worksheet!K49&\" EER\",IF(Worksheet!C49=\"Packaged Terminal Heat Pump\",Worksheet!J49&\" SEER / \"&Worksheet!K49&\" EER / \"&Worksheet!L49&\" COP\",Worksheet!J49&\" SEER / \"&Worksheet!K49&\" EER / \"&Worksheet!L49&\" HSPF\")))","v":""},null,null,{"$f":"((MID(B68,SEARCH(\" \",B68,1)+1,LEN(B68)-SEARCH(\" \",B68,1))-1)*5+ROW(Worksheet!$B$36))","v":71}]
[null,"Unit 9",{"$f":"IF(OR(References!$A$15,Worksheet!C71=\"\"),IF(Worksheet!U71=\"\",\"\",Worksheet!U71),\"N/A\")","v":""},null,{"$f":"IF(Worksheet!I50=\"\",\"\",Worksheet!I50)","v":""},null,{"$f":"IF(Worksheet!C50=\"\",\"\",IF(Worksheet!L50=\"\",Worksheet!J50&\" SEER / \"&Worksheet!K50&\" EER\",IF(Worksheet!C50=\"Packaged Terminal Heat Pump\",Worksheet!J50&\" SEER / \"&Worksheet!K50&\" EER / \"&Worksheet!L50&\" COP\",Worksheet!J50&\" SEER / \"&Worksheet!K50&\" EER / \"&Worksheet!L50&\" HSPF\")))","v":""},null,null,{"$f":"((MID(B69,SEARCH(\" \",B69,1)+1,LEN(B69)-SEARCH(\" \",B69,1))-1)*5+ROW(Worksheet!$B$36))","v":76}]
[null,"Unit 10",{"$f":"IF(OR(References!$A$15,Worksheet!C72=\"\"),IF(Worksheet!U72=\"\",\"\",Worksheet!U72),\"N/A\")","v":""},null,{"$f":"IF(Worksheet!I51=\"\",\"\",Worksheet!I51)","v":""},null,{"$f":"IF(Worksheet!C51=\"\",\"\",IF(Worksheet!L51=\"\",Worksheet!J51&\" SEER / \"&Worksheet!K51&\" EER\",IF(Worksheet!C51=\"Packaged Terminal Heat Pump\",Worksheet!J51&\" SEER / \"&Worksheet!K51&\" EER / \"&Worksheet!L51&\" COP\",Worksheet!J51&\" SEER / \"&Worksheet!K51&\" EER / \"&Worksheet!L51&\" HSPF\")))","v":""},null,null,{"$f":"((MID(B70,SEARCH(\" \",B70,1)+1,LEN(B70)-SEARCH(\" \",B70,1))-1)*5+ROW(Worksheet!$B$36))","v":81}]
[]
[null,"Notes:"]
[]
[]
[]
[null,"Customer Signature:",null,null,null,null,null,null,null,"Date:"]

{"sheet":"Qualifying_Index","index":11,"n_rows":56,"n_cols":65,"rows_kept":56,"cut":false,"hidden":true,"merged":[[55,2,55,3],[49,2,49,3],[50,2,50,3],[44,2,44,3],[45,2,45,3],[46,2,46,3],[47,2,47,3],[48,2,48,3],[41,2,41,3],[42,2,42,3],[43,2,43,3],[24,17,24,18],[24,24,24,25],[24,19,24,21],[24,2,24,4],[24,5,25,5],[24,9,24,11],[24,12,24,14],[24,15,24,16],[24,8,25,8],[24,51,24,64],[25,27,25,28],[24,27,24,28],[25,30,25,31],[24,38,24,40],[24,41,24,43],[24,34,24,36],[25,32,25,33],[24,30,24,33],[24,46,25,46],[24,45,25,45],[24,48,25,48],[24,49,25,49]]}
[]
[]
[]
[]
[]
[]
[]
[]
[]
[]
[]
[]
[]
[]
[]
[]
[]
[]
[]
[]
[]
[]
[]
["Worksheet tab- ASHP"]
[null,"Cold Climate ","Baseline",null,null,"Displacement Factor","New Equipment + Tier","New or Retrofit","Whole House Scenario?","Proposed",null,null,"SEER",null,null,"EER",null,"COP/HSPF",null,"Tier Requirements",null,null,null,null,"Incentives",null,null,"Contractor Incentive",null,null,"Manual J btu Range",null,null,null,"Pass/Fail",null,null,null,"Missing Info Lookups",null,null,"QI Savings Calculations",null,null,null,"Named Range","Conditional Formatting",null,"Cooling Hours","Heating hours",null,"Savings and Beneficial Electrification Calculation"]
["Unit Number","Lookup","EER","SEER","HSPF",null,null,null,null,"SEER","EER","HSPF","Tier I","Tier II","Tier III","Tier I","Tier II","Tier I","Tier II","SEER","EER","COP/HSPF",null,null,"Customer ","Contractor ",null,"Logic",null,null,"Cooling",null,"Heating",null,"Cooling","Heating","Final",null,"PTHP","QIV","EO","kW C&A","kW RS","kWh",null,null,null,null,null,null,null,"Cooling kW Savings","Cooling kWh Savings","Cooling MMBTU Savings","Cooling CO2 savings (lbs)","Heating kW Savings","Heating kWh Savings","Heating BE kW","Heating BE kWh","Heating MMBTU Savings (kWh)","Heating MMBTU Savings (fuel)","Heating MMBTU Savings Total","Heating kWh CO2 Savings (lbs)","Heating ff CO2 Savings (lbs)","Heating CO2 Savings (lbs)"]
[1,{"$f":"IF(OR(Worksheet!C42=\"Ducted ccASHP\",Worksheet!C42=\"Ductless Mini Split - ccASHP\"),\"Cold Climate\",\"\")","v":""},{"$f":"IF(OR(Worksheet!S42=\"\",Worksheet!P42=\"\",NOT(ISNUMBER(Worksheet!S42))),IF(Qualifying_Index!AT27=\"PTHP\",References!$L$12,IF(ISERROR(SEARCH(\"HP\",Worksheet!C42,1)),References!$L$10,References!$L$9)),Worksheet!S42)","v":11.180000000000003},{"$f":"IF(OR(Worksheet!P42=\"\",Worksheet!R42=\"\",NOT(ISNUMBER(Worksheet!R42))),IF(Qualifying_Index!AT27=\"PTHP\",References!$M$12,IF(ISERROR(SEARCH(\"HP\",Worksheet!C42,1)),References!$M$10,References!$M$9)),Worksheet!R42)","v":13},{"$f":"IF(AND(OR(References!$H$14=\"Electric\",References!$H$14=\"Air Source HP\",Worksheet!P42=\"Air Source HP\"),Worksheet!C42<>\"\"),IF(OR(Worksheet!T42=\"\",NOT(ISNUMBER(Worksheet!T42))),IF(Qualifying_Index!AT27=\"PTHP\",References!$L$34,References!$L$36),Worksheet!T42),0)","v":0},{"$f":"IF(Worksheet!C42=\"\",\"\",References!$M$36)","v":""},{"$f":"IF(AND(References!$H$4=TRUE,OR(AT27<>\"PTHP\",AT27<>\"Ductless\",AT27<>\"CAC\"),References!$H$36<>\"New Construction\"),Worksheet!C42&\" EH\"&\" \"&Worksheet!M42,H27&\" \"&Worksheet!C42&\" \"&Worksheet!M42&I27)","v":"New  "},{"$f":"IF(References!$C$21=TRUE,\"Whole House\",IF(RIGHT(References!$H$36,2)=\"HP\",\"Retrofit\",\"New\"))","v":"New"},{"$f":"IF(References!$C$21<>TRUE,\"\",IF(References!$A$21=4,1,IF(AND(Worksheet!P42<>\"Central Air Conditioner\",Worksheet!P42<>\"Ducted Air Source HP\",References!$H$14=\"Oil\"),2,3)))","v":""},{"$f":"IF(Worksheet!J42=\"\",\"\",Worksheet!J42)","v":""},{"$f":"IF(Worksheet!K42=\"\",\"\",Worksheet!K42)","v":""},{"$f":"IF(Worksheet!L42=\"\",\"\",Worksheet!L42)","v":""},{"$f":"IF(Worksheet!C42=\"\",\"\",IF(References!$H$4=TRUE,INDEX(References!$T$7:$T$14,MATCH(Worksheet!C42&\" EH\",References!$S$7:$S$14,0)),INDEX(References!$T$7:$T$17,MATCH(Worksheet!$C42,References!$S$7:$S$17,0))))","v":""},{"$f":"IF(Worksheet!C42=\"\",\"\",IF(References!$H$4=TRUE,INDEX(References!$U$7:$U$14,MATCH(Worksheet!C42&\" EH\",References!$S$7:$S$14,0)),INDEX(References!$U$7:$U$17,MATCH(Worksheet!$C42,References!$S$7:$S$17,0))))","v":""},{"$f":"IF(Worksheet!C42=\"\",\"\",IF(References!$H$4=TRUE,INDEX(References!$V$7:$V$14,MATCH(Worksheet!C42&\" EH\",References!$S$7:$S$14,0)),INDEX(References!$V$7:$V$17,MATCH(Worksheet!$C42,References!$S$7:$S$17,0))))","v":""},{"$f":"IF(Worksheet!C42=\"\",\"\",INDEX(References!$Y$7:$Y$17,MATCH(Worksheet!$C42,References!$S$7:$S$17,0)))","v":""},{"$f":"IF(Worksheet!C42=\"\",\"\",INDEX(References!$Z$7:$Z$17,MATCH(Worksheet!$C42,References!$S$7:$S$17,0)))","v":""},{"$f":"IF(Worksheet!C42=\"\",\"\",IF(References!$H$4=TRUE,INDEX(References!$W$7:$W$14,MATCH(Worksheet!C42&\" EH\",References!$S$7:$S$14,0)),INDEX(References!$W$7:$W$17,MATCH(Worksheet!$C42,References!$S$7:$S$17,0))))","v":""},{"$f":"IF(Worksheet!C42=\"\",\"\",IF(References!$H$4=TRUE,INDEX(References!$X$7:$X$14,MATCH(Worksheet!C42&\" EH\",References!$S$7:$S$14,0)),INDEX(References!$X$7:$X$17,MATCH(Worksheet!$C42,References!$S$7:$S$17,0))))","v":""},{"$f":"IF(OR(J27=\"\",AT27=\"PTHP\"),\"\",IF(AND(J27<M27,J27<N27),\"DNQ\",IF(J27>=O27,\"Tier III\",IF(J27>=N27,\"Tier II\",\"Tier I\"))))","v":""},{"$f":"IF(K27=\"\",\"\",IF(AND(AT27=\"PTHP\",K27<P27),\"DNQ\",T27))","v":""},{"$f":"IF(Worksheet!C42=\"\",\"\",IF(R27=0,\"\",IF(AND(L27<R27,L27<S27),\"DNQ\",IF(L27>=S27,\"Tier II\",\"Tier I\"))))","v":""},null,{"$f":"IF(OR(T27=\"DNQ\",U27=\"DNQ\",V27=\"DNQ\",Worksheet!X63=\"FAIL\"),\"DNQ\",IF(OR(T27=\"Tier I\",V27=\"Tier I\"),\"Tier I\",IF(OR(T27=\"Tier II\",V27=\"Tier II\"),\"Tier II\",\"Tier III\")))","v":"Tier III"},{"$f":"IF(Worksheet!C42=\"\",\"\",IF(X27=\"DNQ\",\"DNQ\",IF(OR(References!$C$21=TRUE,References!$H$14=\"Electric\"),INDEX(References!$X$22:$X$45,MATCH(G27,References!$S$22:$S$45,0))*(Worksheet!F42/12000),INDEX(References!$X$22:$X$45,MATCH(G27,References!$S$22:$S$45,0)))))","v":""},{"$f":"IF(Worksheet!C42=\"\",\"\",IF(Y27=\"DNQ\",0,INDEX(References!$Y$22:$Y$44,MATCH(Qualifying_Index!G27,References!$S$22:$S$44,0))))","v":""},null,{"$f":"IF(Z27>0,1,2)","v":1},{"$f":"Z27","v":""},null,{"$f":"((Worksheet!F42*0.65))","v":0},{"$f":"((Worksheet!F42*1.35))","v":0},{"$f":"IF(References!$C$21=TRUE,(Worksheet!V63*1),Worksheet!H42*0.65)","v":0},{"$f":"IF(References!$C$21=TRUE,(Worksheet!V63*1.3),Worksheet!H42*1.35)","v":0},{"$f":"IF(AND(Worksheet!U63>=Qualifying_Index!AE27,Worksheet!U63<=Qualifying_Index!AF27),\"PASS\",\"FAIL\")","v":"PASS"},{"$f":"IF(OR(AG27=0,AH27=0),\"FAIL\",IF(AND(IF(References!$C$21=TRUE,Worksheet!H42,Worksheet!V63)>=AG27,IF(References!C21=TRUE,Worksheet!H42,Worksheet!V63)<=AH27),\"PASS\",\"FAIL\"))","v":"FAIL"},{"$f":"IF(AND(LEFT(Worksheet!C42,6)=\"Ducted\",Worksheet!U63=\"\",Worksheet!V63=\"\"),\"Missing Info\",IF(References!$C$21=TRUE,IF(AJ27=\"PASS\",\"PASS\",\"FAIL\"),IF(OR(AI27=\"PASS\",AJ27=\"PASS\"),\"PASS\",\"FAIL\")))","v":"PASS"},null,{"$f":"IF(OR(Worksheet!F42=\"\",Worksheet!I42=\"\",Worksheet!K42=\"\",Worksheet!L42=\"\",Worksheet!C63=\"\",Worksheet!E63=\"\",Worksheet!F63=\"\",Worksheet!H63=\"\",Worksheet!J63=\"\",Worksheet!L63=\"\"),\"Missing Info\",\"\")","v":"Missing Info"},{"$f":"IF(AND(AU27=1,Worksheet!L42=\"\"),\"Missing Info\",IF(AT27=\"PTHP\",AM27,IF(OR(Worksheet!F42=\"\",Worksheet!I42=\"\",Worksheet!J42=\"\",Worksheet!K42=\"\",Worksheet!C63=\"\",Worksheet!E63=\"\",Worksheet!F63=\"\",Worksheet!J63=\"\",Worksheet!L63=\"\",AK27=\"Missing Info\"),\"Missing Info\",\"\")))","v":"Missing Info"},{"$f":"IF(AND(AU27=1,Worksheet!L42=\"\"),\"Missing Info\",IF(AT27=\"PTHP\",AM27,IF(OR(Worksheet!C63=\"\",Worksheet!E63=\"\",Worksheet!F63=\"\",Worksheet!J63=\"\",Worksheet!L63=\"\",Worksheet!F42=\"\",Worksheet!I42=\"\",Worksheet!J42=\"\"),\"Missing Info\",\"\")))","v":"Missing Info"},{"$f":"IF(Worksheet!K42=\"\",\"\",IF(OR(Worksheet!V42=\"\",Worksheet!C42=\"Geothermal\"),\"\",Worksheet!F42/12000*(12/Worksheet!K42)*kW_CA))","v":""},{"$f":"IF(Worksheet!K42=\"\",\"\",IF(OR(Worksheet!V42=\"\",Worksheet!C42=\"Geothermal\"),\"\",Worksheet!F42*(12/Worksheet!K42)*kW_RS))","v":""},{"$f":"IF(OR(Worksheet!V42=\"\",Worksheet!C42=\"Geothermal\",Worksheet!J42=\"\",Worksheet!K42=\"\"),\"\",IF(OR(Worksheet!C42=\"Ducted ASHP\",Worksheet!C42=\"Ducted ccASHP\"),Worksheet!F42/12000*(12/Worksheet!J42*FLH_Cool+12/Worksheet!L42*FLH_Heat)*QI_kWh,IF(Worksheet!C42=\"Geothermal\",Worksheet!F42/12000*(12/(Worksheet!K42*0.09))*FLH_Cool*QI_kWh,Worksheet!F42/12000*(12/Worksheet!J42)*FLH_Cool*QI_kWh)))","v":""},null,{"$f":"IF(Worksheet!C42=\"\",\"\",INDEX(References!$AB$7:$AB$17,MATCH(Worksheet!C42,Equipment_Type,0)))","v":""},{"$f":"IF(Worksheet!C42=\"\",\"\",INDEX(References!$AA$7:$AA$17,MATCH(Worksheet!C42,Equipment_Type,0)))","v":""},null,{"$f":"IF(OR(References!$A$21=1,References!$A$21=2),References!$D$25,IF(References!$A$21=3,References!$C$25,IF(References!$A$21=4,FLH_Cool,0)))","v":0},{"$f":"IF(OR(References!$A$21=1,References!$A$21=2),References!$D$26,IF(References!$A$21=3,References!$C$26,IF(References!$A$21=4,FLH_Heat,0)))","v":0},null,{"$f":"IF(AND($AK27=\"PASS\",Worksheet!F42<>\"\"),((Worksheet!$F42/12000)*((12/C27)-(12/K27)))+SUM(AP27:AQ27),0)","v":0},{"$f":"IF(AND($AK27=\"PASS\",Worksheet!$F42<>\"\"),IF(AT27=\"PTHP\",((Worksheet!F42/12000)*(12/C27-12/K27)*AW27),(((Worksheet!$F42/12000)*((12/D27)-(12/J27))*AW27))+AR27),0)","v":0},{"$f":"IF(AND($AK27=\"PASS\",Worksheet!$F42<>\"\"),BA27*References!$E$12/1000,0)","v":0},{"$f":"BA27*References!$A$12","v":0},{"$f":"IF(AND($AK27=\"PASS\",References!$I$36=TRUE,Worksheet!C42<>\"\"),((Worksheet!H42/12000)*((1/(E27/3.412))-(1/(L27/3.412))))+SUM(AP27:AQ27),0)","v":0},{"$f":"IF(AND($AK27=\"PASS\",References!$I$36=TRUE,Worksheet!$F42<>\"\"),((Worksheet!$H42/12000)*((12/E27)-(12/L27))*AX27*References!$M$36)+AR27,0)","v":0},{"$f":"IF(AND($AK27=\"PASS\",References!$J$36=TRUE,Worksheet!C42<>\"\"),-((Worksheet!H42/12000)*(1/(L27/3.412))),0)","v":0},{"$f":"IF(AND($AK27=\"PASS\",References!$J$36=TRUE,Worksheet!C42<>\"\"),((Worksheet!$H42/12000)*(12/L27)*(AX27*References!$M$36))-(Worksheet!$H42*AX27/1000000)*References!$K$36*F27,0)","v":0},{"$f":"IF(AND($AK27=\"PASS\",References!$I$36=TRUE,Worksheet!C42<>\"\"),BE27*References!$E$12/1000,(-BG27*References!$E$12/1000))","v":0},{"$f":"IF(AND($AK27=\"PASS\",References!$J$36=TRUE,Worksheet!C42<>\"\"),((Worksheet!$H42*AX27/References!$L$36)/1000000)*References!$M$36,0)","v":0},{"$f":"BH27+BI27","v":0},{"$f":"(BE27-BG27)*References!$A$12","v":0},{"$f":"BI27*References!$N$36*References!$D$8","v":{"$error":"#VALUE!"}},{"$f":"IF(References!$J$36=TRUE,(BI27*References!$N$36*References!$D$8)-(BG27*References!$A$12),BE27*References!$A$12)","v":0}]
[{"$f":"A27+1","v":2},{"$f":"IF(OR(Worksheet!C43=\"Ducted ccASHP\",Worksheet!C43=\"Ductless Mini Split - ccASHP\"),\"Cold Climate\",\"\")","v":""},{"$f":"IF(OR(Worksheet!S43=\"\",Worksheet!P43=\"\",NOT(ISNUMBER(Worksheet!S43))),IF(Qualifying_Index!AT28=\"PTHP\",References!$L$12,IF(ISERROR(SEARCH(\"HP\",Worksheet!C43,1)),References!$L$10,References!$L$9)),Worksheet!S43)","v":11.180000000000003},{"$f":"IF(OR(Worksheet!P43=\"\",Worksheet!R43=\"\",NOT(ISNUMBER(Worksheet!R43))),IF(Qualifying_Index!AT28=\"PTHP\",References!$M$12,IF(ISERROR(SEARCH(\"HP\",Worksheet!C43,1)),References!$M$10,References!$M$9)),Worksheet!R43)","v":13},{"$f":"IF(AND(OR(References!$H$14=\"Electric\",References!$H$14=\"Air Source HP\",Worksheet!P43=\"Air Source HP\"),Worksheet!C43<>\"\"),IF(OR(Worksheet!T43=\"\",NOT(ISNUMBER(Worksheet!T43))),IF(Qualifying_Index!AT28=\"PTHP\",References!$L$34,References!$L$36),Worksheet!T43),0)","v":0},{"$f":"IF(Worksheet!C43=\"\",\"\",References!$M$36)","v":""},{"$f":"IF(AND(References!$H$4=TRUE,OR(AT28<>\"PTHP\",AT28<>\"Ductless\",AT28<>\"CAC\"),References!$H$36<>\"New Construction\"),Worksheet!C43&\" EH\"&\" \"&Worksheet!M43,H28&\" \"&Worksheet!C43&\" \"&Worksheet!M43&I28)","v":"New  "},{"$f":"IF(References!$C$21=TRUE,\"Whole House\",IF(RIGHT(References!$H$36,2)=\"HP\",\"Retrofit\",\"New\"))","v":"New"},{"$f":"IF(References!$C$21<>TRUE,\"\",IF(References!$A$21=4,1,IF(AND(Worksheet!P43<>\"Central Air Conditioner\",Worksheet!P43<>\"Ducted Air Source HP\",References!$H$14=\"Oil\"),2,3)))","v":""},{"$f":"IF(Worksheet!J43=\"\",\"\",Worksheet!J43)","v":""},{"$f":"IF(Worksheet!K43=\"\",\"\",Worksheet!K43)","v":""},{"$f":"IF(Worksheet!L43=\"\",\"\",Worksheet!L43)","v":""},{"$f":"IF(Worksheet!C43=\"\",\"\",IF(References!$H$4=TRUE,INDEX(References!$T$7:$T$14,MATCH(Worksheet!C43&\" EH\",References!$S$7:$S$14,0)),INDEX(References!$T$7:$T$17,MATCH(Worksheet!$C43,References!$S$7:$S$17,0))))","v":""},{"$f":"IF(Worksheet!C43=\"\",\"\",IF(References!$H$4=TRUE,INDEX(References!$U$7:$U$14,MATCH(Worksheet!C43&\" EH\",References!$S$7:$S$14,0)),INDEX(References!$U$7:$U$17,MATCH(Worksheet!$C43,References!$S$7:$S$17,0))))","v":""},{"$f":"IF(Worksheet!C43=\"\",\"\",IF(References!$H$4=TRUE,INDEX(References!$V$7:$V$14,MATCH(Worksheet!C43&\" EH\",References!$S$7:$S$14,0)),INDEX(References!$V$7:$V$17,MATCH(Worksheet!$C43,References!$S$7:$S$17,0))))","v":""},{"$f":"IF(Worksheet!C43=\"\",\"\",INDEX(References!$Y$7:$Y$17,MATCH(Worksheet!$C43,References!$S$7:$S$17,0)))","v":""},{"$f":"IF(Worksheet!C43=\"\",\"\",INDEX(References!$Z$7:$Z$17,MATCH(Worksheet!$C43,References!$S$7:$S$17,0)))","v":""},{"$f":"IF(Worksheet!C43=\"\",\"\",IF(References!$H$4=TRUE,INDEX(References!$W$7:$W$14,MATCH(Worksheet!C43&\" EH\",References!$S$7:$S$14,0)),INDEX(References!$W$7:$W$17,MATCH(Worksheet!$C43,References!$S$7:$S$17,0))))","v":""},{"$f":"IF(Worksheet!C43=\"\",\"\",IF(References!$H$4=TRUE,INDEX(References!$X$7:$X$14,MATCH(Worksheet!C43&\" EH\",References!$S$7:$S$14,0)),INDEX(References!$X$7:$X$17,MATCH(Worksheet!$C43,References!$S$7:$S$17,0))))","v":""},{"$f":"IF(OR(J28=\"\",AT28=\"PTHP\"),\"\",IF(AND(J28<M28,J28<N28),\"DNQ\",IF(J28>=O28,\"Tier III\",IF(J28>=N28,\"Tier II\",\"Tier I\"))))","v":""},{"$f":"IF(K28=\"\",\"\",IF(AND(AT28=\"PTHP\",K28<P28),\"DNQ\",T28))","v":""},{"$f":"IF(Worksheet!C43=\"\",\"\",IF(R28=0,\"\",IF(AND(L28<R28,L28<S28),\"DNQ\",IF(L28>=S28,\"Tier II\",\"Tier I\"))))","v":""},null,{"$f":"IF(OR(T28=\"DNQ\",U28=\"DNQ\",V28=\"DNQ\",Worksheet!X64=\"FAIL\"),\"DNQ\",IF(OR(T28=\"Tier I\",V28=\"Tier I\"),\"Tier I\",IF(OR(T28=\"Tier II\",V28=\"Tier II\"),\"Tier II\",\"Tier III\")))","v":"Tier III"},{"$f":"IF(Worksheet!C43=\"\",\"\",IF(X28=\"DNQ\",\"DNQ\",IF(OR(References!$C$21=TRUE,References!$H$14=\"Electric\"),INDEX(References!$X$22:$X$45,MATCH(G28,References!$S$22:$S$45,0))*(Worksheet!F43/12000),INDEX(References!$X$22:$X$45,MATCH(G28,References!$S$22:$S$45,0)))))","v":""},{"$f":"IF(Worksheet!C43=\"\",\"\",IF(Y28=\"DNQ\",0,INDEX(References!$Y$22:$Y$44,MATCH(Qualifying_Index!G28,References!$S$22:$S$44,0))))","v":""},null,{"$f":"IF(Z28>0,1,2)","v":1},{"$f":"IF(COUNTIF(AB27,1),0,Z28)","v":0},null,{"$f":"((Worksheet!F43*0.65))","v":0},{"$f":"((Worksheet!F43*1.35))","v":0},{"$f":"IF(References!$C$21=TRUE,(Worksheet!V64*1),Worksheet!H43*0.65)","v":0},{"$f":"IF(References!$C$21=TRUE,(Worksheet!V64*1.3),Worksheet!H43*1.35)","v":0},{"$f":"IF(AND(Worksheet!U64>=Qualifying_Index!AE28,Worksheet!U64<=Qualifying_Index!AF28),\"PASS\",\"FAIL\")","v":"PASS"},{"$f":"IF(OR(AG28=0,AH28=0),\"FAIL\",IF(AND(IF(References!$C$21=TRUE,Worksheet!H43,Worksheet!V64)>=AG28,IF(References!C22=TRUE,Worksheet!H43,Worksheet!V64)<=AH28),\"PASS\",\"FAIL\"))","v":"FAIL"},{"$f":"IF(AND(LEFT(Worksheet!C43,6)=\"Ducted\",Worksheet!U64=\"\",Worksheet!V64=\"\"),\"Missing Info\",IF(References!$C$21=TRUE,IF(AJ28=\"PASS\",\"PASS\",\"FAIL\"),IF(OR(AI28=\"PASS\",AJ28=\"PASS\"),\"PASS\",\"FAIL\")))","v":"PASS"},null,{"$f":"IF(OR(Worksheet!F43=\"\",Worksheet!I43=\"\",Worksheet!K43=\"\",Worksheet!L43=\"\",Worksheet!C64=\"\",Worksheet!E64=\"\",Worksheet!F64=\"\",Worksheet!H64=\"\",Worksheet!J64=\"\",Worksheet!L64=\"\"),\"Missing Info\",\"\")","v":"Missing Info"},{"$f":"IF(AND(AU28=1,Worksheet!L43=\"\"),\"Missing Info\",IF(AT28=\"PTHP\",AM28,IF(OR(Worksheet!F43=\"\",Worksheet!I43=\"\",Worksheet!J43=\"\",Worksheet!K43=\"\",Worksheet!C64=\"\",Worksheet!E64=\"\",Worksheet!F64=\"\",Worksheet!J64=\"\",Worksheet!L64=\"\",AK28=\"Missing Info\"),\"Missing Info\",\"\")))","v":"Missing Info"},{"$f":"IF(AND(AU28=1,Worksheet!L43=\"\"),\"Missing Info\",IF(AT28=\"PTHP\",AM28,IF(OR(Worksheet!C64=\"\",Worksheet!E64=\"\",Worksheet!F64=\"\",Worksheet!J64=\"\",Worksheet!L64=\"\",Worksheet!F43=\"\",Worksheet!I43=\"\",Worksheet!J43=\"\"),\"Missing Info\",\"\")))","v":"Missing Info"},{"$f":"IF(Worksheet!K43=\"\",\"\",IF(OR(Worksheet!V43=\"\",Worksheet!C43=\"Geothermal\"),\"\",Worksheet!F43/12000*(12/Worksheet!K43)*kW_CA))","v":""},{"$f":"IF(Worksheet!K43=\"\",\"\",IF(OR(Worksheet!V43=\"\",Worksheet!C43=\"Geothermal\"),\"\",Worksheet!F43*(12/Worksheet!K43)*kW_RS))","v":""},{"$f":"IF(OR(Worksheet!V43=\"\",Worksheet!C43=\"Geothermal\",Worksheet!J43=\"\",Worksheet!K43=\"\"),\"\",IF(OR(Worksheet!C43=\"Ducted ASHP\",Worksheet!C43=\"Ducted ccASHP\"),Worksheet!F43/12000*(12/Worksheet!J43*FLH_Cool+12/Worksheet!L43*FLH_Heat)*QI_kWh,IF(Worksheet!C43=\"Geothermal\",Worksheet!F43/12000*(12/(Worksheet!K43*0.09))*FLH_Cool*QI_kWh,Worksheet!F43/12000*(12/Worksheet!J43)*FLH_Cool*QI_kWh)))","v":""},null,{"$f":"IF(Worksheet!C43=\"\",\"\",INDEX(References!$AB$7:$AB$17,MATCH(Worksheet!C43,Equipment_Type,0)))","v":""},{"$f":"IF(Worksheet!C43=\"\",\"\",INDEX(References!$AA$7:$AA$17,MATCH(Worksheet!C43,Equipment_Type,0)))","v":""},null,{"$f":"IF(OR(References!$A$21=1,References!$A$21=2),References!$D$25,IF(References!$A$21=3,References!$C$25,IF(References!$A$21=4,FLH_Cool,0)))","v":0},{"$f":"IF(OR(References!$A$21=1,References!$A$21=2),References!$D$26,IF(References!$A$21=3,References!$C$26,IF(References!$A$21=4,FLH_Heat,0)))","v":0},null,{"$f":"IF(AND($AK28=\"PASS\",Worksheet!F43<>\"\"),((Worksheet!$F43/12000)*((12/C28)-(12/K28)))+SUM(AP28:AQ28),0)","v":0},{"$f":"IF(AND($AK28=\"PASS\",Worksheet!$F43<>\"\"),IF(AT28=\"PTHP\",((Worksheet!F43/12000)*(12/C28-12/K28)*AW28),(((Worksheet!$F43/12000)*((12/D28)-(12/J28))*AW28))+AR28),0)","v":0},{"$f":"IF(AND($AK28=\"PASS\",Worksheet!$F43<>\"\"),BA28*References!$E$12/1000,0)","v":0},{"$f":"BA28*References!$A$12","v":0},{"$f":"IF(AND($AK28=\"PASS\",References!$I$36=TRUE,Worksheet!C43<>\"\"),((Worksheet!H43/12000)*((1/(E28/3.412))-(1/(L28/3.412))))+SUM(AP28:AQ28),0)","v":0},{"$f":"IF(AND($AK28=\"PASS\",References!$I$36=TRUE,Worksheet!$F43<>\"\"),((Worksheet!$H43/12000)*((12/E28)-(12/L28))*AX28*References!$M$36)+AR28,0)","v":0},{"$f":"IF(AND($AK28=\"PASS\",References!$J$36=TRUE,Worksheet!C43<>\"\"),-((Worksheet!H43/12000)*(1/(L28/3.412))),0)","v":0},{"$f":"IF(AND($AK28=\"PASS\",References!$J$36=TRUE,Worksheet!C43<>\"\"),((Worksheet!$H43/12000)*(12/L28)*(AX28*References!$M$36))-(Worksheet!$H43*AX28/1000000)*References!$K$36*F28,0)","v":0},{"$f":"IF(AND($AK28=\"PASS\",References!$I$36=TRUE,Worksheet!C43<>\"\"),BE28*References!$E$12/1000,(-BG28*References!$E$12/1000))","v":0},{"$f":"IF(AND($AK28=\"PASS\",References!$J$36=TRUE,Worksheet!C43<>\"\"),((Worksheet!$H43*AX28/References!$L$36)/1000000)*References!$M$36,0)","v":0},{"$f":"BH28+BI28","v":0},{"$f":"(BE28-BG28)*References!$A$12","v":0},{"$f":"BI28*References!$N$36*References!$D$8","v":{"$error":"#VALUE!"}},{"$f":"IF(References!$J$36=TRUE,(BI28*References!$N$36*References!$D$8)-(BG28*References!$A$12),BE28*References!$A$12)","v":0}]
[{"$f":"A28+1","v":3},{"$f":"IF(OR(Worksheet!C44=\"Ducted ccASHP\",Worksheet!C44=\"Ductless Mini Split - ccASHP\"),\"Cold Climate\",\"\")","v":""},{"$f":"IF(OR(Worksheet!S44=\"\",Worksheet!P44=\"\",NOT(ISNUMBER(Worksheet!S44))),IF(Qualifying_Index!AT29=\"PTHP\",References!$L$12,IF(ISERROR(SEARCH(\"HP\",Worksheet!C44,1)),References!$L$10,References!$L$9)),Worksheet!S44)","v":11.180000000000003},{"$f":"IF(OR(Worksheet!P44=\"\",Worksheet!R44=\"\",NOT(ISNUMBER(Worksheet!R44))),IF(Qualifying_Index!AT29=\"PTHP\",References!$M$12,IF(ISERROR(SEARCH(\"HP\",Worksheet!C44,1)),References!$M$10,References!$M$9)),Worksheet!R44)","v":13},{"$f":"IF(AND(OR(References!$H$14=\"Electric\",References!$H$14=\"Air Source HP\",Worksheet!P44=\"Air Source HP\"),Worksheet!C44<>\"\"),IF(OR(Worksheet!T44=\"\",NOT(ISNUMBER(Worksheet!T44))),IF(Qualifying_Index!AT29=\"PTHP\",References!$L$34,References!$L$36),Worksheet!T44),0)","v":0},{"$f":"IF(Worksheet!C44=\"\",\"\",References!$M$36)","v":""},{"$f":"IF(AND(References!$H$4=TRUE,OR(AT29<>\"PTHP\",AT29<>\"Ductless\",AT29<>\"CAC\"),References!$H$36<>\"New Construction\"),Worksheet!C44&\" EH\"&\" \"&Worksheet!M44,H29&\" \"&Worksheet!C44&\" \"&Worksheet!M44&I29)","v":"New  "},{"$f":"IF(References!$C$21=TRUE,\"Whole House\",IF(RIGHT(References!$H$36,2)=\"HP\",\"Retrofit\",\"New\"))","v":"New"},{"$f":"IF(References!$C$21<>TRUE,\"\",IF(References!$A$21=4,1,IF(AND(Worksheet!P44<>\"Central Air Conditioner\",Worksheet!P44<>\"Ducted Air Source HP\",References!$H$14=\"Oil\"),2,3)))","v":""},{"$f":"IF(Worksheet!J44=\"\",\"\",Worksheet!J44)","v":""},{"$f":"IF(Worksheet!K44=\"\",\"\",Worksheet!K44)","v":""},{"$f":"IF(Worksheet!L44=\"\",\"\",Worksheet!L44)","v":""},{"$f":"IF(Worksheet!C44=\"\",\"\",IF(References!$H$4=TRUE,INDEX(References!$T$7:$T$14,MATCH(Worksheet!C44&\" EH\",References!$S$7:$S$14,0)),INDEX(References!$T$7:$T$17,MATCH(Worksheet!$C44,References!$S$7:$S$17,0))))","v":""},{"$f":"IF(Worksheet!C44=\"\",\"\",IF(References!$H$4=TRUE,INDEX(References!$U$7:$U$14,MATCH(Worksheet!C44&\" EH\",References!$S$7:$S$14,0)),INDEX(References!$U$7:$U$17,MATCH(Worksheet!$C44,References!$S$7:$S$17,0))))","v":""},{"$f":"IF(Worksheet!C44=\"\",\"\",IF(References!$H$4=TRUE,INDEX(References!$V$7:$V$14,MATCH(Worksheet!C44&\" EH\",References!$S$7:$S$14,0)),INDEX(References!$V$7:$V$17,MATCH(Worksheet!$C44,References!$S$7:$S$17,0))))","v":""},{"$f":"IF(Worksheet!C44=\"\",\"\",INDEX(References!$Y$7:$Y$17,MATCH(Worksheet!$C44,References!$S$7:$S$17,0)))","v":""},{"$f":"IF(Worksheet!C44=\"\",\"\",INDEX(References!$Z$7:$Z$17,MATCH(Worksheet!$C44,References!$S$7:$S$17,0)))","v":""},{"$f":"IF(Worksheet!C44=\"\",\"\",IF(References!$H$4=TRUE,INDEX(References!$W$7:$W$14,MATCH(Worksheet!C44&\" EH\",References!$S$7:$S$14,0)),INDEX(References!$W$7:$W$17,MATCH(Worksheet!$C44,References!$S$7:$S$17,0))))","v":""},{"$f":"IF(Worksheet!C44=\"\",\"\",IF(References!$H$4=TRUE,INDEX(References!$X$7:$X$14,MATCH(Worksheet!C44&\" EH\",References!$S$7:$S$14,0)),INDEX(References!$X$7:$X$17,MATCH(Worksheet!$C44,References!$S$7:$S$17,0))))","v":""},"","",{"$f":"IF(Worksheet!C44=\"\",\"\",IF(R29=0,\"\",IF(AND(L29<R29,L29<S29),\"DNQ\",IF(L29>=S29,\"Tier II\",\"Tier I\"))))","v":""},null,{"$f":"IF(OR(T29=\"DNQ\",U29=\"DNQ\",V29=\"DNQ\",Worksheet!X65=\"FAIL\"),\"DNQ\",IF(OR(T29=\"Tier I\",V29=\"Tier I\"),\"Tier I\",IF(OR(T29=\"Tier II\",V29=\"Tier II\"),\"Tier II\",\"Tier III\")))","v":"Tier III"},{"$f":"IF(Worksheet!C44=\"\",\"\",IF(X29=\"DNQ\",\"DNQ\",IF(OR(References!$C$21=TRUE,References!$H$14=\"Electric\"),INDEX(References!$X$22:$X$45,MATCH(G29,References!$S$22:$S$45,0))*(Worksheet!F44/12000),INDEX(References!$X$22:$X$45,MATCH(G29,References!$S$22:$S$45,0)))))","v":""},{"$f":"IF(Worksheet!C44=\"\",\"\",IF(Y29=\"DNQ\",0,INDEX(References!$Y$22:$Y$44,MATCH(Qualifying_Index!G29,References!$S$22:$S$44,0))))","v":""},null,{"$f":"IF(Z29>0,1,2)","v":1},{"$f":"IF(COUNTIF(AB27:AB28,1),0,Z29)","v":0},null,{"$f":"((Worksheet!F44*0.65))","v":0},{"$f":"((Worksheet!F44*1.35))","v":0},{"$f":"IF(References!$C$21=TRUE,(Worksheet!V65*1),Worksheet!H44*0.65)","v":0},{"$f":"IF(References!$C$21=TRUE,(Worksheet!V65*1.3),Worksheet!H44*1.35)","v":0},{"$f":"IF(AND(Worksheet!U65>=Qualifying_Index!AE29,Worksheet!U65<=Qualifying_Index!AF29),\"PASS\",\"FAIL\")","v":"PASS"},{"$f":"IF(OR(AG29=0,AH29=0),\"FAIL\",IF(AND(IF(References!$C$21=TRUE,Worksheet!H44,Worksheet!V65)>=AG29,IF(References!C23=TRUE,Worksheet!H44,Worksheet!V65)<=AH29),\"PASS\",\"FAIL\"))","v":"FAIL"},{"$f":"IF(AND(LEFT(Worksheet!C44,6)=\"Ducted\",Worksheet!U65=\"\",Worksheet!V65=\"\"),\"Missing Info\",IF(References!$C$21=TRUE,IF(AJ29=\"PASS\",\"PASS\",\"FAIL\"),IF(OR(AI29=\"PASS\",AJ29=\"PASS\"),\"PASS\",\"FAIL\")))","v":"PASS"},null,{"$f":"IF(OR(Worksheet!F44=\"\",Worksheet!I44=\"\",Worksheet!K44=\"\",Worksheet!L44=\"\",Worksheet!C65=\"\",Worksheet!E65=\"\",Worksheet!F65=\"\",Worksheet!H65=\"\",Worksheet!J65=\"\",Worksheet!L65=\"\"),\"Missing Info\",\"\")","v":"Missing Info"},{"$f":"IF(AND(AU29=1,Worksheet!L44=\"\"),\"Missing Info\",IF(AT29=\"PTHP\",AM29,IF(OR(Worksheet!F44=\"\",Worksheet!I44=\"\",Worksheet!J44=\"\",Worksheet!K44=\"\",Worksheet!C65=\"\",Worksheet!E65=\"\",Worksheet!F65=\"\",Worksheet!J65=\"\",Worksheet!L65=\"\",AK29=\"Missing Info\"),\"Missing Info\",\"\")))","v":"Missing Info"},{"$f":"IF(AND(AU29=1,Worksheet!L44=\"\"),\"Missing Info\",IF(AT29=\"PTHP\",AM29,IF(OR(Worksheet!C65=\"\",Worksheet!E65=\"\",Worksheet!F65=\"\",Worksheet!J65=\"\",Worksheet!L65=\"\",Worksheet!F44=\"\",Worksheet!I44=\"\",Worksheet!J44=\"\"),\"Missing Info\",\"\")))","v":"Missing Info"},{"$f":"IF(Worksheet!K44=\"\",\"\",IF(OR(Worksheet!V44=\"\",Worksheet!C44=\"Geothermal\"),\"\",Worksheet!F44/12000*(12/Worksheet!K44)*kW_CA))","v":""},{"$f":"IF(Worksheet!K44=\"\",\"\",IF(OR(Worksheet!V44=\"\",Worksheet!C44=\"Geothermal\"),\"\",Worksheet!F44*(12/Worksheet!K44)*kW_RS))","v":""},{"$f":"IF(OR(Worksheet!V44=\"\",Worksheet!C44=\"Geothermal\",Worksheet!J44=\"\",Worksheet!K44=\"\"),\"\",IF(OR(Worksheet!C44=\"Ducted ASHP\",Worksheet!C44=\"Ducted ccASHP\"),Worksheet!F44/12000*(12/Worksheet!J44*FLH_Cool+12/Worksheet!L44*FLH_Heat)*QI_kWh,IF(Worksheet!C44=\"Geothermal\",Worksheet!F44/12000*(12/(Worksheet!K44*0.09))*FLH_Cool*QI_kWh,Worksheet!F44/12000*(12/Worksheet!J44)*FLH_Cool*QI_kWh)))","v":""},null,{"$f":"IF(Worksheet!C44=\"\",\"\",INDEX(References!$AB$7:$AB$17,MATCH(Worksheet!C44,Equipment_Type,0)))","v":""},{"$f":"IF(Worksheet!C44=\"\",\"\",INDEX(References!$AA$7:$AA$17,MATCH(Worksheet!C44,Equipment_Type,0)))","v":""},null,{"$f":"IF(OR(References!$A$21=1,References!$A$21=2),References!$D$25,IF(References!$A$21=3,References!$C$25,IF(References!$A$21=4,FLH_Cool,0)))","v":0},{"$f":"IF(OR(References!$A$21=1,References!$A$21=2),References!$D$26,IF(References!$A$21=3,References!$C$26,IF(References!$A$21=4,FLH_Heat,0)))","v":0},null,{"$f":"IF(AND($AK29=\"PASS\",Worksheet!F44<>\"\"),((Worksheet!$F44/12000)*((12/C29)-(12/K29)))+SUM(AP29:AQ29),0)","v":0},{"$f":"IF(AND($AK29=\"PASS\",Worksheet!$F44<>\"\"),IF(AT29=\"PTHP\",((Worksheet!F44/12000)*(12/C29-12/K29)*AW29),(((Worksheet!$F44/12000)*((12/D29)-(12/J29))*AW29))+AR29),0)","v":0},{"$f":"IF(AND($AK29=\"PASS\",Worksheet!$F44<>\"\"),BA29*References!$E$12/1000,0)","v":0},{"$f":"BA29*References!$A$12","v":0},{"$f":"IF(AND($AK29=\"PASS\",References!$I$36=TRUE,Worksheet!C44<>\"\"),((Worksheet!H44/12000)*((1/(E29/3.412))-(1/(L29/3.412))))+SUM(AP29:AQ29),0)","v":0},{"$f":"IF(AND($AK29=\"PASS\",References!$I$36=TRUE,Worksheet!$F44<>\"\"),((Worksheet!$H44/12000)*((12/E29)-(12/L29))*AX29*References!$M$36)+AR29,0)","v":0},{"$f":"IF(AND($AK29=\"PASS\",References!$J$36=TRUE,Worksheet!C44<>\"\"),-((Worksheet!H44/12000)*(1/(L29/3.412))),0)","v":0},{"$f":"IF(AND($AK29=\"PASS\",References!$J$36=TRUE,Worksheet!C44<>\"\"),((Worksheet!$H44/12000)*(12/L29)*(AX29*References!$M$36))-(Worksheet!$H44*AX29/1000000)*References!$K$36*F29,0)","v":0},{"$f":"IF(AND($AK29=\"PASS\",References!$I$36=TRUE,Worksheet!C44<>\"\"),BE29*References!$E$12/1000,(-BG29*References!$E$12/1000))","v":0},{"$f":"IF(AND($AK29=\"PASS\",References!$J$36=TRUE,Worksheet!C44<>\"\"),((Worksheet!$H44*AX29/References!$L$36)/1000000)*References!$M$36,0)","v":0},0,{"$f":"(BE29-BG29)*References!$A$12","v":0},{"$f":"BI29*References!$N$36*References!$D$8","v":{"$error":"#VALUE!"}},{"$f":"IF(References!$J$36=TRUE,(BI29*References!$N$36*References!$D$8)-(BG29*References!$A$12),BE29*References!$A$12)","v":0}]
[4,{"$f":"IF(OR(Worksheet!C45=\"Ducted ccASHP\",Worksheet!C45=\"Ductless Mini Split - ccASHP\"),\"Cold Climate\",\"\")","v":""},{"$f":"IF(OR(Worksheet!S45=\"\",Worksheet!P45=\"\",NOT(ISNUMBER(Worksheet!S45))),IF(Qualifying_Index!AT30=\"PTHP\",References!$L$12,IF(ISERROR(SEARCH(\"HP\",Worksheet!C45,1)),References!$L$10,References!$L$9)),Worksheet!S45)","v":11.180000000000003},{"$f":"IF(OR(Worksheet!P45=\"\",Worksheet!R45=\"\",NOT(ISNUMBER(Worksheet!R45))),IF(Qualifying_Index!AT30=\"PTHP\",References!$M$12,IF(ISERROR(SEARCH(\"HP\",Worksheet!C45,1)),References!$M$10,References!$M$9)),Worksheet!R45)","v":13},{"$f":"IF(AND(OR(References!$H$14=\"Electric\",References!$H$14=\"Air Source HP\",Worksheet!P45=\"Air Source HP\"),Worksheet!C45<>\"\"),IF(OR(Worksheet!T45=\"\",NOT(ISNUMBER(Worksheet!T45))),IF(Qualifying_Index!AT30=\"PTHP\",References!$L$34,References!$L$36),Worksheet!T45),0)","v":0},{"$f":"IF(Worksheet!C45=\"\",\"\",References!$M$36)","v":""},{"$f":"IF(AND(References!$H$4=TRUE,OR(AT30<>\"PTHP\",AT30<>\"Ductless\",AT30<>\"CAC\"),References!$H$36<>\"New Construction\"),Worksheet!C45&\" EH\"&\" \"&Worksheet!M45,H30&\" \"&Worksheet!C45&\" \"&Worksheet!M45&I30)","v":"New  "},{"$f":"IF(References!$C$21=TRUE,\"Whole House\",IF(RIGHT(References!$H$36,2)=\"HP\",\"Retrofit\",\"New\"))","v":"New"},{"$f":"IF(References!$C$21<>TRUE,\"\",IF(References!$A$21=4,1,IF(AND(Worksheet!P45<>\"Central Air Conditioner\",Worksheet!P45<>\"Ducted Air Source HP\",References!$H$14=\"Oil\"),2,3)))","v":""},{"$f":"IF(Worksheet!J45=\"\",\"\",Worksheet!J45)","v":""},{"$f":"IF(Worksheet!K45=\"\",\"\",Worksheet!K45)","v":""},{"$f":"IF(Worksheet!L45=\"\",\"\",Worksheet!L45)","v":""},{"$f":"IF(Worksheet!C45=\"\",\"\",IF(References!$H$4=TRUE,INDEX(References!$T$7:$T$14,MATCH(Worksheet!C45&\" EH\",References!$S$7:$S$14,0)),INDEX(References!$T$7:$T$17,MATCH(Worksheet!$C45,References!$S$7:$S$17,0))))","v":""},{"$f":"IF(Worksheet!C45=\"\",\"\",IF(References!$H$4=TRUE,INDEX(References!$U$7:$U$14,MATCH(Worksheet!C45&\" EH\",References!$S$7:$S$14,0)),INDEX(References!$U$7:$U$17,MATCH(Worksheet!$C45,References!$S$7:$S$17,0))))","v":""},{"$f":"IF(Worksheet!C45=\"\",\"\",IF(References!$H$4=TRUE,INDEX(References!$V$7:$V$14,MATCH(Worksheet!C45&\" EH\",References!$S$7:$S$14,0)),INDEX(References!$V$7:$V$17,MATCH(Worksheet!$C45,References!$S$7:$S$17,0))))","v":""},{"$f":"IF(Worksheet!C45=\"\",\"\",INDEX(References!$Y$7:$Y$17,MATCH(Worksheet!$C45,References!$S$7:$S$17,0)))","v":""},{"$f":"IF(Worksheet!C45=\"\",\"\",INDEX(References!$Z$7:$Z$17,MATCH(Worksheet!$C45,References!$S$7:$S$17,0)))","v":""},{"$f":"IF(Worksheet!C45=\"\",\"\",IF(References!$H$4=TRUE,INDEX(References!$W$7:$W$14,MATCH(Worksheet!C45&\" EH\",References!$S$7:$S$14,0)),INDEX(References!$W$7:$W$17,MATCH(Worksheet!$C45,References!$S$7:$S$17,0))))","v":""},{"$f":"IF(Worksheet!C45=\"\",\"\",IF(References!$H$4=TRUE,INDEX(References!$X$7:$X$14,MATCH(Worksheet!C45&\" EH\",References!$S$7:$S$14,0)),INDEX(References!$X$7:$X$17,MATCH(Worksheet!$C45,References!$S$7:$S$17,0))))","v":""},"","",{"$f":"IF(Worksheet!C45=\"\",\"\",IF(R30=0,\"\",IF(AND(L30<R30,L30<S30),\"DNQ\",IF(L30>=S30,\"Tier II\",\"Tier I\"))))","v":""},null,{"$f":"IF(OR(T30=\"DNQ\",U30=\"DNQ\",V30=\"DNQ\",Worksheet!X66=\"FAIL\"),\"DNQ\",IF(OR(T30=\"Tier I\",V30=\"Tier I\"),\"Tier I\",IF(OR(T30=\"Tier II\",V30=\"Tier II\"),\"Tier II\",\"Tier III\")))","v":"Tier III"},{"$f":"IF(Worksheet!C45=\"\",\"\",IF(X30=\"DNQ\",\"DNQ\",IF(OR(References!$C$21=TRUE,References!$H$14=\"Electric\"),INDEX(References!$X$22:$X$45,MATCH(G30,References!$S$22:$S$45,0))*(Worksheet!F45/12000),INDEX(References!$X$22:$X$45,MATCH(G30,References!$S$22:$S$45,0)))))","v":""},{"$f":"IF(Worksheet!C45=\"\",\"\",IF(Y30=\"DNQ\",0,INDEX(References!$Y$22:$Y$44,MATCH(Qualifying_Index!G30,References!$S$22:$S$44,0))))","v":""},null,1,{"$f":"IF(COUNTIF(AB27:AB29,1),0,Z30)","v":0},null,{"$f":"((Worksheet!F45*0.65))","v":0},{"$f":"((Worksheet!F45*1.35))","v":0},{"$f":"IF(References!$C$21=TRUE,(Worksheet!V66*1),Worksheet!H45*0.65)","v":0},{"$f":"IF(References!$C$21=TRUE,(Worksheet!V66*1.3),Worksheet!H45*1.35)","v":0},{"$f":"IF(AND(Worksheet!U66>=Qualifying_Index!AE30,Worksheet!U66<=Qualifying_Index!AF30),\"PASS\",\"FAIL\")","v":"PASS"},{"$f":"IF(OR(AG30=0,AH30=0),\"FAIL\",IF(AND(IF(References!$C$21=TRUE,Worksheet!H45,Worksheet!V66)>=AG30,IF(References!C24=TRUE,Worksheet!H45,Worksheet!V66)<=AH30),\"PASS\",\"FAIL\"))","v":"FAIL"},{"$f":"IF(AND(LEFT(Worksheet!C45,6)=\"Ducted\",Worksheet!U66=\"\",Worksheet!V66=\"\"),\"Missing Info\",IF(References!$C$21=TRUE,IF(AJ30=\"PASS\",\"PASS\",\"FAIL\"),IF(OR(AI30=\"PASS\",AJ30=\"PASS\"),\"PASS\",\"FAIL\")))","v":"PASS"},null,{"$f":"IF(OR(Worksheet!F45=\"\",Worksheet!I45=\"\",Worksheet!K45=\"\",Worksheet!L45=\"\",Worksheet!C66=\"\",Worksheet!E66=\"\",Worksheet!F66=\"\",Worksheet!H66=\"\",Worksheet!J66=\"\",Worksheet!L66=\"\"),\"Missing Info\",\"\")","v":"Missing Info"},{"$f":"IF(AND(AU30=1,Worksheet!L45=\"\"),\"Missing Info\",IF(AT30=\"PTHP\",AM30,IF(OR(Worksheet!F45=\"\",Worksheet!I45=\"\",Worksheet!J45=\"\",Worksheet!K45=\"\",Worksheet!C66=\"\",Worksheet!E66=\"\",Worksheet!F66=\"\",Worksheet!J66=\"\",Worksheet!L66=\"\",AK30=\"Missing Info\"),\"Missing Info\",\"\")))","v":"Missing Info"},{"$f":"IF(AND(AU30=1,Worksheet!L45=\"\"),\"Missing Info\",IF(AT30=\"PTHP\",AM30,IF(OR(Worksheet!C66=\"\",Worksheet!E66=\"\",Worksheet!F66=\"\",Worksheet!J66=\"\",Worksheet!L66=\"\",Worksheet!F45=\"\",Worksheet!I45=\"\",Worksheet!J45=\"\"),\"Missing Info\",\"\")))","v":"Missing Info"},{"$f":"IF(Worksheet!K45=\"\",\"\",IF(OR(Worksheet!V45=\"\",Worksheet!C45=\"Geothermal\"),\"\",Worksheet!F45/12000*(12/Worksheet!K45)*kW_CA))","v":""},{"$f":"IF(Worksheet!K45=\"\",\"\",IF(OR(Worksheet!V45=\"\",Worksheet!C45=\"Geothermal\"),\"\",Worksheet!F45*(12/Worksheet!K45)*kW_RS))","v":""},{"$f":"IF(OR(Worksheet!V45=\"\",Worksheet!C45=\"Geothermal\",Worksheet!J45=\"\",Worksheet!K45=\"\"),\"\",IF(OR(Worksheet!C45=\"Ducted ASHP\",Worksheet!C45=\"Ducted ccASHP\"),Worksheet!F45/12000*(12/Worksheet!J45*FLH_Cool+12/Worksheet!L45*FLH_Heat)*QI_kWh,IF(Worksheet!C45=\"Geothermal\",Worksheet!F45/12000*(12/(Worksheet!K45*0.09))*FLH_Cool*QI_kWh,Worksheet!F45/12000*(12/Worksheet!J45)*FLH_Cool*QI_kWh)))","v":""},null,{"$f":"IF(Worksheet!C45=\"\",\"\",INDEX(References!$AB$7:$AB$17,MATCH(Worksheet!C45,Equipment_Type,0)))","v":""},{"$f":"IF(Worksheet!C45=\"\",\"\",INDEX(References!$AA$7:$AA$17,MATCH(Worksheet!C45,Equipment_Type,0)))","v":""},null,{"$f":"IF(OR(References!$A$21=1,References!$A$21=2),References!$D$25,IF(References!$A$21=3,References!$C$25,IF(References!$A$21=4,FLH_Cool,0)))","v":0},{"$f":"IF(OR(References!$A$21=1,References!$A$21=2),References!$D$26,IF(References!$A$21=3,References!$C$26,IF(References!$A$21=4,FLH_Heat,0)))","v":0},null,{"$f":"IF(AND($AK30=\"PASS\",Worksheet!F45<>\"\"),((Worksheet!$F45/12000)*((12/C30)-(12/K30)))+SUM(AP30:AQ30),0)","v":0},{"$f":"IF(AND($AK30=\"PASS\",Worksheet!$F45<>\"\"),IF(AT30=\"PTHP\",((Worksheet!F45/12000)*(12/C30-12/K30)*AW30),(((Worksheet!$F45/12000)*((12/D30)-(12/J30))*AW30))+AR30),0)","v":0},{"$f":"IF(AND($AK30=\"PASS\",Worksheet!$F45<>\"\"),BA30*References!$E$12/1000,0)","v":0},{"$f":"BA30*References!$A$12","v":0},{"$f":"IF(AND($AK30=\"PASS\",References!$I$36=TRUE,Worksheet!C45<>\"\"),((Worksheet!H45/12000)*((1/(E30/3.412))-(1/(L30/3.412))))+SUM(AP30:AQ30),0)","v":0},{"$f":"IF(AND($AK30=\"PASS\",References!$I$36=TRUE,Worksheet!$F45<>\"\"),((Worksheet!$H45/12000)*((12/E30)-(12/L30))*AX30*References!$M$36)+AR30,0)","v":0},{"$f":"IF(AND($AK30=\"PASS\",References!$J$36=TRUE,Worksheet!C45<>\"\"),-((Worksheet!H45/12000)*(1/(L30/3.412))),0)","v":0},{"$f":"IF(AND($AK30=\"PASS\",References!$J$36=TRUE,Worksheet!C45<>\"\"),((Worksheet!$H45/12000)*(12/L30)*(AX30*References!$M$36))-(Worksheet!$H45*AX30/1000000)*References!$K$36*F30,0)","v":0},{"$f":"IF(AND($AK30=\"PASS\",References!$I$36=TRUE,Worksheet!C45<>\"\"),BE30*References!$E$12/1000,(-BG30*References!$E$12/1000))","v":0},{"$f":"IF(AND($AK30=\"PASS\",References!$J$36=TRUE,Worksheet!C45<>\"\"),((Worksheet!$H45*AX30/References!$L$36)/1000000)*References!$M$36,0)","v":0},0,{"$f":"(BE30-BG30)*References!$A$12","v":0},{"$f":"BI30*References!$N$36*References!$D$8","v":{"$error":"#VALUE!"}},{"$f":"IF(References!$J$36=TRUE,(BI30*References!$N$36*References!$D$8)-(BG30*References!$A$12),BE30*References!$A$12)","v":0}]
[5,{"$f":"IF(OR(Worksheet!C46=\"Ducted ccASHP\",Worksheet!C46=\"Ductless Mini Split - ccASHP\"),\"Cold Climate\",\"\")","v":""},{"$f":"IF(OR(Worksheet!S46=\"\",Worksheet!P46=\"\",NOT(ISNUMBER(Worksheet!S46))),IF(Qualifying_Index!AT31=\"PTHP\",References!$L$12,IF(ISERROR(SEARCH(\"HP\",Worksheet!C46,1)),References!$L$10,References!$L$9)),Worksheet!S46)","v":11.180000000000003},{"$f":"IF(OR(Worksheet!P46=\"\",Worksheet!R46=\"\",NOT(ISNUMBER(Worksheet!R46))),IF(Qualifying_Index!AT31=\"PTHP\",References!$M$12,IF(ISERROR(SEARCH(\"HP\",Worksheet!C46,1)),References!$M$10,References!$M$9)),Worksheet!R46)","v":13},{"$f":"IF(AND(OR(References!$H$14=\"Electric\",References!$H$14=\"Air Source HP\",Worksheet!P46=\"Air Source HP\"),Worksheet!C46<>\"\"),IF(OR(Worksheet!T46=\"\",NOT(ISNUMBER(Worksheet!T46))),IF(Qualifying_Index!AT31=\"PTHP\",References!$L$34,References!$L$36),Worksheet!T46),0)","v":0},{"$f":"IF(Worksheet!C46=\"\",\"\",References!$M$36)","v":""},{"$f":"IF(AND(References!$H$4=TRUE,OR(AT31<>\"PTHP\",AT31<>\"Ductless\",AT31<>\"CAC\"),References!$H$36<>\"New Construction\"),Worksheet!C46&\" EH\"&\" \"&Worksheet!M46,H31&\" \"&Worksheet!C46&\" \"&Worksheet!M46&I31)","v":"New  "},{"$f":"IF(References!$C$21=TRUE,\"Whole House\",IF(RIGHT(References!$H$36,2)=\"HP\",\"Retrofit\",\"New\"))","v":"New"},{"$f":"IF(References!$C$21<>TRUE,\"\",IF(References!$A$21=4,1,IF(AND(Worksheet!P46<>\"Central Air Conditioner\",Worksheet!P46<>\"Ducted Air Source HP\",References!$H$14=\"Oil\"),2,3)))","v":""},{"$f":"IF(Worksheet!J46=\"\",\"\",Worksheet!J46)","v":""},{"$f":"IF(Worksheet!K46=\"\",\"\",Worksheet!K46)","v":""},{"$f":"IF(Worksheet!L46=\"\",\"\",Worksheet!L46)","v":""},{"$f":"IF(Worksheet!C46=\"\",\"\",IF(References!$H$4=TRUE,INDEX(References!$T$7:$T$14,MATCH(Worksheet!C46&\" EH\",References!$S$7:$S$14,0)),INDEX(References!$T$7:$T$17,MATCH(Worksheet!$C46,References!$S$7:$S$17,0))))","v":""},{"$f":"IF(Worksheet!C46=\"\",\"\",IF(References!$H$4=TRUE,INDEX(References!$U$7:$U$14,MATCH(Worksheet!C46&\" EH\",References!$S$7:$S$14,0)),INDEX(References!$U$7:$U$17,MATCH(Worksheet!$C46,References!$S$7:$S$17,0))))","v":""},{"$f":"IF(Worksheet!C46=\"\",\"\",IF(References!$H$4=TRUE,INDEX(References!$V$7:$V$14,MATCH(Worksheet!C46&\" EH\",References!$S$7:$S$14,0)),INDEX(References!$V$7:$V$17,MATCH(Worksheet!$C46,References!$S$7:$S$17,0))))","v":""},{"$f":"IF(Worksheet!C46=\"\",\"\",INDEX(References!$Y$7:$Y$17,MATCH(Worksheet!$C46,References!$S$7:$S$17,0)))","v":""},{"$f":"IF(Worksheet!C46=\"\",\"\",INDEX(References!$Z$7:$Z$17,MATCH(Worksheet!$C46,References!$S$7:$S$17,0)))","v":""},{"$f":"IF(Worksheet!C46=\"\",\"\",IF(References!$H$4=TRUE,INDEX(References!$W$7:$W$14,MATCH(Worksheet!C46&\" EH\",References!$S$7:$S$14,0)),INDEX(References!$W$7:$W$17,MATCH(Worksheet!$C46,References!$S$7:$S$17,0))))","v":""},{"$f":"IF(Worksheet!C46=\"\",\"\",IF(References!$H$4=TRUE,INDEX(References!$X$7:$X$14,MATCH(Worksheet!C46&\" EH\",References!$S$7:$S$14,0)),INDEX(References!$X$7:$X$17,MATCH(Worksheet!$C46,References!$S$7:$S$17,0))))","v":""},"","",{"$f":"IF(Worksheet!C46=\"\",\"\",IF(R31=0,\"\",IF(AND(L31<R31,L31<S31),\"DNQ\",IF(L31>=S31,\"Tier II\",\"Tier I\"))))","v":""},null,{"$f":"IF(OR(T31=\"DNQ\",U31=\"DNQ\",V31=\"DNQ\",Worksheet!X67=\"FAIL\"),\"DNQ\",IF(OR(T31=\"Tier I\",V31=\"Tier I\"),\"Tier I\",IF(OR(T31=\"Tier II\",V31=\"Tier II\"),\"Tier II\",\"Tier III\")))","v":"Tier III"},{"$f":"IF(Worksheet!C46=\"\",\"\",IF(X31=\"DNQ\",\"DNQ\",IF(OR(References!$C$21=TRUE,References!$H$14=\"Electric\"),INDEX(References!$X$22:$X$45,MATCH(G31,References!$S$22:$S$45,0))*(Worksheet!F46/12000),INDEX(References!$X$22:$X$45,MATCH(G31,References!$S$22:$S$45,0)))))","v":""},{"$f":"IF(Worksheet!C46=\"\",\"\",IF(Y31=\"DNQ\",0,INDEX(References!$Y$22:$Y$44,MATCH(Qualifying_Index!G31,References!$S$22:$S$44,0))))","v":""},null,1,{"$f":"IF(COUNTIF(AB27:AB30,1),0,Z31)","v":0},null,{"$f":"((Worksheet!F46*0.65))","v":0},{"$f":"((Worksheet!F46*1.35))","v":0},{"$f":"IF(References!$C$21=TRUE,(Worksheet!V67*1),Worksheet!H46*0.65)","v":0},{"$f":"IF(References!$C$21=TRUE,(Worksheet!V67*1.3),Worksheet!H46*1.35)","v":0},{"$f":"IF(AND(Worksheet!U67>=Qualifying_Index!AE31,Worksheet!U67<=Qualifying_Index!AF31),\"PASS\",\"FAIL\")","v":"PASS"},{"$f":"IF(OR(AG31=0,AH31=0),\"FAIL\",IF(AND(IF(References!$C$21=TRUE,Worksheet!H46,Worksheet!V67)>=AG31,IF(References!C25=TRUE,Worksheet!H46,Worksheet!V67)<=AH31),\"PASS\",\"FAIL\"))","v":"FAIL"},{"$f":"IF(AND(LEFT(Worksheet!C46,6)=\"Ducted\",Worksheet!U67=\"\",Worksheet!V67=\"\"),\"Missing Info\",IF(References!$C$21=TRUE,IF(AJ31=\"PASS\",\"PASS\",\"FAIL\"),IF(OR(AI31=\"PASS\",AJ31=\"PASS\"),\"PASS\",\"FAIL\")))","v":"PASS"},null,{"$f":"IF(OR(Worksheet!F46=\"\",Worksheet!I46=\"\",Worksheet!K46=\"\",Worksheet!L46=\"\",Worksheet!C67=\"\",Worksheet!E67=\"\",Worksheet!F67=\"\",Worksheet!H67=\"\",Worksheet!J67=\"\",Worksheet!L67=\"\"),\"Missing Info\",\"\")","v":"Missing Info"},{"$f":"IF(AND(AU31=1,Worksheet!L46=\"\"),\"Missing Info\",IF(AT31=\"PTHP\",AM31,IF(OR(Worksheet!F46=\"\",Worksheet!I46=\"\",Worksheet!J46=\"\",Worksheet!K46=\"\",Worksheet!C67=\"\",Worksheet!E67=\"\",Worksheet!F67=\"\",Worksheet!J67=\"\",Worksheet!L67=\"\",AK31=\"Missing Info\"),\"Missing Info\",\"\")))","v":"Missing Info"},{"$f":"IF(AND(AU31=1,Worksheet!L46=\"\"),\"Missing Info\",IF(AT31=\"PTHP\",AM31,IF(OR(Worksheet!C67=\"\",Worksheet!E67=\"\",Worksheet!F67=\"\",Worksheet!J67=\"\",Worksheet!L67=\"\",Worksheet!F46=\"\",Worksheet!I46=\"\",Worksheet!J46=\"\"),\"Missing Info\",\"\")))","v":"Missing Info"},{"$f":"IF(Worksheet!K46=\"\",\"\",IF(OR(Worksheet!V46=\"\",Worksheet!C46=\"Geothermal\"),\"\",Worksheet!F46/12000*(12/Worksheet!K46)*kW_CA))","v":""},{"$f":"IF(Worksheet!K46=\"\",\"\",IF(OR(Worksheet!V46=\"\",Worksheet!C46=\"Geothermal\"),\"\",Worksheet!F46*(12/Worksheet!K46)*kW_RS))","v":""},{"$f":"IF(OR(Worksheet!V46=\"\",Worksheet!C46=\"Geothermal\",Worksheet!J46=\"\",Worksheet!K46=\"\"),\"\",IF(OR(Worksheet!C46=\"Ducted ASHP\",Worksheet!C46=\"Ducted ccASHP\"),Worksheet!F46/12000*(12/Worksheet!J46*FLH_Cool+12/Worksheet!L46*FLH_Heat)*QI_kWh,IF(Worksheet!C46=\"Geothermal\",Worksheet!F46/12000*(12/(Worksheet!K46*0.09))*FLH_Cool*QI_kWh,Worksheet!F46/12000*(12/Worksheet!J46)*FLH_Cool*QI_kWh)))","v":""},null,{"$f":"IF(Worksheet!C46=\"\",\"\",INDEX(References!$AB$7:$AB$17,MATCH(Worksheet!C46,Equipment_Type,0)))","v":""},{"$f":"IF(Worksheet!C46=\"\",\"\",INDEX(References!$AA$7:$AA$17,MATCH(Worksheet!C46,Equipment_Type,0)))","v":""},null,{"$f":"IF(OR(References!$A$21=1,References!$A$21=2),References!$D$25,IF(References!$A$21=3,References!$C$25,IF(References!$A$21=4,FLH_Cool,0)))","v":0},{"$f":"IF(OR(References!$A$21=1,References!$A$21=2),References!$D$26,IF(References!$A$21=3,References!$C$26,IF(References!$A$21=4,FLH_Heat,0)))","v":0},null,{"$f":"IF(AND($AK31=\"PASS\",Worksheet!F46<>\"\"),((Worksheet!$F46/12000)*((12/C31)-(12/K31)))+SUM(AP31:AQ31),0)","v":0},{"$f":"IF(AND($AK31=\"PASS\",Worksheet!$F46<>\"\"),IF(AT31=\"PTHP\",((Worksheet!F46/12000)*(12/C31-12/K31)*AW31),(((Worksheet!$F46/12000)*((12/D31)-(12/J31))*AW31))+AR31),0)","v":0},{"$f":"IF(AND($AK31=\"PASS\",Worksheet!$F46<>\"\"),BA31*References!$E$12/1000,0)","v":0},{"$f":"BA31*References!$A$12","v":0},{"$f":"IF(AND($AK31=\"PASS\",References!$I$36=TRUE,Worksheet!C46<>\"\"),((Worksheet!H46/12000)*((1/(E31/3.412))-(1/(L31/3.412))))+SUM(AP31:AQ31),0)","v":0},{"$f":"IF(AND($AK31=\"PASS\",References!$I$36=TRUE,Worksheet!$F46<>\"\"),((Worksheet!$H46/12000)*((12/E31)-(12/L31))*AX31*References!$M$36)+AR31,0)","v":0},{"$f":"IF(AND($AK31=\"PASS\",References!$J$36=TRUE,Worksheet!C46<>\"\"),-((Worksheet!H46/12000)*(1/(L31/3.412))),0)","v":0},{"$f":"IF(AND($AK31=\"PASS\",References!$J$36=TRUE,Worksheet!C46<>\"\"),((Worksheet!$H46/12000)*(12/L31)*(AX31*References!$M$36))-(Worksheet!$H46*AX31/1000000)*References!$K$36*F31,0)","v":0},{"$f":"IF(AND($AK31=\"PASS\",References!$I$36=TRUE,Worksheet!C46<>\"\"),BE31*References!$E$12/1000,(-BG31*References!$E$12/1000))","v":0},{"$f":"IF(AND($AK31=\"PASS\",References!$J$36=TRUE,Worksheet!C46<>\"\"),((Worksheet!$H46*AX31/References!$L$36)/1000000)*References!$M$36,0)","v":0},0,{"$f":"(BE31-BG31)*References!$A$12","v":0},{"$f":"BI31*References!$N$36*References!$D$8","v":{"$error":"#VALUE!"}},{"$f":"IF(References!$J$36=TRUE,(BI31*References!$N$36*References!$D$8)-(BG31*References!$A$12),BE31*References!$A$12)","v":0}]
[6,{"$f":"IF(OR(Worksheet!C47=\"Ducted ccASHP\",Worksheet!C47=\"Ductless Mini Split - ccASHP\"),\"Cold Climate\",\"\")","v":""},{"$f":"IF(OR(Worksheet!S47=\"\",Worksheet!P47=\"\",NOT(ISNUMBER(Worksheet!S47))),IF(Qualifying_Index!AT32=\"PTHP\",References!$L$12,IF(ISERROR(SEARCH(\"HP\",Worksheet!C47,1)),References!$L$10,References!$L$9)),Worksheet!S47)","v":11.180000000000003},{"$f":"IF(OR(Worksheet!P47=\"\",Worksheet!R47=\"\",NOT(ISNUMBER(Worksheet!R47))),IF(Qualifying_Index!AT32=\"PTHP\",References!$M$12,IF(ISERROR(SEARCH(\"HP\",Worksheet!C47,1)),References!$M$10,References!$M$9)),Worksheet!R47)","v":13},{"$f":"IF(AND(OR(References!$H$14=\"Electric\",References!$H$14=\"Air Source HP\",Worksheet!P47=\"Air Source HP\"),Worksheet!C47<>\"\"),IF(OR(Worksheet!T47=\"\",NOT(ISNUMBER(Worksheet!T47))),IF(Qualifying_Index!AT32=\"PTHP\",References!$L$34,References!$L$36),Worksheet!T47),0)","v":0},{"$f":"IF(Worksheet!C47=\"\",\"\",References!$M$36)","v":""},{"$f":"IF(AND(References!$H$4=TRUE,OR(AT32<>\"PTHP\",AT32<>\"Ductless\",AT32<>\"CAC\"),References!$H$36<>\"New Construction\"),Worksheet!C47&\" EH\"&\" \"&Worksheet!M47,H32&\" \"&Worksheet!C47&\" \"&Worksheet!M47&I32)","v":"New  "},{"$f":"IF(References!$C$21=TRUE,\"Whole House\",IF(RIGHT(References!$H$36,2)=\"HP\",\"Retrofit\",\"New\"))","v":"New"},{"$f":"IF(References!$C$21<>TRUE,\"\",IF(References!$A$21=4,1,IF(AND(Worksheet!P47<>\"Central Air Conditioner\",Worksheet!P47<>\"Ducted Air Source HP\",References!$H$14=\"Oil\"),2,3)))","v":""},{"$f":"IF(Worksheet!J47=\"\",\"\",Worksheet!J47)","v":""},{"$f":"IF(Worksheet!K47=\"\",\"\",Worksheet!K47)","v":""},{"$f":"IF(Worksheet!L47=\"\",\"\",Worksheet!L47)","v":""},{"$f":"IF(Worksheet!C47=\"\",\"\",IF(References!$H$4=TRUE,INDEX(References!$T$7:$T$14,MATCH(Worksheet!C47&\" EH\",References!$S$7:$S$14,0)),INDEX(References!$T$7:$T$17,MATCH(Worksheet!$C47,References!$S$7:$S$17,0))))","v":""},{"$f":"IF(Worksheet!C47=\"\",\"\",IF(References!$H$4=TRUE,INDEX(References!$U$7:$U$14,MATCH(Worksheet!C47&\" EH\",References!$S$7:$S$14,0)),INDEX(References!$U$7:$U$17,MATCH(Worksheet!$C47,References!$S$7:$S$17,0))))","v":""},{"$f":"IF(Worksheet!C47=\"\",\"\",IF(References!$H$4=TRUE,INDEX(References!$V$7:$V$14,MATCH(Worksheet!C47&\" EH\",References!$S$7:$S$14,0)),INDEX(References!$V$7:$V$17,MATCH(Worksheet!$C47,References!$S$7:$S$17,0))))","v":""},{"$f":"IF(Worksheet!C47=\"\",\"\",INDEX(References!$Y$7:$Y$17,MATCH(Worksheet!$C47,References!$S$7:$S$17,0)))","v":""},{"$f":"IF(Worksheet!C47=\"\",\"\",INDEX(References!$Z$7:$Z$17,MATCH(Worksheet!$C47,References!$S$7:$S$17,0)))","v":""},{"$f":"IF(Worksheet!C47=\"\",\"\",IF(References!$H$4=TRUE,INDEX(References!$W$7:$W$14,MATCH(Worksheet!C47&\" EH\",References!$S$7:$S$14,0)),INDEX(References!$W$7:$W$17,MATCH(Worksheet!$C47,References!$S$7:$S$17,0))))","v":""},{"$f":"IF(Worksheet!C47=\"\",\"\",IF(References!$H$4=TRUE,INDEX(References!$X$7:$X$14,MATCH(Worksheet!C47&\" EH\",References!$S$7:$S$14,0)),INDEX(References!$X$7:$X$17,MATCH(Worksheet!$C47,References!$S$7:$S$17,0))))","v":""},"","",{"$f":"IF(Worksheet!C47=\"\",\"\",IF(R32=0,\"\",IF(AND(L32<R32,L32<S32),\"DNQ\",IF(L32>=S32,\"Tier II\",\"Tier I\"))))","v":""},null,{"$f":"IF(OR(T32=\"DNQ\",U32=\"DNQ\",V32=\"DNQ\",Worksheet!X68=\"FAIL\"),\"DNQ\",IF(OR(T32=\"Tier I\",V32=\"Tier I\"),\"Tier I\",IF(OR(T32=\"Tier II\",V32=\"Tier II\"),\"Tier II\",\"Tier III\")))","v":"Tier III"},{"$f":"IF(Worksheet!C47=\"\",\"\",IF(X32=\"DNQ\",\"DNQ\",IF(OR(References!$C$21=TRUE,References!$H$14=\"Electric\"),INDEX(References!$X$22:$X$45,MATCH(G32,References!$S$22:$S$45,0))*(Worksheet!F47/12000),INDEX(References!$X$22:$X$45,MATCH(G32,References!$S$22:$S$45,0)))))","v":""},{"$f":"IF(Worksheet!C47=\"\",\"\",IF(Y32=\"DNQ\",0,INDEX(References!$Y$22:$Y$44,MATCH(Qualifying_Index!G32,References!$S$22:$S$44,0))))","v":""},null,1,{"$f":"IF(COUNTIF(AB27:AB31,1),0,Z32)","v":0},null,{"$f":"((Worksheet!F47*0.65))","v":0},{"$f":"((Worksheet!F47*1.35))","v":0},{"$f":"IF(References!$C$21=TRUE,(Worksheet!V68*1),Worksheet!H47*0.65)","v":0},{"$f":"IF(References!$C$21=TRUE,(Worksheet!V68*1.3),Worksheet!H47*1.35)","v":0},{"$f":"IF(AND(Worksheet!U68>=Qualifying_Index!AE32,Worksheet!U68<=Qualifying_Index!AF32),\"PASS\",\"FAIL\")","v":"PASS"},{"$f":"IF(OR(AG32=0,AH32=0),\"FAIL\",IF(AND(IF(References!$C$21=TRUE,Worksheet!H47,Worksheet!V68)>=AG32,IF(References!C26=TRUE,Worksheet!H47,Worksheet!V68)<=AH32),\"PASS\",\"FAIL\"))","v":"FAIL"},{"$f":"IF(AND(LEFT(Worksheet!C47,6)=\"Ducted\",Worksheet!U68=\"\",Worksheet!V68=\"\"),\"Missing Info\",IF(References!$C$21=TRUE,IF(AJ32=\"PASS\",\"PASS\",\"FAIL\"),IF(OR(AI32=\"PASS\",AJ32=\"PASS\"),\"PASS\",\"FAIL\")))","v":"PASS"},null,{"$f":"IF(OR(Worksheet!F47=\"\",Worksheet!I47=\"\",Worksheet!K47=\"\",Worksheet!L47=\"\",Worksheet!C68=\"\",Worksheet!E68=\"\",Worksheet!F68=\"\",Worksheet!H68=\"\",Worksheet!J68=\"\",Worksheet!L68=\"\"),\"Missing Info\",\"\")","v":"Missing Info"},{"$f":"IF(AND(AU32=1,Worksheet!L47=\"\"),\"Missing Info\",IF(AT32=\"PTHP\",AM32,IF(OR(Worksheet!F47=\"\",Worksheet!I47=\"\",Worksheet!J47=\"\",Worksheet!K47=\"\",Worksheet!C68=\"\",Worksheet!E68=\"\",Worksheet!F68=\"\",Worksheet!J68=\"\",Worksheet!L68=\"\",AK32=\"Missing Info\"),\"Missing Info\",\"\")))","v":"Missing Info"},{"$f":"IF(AND(AU32=1,Worksheet!L47=\"\"),\"Missing Info\",IF(AT32=\"PTHP\",AM32,IF(OR(Worksheet!C68=\"\",Worksheet!E68=\"\",Worksheet!F68=\"\",Worksheet!J68=\"\",Worksheet!L68=\"\",Worksheet!F47=\"\",Worksheet!I47=\"\",Worksheet!J47=\"\"),\"Missing Info\",\"\")))","v":"Missing Info"},{"$f":"IF(Worksheet!K47=\"\",\"\",IF(OR(Worksheet!V47=\"\",Worksheet!C47=\"Geothermal\"),\"\",Worksheet!F47/12000*(12/Worksheet!K47)*kW_CA))","v":""},{"$f":"IF(Worksheet!K47=\"\",\"\",IF(OR(Worksheet!V47=\"\",Worksheet!C47=\"Geothermal\"),\"\",Worksheet!F47*(12/Worksheet!K47)*kW_RS))","v":""},{"$f":"IF(OR(Worksheet!V47=\"\",Worksheet!C47=\"Geothermal\",Worksheet!J47=\"\",Worksheet!K47=\"\"),\"\",IF(OR(Worksheet!C47=\"Ducted ASHP\",Worksheet!C47=\"Ducted ccASHP\"),Worksheet!F47/12000*(12/Worksheet!J47*FLH_Cool+12/Worksheet!L47*FLH_Heat)*QI_kWh,IF(Worksheet!C47=\"Geothermal\",Worksheet!F47/12000*(12/(Worksheet!K47*0.09))*FLH_Cool*QI_kWh,Worksheet!F47/12000*(12/Worksheet!J47)*FLH_Cool*QI_kWh)))","v":""},null,{"$f":"IF(Worksheet!C47=\"\",\"\",INDEX(References!$AB$7:$AB$17,MATCH(Worksheet!C47,Equipment_Type,0)))","v":""},{"$f":"IF(Worksheet!C47=\"\",\"\",INDEX(References!$AA$7:$AA$17,MATCH(Worksheet!C47,Equipment_Type,0)))","v":""},null,{"$f":"IF(OR(References!$A$21=1,References!$A$21=2),References!$D$25,IF(References!$A$21=3,References!$C$25,IF(References!$A$21=4,FLH_Cool,0)))","v":0},{"$f":"IF(OR(References!$A$21=1,References!$A$21=2),References!$D$26,IF(References!$A$21=3,References!$C$26,IF(References!$A$21=4,FLH_Heat,0)))","v":0},null,{"$f":"IF(AND($AK32=\"PASS\",Worksheet!F47<>\"\"),((Worksheet!$F47/12000)*((12/C32)-(12/K32)))+SUM(AP32:AQ32),0)","v":0},{"$f":"IF(AND($AK32=\"PASS\",Worksheet!$F47<>\"\"),IF(AT32=\"PTHP\",((Worksheet!F47/12000)*(12/C32-12/K32)*AW32),(((Worksheet!$F47/12000)*((12/D32)-(12/J32))*AW32))+AR32),0)","v":0},{"$f":"IF(AND($AK32=\"PASS\",Worksheet!$F47<>\"\"),BA32*References!$E$12/1000,0)","v":0},{"$f":"BA32*References!$A$12","v":0},{"$f":"IF(AND($AK32=\"PASS\",References!$I$36=TRUE,Worksheet!C47<>\"\"),((Worksheet!H47/12000)*((1/(E32/3.412))-(1/(L32/3.412))))+SUM(AP32:AQ32),0)","v":0},{"$f":"IF(AND($AK32=\"PASS\",References!$I$36=TRUE,Worksheet!$F47<>\"\"),((Worksheet!$H47/12000)*((12/E32)-(12/L32))*AX32*References!$M$36)+AR32,0)","v":0},{"$f":"IF(AND($AK32=\"PASS\",References!$J$36=TRUE,Worksheet!C47<>\"\"),-((Worksheet!H47/12000)*(1/(L32/3.412))),0)","v":0},{"$f":"IF(AND($AK32=\"PASS\",References!$J$36=TRUE,Worksheet!C47<>\"\"),((Worksheet!$H47/12000)*(12/L32)*(AX32*References!$M$36))-(Worksheet!$H47*AX32/1000000)*References!$K$36*F32,0)","v":0},{"$f":"IF(AND($AK32=\"PASS\",References!$I$36=TRUE,Worksheet!C47<>\"\"),BE32*References!$E$12/1000,(-BG32*References!$E$12/1000))","v":0},{"$f":"IF(AND($AK32=\"PASS\",References!$J$36=TRUE,Worksheet!C47<>\"\"),((Worksheet!$H47*AX32/References!$L$36)/1000000)*References!$M$36,0)","v":0},0,{"$f":"(BE32-BG32)*References!$A$12","v":0},{"$f":"BI32*References!$N$36*References!$D$8","v":{"$error":"#VALUE!"}},{"$f":"IF(References!$J$36=TRUE,(BI32*References!$N$36*References!$D$8)-(BG32*References!$A$12),BE32*References!$A$12)","v":0}]
[7,{"$f":"IF(OR(Worksheet!C48=\"Ducted ccASHP\",Worksheet!C48=\"Ductless Mini Split - ccASHP\"),\"Cold Climate\",\"\")","v":""},{"$f":"IF(OR(Worksheet!S48=\"\",Worksheet!P48=\"\",NOT(ISNUMBER(Worksheet!S48))),IF(Qualifying_Index!AT33=\"PTHP\",References!$L$12,IF(ISERROR(SEARCH(\"HP\",Worksheet!C48,1)),References!$L$10,References!$L$9)),Worksheet!S48)","v":11.180000000000003},{"$f":"IF(OR(Worksheet!P48=\"\",Worksheet!R48=\"\",NOT(ISNUMBER(Worksheet!R48))),IF(Qualifying_Index!AT33=\"PTHP\",References!$M$12,IF(ISERROR(SEARCH(\"HP\",Worksheet!C48,1)),References!$M$10,References!$M$9)),Worksheet!R48)","v":13},{"$f":"IF(AND(OR(References!$H$14=\"Electric\",References!$H$14=\"Air Source HP\",Worksheet!P48=\"Air Source HP\"),Worksheet!C48<>\"\"),IF(OR(Worksheet!T48=\"\",NOT(ISNUMBER(Worksheet!T48))),IF(Qualifying_Index!AT33=\"PTHP\",References!$L$34,References!$L$36),Worksheet!T48),0)","v":0},{"$f":"IF(Worksheet!C48=\"\",\"\",References!$M$36)","v":""},{"$f":"IF(AND(References!$H$4=TRUE,OR(AT33<>\"PTHP\",AT33<>\"Ductless\",AT33<>\"CAC\"),References!$H$36<>\"New Construction\"),Worksheet!C48&\" EH\"&\" \"&Worksheet!M48,H33&\" \"&Worksheet!C48&\" \"&Worksheet!M48&I33)","v":"New  "},{"$f":"IF(References!$C$21=TRUE,\"Whole House\",IF(RIGHT(References!$H$36,2)=\"HP\",\"Retrofit\",\"New\"))","v":"New"},{"$f":"IF(References!$C$21<>TRUE,\"\",IF(References!$A$21=4,1,IF(AND(Worksheet!P48<>\"Central Air Conditioner\",Worksheet!P48<>\"Ducted Air Source HP\",References!$H$14=\"Oil\"),2,3)))","v":""},{"$f":"IF(Worksheet!J48=\"\",\"\",Worksheet!J48)","v":""},{"$f":"IF(Worksheet!K48=\"\",\"\",Worksheet!K48)","v":""},{"$f":"IF(Worksheet!L48=\"\",\"\",Worksheet!L48)","v":""},{"$f":"IF(Worksheet!C48=\"\",\"\",IF(References!$H$4=TRUE,INDEX(References!$T$7:$T$14,MATCH(Worksheet!C48&\" EH\",References!$S$7:$S$14,0)),INDEX(References!$T$7:$T$17,MATCH(Worksheet!$C48,References!$S$7:$S$17,0))))","v":""},{"$f":"IF(Worksheet!C48=\"\",\"\",IF(References!$H$4=TRUE,INDEX(References!$U$7:$U$14,MATCH(Worksheet!C48&\" EH\",References!$S$7:$S$14,0)),INDEX(References!$U$7:$U$17,MATCH(Worksheet!$C48,References!$S$7:$S$17,0))))","v":""},{"$f":"IF(Worksheet!C48=\"\",\"\",IF(References!$H$4=TRUE,INDEX(References!$V$7:$V$14,MATCH(Worksheet!C48&\" EH\",References!$S$7:$S$14,0)),INDEX(References!$V$7:$V$17,MATCH(Worksheet!$C48,References!$S$7:$S$17,0))))","v":""},{"$f":"IF(Worksheet!C48=\"\",\"\",INDEX(References!$Y$7:$Y$17,MATCH(Worksheet!$C48,References!$S$7:$S$17,0)))","v":""},{"$f":"IF(Worksheet!C48=\"\",\"\",INDEX(References!$Z$7:$Z$17,MATCH(Worksheet!$C48,References!$S$7:$S$17,0)))","v":""},{"$f":"IF(Worksheet!C48=\"\",\"\",IF(References!$H$4=TRUE,INDEX(References!$W$7:$W$14,MATCH(Worksheet!C48&\" EH\",References!$S$7:$S$14,0)),INDEX(References!$W$7:$W$17,MATCH(Worksheet!$C48,References!$S$7:$S$17,0))))","v":""},{"$f":"IF(Worksheet!C48=\"\",\"\",IF(References!$H$4=TRUE,INDEX(References!$X$7:$X$14,MATCH(Worksheet!C48&\" EH\",References!$S$7:$S$14,0)),INDEX(References!$X$7:$X$17,MATCH(Worksheet!$C48,References!$S$7:$S$17,0))))","v":""},"","",{"$f":"IF(Worksheet!C48=\"\",\"\",IF(R33=0,\"\",IF(AND(L33<R33,L33<S33),\"DNQ\",IF(L33>=S33,\"Tier II\",\"Tier I\"))))","v":""},null,{"$f":"IF(OR(T33=\"DNQ\",U33=\"DNQ\",V33=\"DNQ\",Worksheet!X69=\"FAIL\"),\"DNQ\",IF(OR(T33=\"Tier I\",V33=\"Tier I\"),\"Tier I\",IF(OR(T33=\"Tier II\",V33=\"Tier II\"),\"Tier II\",\"Tier III\")))","v":"Tier III"},{"$f":"IF(Worksheet!C48=\"\",\"\",IF(X33=\"DNQ\",\"DNQ\",IF(OR(References!$C$21=TRUE,References!$H$14=\"Electric\"),INDEX(References!$X$22:$X$45,MATCH(G33,References!$S$22:$S$45,0))*(Worksheet!F48/12000),INDEX(References!$X$22:$X$45,MATCH(G33,References!$S$22:$S$45,0)))))","v":""},{"$f":"IF(Worksheet!C48=\"\",\"\",IF(Y33=\"DNQ\",0,INDEX(References!$Y$22:$Y$44,MATCH(Qualifying_Index!G33,References!$S$22:$S$44,0))))","v":""},null,1,{"$f":"IF(COUNTIF(AB27:AB32,1),0,Z33)","v":0},null,{"$f":"((Worksheet!F48*0.65))","v":0},{"$f":"((Worksheet!F48*1.35))","v":0},{"$f":"IF(References!$C$21=TRUE,(Worksheet!V69*1),Worksheet!H48*0.65)","v":0},{"$f":"IF(References!$C$21=TRUE,(Worksheet!V69*1.3),Worksheet!H48*1.35)","v":0},{"$f":"IF(AND(Worksheet!U69>=Qualifying_Index!AE33,Worksheet!U69<=Qualifying_Index!AF33),\"PASS\",\"FAIL\")","v":"PASS"},{"$f":"IF(OR(AG33=0,AH33=0),\"FAIL\",IF(AND(IF(References!$C$21=TRUE,Worksheet!H48,Worksheet!V69)>=AG33,IF(References!C27=TRUE,Worksheet!H48,Worksheet!V69)<=AH33),\"PASS\",\"FAIL\"))","v":"FAIL"},{"$f":"IF(AND(LEFT(Worksheet!C48,6)=\"Ducted\",Worksheet!U69=\"\",Worksheet!V69=\"\"),\"Missing Info\",IF(References!$C$21=TRUE,IF(AJ33=\"PASS\",\"PASS\",\"FAIL\"),IF(OR(AI33=\"PASS\",AJ33=\"PASS\"),\"PASS\",\"FAIL\")))","v":"PASS"},null,{"$f":"IF(OR(Worksheet!F48=\"\",Worksheet!I48=\"\",Worksheet!K48=\"\",Worksheet!L48=\"\",Worksheet!C69=\"\",Worksheet!E69=\"\",Worksheet!F69=\"\",Worksheet!H69=\"\",Worksheet!J69=\"\",Worksheet!L69=\"\"),\"Missing Info\",\"\")","v":"Missing Info"},{"$f":"IF(AND(AU33=1,Worksheet!L48=\"\"),\"Missing Info\",IF(AT33=\"PTHP\",AM33,IF(OR(Worksheet!F48=\"\",Worksheet!I48=\"\",Worksheet!J48=\"\",Worksheet!K48=\"\",Worksheet!C69=\"\",Worksheet!E69=\"\",Worksheet!F69=\"\",Worksheet!J69=\"\",Worksheet!L69=\"\",AK33=\"Missing Info\"),\"Missing Info\",\"\")))","v":"Missing Info"},{"$f":"IF(AND(AU33=1,Worksheet!L48=\"\"),\"Missing Info\",IF(AT33=\"PTHP\",AM33,IF(OR(Worksheet!C69=\"\",Worksheet!E69=\"\",Worksheet!F69=\"\",Worksheet!J69=\"\",Worksheet!L69=\"\",Worksheet!F48=\"\",Worksheet!I48=\"\",Worksheet!J48=\"\"),\"Missing Info\",\"\")))","v":"Missing Info"},{"$f":"IF(Worksheet!K48=\"\",\"\",IF(OR(Worksheet!V48=\"\",Worksheet!C48=\"Geothermal\"),\"\",Worksheet!F48/12000*(12/Worksheet!K48)*kW_CA))","v":""},{"$f":"IF(Worksheet!K48=\"\",\"\",IF(OR(Worksheet!V48=\"\",Worksheet!C48=\"Geothermal\"),\"\",Worksheet!F48*(12/Worksheet!K48)*kW_RS))","v":""},{"$f":"IF(OR(Worksheet!V48=\"\",Worksheet!C48=\"Geothermal\",Worksheet!J48=\"\",Worksheet!K48=\"\"),\"\",IF(OR(Worksheet!C48=\"Ducted ASHP\",Worksheet!C48=\"Ducted ccASHP\"),Worksheet!F48/12000*(12/Worksheet!J48*FLH_Cool+12/Worksheet!L48*FLH_Heat)*QI_kWh,IF(Worksheet!C48=\"Geothermal\",Worksheet!F48/12000*(12/(Worksheet!K48*0.09))*FLH_Cool*QI_kWh,Worksheet!F48/12000*(12/Worksheet!J48)*FLH_Cool*QI_kWh)))","v":""},null,{"$f":"IF(Worksheet!C48=\"\",\"\",INDEX(References!$AB$7:$AB$17,MATCH(Worksheet!C48,Equipment_Type,0)))","v":""},{"$f":"IF(Worksheet!C48=\"\",\"\",INDEX(References!$AA$7:$AA$17,MATCH(Worksheet!C48,Equipment_Type,0)))","v":""},null,{"$f":"IF(OR(References!$A$21=1,References!$A$21=2),References!$D$25,IF(References!$A$21=3,References!$C$25,IF(References!$A$21=4,FLH_Cool,0)))","v":0},{"$f":"IF(OR(References!$A$21=1,References!$A$21=2),References!$D$26,IF(References!$A$21=3,References!$C$26,IF(References!$A$21=4,FLH_Heat,0)))","v":0},null,{"$f":"IF(AND($AK33=\"PASS\",Worksheet!F48<>\"\"),((Worksheet!$F48/12000)*((12/C33)-(12/K33)))+SUM(AP33:AQ33),0)","v":0},{"$f":"IF(AND($AK33=\"PASS\",Worksheet!$F48<>\"\"),IF(AT33=\"PTHP\",((Worksheet!F48/12000)*(12/C33-12/K33)*AW33),(((Worksheet!$F48/12000)*((12/D33)-(12/J33))*AW33))+AR33),0)","v":0},{"$f":"IF(AND($AK33=\"PASS\",Worksheet!$F48<>\"\"),BA33*References!$E$12/1000,0)","v":0},{"$f":"BA33*References!$A$12","v":0},{"$f":"IF(AND($AK33=\"PASS\",References!$I$36=TRUE,Worksheet!C48<>\"\"),((Worksheet!H48/12000)*((1/(E33/3.412))-(1/(L33/3.412))))+SUM(AP33:AQ33),0)","v":0},{"$f":"IF(AND($AK33=\"PASS\",References!$I$36=TRUE,Worksheet!$F48<>\"\"),((Worksheet!$H48/12000)*((12/E33)-(12/L33))*AX33*References!$M$36)+AR33,0)","v":0},{"$f":"IF(AND($AK33=\"PASS\",References!$J$36=TRUE,Worksheet!C48<>\"\"),-((Worksheet!H48/12000)*(1/(L33/3.412))),0)","v":0},{"$f":"IF(AND($AK33=\"PASS\",References!$J$36=TRUE,Worksheet!C48<>\"\"),((Worksheet!$H48/12000)*(12/L33)*(AX33*References!$M$36))-(Worksheet!$H48*AX33/1000000)*References!$K$36*F33,0)","v":0},{"$f":"IF(AND($AK33=\"PASS\",References!$I$36=TRUE,Worksheet!C48<>\"\"),BE33*References!$E$12/1000,(-BG33*References!$E$12/1000))","v":0},{"$f":"IF(AND($AK33=\"PASS\",References!$J$36=TRUE,Worksheet!C48<>\"\"),((Worksheet!$H48*AX33/References!$L$36)/1000000)*References!$M$36,0)","v":0},0,{"$f":"(BE33-BG33)*References!$A$12","v":0},{"$f":"BI33*References!$N$36*References!$D$8","v":{"$error":"#VALUE!"}},{"$f":"IF(References!$J$36=TRUE,(BI33*References!$N$36*References!$D$8)-(BG33*References!$A$12),BE33*References!$A$12)","v":0}]
[8,{"$f":"IF(OR(Worksheet!C49=\"Ducted ccASHP\",Worksheet!C49=\"Ductless Mini Split - ccASHP\"),\"Cold Climate\",\"\")","v":""},{"$f":"IF(OR(Worksheet!S49=\"\",Worksheet!P49=\"\",NOT(ISNUMBER(Worksheet!S49))),IF(Qualifying_Index!AT34=\"PTHP\",References!$L$12,IF(ISERROR(SEARCH(\"HP\",Worksheet!C49,1)),References!$L$10,References!$L$9)),Worksheet!S49)","v":11.180000000000003},{"$f":"IF(OR(Worksheet!P49=\"\",Worksheet!R49=\"\",NOT(ISNUMBER(Worksheet!R49))),IF(Qualifying_Index!AT34=\"PTHP\",References!$M$12,IF(ISERROR(SEARCH(\"HP\",Worksheet!C49,1)),References!$M$10,References!$M$9)),Worksheet!R49)","v":13},{"$f":"IF(AND(OR(References!$H$14=\"Electric\",References!$H$14=\"Air Source HP\",Worksheet!P49=\"Air Source HP\"),Worksheet!C49<>\"\"),IF(OR(Worksheet!T49=\"\",NOT(ISNUMBER(Worksheet!T49))),IF(Qualifying_Index!AT34=\"PTHP\",References!$L$34,References!$L$36),Worksheet!T49),0)","v":0},{"$f":"IF(Worksheet!C49=\"\",\"\",References!$M$36)","v":""},{"$f":"IF(AND(References!$H$4=TRUE,OR(AT34<>\"PTHP\",AT34<>\"Ductless\",AT34<>\"CAC\"),References!$H$36<>\"New Construction\"),Worksheet!C49&\" EH\"&\" \"&Worksheet!M49,H34&\" \"&Worksheet!C49&\" \"&Worksheet!M49&I34)","v":"New  "},{"$f":"IF(References!$C$21=TRUE,\"Whole House\",IF(RIGHT(References!$H$36,2)=\"HP\",\"Retrofit\",\"New\"))","v":"New"},{"$f":"IF(References!$C$21<>TRUE,\"\",IF(References!$A$21=4,1,IF(AND(Worksheet!P49<>\"Central Air Conditioner\",Worksheet!P49<>\"Ducted Air Source HP\",References!$H$14=\"Oil\"),2,3)))","v":""},{"$f":"IF(Worksheet!J49=\"\",\"\",Worksheet!J49)","v":""},{"$f":"IF(Worksheet!K49=\"\",\"\",Worksheet!K49)","v":""},{"$f":"IF(Worksheet!L49=\"\",\"\",Worksheet!L49)","v":""},{"$f":"IF(Worksheet!C49=\"\",\"\",IF(References!$H$4=TRUE,INDEX(References!$T$7:$T$14,MATCH(Worksheet!C49&\" EH\",References!$S$7:$S$14,0)),INDEX(References!$T$7:$T$17,MATCH(Worksheet!$C49,References!$S$7:$S$17,0))))","v":""},{"$f":"IF(Worksheet!C49=\"\",\"\",IF(References!$H$4=TRUE,INDEX(References!$U$7:$U$14,MATCH(Worksheet!C49&\" EH\",References!$S$7:$S$14,0)),INDEX(References!$U$7:$U$17,MATCH(Worksheet!$C49,References!$S$7:$S$17,0))))","v":""},{"$f":"IF(Worksheet!C49=\"\",\"\",IF(References!$H$4=TRUE,INDEX(References!$V$7:$V$14,MATCH(Worksheet!C49&\" EH\",References!$S$7:$S$14,0)),INDEX(References!$V$7:$V$17,MATCH(Worksheet!$C49,References!$S$7:$S$17,0))))","v":""},{"$f":"IF(Worksheet!C49=\"\",\"\",INDEX(References!$Y$7:$Y$17,MATCH(Worksheet!$C49,References!$S$7:$S$17,0)))","v":""},{"$f":"IF(Worksheet!C49=\"\",\"\",INDEX(References!$Z$7:$Z$17,MATCH(Worksheet!$C49,References!$S$7:$S$17,0)))","v":""},{"$f":"IF(Worksheet!C49=\"\",\"\",IF(References!$H$4=TRUE,INDEX(References!$W$7:$W$14,MATCH(Worksheet!C49&\" EH\",References!$S$7:$S$14,0)),INDEX(References!$W$7:$W$17,MATCH(Worksheet!$C49,References!$S$7:$S$17,0))))","v":""},{"$f":"IF(Worksheet!C49=\"\",\"\",IF(References!$H$4=TRUE,INDEX(References!$X$7:$X$14,MATCH(Worksheet!C49&\" EH\",References!$S$7:$S$14,0)),INDEX(References!$X$7:$X$17,MATCH(Worksheet!$C49,References!$S$7:$S$17,0))))","v":""},"","",{"$f":"IF(Worksheet!C49=\"\",\"\",IF(R34=0,\"\",IF(AND(L34<R34,L34<S34),\"DNQ\",IF(L34>=S34,\"Tier II\",\"Tier I\"))))","v":""},null,{"$f":"IF(OR(T34=\"DNQ\",U34=\"DNQ\",V34=\"DNQ\",Worksheet!X70=\"FAIL\"),\"DNQ\",IF(OR(T34=\"Tier I\",V34=\"Tier I\"),\"Tier I\",IF(OR(T34=\"Tier II\",V34=\"Tier II\"),\"Tier II\",\"Tier III\")))","v":"Tier III"},{"$f":"IF(Worksheet!C49=\"\",\"\",IF(X34=\"DNQ\",\"DNQ\",IF(OR(References!$C$21=TRUE,References!$H$14=\"Electric\"),INDEX(References!$X$22:$X$45,MATCH(G34,References!$S$22:$S$45,0))*(Worksheet!F49/12000),INDEX(References!$X$22:$X$45,MATCH(G34,References!$S$22:$S$45,0)))))","v":""},{"$f":"IF(Worksheet!C49=\"\",\"\",IF(Y34=\"DNQ\",0,INDEX(References!$Y$22:$Y$44,MATCH(Qualifying_Index!G34,References!$S$22:$S$44,0))))","v":""},null,1,{"$f":"IF(COUNTIF(AB27:AB33,1),0,Z34)","v":0},null,{"$f":"((Worksheet!F49*0.65))","v":0},{"$f":"((Worksheet!F49*1.35))","v":0},{"$f":"IF(References!$C$21=TRUE,(Worksheet!V70*1),Worksheet!H49*0.65)","v":0},{"$f":"IF(References!$C$21=TRUE,(Worksheet!V70*1.3),Worksheet!H49*1.35)","v":0},{"$f":"IF(AND(Worksheet!U70>=Qualifying_Index!AE34,Worksheet!U70<=Qualifying_Index!AF34),\"PASS\",\"FAIL\")","v":"PASS"},{"$f":"IF(OR(AG34=0,AH34=0),\"FAIL\",IF(AND(IF(References!$C$21=TRUE,Worksheet!H49,Worksheet!V70)>=AG34,IF(References!C28=TRUE,Worksheet!H49,Worksheet!V70)<=AH34),\"PASS\",\"FAIL\"))","v":"FAIL"},{"$f":"IF(AND(LEFT(Worksheet!C49,6)=\"Ducted\",Worksheet!U70=\"\",Worksheet!V70=\"\"),\"Missing Info\",IF(References!$C$21=TRUE,IF(AJ34=\"PASS\",\"PASS\",\"FAIL\"),IF(OR(AI34=\"PASS\",AJ34=\"PASS\"),\"PASS\",\"FAIL\")))","v":"PASS"},null,{"$f":"IF(OR(Worksheet!F49=\"\",Worksheet!I49=\"\",Worksheet!K49=\"\",Worksheet!L49=\"\",Worksheet!C70=\"\",Worksheet!E70=\"\",Worksheet!F70=\"\",Worksheet!H70=\"\",Worksheet!J70=\"\",Worksheet!L70=\"\"),\"Missing Info\",\"\")","v":"Missing Info"},{"$f":"IF(AND(AU34=1,Worksheet!L49=\"\"),\"Missing Info\",IF(AT34=\"PTHP\",AM34,IF(OR(Worksheet!F49=\"\",Worksheet!I49=\"\",Worksheet!J49=\"\",Worksheet!K49=\"\",Worksheet!C70=\"\",Worksheet!E70=\"\",Worksheet!F70=\"\",Worksheet!J70=\"\",Worksheet!L70=\"\",AK34=\"Missing Info\"),\"Missing Info\",\"\")))","v":"Missing Info"},{"$f":"IF(AND(AU34=1,Worksheet!L49=\"\"),\"Missing Info\",IF(AT34=\"PTHP\",AM34,IF(OR(Worksheet!C70=\"\",Worksheet!E70=\"\",Worksheet!F70=\"\",Worksheet!J70=\"\",Worksheet!L70=\"\",Worksheet!F49=\"\",Worksheet!I49=\"\",Worksheet!J49=\"\"),\"Missing Info\",\"\")))","v":"Missing Info"},{"$f":"IF(Worksheet!K49=\"\",\"\",IF(OR(Worksheet!V49=\"\",Worksheet!C49=\"Geothermal\"),\"\",Worksheet!F49/12000*(12/Worksheet!K49)*kW_CA))","v":""},{"$f":"IF(Worksheet!K49=\"\",\"\",IF(OR(Worksheet!V49=\"\",Worksheet!C49=\"Geothermal\"),\"\",Worksheet!F49*(12/Worksheet!K49)*kW_RS))","v":""},{"$f":"IF(OR(Worksheet!V49=\"\",Worksheet!C49=\"Geothermal\",Worksheet!J49=\"\",Worksheet!K49=\"\"),\"\",IF(OR(Worksheet!C49=\"Ducted ASHP\",Worksheet!C49=\"Ducted ccASHP\"),Worksheet!F49/12000*(12/Worksheet!J49*FLH_Cool+12/Worksheet!L49*FLH_Heat)*QI_kWh,IF(Worksheet!C49=\"Geothermal\",Worksheet!F49/12000*(12/(Worksheet!K49*0.09))*FLH_Cool*QI_kWh,Worksheet!F49/12000*(12/Worksheet!J49)*FLH_Cool*QI_kWh)))","v":""},null,{"$f":"IF(Worksheet!C49=\"\",\"\",INDEX(References!$AB$7:$AB$17,MATCH(Worksheet!C49,Equipment_Type,0)))","v":""},{"$f":"IF(Worksheet!C49=\"\",\"\",INDEX(References!$AA$7:$AA$17,MATCH(Worksheet!C49,Equipment_Type,0)))","v":""},null,{"$f":"IF(OR(References!$A$21=1,References!$A$21=2),References!$D$25,IF(References!$A$21=3,References!$C$25,IF(References!$A$21=4,FLH_Cool,0)))","v":0},{"$f":"IF(OR(References!$A$21=1,References!$A$21=2),References!$D$26,IF(References!$A$21=3,References!$C$26,IF(References!$A$21=4,FLH_Heat,0)))","v":0},null,{"$f":"IF(AND($AK34=\"PASS\",Worksheet!F49<>\"\"),((Worksheet!$F49/12000)*((12/C34)-(12/K34)))+SUM(AP34:AQ34),0)","v":0},{"$f":"IF(AND($AK34=\"PASS\",Worksheet!$F49<>\"\"),IF(AT34=\"PTHP\",((Worksheet!F49/12000)*(12/C34-12/K34)*AW34),(((Worksheet!$F49/12000)*((12/D34)-(12/J34))*AW34))+AR34),0)","v":0},{"$f":"IF(AND($AK34=\"PASS\",Worksheet!$F49<>\"\"),BA34*References!$E$12/1000,0)","v":0},{"$f":"BA34*References!$A$12","v":0},{"$f":"IF(AND($AK34=\"PASS\",References!$I$36=TRUE,Worksheet!C49<>\"\"),((Worksheet!H49/12000)*((1/(E34/3.412))-(1/(L34/3.412))))+SUM(AP34:AQ34),0)","v":0},{"$f":"IF(AND($AK34=\"PASS\",References!$I$36=TRUE,Worksheet!$F49<>\"\"),((Worksheet!$H49/12000)*((12/E34)-(12/L34))*AX34*References!$M$36)+AR34,0)","v":0},{"$f":"IF(AND($AK34=\"PASS\",References!$J$36=TRUE,Worksheet!C49<>\"\"),-((Worksheet!H49/12000)*(1/(L34/3.412))),0)","v":0},{"$f":"IF(AND($AK34=\"PASS\",References!$J$36=TRUE,Worksheet!C49<>\"\"),((Worksheet!$H49/12000)*(12/L34)*(AX34*References!$M$36))-(Worksheet!$H49*AX34/1000000)*References!$K$36*F34,0)","v":0},{"$f":"IF(AND($AK34=\"PASS\",References!$I$36=TRUE,Worksheet!C49<>\"\"),BE34*References!$E$12/1000,(-BG34*References!$E$12/1000))","v":0},{"$f":"IF(AND($AK34=\"PASS\",References!$J$36=TRUE,Worksheet!C49<>\"\"),((Worksheet!$H49*AX34/References!$L$36)/1000000)*References!$M$36,0)","v":0},0,{"$f":"(BE34-BG34)*References!$A$12","v":0},{"$f":"BI34*References!$N$36*References!$D$8","v":{"$error":"#VALUE!"}},{"$f":"IF(References!$J$36=TRUE,(BI34*References!$N$36*References!$D$8)-(BG34*References!$A$12),BE34*References!$A$12)","v":0}]
[9,{"$f":"IF(OR(Worksheet!C50=\"Ducted ccASHP\",Worksheet!C50=\"Ductless Mini Split - ccASHP\"),\"Cold Climate\",\"\")","v":""},{"$f":"IF(OR(Worksheet!S50=\"\",Worksheet!P50=\"\",NOT(ISNUMBER(Worksheet!S50))),IF(Qualifying_Index!AT35=\"PTHP\",References!$L$12,IF(ISERROR(SEARCH(\"HP\",Worksheet!C50,1)),References!$L$10,References!$L$9)),Worksheet!S50)","v":11.180000000000003},{"$f":"IF(OR(Worksheet!P50=\"\",Worksheet!R50=\"\",NOT(ISNUMBER(Worksheet!R50))),IF(Qualifying_Index!AT35=\"PTHP\",References!$M$12,IF(ISERROR(SEARCH(\"HP\",Worksheet!C50,1)),References!$M$10,References!$M$9)),Worksheet!R50)","v":13},{"$f":"IF(AND(OR(References!$H$14=\"Electric\",References!$H$14=\"Air Source HP\",Worksheet!P50=\"Air Source HP\"),Worksheet!C50<>\"\"),IF(OR(Worksheet!T50=\"\",NOT(ISNUMBER(Worksheet!T50))),IF(Qualifying_Index!AT35=\"PTHP\",References!$L$34,References!$L$36),Worksheet!T50),0)","v":0},{"$f":"IF(Worksheet!C50=\"\",\"\",References!$M$36)","v":""},{"$f":"IF(AND(References!$H$4=TRUE,OR(AT35<>\"PTHP\",AT35<>\"Ductless\",AT35<>\"CAC\"),References!$H$36<>\"New Construction\"),Worksheet!C50&\" EH\"&\" \"&Worksheet!M50,H35&\" \"&Worksheet!C50&\" \"&Worksheet!M50&I35)","v":"New  "},{"$f":"IF(References!$C$21=TRUE,\"Whole House\",IF(RIGHT(References!$H$36,2)=\"HP\",\"Retrofit\",\"New\"))","v":"New"},{"$f":"IF(References!$C$21<>TRUE,\"\",IF(References!$A$21=4,1,IF(AND(Worksheet!P50<>\"Central Air Conditioner\",Worksheet!P50<>\"Ducted Air Source HP\",References!$H$14=\"Oil\"),2,3)))","v":""},{"$f":"IF(Worksheet!J50=\"\",\"\",Worksheet!J50)","v":""},{"$f":"IF(Worksheet!K50=\"\",\"\",Worksheet!K50)","v":""},{"$f":"IF(Worksheet!L50=\"\",\"\",Worksheet!L50)","v":""},{"$f":"IF(Worksheet!C50=\"\",\"\",IF(References!$H$4=TRUE,INDEX(References!$T$7:$T$14,MATCH(Worksheet!C50&\" EH\",References!$S$7:$S$14,0)),INDEX(References!$T$7:$T$17,MATCH(Worksheet!$C50,References!$S$7:$S$17,0))))","v":""},{"$f":"IF(Worksheet!C50=\"\",\"\",IF(References!$H$4=TRUE,INDEX(References!$U$7:$U$14,MATCH(Worksheet!C50&\" EH\",References!$S$7:$S$14,0)),INDEX(References!$U$7:$U$17,MATCH(Worksheet!$C50,References!$S$7:$S$17,0))))","v":""},{"$f":"IF(Worksheet!C50=\"\",\"\",IF(References!$H$4=TRUE,INDEX(References!$V$7:$V$14,MATCH(Worksheet!C50&\" EH\",References!$S$7:$S$14,0)),INDEX(References!$V$7:$V$17,MATCH(Worksheet!$C50,References!$S$7:$S$17,0))))","v":""},{"$f":"IF(Worksheet!C50=\"\",\"\",INDEX(References!$Y$7:$Y$17,MATCH(Worksheet!$C50,References!$S$7:$S$17,0)))","v":""},{"$f":"IF(Worksheet!C50=\"\",\"\",INDEX(References!$Z$7:$Z$17,MATCH(Worksheet!$C50,References!$S$7:$S$17,0)))","v":""},{"$f":"IF(Worksheet!C50=\"\",\"\",IF(References!$H$4=TRUE,INDEX(References!$W$7:$W$14,MATCH(Worksheet!C50&\" EH\",References!$S$7:$S$14,0)),INDEX(References!$W$7:$W$17,MATCH(Worksheet!$C50,References!$S$7:$S$17,0))))","v":""},{"$f":"IF(Worksheet!C50=\"\",\"\",IF(References!$H$4=TRUE,INDEX(References!$X$7:$X$14,MATCH(Worksheet!C50&\" EH\",References!$S$7:$S$14,0)),INDEX(References!$X$7:$X$17,MATCH(Worksheet!$C50,References!$S$7:$S$17,0))))","v":""},"","",{"$f":"IF(Worksheet!C50=\"\",\"\",IF(R35=0,\"\",IF(AND(L35<R35,L35<S35),\"DNQ\",IF(L35>=S35,\"Tier II\",\"Tier I\"))))","v":""},null,{"$f":"IF(OR(T35=\"DNQ\",U35=\"DNQ\",V35=\"DNQ\",Worksheet!X71=\"FAIL\"),\"DNQ\",IF(OR(T35=\"Tier I\",V35=\"Tier I\"),\"Tier I\",IF(OR(T35=\"Tier II\",V35=\"Tier II\"),\"Tier II\",\"Tier III\")))","v":"Tier III"},{"$f":"IF(Worksheet!C50=\"\",\"\",IF(X35=\"DNQ\",\"DNQ\",IF(OR(References!$C$21=TRUE,References!$H$14=\"Electric\"),INDEX(References!$X$22:$X$45,MATCH(G35,References!$S$22:$S$45,0))*(Worksheet!F50/12000),INDEX(References!$X$22:$X$45,MATCH(G35,References!$S$22:$S$45,0)))))","v":""},{"$f":"IF(Worksheet!C50=\"\",\"\",IF(Y35=\"DNQ\",0,INDEX(References!$Y$22:$Y$44,MATCH(Qualifying_Index!G35,References!$S$22:$S$44,0))))","v":""},null,1,{"$f":"IF(COUNTIF(AB27:AB34,1),0,Z35)","v":0},null,{"$f":"((Worksheet!F50*0.65))","v":0},{"$f":"((Worksheet!F50*1.35))","v":0},{"$f":"IF(References!$C$21=TRUE,(Worksheet!V71*1),Worksheet!H50*0.65)","v":0},{"$f":"IF(References!$C$21=TRUE,(Worksheet!V71*1.3),Worksheet!H50*1.35)","v":0},{"$f":"IF(AND(Worksheet!U71>=Qualifying_Index!AE35,Worksheet!U71<=Qualifying_Index!AF35),\"PASS\",\"FAIL\")","v":"PASS"},{"$f":"IF(OR(AG35=0,AH35=0),\"FAIL\",IF(AND(IF(References!$C$21=TRUE,Worksheet!H50,Worksheet!V71)>=AG35,IF(References!C29=TRUE,Worksheet!H50,Worksheet!V71)<=AH35),\"PASS\",\"FAIL\"))","v":"FAIL"},{"$f":"IF(AND(LEFT(Worksheet!C50,6)=\"Ducted\",Worksheet!U71=\"\",Worksheet!V71=\"\"),\"Missing Info\",IF(References!$C$21=TRUE,IF(AJ35=\"PASS\",\"PASS\",\"FAIL\"),IF(OR(AI35=\"PASS\",AJ35=\"PASS\"),\"PASS\",\"FAIL\")))","v":"PASS"},null,{"$f":"IF(OR(Worksheet!F50=\"\",Worksheet!I50=\"\",Worksheet!K50=\"\",Worksheet!L50=\"\",Worksheet!C71=\"\",Worksheet!E71=\"\",Worksheet!F71=\"\",Worksheet!H71=\"\",Worksheet!J71=\"\",Worksheet!L71=\"\"),\"Missing Info\",\"\")","v":"Missing Info"},{"$f":"IF(AND(AU35=1,Worksheet!L50=\"\"),\"Missing Info\",IF(AT35=\"PTHP\",AM35,IF(OR(Worksheet!F50=\"\",Worksheet!I50=\"\",Worksheet!J50=\"\",Worksheet!K50=\"\",Worksheet!C71=\"\",Worksheet!E71=\"\",Worksheet!F71=\"\",Worksheet!J71=\"\",Worksheet!L71=\"\",AK35=\"Missing Info\"),\"Missing Info\",\"\")))","v":"Missing Info"},{"$f":"IF(AND(AU35=1,Worksheet!L50=\"\"),\"Missing Info\",IF(AT35=\"PTHP\",AM35,IF(OR(Worksheet!C71=\"\",Worksheet!E71=\"\",Worksheet!F71=\"\",Worksheet!J71=\"\",Worksheet!L71=\"\",Worksheet!F50=\"\",Worksheet!I50=\"\",Worksheet!J50=\"\"),\"Missing Info\",\"\")))","v":"Missing Info"},{"$f":"IF(Worksheet!K50=\"\",\"\",IF(OR(Worksheet!V50=\"\",Worksheet!C50=\"Geothermal\"),\"\",Worksheet!F50/12000*(12/Worksheet!K50)*kW_CA))","v":""},{"$f":"IF(Worksheet!K50=\"\",\"\",IF(OR(Worksheet!V50=\"\",Worksheet!C50=\"Geothermal\"),\"\",Worksheet!F50*(12/Worksheet!K50)*kW_RS))","v":""},{"$f":"IF(OR(Worksheet!V50=\"\",Worksheet!C50=\"Geothermal\",Worksheet!J50=\"\",Worksheet!K50=\"\"),\"\",IF(OR(Worksheet!C50=\"Ducted ASHP\",Worksheet!C50=\"Ducted ccASHP\"),Worksheet!F50/12000*(12/Worksheet!J50*FLH_Cool+12/Worksheet!L50*FLH_Heat)*QI_kWh,IF(Worksheet!C50=\"Geothermal\",Worksheet!F50/12000*(12/(Worksheet!K50*0.09))*FLH_Cool*QI_kWh,Worksheet!F50/12000*(12/Worksheet!J50)*FLH_Cool*QI_kWh)))","v":""},null,{"$f":"IF(Worksheet!C50=\"\",\"\",INDEX(References!$AB$7:$AB$17,MATCH(Worksheet!C50,Equipment_Type,0)))","v":""},{"$f":"IF(Worksheet!C50=\"\",\"\",INDEX(References!$AA$7:$AA$17,MATCH(Worksheet!C50,Equipment_Type,0)))","v":""},null,{"$f":"IF(OR(References!$A$21=1,References!$A$21=2),References!$D$25,IF(References!$A$21=3,References!$C$25,IF(References!$A$21=4,FLH_Cool,0)))","v":0},{"$f":"IF(OR(References!$A$21=1,References!$A$21=2),References!$D$26,IF(References!$A$21=3,References!$C$26,IF(References!$A$21=4,FLH_Heat,0)))","v":0},null,{"$f":"IF(AND($AK35=\"PASS\",Worksheet!F50<>\"\"),((Worksheet!$F50/12000)*((12/C35)-(12/K35)))+SUM(AP35:AQ35),0)","v":0},{"$f":"IF(AND($AK35=\"PASS\",Worksheet!$F50<>\"\"),IF(AT35=\"PTHP\",((Worksheet!F50/12000)*(12/C35-12/K35)*AW35),(((Worksheet!$F50/12000)*((12/D35)-(12/J35))*AW35))+AR35),0)","v":0},{"$f":"IF(AND($AK35=\"PASS\",Worksheet!$F50<>\"\"),BA35*References!$E$12/1000,0)","v":0},{"$f":"BA35*References!$A$12","v":0},{"$f":"IF(AND($AK35=\"PASS\",References!$I$36=TRUE,Worksheet!C50<>\"\"),((Worksheet!H50/12000)*((1/(E35/3.412))-(1/(L35/3.412))))+SUM(AP35:AQ35),0)","v":0},{"$f":"IF(AND($AK35=\"PASS\",References!$I$36=TRUE,Worksheet!$F50<>\"\"),((Worksheet!$H50/12000)*((12/E35)-(12/L35))*AX35*References!$M$36)+AR35,0)","v":0},{"$f":"IF(AND($AK35=\"PASS\",References!$J$36=TRUE,Worksheet!C50<>\"\"),-((Worksheet!H50/12000)*(1/(L35/3.412))),0)","v":0},{"$f":"IF(AND($AK35=\"PASS\",References!$J$36=TRUE,Worksheet!C50<>\"\"),((Worksheet!$H50/12000)*(12/L35)*(AX35*References!$M$36))-(Worksheet!$H50*AX35/1000000)*References!$K$36*F35,0)","v":0},{"$f":"IF(AND($AK35=\"PASS\",References!$I$36=TRUE,Worksheet!C50<>\"\"),BE35*References!$E$12/1000,(-BG35*References!$E$12/1000))","v":0},{"$f":"IF(AND($AK35=\"PASS\",References!$J$36=TRUE,Worksheet!C50<>\"\"),((Worksheet!$H50*AX35/References!$L$36)/1000000)*References!$M$36,0)","v":0},0,{"$f":"(BE35-BG35)*References!$A$12","v":0},{"$f":"BI35*References!$N$36*References!$D$8","v":{"$error":"#VALUE!"}},{"$f":"IF(References!$J$36=TRUE,(BI35*References!$N$36*References!$D$8)-(BG35*References!$A$12),BE35*References!$A$12)","v":0}]
[10,{"$f":"IF(OR(Worksheet!C51=\"Ducted ccASHP\",Worksheet!C51=\"Ductless Mini Split - ccASHP\"),\"Cold Climate\",\"\")","v":""},{"$f":"IF(OR(Worksheet!S51=\"\",Worksheet!P51=\"\",NOT(ISNUMBER(Worksheet!S51))),IF(Qualifying_Index!AT36=\"PTHP\",References!$L$12,IF(ISERROR(SEARCH(\"HP\",Worksheet!C51,1)),References!$L$10,References!$L$9)),Worksheet!S51)","v":11.180000000000003},{"$f":"IF(OR(Worksheet!P51=\"\",Worksheet!R51=\"\",NOT(ISNUMBER(Worksheet!R51))),IF(Qualifying_Index!AT36=\"PTHP\",References!$M$12,IF(ISERROR(SEARCH(\"HP\",Worksheet!C51,1)),References!$M$10,References!$M$9)),Worksheet!R51)","v":13},{"$f":"IF(AND(OR(References!$H$14=\"Electric\",References!$H$14=\"Air Source HP\",Worksheet!P51=\"Air Source HP\"),Worksheet!C51<>\"\"),IF(OR(Worksheet!T51=\"\",NOT(ISNUMBER(Worksheet!T51))),IF(Qualifying_Index!AT36=\"PTHP\",References!$L$34,References!$L$36),Worksheet!T51),0)","v":0},{"$f":"IF(Worksheet!C51=\"\",\"\",References!$M$36)","v":""},{"$f":"IF(AND(References!$H$4=TRUE,OR(AT36<>\"PTHP\",AT36<>\"Ductless\",AT36<>\"CAC\"),References!$H$36<>\"New Construction\"),Worksheet!C51&\" EH\"&\" \"&Worksheet!M51,H36&\" \"&Worksheet!C51&\" \"&Worksheet!M51&I36)","v":"New  "},{"$f":"IF(References!$C$21=TRUE,\"Whole House\",IF(RIGHT(References!$H$36,2)=\"HP\",\"Retrofit\",\"New\"))","v":"New"},{"$f":"IF(References!$C$21<>TRUE,\"\",IF(References!$A$21=4,1,IF(AND(Worksheet!P51<>\"Central Air Conditioner\",Worksheet!P51<>\"Ducted Air Source HP\",References!$H$14=\"Oil\"),2,3)))","v":""},{"$f":"IF(Worksheet!J51=\"\",\"\",Worksheet!J51)","v":""},{"$f":"IF(Worksheet!K51=\"\",\"\",Worksheet!K51)","v":""},{"$f":"IF(Worksheet!L51=\"\",\"\",Worksheet!L51)","v":""},{"$f":"IF(Worksheet!C51=\"\",\"\",IF(References!$H$4=TRUE,INDEX(References!$T$7:$T$14,MATCH(Worksheet!C51&\" EH\",References!$S$7:$S$14,0)),INDEX(References!$T$7:$T$17,MATCH(Worksheet!$C51,References!$S$7:$S$17,0))))","v":""},{"$f":"IF(Worksheet!C51=\"\",\"\",IF(References!$H$4=TRUE,INDEX(References!$U$7:$U$14,MATCH(Worksheet!C51&\" EH\",References!$S$7:$S$14,0)),INDEX(References!$U$7:$U$17,MATCH(Worksheet!$C51,References!$S$7:$S$17,0))))","v":""},{"$f":"IF(Worksheet!C51=\"\",\"\",IF(References!$H$4=TRUE,INDEX(References!$V$7:$V$14,MATCH(Worksheet!C51&\" EH\",References!$S$7:$S$14,0)),INDEX(References!$V$7:$V$17,MATCH(Worksheet!$C51,References!$S$7:$S$17,0))))","v":""},{"$f":"IF(Worksheet!C51=\"\",\"\",INDEX(References!$Y$7:$Y$17,MATCH(Worksheet!$C51,References!$S$7:$S$17,0)))","v":""},{"$f":"IF(Worksheet!C51=\"\",\"\",INDEX(References!$Z$7:$Z$17,MATCH(Worksheet!$C51,References!$S$7:$S$17,0)))","v":""},{"$f":"IF(Worksheet!C51=\"\",\"\",IF(References!$H$4=TRUE,INDEX(References!$W$7:$W$14,MATCH(Worksheet!C51&\" EH\",References!$S$7:$S$14,0)),INDEX(References!$W$7:$W$17,MATCH(Worksheet!$C51,References!$S$7:$S$17,0))))","v":""},{"$f":"IF(Worksheet!C51=\"\",\"\",IF(References!$H$4=TRUE,INDEX(References!$X$7:$X$14,MATCH(Worksheet!C51&\" EH\",References!$S$7:$S$14,0)),INDEX(References!$X$7:$X$17,MATCH(Worksheet!$C51,References!$S$7:$S$17,0))))","v":""},"","",{"$f":"IF(Worksheet!C51=\"\",\"\",IF(R36=0,\"\",IF(AND(L36<R36,L36<S36),\"DNQ\",IF(L36>=S36,\"Tier II\",\"Tier I\"))))","v":""},null,{"$f":"IF(OR(T36=\"DNQ\",U36=\"DNQ\",V36=\"DNQ\",Worksheet!X72=\"FAIL\"),\"DNQ\",IF(OR(T36=\"Tier I\",V36=\"Tier I\"),\"Tier I\",IF(OR(T36=\"Tier II\",V36=\"Tier II\"),\"Tier II\",\"Tier III\")))","v":"Tier III"},{"$f":"IF(Worksheet!C51=\"\",\"\",IF(X36=\"DNQ\",\"DNQ\",IF(OR(References!$C$21=TRUE,References!$H$14=\"Electric\"),INDEX(References!$X$22:$X$45,MATCH(G36,References!$S$22:$S$45,0))*(Worksheet!F51/12000),INDEX(References!$X$22:$X$45,MATCH(G36,References!$S$22:$S$45,0)))))","v":""},{"$f":"IF(Worksheet!C51=\"\",\"\",IF(Y36=\"DNQ\",0,INDEX(References!$Y$22:$Y$44,MATCH(Qualifying_Index!G36,References!$S$22:$S$44,0))))","v":""},null,1,{"$f":"IF(COUNTIF(AB27:AB35,1),0,Z36)","v":0},null,{"$f":"((Worksheet!F51*0.65))","v":0},{"$f":"((Worksheet!F51*1.35))","v":0},{"$f":"IF(References!$C$21=TRUE,(Worksheet!V72*1),Worksheet!H51*0.65)","v":0},{"$f":"IF(References!$C$21=TRUE,(Worksheet!V72*1.3),Worksheet!H51*1.35)","v":0},{"$f":"IF(AND(Worksheet!U72>=Qualifying_Index!AE36,Worksheet!U72<=Qualifying_Index!AF36),\"PASS\",\"FAIL\")","v":"PASS"},{"$f":"IF(OR(AG36=0,AH36=0),\"FAIL\",IF(AND(IF(References!$C$21=TRUE,Worksheet!H51,Worksheet!V72)>=AG36,IF(References!C30=TRUE,Worksheet!H51,Worksheet!V72)<=AH36),\"PASS\",\"FAIL\"))","v":"FAIL"},{"$f":"IF(AND(LEFT(Worksheet!C51,6)=\"Ducted\",Worksheet!U72=\"\",Worksheet!V72=\"\"),\"Missing Info\",IF(References!$C$21=TRUE,IF(AJ36=\"PASS\",\"PASS\",\"FAIL\"),IF(OR(AI36=\"PASS\",AJ36=\"PASS\"),\"PASS\",\"FAIL\")))","v":"PASS"},null,{"$f":"IF(OR(Worksheet!F51=\"\",Worksheet!I51=\"\",Worksheet!K51=\"\",Worksheet!L51=\"\",Worksheet!C72=\"\",Worksheet!E72=\"\",Worksheet!F72=\"\",Worksheet!H72=\"\",Worksheet!J72=\"\",Worksheet!L72=\"\"),\"Missing Info\",\"\")","v":"Missing Info"},{"$f":"IF(AND(AU36=1,Worksheet!L51=\"\"),\"Missing Info\",IF(AT36=\"PTHP\",AM36,IF(OR(Worksheet!F51=\"\",Worksheet!I51=\"\",Worksheet!J51=\"\",Worksheet!K51=\"\",Worksheet!C72=\"\",Worksheet!E72=\"\",Worksheet!F72=\"\",Worksheet!J72=\"\",Worksheet!L72=\"\",AK36=\"Missing Info\"),\"Missing Info\",\"\")))","v":"Missing Info"},{"$f":"IF(AND(AU36=1,Worksheet!L51=\"\"),\"Missing Info\",IF(AT36=\"PTHP\",AM36,IF(OR(Worksheet!C72=\"\",Worksheet!E72=\"\",Worksheet!F72=\"\",Worksheet!J72=\"\",Worksheet!L72=\"\",Worksheet!F51=\"\",Worksheet!I51=\"\",Worksheet!J51=\"\"),\"Missing Info\",\"\")))","v":"Missing Info"},{"$f":"IF(Worksheet!K51=\"\",\"\",IF(OR(Worksheet!V51=\"\",Worksheet!C51=\"Geothermal\"),\"\",Worksheet!F51/12000*(12/Worksheet!K51)*kW_CA))","v":""},{"$f":"IF(Worksheet!K51=\"\",\"\",IF(OR(Worksheet!V51=\"\",Worksheet!C51=\"Geothermal\"),\"\",Worksheet!F51*(12/Worksheet!K51)*kW_RS))","v":""},{"$f":"IF(OR(Worksheet!V51=\"\",Worksheet!C51=\"Geothermal\",Worksheet!J51=\"\",Worksheet!K51=\"\"),\"\",IF(OR(Worksheet!C51=\"Ducted ASHP\",Worksheet!C51=\"Ducted ccASHP\"),Worksheet!F51/12000*(12/Worksheet!J51*FLH_Cool+12/Worksheet!L51*FLH_Heat)*QI_kWh,IF(Worksheet!C51=\"Geothermal\",Worksheet!F51/12000*(12/(Worksheet!K51*0.09))*FLH_Cool*QI_kWh,Worksheet!F51/12000*(12/Worksheet!J51)*FLH_Cool*QI_kWh)))","v":""},null,{"$f":"IF(Worksheet!C51=\"\",\"\",INDEX(References!$AB$7:$AB$17,MATCH(Worksheet!C51,Equipment_Type,0)))","v":""},{"$f":"IF(Worksheet!C51=\"\",\"\",INDEX(References!$AA$7:$AA$17,MATCH(Worksheet!C51,Equipment_Type,0)))","v":""},null,{"$f":"IF(OR(References!$A$21=1,References!$A$21=2),References!$D$25,IF(References!$A$21=3,References!$C$25,IF(References!$A$21=4,FLH_Cool,0)))","v":0},{"$f":"IF(OR(References!$A$21=1,References!$A$21=2),References!$D$26,IF(References!$A$21=3,References!$C$26,IF(References!$A$21=4,FLH_Heat,0)))","v":0},null,{"$f":"IF(AND($AK36=\"PASS\",Worksheet!F51<>\"\"),((Worksheet!$F51/12000)*((12/C36)-(12/K36)))+SUM(AP36:AQ36),0)","v":0},{"$f":"IF(AND($AK36=\"PASS\",Worksheet!$F51<>\"\"),IF(AT36=\"PTHP\",((Worksheet!F51/12000)*(12/C36-12/K36)*AW36),(((Worksheet!$F51/12000)*((12/D36)-(12/J36))*AW36))+AR36),0)","v":0},{"$f":"IF(AND($AK36=\"PASS\",Worksheet!$F51<>\"\"),BA36*References!$E$12/1000,0)","v":0},{"$f":"BA36*References!$A$12","v":0},{"$f":"IF(AND($AK36=\"PASS\",References!$I$36=TRUE,Worksheet!C51<>\"\"),((Worksheet!H51/12000)*((1/(E36/3.412))-(1/(L36/3.412))))+SUM(AP36:AQ36),0)","v":0},{"$f":"IF(AND($AK36=\"PASS\",References!$I$36=TRUE,Worksheet!$F51<>\"\"),((Worksheet!$H51/12000)*((12/E36)-(12/L36))*AX36*References!$M$36)+AR36,0)","v":0},{"$f":"IF(AND($AK36=\"PASS\",References!$J$36=TRUE,Worksheet!C51<>\"\"),-((Worksheet!H51/12000)*(1/(L36/3.412))),0)","v":0},{"$f":"IF(AND($AK36=\"PASS\",References!$J$36=TRUE,Worksheet!C51<>\"\"),((Worksheet!$H51/12000)*(12/L36)*(AX36*References!$M$36))-(Worksheet!$H51*AX36/1000000)*References!$K$36*F36,0)","v":0},{"$f":"IF(AND($AK36=\"PASS\",References!$I$36=TRUE,Worksheet!C51<>\"\"),BE36*References!$E$12/1000,(-BG36*References!$E$12/1000))","v":0},{"$f":"IF(AND($AK36=\"PASS\",References!$J$36=TRUE,Worksheet!C51<>\"\"),((Worksheet!$H51*AX36/References!$L$36)/1000000)*References!$M$36,0)","v":0},0,{"$f":"(BE36-BG36)*References!$A$12","v":0},{"$f":"BI36*References!$N$36*References!$D$8","v":{"$error":"#VALUE!"}},{"$f":"IF(References!$J$36=TRUE,(BI36*References!$N$36*References!$D$8)-(BG36*References!$A$12),BE36*References!$A$12)","v":0}]
[]
[]
["Smart T-Stats tab- Thermostats"]
[]
["Unit Number","Model","Learning vs. Connected",null,"Controlled Unit","Cooling BTUH","Heating BTUH","SEER","HSPF","Cooling Hours","Heating Hours","kWh Savings","MMBTU savings","CO2 savings (lbs)"]
[1,{"$f":"'Smart T-Stats'!D21","v":0},{"$f":"IF(B42<>0,INDEX(References!$C$85:$D$117,MATCH(B42,References!$C$85:$C$117,0),2),\"\")","v":""},null,{"$f":"'Smart T-Stats'!G21","v":0},{"$f":"IF(B42<>0,IF(E42<>0,INDEX(Worksheet!$B$42:$H$51,MATCH(A42,Worksheet!$B$42:$B$51,0),5),36000),0)","v":0},{"$f":"IF(B42<>0,IF(E42<>0,INDEX(Worksheet!$B$42:$H$51,MATCH(A42,Worksheet!$B$42:$B$51,0),7),36000),0)","v":0},{"$f":"IF(B42<>0,IF(E42<>0,INDEX(Worksheet!$B$42:$L$51,MATCH(A42,Worksheet!$B$42:$B$51,0),9),References!$M$9),0)","v":0},{"$f":"IF(B42<>0,IF(E42<>0,INDEX(Worksheet!$B$42:$L$51,MATCH(A42,Worksheet!$B$42:$B$51,0),11),References!$L$29),0)","v":0},{"$f":"AW27","v":0},{"$f":"AX27","v":0},{"$f":"IF(C42<>\"\",IF(C42=\"Learning\",((F42/12000)*(12/H42)*J42*References!$D$47)+((G42/12000)*(12/I42)*K42*References!$D$48),INDEX(References!$E$41:$E$43,MATCH('Smart T-Stats'!J21,References!$C$41:$C$43,0))),0)","v":0},{"$f":"L42*References!$E$12/1000","v":0},{"$f":"L42*References!$A$12","v":0}]
[2,{"$f":"'Smart T-Stats'!D22","v":0},{"$f":"IF(B43<>0,INDEX(References!$C$85:$D$117,MATCH(B43,References!$C$85:$C$117,0),2),\"\")","v":""},null,{"$f":"'Smart T-Stats'!G22","v":0},{"$f":"IF(B43<>0,IF(E43<>0,INDEX(Worksheet!$B$42:$H$51,MATCH(A43,Worksheet!$B$42:$B$51,0),5),36000),0)","v":0},{"$f":"IF(B43<>0,IF(E43<>0,INDEX(Worksheet!$B$42:$H$51,MATCH(A43,Worksheet!$B$42:$B$51,0),7),36000),0)","v":0},{"$f":"IF(B43<>0,IF(E43<>0,INDEX(Worksheet!$B$42:$L$51,MATCH(A43,Worksheet!$B$42:$B$51,0),9),References!$M$9),0)","v":0},{"$f":"IF(B43<>0,IF(E43<>0,INDEX(Worksheet!$B$42:$L$51,MATCH(A43,Worksheet!$B$42:$B$51,0),11),References!$L$29),0)","v":0},0,0,{"$f":"IF(C43<>\"\",IF(C43=\"Learning\",((F43/12000)*(12/H43)*J43*References!$D$47)+((G43/12000)*(12/I43)*K43*References!$D$48),INDEX(References!$E$41:$E$43,MATCH('Smart T-Stats'!J22,References!$C$41:$C$43,0))),0)","v":0},{"$f":"L43*References!$E$12/1000","v":0},{"$f":"L43*References!$A$12","v":0}]
[3,{"$f":"'Smart T-Stats'!D23","v":0},{"$f":"IF(B44<>0,INDEX(References!$C$85:$D$117,MATCH(B44,References!$C$85:$C$117,0),2),\"\")","v":""},null,{"$f":"'Smart T-Stats'!G23","v":0},{"$f":"IF(B44<>0,IF(E44<>0,INDEX(Worksheet!$B$42:$H$51,MATCH(A44,Worksheet!$B$42:$B$51,0),5),36000),0)","v":0},{"$f":"IF(B44<>0,IF(E44<>0,INDEX(Worksheet!$B$42:$H$51,MATCH(A44,Worksheet!$B$42:$B$51,0),7),36000),0)","v":0},{"$f":"IF(B44<>0,IF(E44<>0,INDEX(Worksheet!$B$42:$L$51,MATCH(A44,Worksheet!$B$42:$B$51,0),9),References!$M$9),0)","v":0},{"$f":"IF(B44<>0,IF(E44<>0,INDEX(Worksheet!$B$42:$L$51,MATCH(A44,Worksheet!$B$42:$B$51,0),11),References!$L$29),0)","v":0},0,0,{"$f":"IF(C44<>\"\",IF(C44=\"Learning\",((F44/12000)*(12/H44)*J44*References!$D$47)+((G44/12000)*(12/I44)*K44*References!$D$48),INDEX(References!$E$41:$E$43,MATCH('Smart T-Stats'!J23,References!$C$41:$C$43,0))),0)","v":0},{"$f":"L44*References!$E$12/1000","v":0},{"$f":"L44*References!$A$12","v":0}]
[4,{"$f":"'Smart T-Stats'!D24","v":0},{"$f":"IF(B45<>0,INDEX(References!$C$85:$D$117,MATCH(B45,References!$C$85:$C$117,0),2),\"\")","v":""},null,{"$f":"'Smart T-Stats'!G24","v":0},{"$f":"IF(B45<>0,IF(E45<>0,INDEX(Worksheet!$B$42:$H$51,MATCH(A45,Worksheet!$B$42:$B$51,0),5),36000),0)","v":0},{"$f":"IF(B45<>0,IF(E45<>0,INDEX(Worksheet!$B$42:$H$51,MATCH(A45,Worksheet!$B$42:$B$51,0),7),36000),0)","v":0},{"$f":"IF(B45<>0,IF(E45<>0,INDEX(Worksheet!$B$42:$L$51,MATCH(A45,Worksheet!$B$42:$B$51,0),9),References!$M$9),0)","v":0},{"$f":"IF(B45<>0,IF(E45<>0,INDEX(Worksheet!$B$42:$L$51,MATCH(A45,Worksheet!$B$42:$B$51,0),11),References!$L$29),0)","v":0},0,0,{"$f":"IF(C45<>\"\",IF(C45=\"Learning\",((F45/12000)*(12/H45)*J45*References!$D$47)+((G45/12000)*(12/I45)*K45*References!$D$48),INDEX(References!$E$41:$E$43,MATCH('Smart T-Stats'!J24,References!$C$41:$C$43,0))),0)","v":0},{"$f":"L45*References!$E$12/1000","v":0},{"$f":"L45*References!$A$12","v":0}]
[5,{"$f":"'Smart T-Stats'!D25","v":0},{"$f":"IF(B46<>0,INDEX(References!$C$85:$D$117,MATCH(B46,References!$C$85:$C$117,0),2),\"\")","v":""},null,{"$f":"'Smart T-Stats'!G25","v":0},{"$f":"IF(B46<>0,IF(E46<>0,INDEX(Worksheet!$B$42:$H$51,MATCH(A46,Worksheet!$B$42:$B$51,0),5),36000),0)","v":0},{"$f":"IF(B46<>0,IF(E46<>0,INDEX(Worksheet!$B$42:$H$51,MATCH(A46,Worksheet!$B$42:$B$51,0),7),36000),0)","v":0},{"$f":"IF(B46<>0,IF(E46<>0,INDEX(Worksheet!$B$42:$L$51,MATCH(A46,Worksheet!$B$42:$B$51,0),9),References!$M$9),0)","v":0},{"$f":"IF(B46<>0,IF(E46<>0,INDEX(Worksheet!$B$42:$L$51,MATCH(A46,Worksheet!$B$42:$B$51,0),11),References!$L$29),0)","v":0},0,0,{"$f":"IF(C46<>\"\",IF(C46=\"Learning\",((F46/12000)*(12/H46)*J46*References!$D$47)+((G46/12000)*(12/I46)*K46*References!$D$48),INDEX(References!$E$41:$E$43,MATCH('Smart T-Stats'!J25,References!$C$41:$C$43,0))),0)","v":0},{"$f":"L46*References!$E$12/1000","v":0},{"$f":"L46*References!$A$12","v":0}]
[6,{"$f":"'Smart T-Stats'!D26","v":0},{"$f":"IF(B47<>0,INDEX(References!$C$85:$D$117,MATCH(B47,References!$C$85:$C$117,0),2),\"\")","v":""},null,{"$f":"'Smart T-Stats'!G26","v":0},{"$f":"IF(B47<>0,IF(E47<>0,INDEX(Worksheet!$B$42:$H$51,MATCH(A47,Worksheet!$B$42:$B$51,0),5),36000),0)","v":0},{"$f":"IF(B47<>0,IF(E47<>0,INDEX(Worksheet!$B$42:$H$51,MATCH(A47,Worksheet!$B$42:$B$51,0),7),36000),0)","v":0},{"$f":"IF(B47<>0,IF(E47<>0,INDEX(Worksheet!$B$42:$L$51,MATCH(A47,Worksheet!$B$42:$B$51,0),9),References!$M$9),0)","v":0},{"$f":"IF(B47<>0,IF(E47<>0,INDEX(Worksheet!$B$42:$L$51,MATCH(A47,Worksheet!$B$42:$B$51,0),11),References!$L$29),0)","v":0},0,0,{"$f":"IF(C47<>\"\",IF(C47=\"Learning\",((F47/12000)*(12/H47)*J47*References!$D$47)+((G47/12000)*(12/I47)*K47*References!$D$48),INDEX(References!$E$41:$E$43,MATCH('Smart T-Stats'!J26,References!$C$41:$C$43,0))),0)","v":0},{"$f":"L47*References!$E$12/1000","v":0},{"$f":"L47*References!$A$12","v":0}]
[7,{"$f":"'Smart T-Stats'!D27","v":0},{"$f":"IF(B48<>0,INDEX(References!$C$85:$D$117,MATCH(B48,References!$C$85:$C$117,0),2),\"\")","v":""},null,{"$f":"'Smart T-Stats'!G27","v":0},{"$f":"IF(B48<>0,IF(E48<>0,INDEX(Worksheet!$B$42:$H$51,MATCH(A48,Worksheet!$B$42:$B$51,0),5),36000),0)","v":0},{"$f":"IF(B48<>0,IF(E48<>0,INDEX(Worksheet!$B$42:$H$51,MATCH(A48,Worksheet!$B$42:$B$51,0),7),36000),0)","v":0},{"$f":"IF(B48<>0,IF(E48<>0,INDEX(Worksheet!$B$42:$L$51,MATCH(A48,Worksheet!$B$42:$B$51,0),9),References!$M$9),0)","v":0},{"$f":"IF(B48<>0,IF(E48<>0,INDEX(Worksheet!$B$42:$L$51,MATCH(A48,Worksheet!$B$42:$B$51,0),11),References!$L$29),0)","v":0},0,0,{"$f":"IF(C48<>\"\",IF(C48=\"Learning\",((F48/12000)*(12/H48)*J48*References!$D$47)+((G48/12000)*(12/I48)*K48*References!$D$48),INDEX(References!$E$41:$E$43,MATCH('Smart T-Stats'!J27,References!$C$41:$C$43,0))),0)","v":0},{"$f":"L48*References!$E$12/1000","v":0},{"$f":"L48*References!$A$12","v":0}]
[8,{"$f":"'Smart T-Stats'!D28","v":0},{"$f":"IF(B49<>0,INDEX(References!$C$85:$D$117,MATCH(B49,References!$C$85:$C$117,0),2),\"\")","v":""},null,{"$f":"'Smart T-Stats'!G28","v":0},{"$f":"IF(B49<>0,IF(E49<>0,INDEX(Worksheet!$B$42:$H$51,MATCH(A49,Worksheet!$B$42:$B$51,0),5),36000),0)","v":0},{"$f":"IF(B49<>0,IF(E49<>0,INDEX(Worksheet!$B$42:$H$51,MATCH(A49,Worksheet!$B$42:$B$51,0),7),36000),0)","v":0},{"$f":"IF(B49<>0,IF(E49<>0,INDEX(Worksheet!$B$42:$L$51,MATCH(A49,Worksheet!$B$42:$B$51,0),9),References!$M$9),0)","v":0},{"$f":"IF(B49<>0,IF(E49<>0,INDEX(Worksheet!$B$42:$L$51,MATCH(A49,Worksheet!$B$42:$B$51,0),11),References!$L$29),0)","v":0},0,0,{"$f":"IF(C49<>\"\",IF(C49=\"Learning\",((F49/12000)*(12/H49)*J49*References!$D$47)+((G49/12000)*(12/I49)*K49*References!$D$48),INDEX(References!$E$41:$E$43,MATCH('Smart T-Stats'!J28,References!$C$41:$C$43,0))),0)","v":0},{"$f":"L49*References!$E$12/1000","v":0},{"$f":"L49*References!$A$12","v":0}]
[9,{"$f":"'Smart T-Stats'!D29","v":0},{"$f":"IF(B50<>0,INDEX(References!$C$85:$D$117,MATCH(B50,References!$C$85:$C$117,0),2),\"\")","v":""},null,{"$f":"'Smart T-Stats'!G29","v":0},{"$f":"IF(B50<>0,IF(E50<>0,INDEX(Worksheet!$B$42:$H$51,MATCH(A50,Worksheet!$B$42:$B$51,0),5),36000),0)","v":0},{"$f":"IF(B50<>0,IF(E50<>0,INDEX(Worksheet!$B$42:$H$51,MATCH(A50,Worksheet!$B$42:$B$51,0),7),36000),0)","v":0},{"$f":"IF(B50<>0,IF(E50<>0,INDEX(Worksheet!$B$42:$L$51,MATCH(A50,Worksheet!$B$42:$B$51,0),9),References!$M$9),0)","v":0},{"$f":"IF(B50<>0,IF(E50<>0,INDEX(Worksheet!$B$42:$L$51,MATCH(A50,Worksheet!$B$42:$B$51,0),11),References!$L$29),0)","v":0},0,0,{"$f":"IF(C50<>\"\",IF(C50=\"Learning\",((F50/12000)*(12/H50)*J50*References!$D$47)+((G50/12000)*(12/I50)*K50*References!$D$48),INDEX(References!$E$41:$E$43,MATCH('Smart T-Stats'!J29,References!$C$41:$C$43,0))),0)","v":0},{"$f":"L50*References!$E$12/1000","v":0},{"$f":"L50*References!$A$12","v":0}]
[10,{"$f":"'Smart T-Stats'!D30","v":0},{"$f":"IF(B51<>0,INDEX(References!$C$85:$D$117,MATCH(B51,References!$C$85:$C$117,0),2),\"\")","v":""},null,{"$f":"'Smart T-Stats'!G30","v":0},{"$f":"IF(B51<>0,IF(E51<>0,INDEX(Worksheet!$B$42:$H$51,MATCH(A51,Worksheet!$B$42:$B$51,0),5),36000),0)","v":0},{"$f":"IF(B51<>0,IF(E51<>0,INDEX(Worksheet!$B$42:$H$51,MATCH(A51,Worksheet!$B$42:$B$51,0),7),36000),0)","v":0},{"$f":"IF(B51<>0,IF(E51<>0,INDEX(Worksheet!$B$42:$L$51,MATCH(A51,Worksheet!$B$42:$B$51,0),9),References!$M$9),0)","v":0},{"$f":"IF(B51<>0,IF(E51<>0,INDEX(Worksheet!$B$42:$L$51,MATCH(A51,Worksheet!$B$42:$B$51,0),11),References!$L$29),0)","v":0},0,0,{"$f":"IF(C51<>\"\",IF(C51=\"Learning\",((F51/12000)*(12/H51)*J51*References!$D$47)+((G51/12000)*(12/I51)*K51*References!$D$48),INDEX(References!$E$41:$E$43,MATCH('Smart T-Stats'!J30,References!$C$41:$C$43,0))),0)","v":0},{"$f":"L51*References!$E$12/1000","v":0},{"$f":"L51*References!$A$12","v":0}]
[]
["Integrated Controls"]
[]
["Unit Number","Model","Learning vs. Connected",null,"Controlled Unit","Cooling BTUH","Heating BTUH","SEER","HSPF","Cooling Hours","Heating Hours","kWh Savings","MMBTU savings","CO2 savings (lbs)"]
[11,{"$f":"'Smart T-Stats'!D35","v":0},{"$f":"IF(B56<>0,INDEX(References!$C$85:$D$117,MATCH(B56,References!$C$85:$C$117,0),2),\"\")","v":""},null,{"$f":"'Smart T-Stats'!G35","v":0},{"$f":"IF(B56<>0,IF(E56<>0,INDEX(Worksheet!$B$42:$H$51,MATCH(A56,Worksheet!$B$42:$B$51,0),5),36000),0)","v":0},{"$f":"IF(B56<>0,IF(E56<>0,INDEX(Worksheet!$B$42:$H$51,MATCH(A56,Worksheet!$B$42:$B$51,0),7),36000),0)","v":0},{"$f":"IF(B56<>0,IF(E56<>0,INDEX(Worksheet!$B$42:$L$51,MATCH(A56,Worksheet!$B$42:$B$51,0),9),References!$M$9),0)","v":0},{"$f":"IF(B56<>0,IF(E56<>0,INDEX(Worksheet!$B$42:$L$51,MATCH(A56,Worksheet!$B$42:$B$51,0),11),References!$L$29),0)","v":0},{"$f":"AW41","v":0},{"$f":"AX41","v":0},{"$f":"IF(C56<>\"\",IF(C56=\"Learning\",((F56/12000)*(12/H56)*J56*References!$D$47)+((G56/12000)*(12/I56)*K56*References!$D$48),INDEX(References!$E$41:$E$43,MATCH('Smart T-Stats'!J35,References!$C$41:$C$43,0))),0)","v":0},{"$f":"L56*References!$E$12/1000","v":0},{"$f":"L56*References!$A$12","v":0}]

{"sheet":"References","index":12,"n_rows":190,"n_cols":79,"rows_kept":190,"cut":false,"hidden":true,"merged":[[45,2,45,3],[1,45,1,48],[1,41,1,44],[9,9,9,10],[11,9,11,10],[3,26,3,27],[17,9,17,10],[10,9,10,10],[6,3,6,4],[7,9,7,10],[7,6,7,7],[12,9,12,10],[8,9,8,10]]}
["Basic References",null,null,null,null,null,"Existing Equipment Type",null,null,null,null,null,null,null,null,null,null,"Proposed Equipment Look Up"]
[]
["Value","Decimal Places",null,null,"Integrated Controls ",null,"ASHP","Electric Resistance","Furnace","Other","Boiler","Heating Equipment",null,null,null,null,null,null,"Equipment Minimum Efficiency Look up",null,null,null,null,null,null,null,null,null,null,"QI Savings",null,null,null,"Air Flow Tab - Airflow Inputs","Range","Pass/Fail Check",null,"Air Flow Tab 2 - Airflow Inputs","Range","Pass/Fail Check",null,"Air Flow Tab 3 - Airflow Inputs","Range","Pass/Fail Check",null,null,"Air Flow Tab 4 - Airflow Inputs","Range","Pass/Fail Check",null,null,"Air Flow Tab 5 - Airflow Inputs","Range","Pass/Fail Check",null,null,"Air Flow Tab 6 - Airflow Inputs","Range","Pass/Fail Check",null,null,"Air Flow Tab 7 - Airflow Inputs","Range","Pass/Fail Check",null,null,"Air Flow Tab 8 - Airflow Inputs","Range","Pass/Fail Check",null,null,"Air Flow Tab 9 - Airflow Inputs","Range","Pass/Fail Check",null,null,"Air Flow Tab 10 - Airflow Inputs","Range","Pass/Fail Check"]
["kW",7,null,null,false,null,false,false,false,false,false,{"$f":"IF($G$4=TRUE,\"ASHP\",IF($H$4=TRUE,\"Electric Resistance\",IF($I$4=TRUE,\"Furnace\",IF(K4=TRUE,\"Boiler\",\"Other\"))))","v":"Other"},null,null,null,null,null,null,"Equipment_Type","Efficiency",null,null,null,null,null,null,"Lookups",null,null,"kW C&A","kW RS","kWh",null,"Rated Cooling Capacity",".5-11.3",{"$f":"IF(AND('AIRFLOW FORM'!$E$16>=0.5,'AIRFLOW FORM'!$E$16<=11.3),\"\",\"FAIL\")","v":"FAIL"},null,"Rated Cooling Capacity",".5-11.3",{"$f":"IF(AND('AIRFLOW FORM 2'!$E$15>=0.5,'AIRFLOW FORM 2'!$E$15<=11.3),\"\",\"FAIL\")","v":"FAIL"},null,"Rated Cooling Capacity",".5-11.3",{"$f":"IF(AND('AIRFLOW FORM 3'!$E$15>=0.5,'AIRFLOW FORM 3'!$E$15<=11.3),\"\",\"FAIL\")","v":"FAIL"},null,null,"Rated Cooling Capacity",".5-11.3",{"$f":"IF(AND('AIRFLOW FORM 4'!$E$15>=0.5,'AIRFLOW FORM 4'!$E$15<=11.3),\"\",\"FAIL\")","v":"FAIL"},null,null,"Rated Cooling Capacity",".5-11.3",{"$f":"IF(AND('AIRFLOW FORM 5'!$E$15>=0.5,'AIRFLOW FORM 5'!$E$15<=11.3),\"\",\"FAIL\")","v":"FAIL"},null,null,"Rated Cooling Capacity",".5-11.3",{"$f":"IF(AND('AIRFLOW FORM 6'!$E$15>=0.5,'AIRFLOW FORM 6'!$E$15<=11.3),\"\",\"FAIL\")","v":"FAIL"},null,null,"Rated Cooling Capacity",".5-11.3",{"$f":"IF(AND('AIRFLOW FORM 7'!$E$15>=0.5,'AIRFLOW FORM 7'!$E$15<=11.3),\"\",\"FAIL\")","v":"FAIL"},null,null,"Rated Cooling Capacity",".5-11.3",{"$f":"IF(AND('AIRFLOW FORM 8'!$E$15>=0.5,'AIRFLOW FORM 8'!$E$15<=11.3),\"\",\"FAIL\")","v":"FAIL"},null,null,"Rated Cooling Capacity",".5-11.3",{"$f":"IF(AND('AIRFLOW FORM 9'!$E$15>=0.5,'AIRFLOW FORM 9'!$E$15<=11.3),\"\",\"FAIL\")","v":"FAIL"},null,null,"Rated Cooling Capacity",".5-11.3",{"$f":"IF(AND('AIRFLOW FORM 10'!$E$15>=0.5,'AIRFLOW FORM 10'!$E$15<=11.3),\"\",\"FAIL\")","v":"FAIL"}]
["kWh",5,null,null,null,null,null,null,null,null,null,null,null,null,null,null,null,null,null,"SEER",null,null,"COP/HSPF",null,"EER",null,"Conditional","QI ",null,0.05,null,0.05,null,"Static Pressure Drop",".1-.8",{"$f":"IF(AND('AIRFLOW FORM'!$E$19>=0.1,'AIRFLOW FORM'!$E$19<=0.8),\"\",\"FAIL\")","v":"FAIL"},null,"Static Pressure Drop",".1-.8",{"$f":"IF(AND('AIRFLOW FORM 2'!$E$18>=0.1,'AIRFLOW FORM 2'!$E$18<=0.8),\"\",\"FAIL\")","v":"FAIL"},null,"Static Pressure Drop",".1-.8",{"$f":"IF(AND('AIRFLOW FORM 3'!$E$18>=0.1,'AIRFLOW FORM 3'!$E$18<=0.8),\"\",\"FAIL\")","v":"FAIL"},null,null,"Static Pressure Drop",".1-.8",{"$f":"IF(AND('AIRFLOW FORM 4'!$E$18>=0.1,'AIRFLOW FORM 4'!$E$18<=0.8),\"\",\"FAIL\")","v":"FAIL"},null,null,"Static Pressure Drop",".1-.8",{"$f":"IF(AND('AIRFLOW FORM 5'!$E$18>=0.1,'AIRFLOW FORM 5'!$E$18<=0.8),\"\",\"FAIL\")","v":"FAIL"},null,null,"Static Pressure Drop",".1-.8",{"$f":"IF(AND('AIRFLOW FORM 6'!$E$18>=0.1,'AIRFLOW FORM 6'!$E$18<=0.8),\"\",\"FAIL\")","v":"FAIL"},null,null,"Static Pressure Drop",".1-.8",{"$f":"IF(AND('AIRFLOW FORM 7'!$E$18>=0.1,'AIRFLOW FORM 7'!$E$18<=0.8),\"\",\"FAIL\")","v":"FAIL"},null,null,"Static Pressure Drop",".1-.8",{"$f":"IF(AND('AIRFLOW FORM 8'!$E$18>=0.1,'AIRFLOW FORM 8'!$E$18<=0.8),\"\",\"FAIL\")","v":"FAIL"},null,null,"Static Pressure Drop",".1-.8",{"$f":"IF(AND('AIRFLOW FORM 9'!$E$18>=0.1,'AIRFLOW FORM 9'!$E$18<=0.8),\"\",\"FAIL\")","v":"FAIL"},null,null,"Static Pressure Drop",".1-.8",{"$f":"IF(AND('AIRFLOW FORM 10'!$E$18>=0.1,'AIRFLOW FORM 10'!$E$18<=0.8),\"\",\"FAIL\")","v":"FAIL"}]
[null,null,null,null,null,null,null,null,null,null,null,null,null,null,null,null,null,null,null,"Tier I","Tier II","Tier III","Tier I","Tier II","Tier I","Tier II","Formatting","Codes",null,null,null,null,null,"CFM Per Ton","325-450",{"$f":"IF(AND('AIRFLOW FORM'!$M$16>=325,'AIRFLOW FORM'!$M$16<=450),\"\",\"FAIL\")","v":"FAIL"},null,"CFM Per Ton","325-450",{"$f":"IF(AND('AIRFLOW FORM 2'!$M$15>=325,'AIRFLOW FORM 2'!$M$15<=450),\"\",\"FAIL\")","v":"FAIL"},null,"CFM Per Ton","325-450",{"$f":"IF(AND('AIRFLOW FORM 3'!$M$15>=325,'AIRFLOW FORM 3'!$M$15<=450),\"\",\"FAIL\")","v":"FAIL"},null,null,"CFM Per Ton","325-450",{"$f":"IF(AND('AIRFLOW FORM 4'!$M$15>=325,'AIRFLOW FORM 4'!$M$15<=450),\"\",\"FAIL\")","v":"FAIL"},null,null,"CFM Per Ton","325-450",{"$f":"IF(AND('AIRFLOW FORM 5'!$M$15>=325,'AIRFLOW FORM 5'!$M$15<=450),\"\",\"FAIL\")","v":"FAIL"},null,null,"CFM Per Ton","325-450",{"$f":"IF(AND('AIRFLOW FORM 6'!$M$15>=325,'AIRFLOW FORM 6'!$M$15<=450),\"\",\"FAIL\")","v":"FAIL"},null,null,"CFM Per Ton","325-450",{"$f":"IF(AND('AIRFLOW FORM 7'!$M$15>=325,'AIRFLOW FORM 7'!$M$15<=450),\"\",\"FAIL\")","v":"FAIL"},null,null,"CFM Per Ton","325-450",{"$f":"IF(AND('AIRFLOW FORM 8'!$M$15>=325,'AIRFLOW FORM 8'!$M$15<=450),\"\",\"FAIL\")","v":"FAIL"},null,null,"CFM Per Ton","325-450",{"$f":"IF(AND('AIRFLOW FORM 9'!$M$15>=325,'AIRFLOW FORM 9'!$M$15<=450),\"\",\"FAIL\")","v":"FAIL"},null,null,"CFM Per Ton","325-450",{"$f":"IF(AND('AIRFLOW FORM 10'!$M$15>=325,'AIRFLOW FORM 10'!$M$15<=450),\"\",\"FAIL\")","v":"FAIL"}]
["Yes_No",null,null,"ConversionFactors",null,null,null,null,null,null,null,null,null,null,null,null,null,null,"Ducted ccASHP","N/A",17,"N/A","N/A",10,null,null,1,"ccASHP",null,null,null,null,null,"External Static Pressure",".1-.8",{"$f":"IF(AND('AIRFLOW FORM'!$M$19>=0.1,'AIRFLOW FORM'!$M$19<=0.8),\"\",\"FAIL\")","v":"FAIL"},null,"External Static Pressure",".1-.8",{"$f":"IF(AND('AIRFLOW FORM 2'!$M$18>=0.1,'AIRFLOW FORM 2'!$M$18<=0.8),\"\",\"FAIL\")","v":"FAIL"},null,"External Static Pressure",".1-.8",{"$f":"IF(AND('AIRFLOW FORM 3'!$M$18>=0.1,'AIRFLOW FORM 3'!$M$18<=0.8),\"\",\"FAIL\")","v":"FAIL"},null,null,"External Static Pressure",".1-.8",{"$f":"IF(AND('AIRFLOW FORM 4'!$M$18>=0.1,'AIRFLOW FORM 4'!$M$18<=0.8),\"\",\"FAIL\")","v":"FAIL"},null,null,"External Static Pressure",".1-.8",{"$f":"IF(AND('AIRFLOW FORM 5'!$M$18>=0.1,'AIRFLOW FORM 5'!$M$18<=0.8),\"\",\"FAIL\")","v":"FAIL"},null,null,"External Static Pressure",".1-.8",{"$f":"IF(AND('AIRFLOW FORM 6'!$M$18>=0.1,'AIRFLOW FORM 6'!$M$18<=0.8),\"\",\"FAIL\")","v":"FAIL"},null,null,"External Static Pressure",".1-.8",{"$f":"IF(AND('AIRFLOW FORM 7'!$M$18>=0.1,'AIRFLOW FORM 7'!$M$18<=0.8),\"\",\"FAIL\")","v":"FAIL"},null,null,"External Static Pressure",".1-.8",{"$f":"IF(AND('AIRFLOW FORM 8'!$M$18>=0.1,'AIRFLOW FORM 8'!$M$18<=0.8),\"\",\"FAIL\")","v":"FAIL"},null,null,"External Static Pressure",".1-.8",{"$f":"IF(AND('AIRFLOW FORM 9'!$M$18>=0.1,'AIRFLOW FORM 9'!$M$18<=0.8),\"\",\"FAIL\")","v":"FAIL"},null,null,"External Static Pressure",".1-.8",{"$f":"IF(AND('AIRFLOW FORM 10'!$M$18>=0.1,'AIRFLOW FORM 10'!$M$18<=0.8),\"\",\"FAIL\")","v":"FAIL"}]
["YES",null,null,2204.6,"lbs/metric ton",null,"Heating Fuel Type",null,null,"Cooling Baselines",null,"EER Efficiency","SEER Efficiency",null,null,null,null,null,"Ductless Mini Split - ccASHP","N/A",18,"N/A","N/A",10,null,null,1,"DuctlessCC HP",null,null,null,null,null,"True Flow CFM Measured","600-5000",{"$f":"IF(AND('AIRFLOW FORM'!$E$26>=600,'AIRFLOW FORM'!$E$26<=5000),\"\",\"FAIL\")","v":"FAIL"},null,"True Flow CFM Measured","600-5000",{"$f":"IF(AND('AIRFLOW FORM 2'!$E$25>=600,'AIRFLOW FORM 2'!$E$25<=5000),\"\",\"FAIL\")","v":"FAIL"},null,"True Flow CFM Measured","600-5000",{"$f":"IF(AND('AIRFLOW FORM 3'!$E$25>=600,'AIRFLOW FORM 3'!$E$25<=5000),\"\",\"FAIL\")","v":"FAIL"},null,null,"True Flow CFM Measured","600-5000",{"$f":"IF(AND('AIRFLOW FORM 4'!$E$25>=600,'AIRFLOW FORM 4'!$E$25<=5000),\"\",\"FAIL\")","v":"FAIL"},null,null,"True Flow CFM Measured","600-5000",{"$f":"IF(AND('AIRFLOW FORM 5'!$E$25>=600,'AIRFLOW FORM 5'!$E$25<=5000),\"\",\"FAIL\")","v":"FAIL"},null,null,"True Flow CFM Measured","600-5000",{"$f":"IF(AND('AIRFLOW FORM 6'!$E$25>=600,'AIRFLOW FORM 6'!$E$25<=5000),\"\",\"FAIL\")","v":"FAIL"},null,null,"True Flow CFM Measured","600-5000",{"$f":"IF(AND('AIRFLOW FORM 7'!$E$25>=600,'AIRFLOW FORM 7'!$E$25<=5000),\"\",\"FAIL\")","v":"FAIL"},null,null,"True Flow CFM Measured","600-5000",{"$f":"IF(AND('AIRFLOW FORM 8'!$E$25>=600,'AIRFLOW FORM 8'!$E$25<=5000),\"\",\"FAIL\")","v":"FAIL"},null,null,"True Flow CFM Measured","600-5000",{"$f":"IF(AND('AIRFLOW FORM 9'!$E$25>=600,'AIRFLOW FORM 9'!$E$25<=5000),\"\",\"FAIL\")","v":"FAIL"},null,null,"True Flow CFM Measured","600-5000",{"$f":"IF(AND('AIRFLOW FORM 10'!$E$25>=600,'AIRFLOW FORM 10'!$E$25<=5000),\"\",\"FAIL\")","v":"FAIL"}]
["NO",null,null,1E-3,"kg/metric ton",null,1,"Natural Gas",null,"Ducted Air Source HP",null,{"$f":"(-0.02*M9^2)+(1.12*M9)","v":11.760000000000002},14,null,null,null,null,null,"Ducted ASHP",15,17,"N/A",8.5,10,null,null,1,"ASHP",null,null,null,null,null,"CFM Air Flow Estimated","600-5000",{"$f":"IF(AND('AIRFLOW FORM'!$E$23>=600,'AIRFLOW FORM'!$E$23<=5000),\"\",\"FAIL\")","v":"FAIL"},null,"CFM Air Flow Estimated","600-5000",{"$f":"IF(AND('AIRFLOW FORM 2'!$E$22>=600,'AIRFLOW FORM 2'!$E$22<=5000),\"\",\"FAIL\")","v":"FAIL"},null,"CFM Air Flow Estimated","600-5000",{"$f":"IF(AND('AIRFLOW FORM 3'!$E$22>=600,'AIRFLOW FORM 3'!$E$22<=5000),\"\",\"FAIL\")","v":"FAIL"},null,null,"CFM Air Flow Estimated","600-5000",{"$f":"IF(AND('AIRFLOW FORM 4'!$E$22>=600,'AIRFLOW FORM 4'!$E$22<=5000),\"\",\"FAIL\")","v":"FAIL"},null,null,"CFM Air Flow Estimated","600-5000",{"$f":"IF(AND('AIRFLOW FORM 5'!$E$22>=600,'AIRFLOW FORM 5'!$E$22<=5000),\"\",\"FAIL\")","v":"FAIL"},null,null,"CFM Air Flow Estimated","600-5000",{"$f":"IF(AND('AIRFLOW FORM 6'!$E$22>=600,'AIRFLOW FORM 6'!$E$22<=5000),\"\",\"FAIL\")","v":"FAIL"},null,null,"CFM Air Flow Estimated","600-5000",{"$f":"IF(AND('AIRFLOW FORM 7'!$E$22>=600,'AIRFLOW FORM 7'!$E$22<=5000),\"\",\"FAIL\")","v":"FAIL"},null,null,"CFM Air Flow Estimated","600-5000",{"$f":"IF(AND('AIRFLOW FORM 8'!$E$22>=600,'AIRFLOW FORM 8'!$E$22<=5000),\"\",\"FAIL\")","v":"FAIL"},null,null,"CFM Air Flow Estimated","600-5000",{"$f":"IF(AND('AIRFLOW FORM 9'!$E$22>=600,'AIRFLOW FORM 9'!$E$22<=5000),\"\",\"FAIL\")","v":"FAIL"},null,null,"CFM Air Flow Estimated","600-5000",{"$f":"IF(AND('AIRFLOW FORM 10'!$E$22>=600,'AIRFLOW FORM 10'!$E$22<=5000),\"\",\"FAIL\")","v":"FAIL"}]
[null,null,null,null,null,null,2,"Oil",null,"Central Air Conditioner",null,{"$f":"(-0.02*M10^2)+(1.12*M10)","v":11.180000000000003},13,null,null,null,null,null,"Ductless Mini Split - ASHP",18,18,"N/A",8.5,10,null,null,1,"Ductless HP"]
["Emission Factor (lb CO2 / kWh)",null,null,null,"COP to HSPF conversion",null,3,"Propane",null,"Ductless Mini Split",null,11.180000000000003,13,null,null,null,null,null,"Ducted ASHP EH",16,17,"N/A",8.5,10,null,null,null,"ASHP"]
[1.1961999999999999,null,null,null,3.4119999999999999,null,4,"Electric",null,"PTHP",null,10.4,11.8,null,null,null,null,null,"Ducted ccASHP EH","N/A",17,"N/A",8.5,10,null,null,null,"ccASHP"]
[null,null,null,null,null,null,null,"New Construction",null,"Other",null,11.18,13,null,null,null,null,null,"Ductless Mini Split - ASHP EH",18,18,"N/A",8.5,10,null,null,null,"Ductless HP"]
["QIV Contractor",null,null,null,"Replacement Type",null,0,{"$f":"IF(OR($A$21=2,$A$21=4),$H$13,IF(OR(G4=TRUE,H4=TRUE),$H$12,IF($G$14=0,\"\",INDEX(H$9:H$12,MATCH($G$14,$G$9:$G$12,0)))))","v":""},null,null,null,null,null,null,null,null,null,null,"Ductless Mini Split - ccASHP EH","N/A",18,"N/A","N/A",10,null,null,null,"DuctlessCC HP"]
[true,null,null,null,"Retrofit",null,null,null,null,null,null,null,null,null,null,null,null,null,"Packaged Terminal Heat Pump","N/A","N/A","N/A",3.3,"N/A",11.4,"N/A",1,"PTHP",null,null,null,null,null,"Air Flow Tab - Refrigerant Inputs Subcooling","Range","Pass/Fail Check",null,"Air Flow Tab 2 - Refrigerant Inputs Subcooling","Range","Pass/Fail Check",null,"Air Flow Tab 3 - Refrigerant Inputs Subcooling","Range","Pass/Fail Check",null,null,"Air Flow Tab 4 - Refrigerant Inputs Subcooling","Range","Pass/Fail Check",null,null,"Air Flow Tab 5 - Refrigerant Inputs Subcooling","Range","Pass/Fail Check",null,null,"Air Flow Tab 6 - Refrigerant Inputs Subcooling","Range","Pass/Fail Check",null,null,"Air Flow Tab 7 - Refrigerant Inputs Subcooling","Range","Pass/Fail Check",null,null,"Air Flow Tab 8 - Refrigerant Inputs Subcooling","Range","Pass/Fail Check",null,null,"Air Flow Tab 9 - Refrigerant Inputs Subcooling","Range","Pass/Fail Check",null,null,"Air Flow Tab 10 - Refrigerant Inputs Subcooling","Range","Pass/Fail Check"]
[null,null,null,null,"New",null,null,null,null,null,null,null,null,null,null,null,null,null,"Ducted Split CAC",16,17,18,null,null,null,null,2,"CAC",null,null,null,null,null,"Required Subcooling","6-14",{"$f":"IF(AND('AIRFLOW FORM'!$E$50>=6,'AIRFLOW FORM'!$E$50<=14),\"\",\"FAIL\")","v":"FAIL"},null,"Required Subcooling","6-14",{"$f":"IF(AND('AIRFLOW FORM 2'!$E$49>=6,'AIRFLOW FORM 2'!$E$49<=14),\"\",\"FAIL\")","v":"FAIL"},null,"Required Subcooling","6-14",{"$f":"IF(AND('AIRFLOW FORM 3'!$E$49>=6,'AIRFLOW FORM 3'!$E$49<=14),\"\",\"FAIL\")","v":"FAIL"},null,null,"Required Subcooling","6-14",{"$f":"IF(AND('AIRFLOW FORM 4'!$E$49>=6,'AIRFLOW FORM 4'!$E$49<=14),\"\",\"FAIL\")","v":"FAIL"},null,null,"Required Subcooling","6-14",{"$f":"IF(AND('AIRFLOW FORM 5'!$E$49>=6,'AIRFLOW FORM 5'!$E$49<=14),\"\",\"FAIL\")","v":"FAIL"},null,null,"Required Subcooling","6-14",{"$f":"IF(AND('AIRFLOW FORM 6'!$E$49>=6,'AIRFLOW FORM 6'!$E$49<=14),\"\",\"FAIL\")","v":"FAIL"},null,null,"Required Subcooling","6-14",{"$f":"IF(AND('AIRFLOW FORM 7'!$E$49>=6,'AIRFLOW FORM 7'!$E$49<=14),\"\",\"FAIL\")","v":"FAIL"},null,null,"Required Subcooling","6-14",{"$f":"IF(AND('AIRFLOW FORM 8'!$E$49>=6,'AIRFLOW FORM 8'!$E$49<=14),\"\",\"FAIL\")","v":"FAIL"},null,null,"Required Subcooling","6-14",{"$f":"IF(AND('AIRFLOW FORM 9'!$E$49>=6,'AIRFLOW FORM 9'!$E$49<=14),\"\",\"FAIL\")","v":"FAIL"},null,null,"Required Subcooling","6-14",{"$f":"IF(AND('AIRFLOW FORM 10'!$E$49>=6,'AIRFLOW FORM 10'!$E$49<=14),\"\",\"FAIL\")","v":"FAIL"}]
["Installing Smart Thermostat",null,null,null,null,null,null,null,null,null,null,null,null,null,null,null,null,null,"Ductless Mini Split - AC Only",18,"N/A","N/A",null,null,null,null,2,"Ductless",null,null,null,null,null,"Outdoor Dry Bulb Temp","60-100",{"$f":"IF(AND('AIRFLOW FORM'!$E$52>=60,'AIRFLOW FORM'!$E$52<=100),\"\",\"FAIL\")","v":"FAIL"},null,"Outdoor Dry Bulb Temp","60-100",{"$f":"IF(AND('AIRFLOW FORM 2'!$E$51>=60,'AIRFLOW FORM 2'!$E$51<=100),\"\",\"FAIL\")","v":"FAIL"},null,"Outdoor Dry Bulb Temp","60-100",{"$f":"IF(AND('AIRFLOW FORM 3'!$E$51>=60,'AIRFLOW FORM 3'!$E$51<=100),\"\",\"FAIL\")","v":"FAIL"},null,null,"Outdoor Dry Bulb Temp","60-100",{"$f":"IF(AND('AIRFLOW FORM 4'!$E$51>=60,'AIRFLOW FORM 4'!$E$51<=100),\"\",\"FAIL\")","v":"FAIL"},null,null,"Outdoor Dry Bulb Temp","60-100",{"$f":"IF(AND('AIRFLOW FORM 5'!$E$51>=60,'AIRFLOW FORM 5'!$E$51<=100),\"\",\"FAIL\")","v":"FAIL"},null,null,"Outdoor Dry Bulb Temp","60-100",{"$f":"IF(AND('AIRFLOW FORM 6'!$E$51>=60,'AIRFLOW FORM 6'!$E$51<=100),\"\",\"FAIL\")","v":"FAIL"},null,null,"Outdoor Dry Bulb Temp","60-100",{"$f":"IF(AND('AIRFLOW FORM 7'!$E$51>=60,'AIRFLOW FORM 7'!$E$51<=100),\"\",\"FAIL\")","v":"FAIL"},null,null,"Outdoor Dry Bulb Temp","60-100",{"$f":"IF(AND('AIRFLOW FORM 8'!$E$51>=60,'AIRFLOW FORM 8'!$E$51<=100),\"\",\"FAIL\")","v":"FAIL"},null,null,"Outdoor Dry Bulb Temp","60-100",{"$f":"IF(AND('AIRFLOW FORM 9'!$E$51>=60,'AIRFLOW FORM 9'!$E$51<=100),\"\",\"FAIL\")","v":"FAIL"},null,null,"Outdoor Dry Bulb Temp","60-100",{"$f":"IF(AND('AIRFLOW FORM 10'!$E$51>=60,'AIRFLOW FORM 10'!$E$51<=100),\"\",\"FAIL\")","v":"FAIL"}]
[0,null,null,null,"Home",null,null,null,null,"Beneficial Electrification ",null,null,null,null,null,null,null,null,null,null,null,null,null,null,null,null,null,null,null,null,null,null,null,"Liquid Line Pressure","195-475",{"$f":"IF(AND('AIRFLOW FORM'!$E$56>=195,'AIRFLOW FORM'!$E$56<=475),\"\",\"FAIL\")","v":"FAIL"},null,"Liquid Line Pressure","195-475",{"$f":"IF(AND('AIRFLOW FORM 2'!$E$55>=195,'AIRFLOW FORM 2'!$E$55<=475),\"\",\"FAIL\")","v":"FAIL"},null,"Liquid Line Pressure","195-475",{"$f":"IF(AND('AIRFLOW FORM 3'!$E$55>=195,'AIRFLOW FORM 3'!$E$55<=475),\"\",\"FAIL\")","v":"FAIL"},null,null,"Liquid Line Pressure","195-475",{"$f":"IF(AND('AIRFLOW FORM 4'!$E$55>=195,'AIRFLOW FORM 4'!$E$55<=475),\"\",\"FAIL\")","v":"FAIL"},null,null,"Liquid Line Pressure","195-475",{"$f":"IF(AND('AIRFLOW FORM 5'!$E$55>=195,'AIRFLOW FORM 5'!$E$55<=475),\"\",\"FAIL\")","v":"FAIL"},null,null,"Liquid Line Pressure","195-475",{"$f":"IF(AND('AIRFLOW FORM 6'!$E$55>=195,'AIRFLOW FORM 6'!$E$55<=475),\"\",\"FAIL\")","v":"FAIL"},null,null,"Liquid Line Pressure","195-475",{"$f":"IF(AND('AIRFLOW FORM 7'!$E$55>=195,'AIRFLOW FORM 7'!$E$55<=475),\"\",\"FAIL\")","v":"FAIL"},null,null,"Liquid Line Pressure","195-475",{"$f":"IF(AND('AIRFLOW FORM 8'!$E$55>=195,'AIRFLOW FORM 8'!$E$55<=475),\"\",\"FAIL\")","v":"FAIL"},null,null,"Liquid Line Pressure","195-475",{"$f":"IF(AND('AIRFLOW FORM 9'!$E$55>=195,'AIRFLOW FORM 9'!$E$55<=475),\"\",\"FAIL\")","v":"FAIL"},null,null,"Liquid Line Pressure","195-475",{"$f":"IF(AND('AIRFLOW FORM 10'!$E$55>=195,'AIRFLOW FORM 10'!$E$55<=475),\"\",\"FAIL\")","v":"FAIL"}]
[null,null,null,null,"New ",null,null,"Equipment","EE Savings","Fossil Fuel Savings","Electric Parasitics (kWh/MMBTU)","Existing Heating Efficiency","Displacement Factor","CO2 Calc",null,null,null,null,null,null,null,null,null,null,null,null,null,null,null,null,null,null,null,"Saturation Temp","71-130",{"$f":"IF(AND('AIRFLOW FORM'!$E$58>=71,'AIRFLOW FORM'!$E$58<=130),\"\",\"FAIL\")","v":"FAIL"},null,"Saturation Temp","71-130",{"$f":"IF(AND('AIRFLOW FORM 2'!$E$57>=71,'AIRFLOW FORM 2'!$E$57<=130),\"\",\"FAIL\")","v":"FAIL"},null,"Saturation Temp","71-130",{"$f":"IF(AND('AIRFLOW FORM 3'!$E$57>=71,'AIRFLOW FORM 3'!$E$57<=130),\"\",\"FAIL\")","v":"FAIL"},null,null,"Saturation Temp","71-130",{"$f":"IF(AND('AIRFLOW FORM 4'!$E$57>=71,'AIRFLOW FORM 4'!$E$57<=130),\"\",\"FAIL\")","v":"FAIL"},null,null,"Saturation Temp","71-130",{"$f":"IF(AND('AIRFLOW FORM 5'!$E$57>=71,'AIRFLOW FORM 5'!$E$57<=130),\"\",\"FAIL\")","v":"FAIL"},null,null,"Saturation Temp","71-130",{"$f":"IF(AND('AIRFLOW FORM 6'!$E$57>=71,'AIRFLOW FORM 6'!$E$57<=130),\"\",\"FAIL\")","v":"FAIL"},null,null,"Saturation Temp","71-130",{"$f":"IF(AND('AIRFLOW FORM 7'!$E$57>=71,'AIRFLOW FORM 7'!$E$57<=130),\"\",\"FAIL\")","v":"FAIL"},null,null,"Saturation Temp","71-130",{"$f":"IF(AND('AIRFLOW FORM 8'!$E$57>=71,'AIRFLOW FORM 8'!$E$57<=130),\"\",\"FAIL\")","v":"FAIL"},null,null,"Saturation Temp","71-130",{"$f":"IF(AND('AIRFLOW FORM 9'!$E$57>=71,'AIRFLOW FORM 9'!$E$57<=130),\"\",\"FAIL\")","v":"FAIL"},null,null,"Saturation Temp","71-130",{"$f":"IF(AND('AIRFLOW FORM 10'!$E$57>=71,'AIRFLOW FORM 10'!$E$57<=130),\"\",\"FAIL\")","v":"FAIL"}]
["Existing/New Construction",null,"Whole House?",null,"Existing",null,null,"Natural Gas Boiler",false,true,15,0.81,0.8,6.6879999999999995E-2,"ton CO2/MMBTU",null,null,null,"Rebate Lookup Table*",null,null,null,null,null,null,null,null,null,null,null,null,null,null,"Liquid Line Temp","57-116",{"$f":"IF(AND('AIRFLOW FORM'!$E$60>=57,'AIRFLOW FORM'!$E$60<=116),\"\",\"FAIL\")","v":"FAIL"},null,"Liquid Line Temp","57-116",{"$f":"IF(AND('AIRFLOW FORM 2'!$E$59>=57,'AIRFLOW FORM 2'!$E$59<=116),\"\",\"FAIL\")","v":"FAIL"},null,"Liquid Line Temp","57-116",{"$f":"IF(AND('AIRFLOW FORM 3'!$E$59>=57,'AIRFLOW FORM 3'!$E$59<=116),\"\",\"FAIL\")","v":"FAIL"},null,null,"Liquid Line Temp","57-116",{"$f":"IF(AND('AIRFLOW FORM 4'!$E$59>=57,'AIRFLOW FORM 4'!$E$59<=116),\"\",\"FAIL\")","v":"FAIL"},null,null,"Liquid Line Temp","57-116",{"$f":"IF(AND('AIRFLOW FORM 5'!$E$59>=57,'AIRFLOW FORM 5'!$E$59<=116),\"\",\"FAIL\")","v":"FAIL"},null,null,"Liquid Line Temp","57-116",{"$f":"IF(AND('AIRFLOW FORM 6'!$E$59>=57,'AIRFLOW FORM 6'!$E$59<=116),\"\",\"FAIL\")","v":"FAIL"},null,null,"Liquid Line Temp","57-116",{"$f":"IF(AND('AIRFLOW FORM 7'!$E$59>=57,'AIRFLOW FORM 7'!$E$59<=116),\"\",\"FAIL\")","v":"FAIL"},null,null,"Liquid Line Temp","57-116",{"$f":"IF(AND('AIRFLOW FORM 8'!$E$59>=57,'AIRFLOW FORM 8'!$E$59<=116),\"\",\"FAIL\")","v":"FAIL"},null,null,"Liquid Line Temp","57-116",{"$f":"IF(AND('AIRFLOW FORM 9'!$E$59>=57,'AIRFLOW FORM 9'!$E$59<=116),\"\",\"FAIL\")","v":"FAIL"},null,null,"Liquid Line Temp","57-116",{"$f":"IF(AND('AIRFLOW FORM 10'!$E$59>=57,'AIRFLOW FORM 10'!$E$59<=116),\"\",\"FAIL\")","v":"FAIL"}]
[0,null,{"$f":"IF(A21>2,TRUE)","v":false},null,null,null,null,"Oil Boiler",false,true,15,0.83,0.8,7.3959999999999998E-2,"ton CO2/MMBTU",null,null,null,null,"Measure Code","Product Class","Product Line","Product Name","Customer Rebate","Con. Incentive","Coincidence Factor","kW Cooling Bonus","kWh Cooling Bonus","Free Ridership","Spillover","Line Loss kW Summer","Line Loss Energy",null,"Measured Subcooling","6-14",null,null,"Measured Subcooling","6-14",null,null,"Measured Subcooling","6-14",null,null,null,"Measured Subcooling","6-14",null,null,null,"Measured Subcooling","6-14",null,null,null,"Measured Subcooling","6-14",null,null,null,"Measured Subcooling","6-14",null,null,null,"Measured Subcooling","6-14",null,null,null,"Measured Subcooling","6-14",null,null,null,"Measured Subcooling","6-14"]
[null,null,null,null,null,null,null,"Electric Boiler",true,false,0,{"$f":"78%*E12","v":2.6613600000000002},0.8,6.0825682663521725E-4,"ton CO2/kWh",null,null,null,"Whole House Ducted ccASHP Tier II1","CH221-WH-NC","Cool Homes Heat Pump","Cooling - HVAC Equipment","CH - WH ccASHP New TIER 2",1000,500,0.65,1,1,0.1,0,8.5000000000000006E-2,0.06]
[null,null,null,null,null,null,null,"Propane Boiler",false,true,15,0.81,0.8,6.2869999999999995E-2,"ton CO2/MMBTU",null,null,null,"Whole House Ductless Mini Split - ccASHP Tier II1","CH220-WH-NC","Cool Homes Ductless","Cooling - HVAC Equipment","CH - WH DUCTLESS ccASHP New TIER 2",1000,500,0.65,1,1,0.1,0,8.5000000000000006E-2,0.06]
["Effective Full Load Hours","New Construction","Existing Building","Electric Heat",null,null,null,"Natural Gas Furnace",false,true,15,{"$f":"AVERAGE(80%,81%)","v":0.80500000000000005},0.8,6.6879999999999995E-2,"ton CO2/MMBTU",null,null,null,"Whole House Ducted ccASHP Tier II2","CH221-WH-OC","Cool Homes Heat Pump","Cooling - HVAC Equipment","CH - WH S2 ccASHP New TIER 2",800,500,0.65,1,1,0.1,0,8.5000000000000006E-2,0.06]
["Full Load Hours Cool",196,327,649,null,null,null,"Oil Furnace",false,true,15,{"$f":"AVERAGE(83%,78%)","v":0.80499999999999994},0.8,7.3959999999999998E-2,"ton CO2/MMBTU",null,null,null,"Whole House Ductless Mini Split - ccASHP Tier II2","CH220-WH-OC","Cool Homes Ductless","Cooling - HVAC Equipment","CH - WH S2 DUCTLESS ccASHP New TIER 2",800,500,0.65,1,1,0.1,0,8.5000000000000006E-2,0.06]
["Full Load Hours Heat",960,1538,786,null,null,null,"Electric Furnace",true,false,0,{"$f":"78%*E12","v":2.6613600000000002},0.8,{"$f":"$A$12/$D$8","v":5.4259276059149056E-4},"ton CO2/kWh",null,null,null,"Whole House Ducted ccASHP Tier II3","CH221-WH-AO","Cool Homes Heat Pump","Cooling - HVAC Equipment","CH - WH S3 ccASHP New TIER 2",600,500,0.65,1,1,0.1,0,8.5000000000000006E-2,0.06]
[null,null,null,null,null,null,null,"Propane Furnace",false,true,15,0.81,0.8,6.2869999999999995E-2,"ton CO2/MMBTU",null,null,null,"Whole House Ductless Mini Split - ccASHP Tier II3","CH220-WH-AO","Cool Homes Ductless","Cooling - HVAC Equipment","CH - WH S3 DUCTLESS ccASHP New TIER 2",600,500,0.65,1,1,0.1,0,8.5000000000000006E-2,0.06,null,"Air Flow Tab - Refrigerant Inputs Super Heat","Range","Pass/Fail Check",null,"Air Flow Tab 2 - Refrigerant Inputs Super Heat","Range","Pass/Fail Check",null,"Air Flow Tab 3 - Refrigerant Inputs Super Heat","Range","Pass/Fail Check",null,null,"Air Flow Tab 4 - Refrigerant Inputs Super Heat","Range","Pass/Fail Check",null,null,"Air Flow Tab 5 - Refrigerant Inputs Super Heat","Range","Pass/Fail Check",null,null,"Air Flow Tab 6 - Refrigerant Inputs Super Heat","Range","Pass/Fail Check",null,null,"Air Flow Tab 7 - Refrigerant Inputs Super Heat","Range","Pass/Fail Check",null,null,"Air Flow Tab 8 - Refrigerant Inputs Super Heat","Range","Pass/Fail Check",null,null,"Air Flow Tab 9 - Refrigerant Inputs Super Heat","Range","Pass/Fail Check",null,null,"Air Flow Tab 10 - Refrigerant Inputs Super Heat","Range","Pass/Fail Check"]
[null,null,null,null,null,null,null,"Electric Electric Resistance",true,false,0,3.4129999999999998,0.8,{"$f":"$A$12/$D$8","v":5.4259276059149056E-4},"ton CO2/kWh",null,null,null,"Ducted ASHP EH Tier I","CH211-N-EH","Cool Homes Heat Pump","Cooling - HVAC Equipment","CH - ASHP EH New TIER 1",800,500,0.65,1,1,0.1,0,8.5000000000000006E-2,0.06,null,"Manufactured Spec Superheat","5-30",{"$f":"IF(AND('AIRFLOW FORM'!$E$75>=5,'AIRFLOW FORM'!$E$75<=30),\"\",\"FAIL\")","v":"FAIL"},null,"Manufactured Spec Superheat","5-30",{"$f":"IF(AND('AIRFLOW FORM 2'!$E$101>=5,'AIRFLOW FORM 2'!$E$101<=30),\"\",\"FAIL\")","v":"FAIL"},null,"Manufactured Spec Superheat","5-30",{"$f":"IF(AND('AIRFLOW FORM 3'!$E$101>=5,'AIRFLOW FORM 3'!$E$101<=30),\"\",\"FAIL\")","v":"FAIL"},null,null,"Manufactured Spec Superheat","5-30",{"$f":"IF(AND('AIRFLOW FORM 4'!$E$101>=5,'AIRFLOW FORM 4'!$E$101<=30),\"\",\"FAIL\")","v":"FAIL"},null,null,"Manufactured Spec Superheat","5-30",{"$f":"IF(AND('AIRFLOW FORM 5'!$E$101>=5,'AIRFLOW FORM 5'!$E$101<=30),\"\",\"FAIL\")","v":"FAIL"},null,null,"Manufactured Spec Superheat","5-30",{"$f":"IF(AND('AIRFLOW FORM 6'!$E$101>=5,'AIRFLOW FORM 6'!$E$101<=30),\"\",\"FAIL\")","v":"FAIL"},null,null,"Manufactured Spec Superheat","5-30",{"$f":"IF(AND('AIRFLOW FORM 7'!$E$101>=5,'AIRFLOW FORM 7'!$E$101<=30),\"\",\"FAIL\")","v":"FAIL"},null,null,"Manufactured Spec Superheat","5-30",{"$f":"IF(AND('AIRFLOW FORM 8'!$E$101>=5,'AIRFLOW FORM 8'!$E$101<=30),\"\",\"FAIL\")","v":"FAIL"},null,null,"Manufactured Spec Superheat","5-30",{"$f":"IF(AND('AIRFLOW FORM 9'!$E$101>=5,'AIRFLOW FORM 9'!$E$101<=30),\"\",\"FAIL\")","v":"FAIL"},null,null,"Manufactured Spec Superheat","5-30",{"$f":"IF(AND('AIRFLOW FORM 10'!$E$101>=5,'AIRFLOW FORM 10'!$E$101<=30),\"\",\"FAIL\")","v":"FAIL"}]
[null,null,null,null,null,null,null,"Electric ASHP",true,false,0,8.1999999999999993,1,{"$f":"A12/D8","v":5.4259276059149056E-4},"ton CO2/kWh",null,null,null,"Ducted ASHP EH Tier II","CH212-N-EH","Cool Homes Heat Pump","Cooling - HVAC Equipment","CH - ASHP EH New TIER 2",1000,500,0.65,1,1,0.1,0,8.5000000000000006E-2,0.06,null,"Indoor Wet Bulb Temp","50-80",{"$f":"IF(AND('AIRFLOW FORM'!$E$78>=50,'AIRFLOW FORM'!$E$78<=80),\"\",\"FAIL\")","v":"FAIL"},null,"Indoor Wet Bulb Temp","50-80",{"$f":"IF(AND('AIRFLOW FORM 2'!$E$104>=50,'AIRFLOW FORM 2'!$E$104<=80),\"\",\"FAIL\")","v":"FAIL"},null,"Indoor Wet Bulb Temp","50-80",{"$f":"IF(AND('AIRFLOW FORM 3'!$E$104>=50,'AIRFLOW FORM 3'!$E$104<=80),\"\",\"FAIL\")","v":"FAIL"},null,null,"Indoor Wet Bulb Temp","50-80",{"$f":"IF(AND('AIRFLOW FORM 4'!$E$104>=50,'AIRFLOW FORM 4'!$E$104<=80),\"\",\"FAIL\")","v":"FAIL"},null,null,"Indoor Wet Bulb Temp","50-80",{"$f":"IF(AND('AIRFLOW FORM 5'!$E$104>=50,'AIRFLOW FORM 5'!$E$104<=80),\"\",\"FAIL\")","v":"FAIL"},null,null,"Indoor Wet Bulb Temp","50-80",{"$f":"IF(AND('AIRFLOW FORM 6'!$E$104>=50,'AIRFLOW FORM 6'!$E$104<=80),\"\",\"FAIL\")","v":"FAIL"},null,null,"Indoor Wet Bulb Temp","50-80",{"$f":"IF(AND('AIRFLOW FORM 7'!$E$104>=50,'AIRFLOW FORM 7'!$E$104<=80),\"\",\"FAIL\")","v":"FAIL"},null,null,"Indoor Wet Bulb Temp","50-80",{"$f":"IF(AND('AIRFLOW FORM 8'!$E$104>=50,'AIRFLOW FORM 8'!$E$104<=80),\"\",\"FAIL\")","v":"FAIL"},null,null,"Indoor Wet Bulb Temp","50-80",{"$f":"IF(AND('AIRFLOW FORM 9'!$E$104>=50,'AIRFLOW FORM 9'!$E$104<=80),\"\",\"FAIL\")","v":"FAIL"},null,null,"Indoor Wet Bulb Temp","50-80",{"$f":"IF(AND('AIRFLOW FORM 10'!$E$104>=50,'AIRFLOW FORM 10'!$E$104<=80),\"\",\"FAIL\")","v":"FAIL"}]
["Smart Thermostats",null,null,null,null,null,null,"Natural Gas Other",false,true,15,0.81,0.8,6.6879999999999995E-2,"ton CO2/MMBTU",null,null,null,"Ducted ccASHP EH Tier II","CH221-N-EH","Cool Homes Heat Pump","Cooling - HVAC Equipment","CH - ASHP EH New TIER 2",1000,500,0.65,1,1,0.1,0,8.5000000000000006E-2,0.06,null,"Outdoor Dry Bulb Temp","50-100",{"$f":"IF(AND('AIRFLOW FORM'!$E$80>=50,'AIRFLOW FORM'!$E$80<=100),\"\",\"FAIL\")","v":"FAIL"},null,"Outdoor Dry Bulb Temp","50-100",{"$f":"IF(AND('AIRFLOW FORM 2'!$E$106>=50,'AIRFLOW FORM 2'!$E$106<=100),\"\",\"FAIL\")","v":"FAIL"},null,"Outdoor Dry Bulb Temp","50-100",{"$f":"IF(AND('AIRFLOW FORM 3'!$E$106>=50,'AIRFLOW FORM 3'!$E$106<=100),\"\",\"FAIL\")","v":"FAIL"},null,null,"Outdoor Dry Bulb Temp","50-100",{"$f":"IF(AND('AIRFLOW FORM 4'!$E$106>=50,'AIRFLOW FORM 4'!$E$106<=100),\"\",\"FAIL\")","v":"FAIL"},null,null,"Outdoor Dry Bulb Temp","50-100",{"$f":"IF(AND('AIRFLOW FORM 5'!$E$106>=50,'AIRFLOW FORM 5'!$E$106<=100),\"\",\"FAIL\")","v":"FAIL"},null,null,"Outdoor Dry Bulb Temp","50-100",{"$f":"IF(AND('AIRFLOW FORM 6'!$E$106>=50,'AIRFLOW FORM 6'!$E$106<=100),\"\",\"FAIL\")","v":"FAIL"},null,null,"Outdoor Dry Bulb Temp","50-100",{"$f":"IF(AND('AIRFLOW FORM 7'!$E$106>=50,'AIRFLOW FORM 7'!$E$106<=100),\"\",\"FAIL\")","v":"FAIL"},null,null,"Outdoor Dry Bulb Temp","50-100",{"$f":"IF(AND('AIRFLOW FORM 8'!$E$106>=50,'AIRFLOW FORM 8'!$E$106<=100),\"\",\"FAIL\")","v":"FAIL"},null,null,"Outdoor Dry Bulb Temp","50-100",{"$f":"IF(AND('AIRFLOW FORM 9'!$E$106>=50,'AIRFLOW FORM 9'!$E$106<=100),\"\",\"FAIL\")","v":"FAIL"},null,null,"Outdoor Dry Bulb Temp","50-100",{"$f":"IF(AND('AIRFLOW FORM 10'!$E$106>=50,'AIRFLOW FORM 10'!$E$106<=100),\"\",\"FAIL\")","v":"FAIL"}]
[null,null,null,null,null,null,null,"Oil Other",false,true,15,0.83,0.8,7.3959999999999998E-2,"ton CO2/MMBTU",null,null,null,"Ductless Mini Split - ASHP EH Tier I","CH201-N-EH","Cool Homes Ductless","Cooling - HVAC Equipment","CH - DUCTLESS EH New TIER 1",800,500,0.65,1,1,0.1,0,8.5000000000000006E-2,0.06,null,"Vapor Pressure","110-160",{"$f":"IF(AND('AIRFLOW FORM'!$E$85>=110,'AIRFLOW FORM'!$E$85<=160),\"\",\"FAIL\")","v":"FAIL"},null,"Vapor Pressure","110-160",{"$f":"IF(AND('AIRFLOW FORM 2'!$E$111>=110,'AIRFLOW FORM 2'!$E$111<=160),\"\",\"FAIL\")","v":"FAIL"},null,"Vapor Pressure","110-160",{"$f":"IF(AND('AIRFLOW FORM 3'!$E$111>=110,'AIRFLOW FORM 3'!$E$111<=160),\"\",\"FAIL\")","v":"FAIL"},null,null,"Vapor Pressure","110-160",{"$f":"IF(AND('AIRFLOW FORM 4'!$E$111>=110,'AIRFLOW FORM 4'!$E$111<=160),\"\",\"FAIL\")","v":"FAIL"},null,null,"Vapor Pressure","110-160",{"$f":"IF(AND('AIRFLOW FORM 5'!$E$111>=110,'AIRFLOW FORM 5'!$E$111<=160),\"\",\"FAIL\")","v":"FAIL"},null,null,"Vapor Pressure","110-160",{"$f":"IF(AND('AIRFLOW FORM 6'!$E$111>=110,'AIRFLOW FORM 6'!$E$111<=160),\"\",\"FAIL\")","v":"FAIL"},null,null,"Vapor Pressure","110-160",{"$f":"IF(AND('AIRFLOW FORM 7'!$E$111>=110,'AIRFLOW FORM 7'!$E$111<=160),\"\",\"FAIL\")","v":"FAIL"},null,null,"Vapor Pressure","110-160",{"$f":"IF(AND('AIRFLOW FORM 8'!$E$111>=110,'AIRFLOW FORM 8'!$E$111<=160),\"\",\"FAIL\")","v":"FAIL"},null,null,"Vapor Pressure","110-160",{"$f":"IF(AND('AIRFLOW FORM 9'!$E$111>=110,'AIRFLOW FORM 9'!$E$111<=160),\"\",\"FAIL\")","v":"FAIL"},null,null,"Vapor Pressure","110-160",{"$f":"IF(AND('AIRFLOW FORM 10'!$E$111>=110,'AIRFLOW FORM 10'!$E$111<=160),\"\",\"FAIL\")","v":"FAIL"}]
["GSHP",null,"Home Performance Thermostat",null,null,null,null,"Electric Other",true,false,0,3.4129999999999998,0.8,6.0825682663521725E-4,"ton CO2/kWh",null,null,null,"Ductless Mini Split - ASHP EH Tier II","CH202-N-EH","Cool Homes Ductless","Cooling - HVAC Equipment","CH - DUCTLESS EH New TIER 2",1000,500,0.65,1,1,0.1,0,8.5000000000000006E-2,0.06,null,"Saturation Temp","35-95",{"$f":"IF(AND('AIRFLOW FORM'!$E$87>=35,'AIRFLOW FORM'!$E$87<=95),\"\",\"FAIL\")","v":"FAIL"},null,"Saturation Temp","35-95",{"$f":"IF(AND('AIRFLOW FORM 2'!$E$113>=35,'AIRFLOW FORM 2'!$E$113<=95),\"\",\"FAIL\")","v":"FAIL"},null,"Saturation Temp","35-95",{"$f":"IF(AND('AIRFLOW FORM 3'!$E$113>=35,'AIRFLOW FORM 3'!$E$113<=95),\"\",\"FAIL\")","v":"FAIL"},null,null,"Saturation Temp","35-95",{"$f":"IF(AND('AIRFLOW FORM 4'!$E$113>=35,'AIRFLOW FORM 4'!$E$113<=95),\"\",\"FAIL\")","v":"FAIL"},null,null,"Saturation Temp","35-95",{"$f":"IF(AND('AIRFLOW FORM 5'!$E$113>=35,'AIRFLOW FORM 5'!$E$113<=95),\"\",\"FAIL\")","v":"FAIL"},null,null,"Saturation Temp","35-95",{"$f":"IF(AND('AIRFLOW FORM 6'!$E$113>=35,'AIRFLOW FORM 6'!$E$113<=95),\"\",\"FAIL\")","v":"FAIL"},null,null,"Saturation Temp","35-95",{"$f":"IF(AND('AIRFLOW FORM 7'!$E$113>=35,'AIRFLOW FORM 7'!$E$113<=95),\"\",\"FAIL\")","v":"FAIL"},null,null,"Saturation Temp","35-95",{"$f":"IF(AND('AIRFLOW FORM 8'!$E$113>=35,'AIRFLOW FORM 8'!$E$113<=95),\"\",\"FAIL\")","v":"FAIL"},null,null,"Saturation Temp","35-95",{"$f":"IF(AND('AIRFLOW FORM 9'!$E$113>=35,'AIRFLOW FORM 9'!$E$113<=95),\"\",\"FAIL\")","v":"FAIL"},null,null,"Saturation Temp","35-95",{"$f":"IF(AND('AIRFLOW FORM 10'!$E$113>=35,'AIRFLOW FORM 10'!$E$113<=95),\"\",\"FAIL\")","v":"FAIL"}]
["Ducted ccASHP",null,false,null,null,null,null,"Propane Other",false,true,15,0.81,0.8,6.2869999999999995E-2,"ton CO2/MMBTU",null,null,null,"Ductless Mini Split - ccASHP EH Tier II","CH220-N-EH","Cool Homes Ductless","Cooling - HVAC Equipment","CH - DUCTLESS EH New TIER 2",1000,500,0.65,1,1,0.1,0,8.5000000000000006E-2,0.06,null,"Vapor Line Temp","40-90",{"$f":"IF(AND('AIRFLOW FORM'!$E$89>=40,'AIRFLOW FORM'!$E$89<=90),\"\",\"FAIL\")","v":"FAIL"},null,"Vapor Line Temp","40-90",{"$f":"IF(AND('AIRFLOW FORM 2'!$E$115>=40,'AIRFLOW FORM 2'!$E$115<=90),\"\",\"FAIL\")","v":"FAIL"},null,"Vapor Line Temp","40-90",{"$f":"IF(AND('AIRFLOW FORM 3'!$E$115>=40,'AIRFLOW FORM 3'!$E$115<=90),\"\",\"FAIL\")","v":"FAIL"},null,null,"Vapor Line Temp","40-90",{"$f":"IF(AND('AIRFLOW FORM 4'!$E$115>=40,'AIRFLOW FORM 4'!$E$115<=90),\"\",\"FAIL\")","v":"FAIL"},null,null,"Vapor Line Temp","40-90",{"$f":"IF(AND('AIRFLOW FORM 5'!$E$115>=40,'AIRFLOW FORM 5'!$E$115<=90),\"\",\"FAIL\")","v":"FAIL"},null,null,"Vapor Line Temp","40-90",{"$f":"IF(AND('AIRFLOW FORM 6'!$E$115>=40,'AIRFLOW FORM 6'!$E$115<=90),\"\",\"FAIL\")","v":"FAIL"},null,null,"Vapor Line Temp","40-90",{"$f":"IF(AND('AIRFLOW FORM 7'!$E$115>=40,'AIRFLOW FORM 7'!$E$115<=90),\"\",\"FAIL\")","v":"FAIL"},null,null,"Vapor Line Temp","40-90",{"$f":"IF(AND('AIRFLOW FORM 8'!$E$115>=40,'AIRFLOW FORM 8'!$E$115<=90),\"\",\"FAIL\")","v":"FAIL"},null,null,"Vapor Line Temp","40-90",{"$f":"IF(AND('AIRFLOW FORM 9'!$E$115>=40,'AIRFLOW FORM 9'!$E$115<=90),\"\",\"FAIL\")","v":"FAIL"},null,null,"Vapor Line Temp","40-90",{"$f":"IF(AND('AIRFLOW FORM 10'!$E$115>=40,'AIRFLOW FORM 10'!$E$115<=90),\"\",\"FAIL\")","v":"FAIL"}]
["Ductless Mini Split - ccASHP",null,null,null,null,null,null,"PTHP",true,false,0,3.08,1,6.0825682663521725E-4,"ton CO2/kWh",null,null,null,"CH Thermostat Cooling","CH400","Residential HVAC - Other","Cooling - HVAC Equipment","CH - Smart Thermostat Cooling",null,null,0.65,1,1,0.1,0,8.5000000000000006E-2,0.06]
["Ducted ASHP",null,null,null,null,null,"*","New Construction",false,true,15,0.80499999999999994,1,7.3959999999999998E-2,"ton CO2/MMBTU",null,null,null,"CH Thermostat Heating Cooling","CH401","Residential HVAC - Other","Cooling - HVAC Equipment","CH - Smart Thermostat Heating Cooling",null,null,0.65,1,1,0.1,0,8.5000000000000006E-2,0.06]
["Ductless Mini Split - ASHP",null,null,null,null,null,null,{"$f":"IF(OR($L$4=\"\",H14=\"\"),\"\",IF($H$14=\"New Construction\",\"New Construction\",$H$14&\" \"&$L$4))","v":""},{"$f":"IF($H$36=\"\",\"\",INDEX(I20:I35,MATCH($H$36,$H$20:$H$35,0)))","v":""},{"$f":"IF($H$36=\"\",\"\",INDEX(J20:J35,MATCH($H$36,$H$20:$H$35,0)))","v":""},"","","","",null,null,null,null,"HP Thermostat","HP400","Residential HVAC - Other","Cooling - HVAC Equipment","HPD - Smart Thermostat",null,null,0.65,1,1,0.1,0,8.5000000000000006E-2,0.06]
["Ducted Split CAC",null,null,null,null,null,null,"CO2 values:","https://www.epa.gov/sites/production/files/2015-07/documents/emission-factors_2014.pdf",null,null,null,null,null,null,null,null,null,"New Ducted ASHP Tier I","CH211-N","Cool Homes Heat Pump","Cooling - HVAC Equipment","CH - ASHP New TIER 1",800,500,0.65,1,1,0.1,0,8.5000000000000006E-2,0.06]
["Ductless Mini Split - AC Only",null,null,null,null,null,null,"Existing Heat Eff.:","https://www.ecfr.gov/cgi-bin/text-idx?SID=86e70cbc87e5af18caca2e5c205bd107&mc=true&node=se10.3.430_132&rgn=div8",null,null,null,null,null,null,null,null,null,"New Ducted ASHP Tier II","CH211-R","Cool Homes Heat Pump","Cooling - HVAC Equipment","CH - ASHP New TIER 2",1000,500,0.65,1,1,0.1,0,8.5000000000000006E-2,0.06]
["Smart Thermostat",null,null,null,null,null,null,"*For New Construction, oil heating is considered the baseline ",null,null,null,null,null,null,null,null,null,null,"New Ductless Mini Split - ASHP Tier I","CH214-N","Cool Homes Ductless","Cooling - HVAC Equipment","CH - DUCTLESS ASHP New TIER 3",800,500,0.65,1,1,0.1,0,8.5000000000000006E-2,0.06]
["Install Type",null,null,"kW","kWh",null,null,null,null,null,null,null,null,null,null,null,null,null,"Retrofit Ducted ASHP Tier I","CH214-R","Cool Homes Heat Pump","Cooling - HVAC Equipment","CH - ASHP Retrofit TIER 1",350,125,0.65,1,1,0.1,0,8.5000000000000006E-2,0.06]
[1,"Cooling Only","CH Thermostat Cooling",0,139.53,null,null,null,null,null,null,null,null,null,null,null,null,null,"Retrofit Ducted ASHP Tier II","CH215-N","Cool Homes Heat Pump","Cooling - HVAC Equipment","CH - ASHP Retrofit TIER 2",400,150,0.65,1,1,0.1,0,8.5000000000000006E-2,0.06]
[2,"Home Performance","HP Thermostat",0,174,null,null,null,null,null,null,null,null,null,null,null,null,null,"Retrofit Ductless Mini Split - ASHP Tier I","CH311-R","Cool Homes Ductless","Cooling - HVAC Equipment","CH - DUCTLESS ASHP Retrofit TIER 3",250,null,0.65,1,1,0.1,0,8.5000000000000006E-2,0.06]
[3,"Heating/Cooling","CH Thermostat Heating Cooling",0,139.53,null,null,null,null,null,null,null,null,null,null,null,null,null,"Retrofit Ducted ccASHP Tier II","CH312-R","Cool Homes Heat Pump","Cooling - HVAC Equipment","CH - ccASHP Retrofit TIER 1",1000,200,0.65,1,1,0.1,0,8.5000000000000006E-2,0.06]
[null,null,null,null,null,null,null,null,null,null,null,null,null,null,null,null,null,null,"Retrofit Ductless Mini Split - ccASHP Tier I","CH313-N","Cool Homes Ductless","Cooling - HVAC Equipment","CH - DUCTLESS ccASHP Retrofit",800,null,0.65,1,1,0.1,0,8.5000000000000006E-2,0.06]
[null,null,null,null,null,null,null,null,null,null,null,null,null,null,null,null,null,null,"CH Integrated Controls","CH402 ","Residential HVAC - Other","Cooling - HVAC Equipment","CH - Integrated Controls",500,0,0.65,1,1,0.1,0,8.5000000000000006E-2,0.06]
["Manufacturers",null,"Efficiency Savings Factors",null,null,null,null,null,null,null,null,null,null,null,null,null,null,null,"New Ducted Split CAC Tier I","CH212-N","Cool Homes CAC","Cooling - HVAC Equipment","CH - CAC New TIER 1",175,75,0.8,1,1,0.1,0,8.5000000000000006E-2,0.06]
["Alarm.com",null,"Cooling",0.1,null,null,null,null,null,null,null,null,null,null,null,null,null,null,"New Ducted Split CAC Tier II","CH212-R","Cool Homes CAC","Cooling - HVAC Equipment","CH - CAC New TIER 2",250,100,0.8,1,1,0.1,0,8.5000000000000006E-2,0.06]
["Ecobee",null,"Heating",0.08,null,null,null,null,null,null,null,null,null,null,null,null,null,null,"New Ducted Split CAC Tier III","CH213-N","Cool Homes CAC","Cooling - HVAC Equipment","CH - CAC New TIER 3",350,125,0.8,1,1,0.1,0,8.5000000000000006E-2,0.06]
["Emerson ",null,null,null,null,null,null,null,null,null,null,null,null,null,null,null,null,null,"New Ductless Mini Split - AC Only Tier I","CH213-R","Cool Homes Ductless","Cooling - HVAC Equipment","CH - DUCTLESS AC New TIER 3",150,null,0.8,1,1,0.1,0,8.5000000000000006E-2,0.06]
["Honeywell Lyric",null,null,null,null,null,null,null,null,null,null,null,null,null,null,null,null,null,"Retrofit Ducted Split CAC Tier I","CH215-R","Cool Homes CAC","Cooling - HVAC Equipment","CH - CAC Retrofit TIER 1",175,75,0.8,1,1,0.1,0,8.5000000000000006E-2,0.06]
["Honeywell TCC",null,null,null,null,null,null,null,null,null,null,null,null,null,null,null,null,null,"Retrofit Ducted Split CAC Tier II","CH216-N","Cool Homes CAC","Cooling - HVAC Equipment","CH - CAC Retrofit TIER 2",250,100,0.8,1,1,0.1,0,8.5000000000000006E-2,0.06]
["Lux",null,null,null,null,null,null,null,null,null,null,null,null,null,null,null,null,null,"Retrofit Ducted Split CAC Tier III","CH216-R","Cool Homes CAC","Cooling - HVAC Equipment","CH - CAC Retrofit TIER 3",350,125,0.8,1,1,0.1,0,8.5000000000000006E-2,0.06]
["Nest",null,null,null,null,null,null,null,null,null,null,null,null,null,null,null,null,null,"Retrofit Ductless Mini Split - AC Only","CH311-N","Cool Homes Ductless","Cooling - HVAC Equipment","CH - DUCTLESS AC Retrofit TIER 3",150,null,0.8,1,1,0.1,0,8.5000000000000006E-2,0.06]
["Radio Thermostat",null,null,null,null,null,null,null,null,null,null,null,null,null,null,null,null,null,"New Packaged Terminal Heat Pump Tier I","CH217-N","Cool Homes Heat Pump","Cooling - HVAC Equipment","CH - PTHP New TIER 1",100,null,0.8,1,1,0.1,0,8.5000000000000006E-2,0.06]
["Vivint GoControl",null,null,null,null,null,null,null,null,null,null,null,null,null,null,null,null,null,"Retrofit Packaged Terminal Heat Pump Tier I","CH217-R","Cool Homes Heat Pump","Cooling - HVAC Equipment","CH - PTHP Retrofit TIER 1",100,null,0.8,1,1,0.1,0,8.5000000000000006E-2,0.06]
[]
["Alarm.com","Ecobee","Honeywell Lyric","Honeywell TCC","Lux","Nest","Radio Thermostat","Emerson ","Vivint GoControl",null,null,null,null,null,null,null,null,null,null,null,null,null,null,null,null,null,null,null,"Heating Savings (High Efficiency ASHP replacing Electric Resistance)"]
[]
["Radio Thermostat CT30","ecobee3","Lyric Round","Wi-Fi Smart Thermostat","LUX/GEO","Nest Learning Thermostat","Filtrete 3M-50","Sensi Wi-Fi Programmable Thermostat","Radio Thermostat CT 100 w/Vivint Go!Control Panel",null,null,null,null,null,null,null,null,null,null,null,null,null,null,null,null,null,null,null,null,"ASHP","Elec Resistance","Gross Savings (kWh)"]
["Radio Thermostat CT80","ecobee Smart","Lyric T5","Wi-Fi Smart Thermostat w/Voice Control","LUX KONO","Nest Thermostat E","CT30","Sensi Touch Wi-Fi Thermostat",null,null,null,null,null,null,null,null,null,null,null,null,null,null,null,null,null,null,null,null,"Load (kWh)",5772,5772]
["Radio Thermostat CT100","ecobee Smart Si","Lyric T6 Pro","Wi-Fi 7 Day Programmable Thermostat",null,null,"CT50",null,null,null,null,null,null,null,null,null,null,null,null,null,null,null,null,null,null,null,null,null,"kWh Consumption on Equipment Side",2060.0485355648534,5772,{"$f":"(AE61-AD61)*0.8","v":2969.5611715481173}]
["Trane ComfortLink Control","ecobee3 lite",null,"Wi-Fi 7 Day Programmable Touchscreen Thermostat",null,null,"CT80"]
["RCS Z-Wave Communicating Thermostat","ecobee4",null,"Wi-Fi 9000"]
["GoControl Z-Wave Thermostat",null,null,"Wi-Fi 9000 w/Voice Control"]
["Alarm.com Smart Thermostat",null,null,"Wi-Fi Focus Pro"]
[]
[]
[]
["Alarm.com","Ecobee","Honeywell Lyric","Honeywell TCC","Lux","Nest","Radio Thermostat","Emerson ","Vivint GoControl"]
[]
["T10","ecobee3","Honeywell Lyric Round","Honeywell Wi-Fi 9000","GEO","Nest Learning Thermostat","CT50 V1.09","Emerson Sensi Classic","CT100"]
["CT100","ecobee Smart","Honeywell Lyric T-Series","Honeywell Wi-Fi Focus Pro","KONO3","Nest Thermostat E","CT50 V1.94","Emerson Sensi","CT30"]
["NTBZ48","ecobee Smart Si","Honeywell Lyric T-Series","Honeywell Wi-Fi Vision Pro",null,null,"CT30 V1.92","Emerson Sensi Classic 1F86U-42WF"]
["CT30","ecobee3 lite",null,"Honeywell Wi-Fi 9000 Voice",null,null,"CT50 V1.88","Emerson Sensi Classic with HomeKit"]
["TBZ48A","ecobee4",null,"Honeywell Duo Wifi Trade",null,null,"CT80 Rev B2 V1.09","Emerson Sensi Classic UP500W"]
["CT80",null,null,"Honeywell Sonic Redlink",null,null,"CT30 V1.94","Emerson Sensi Touch"]
["TRANE_TZ4x",null,null,null,null,null,"CT50 V1.92","Emerson Sensi Classic with HomeKit ST55"]
["LINEAR_TBZx",null,null,null,null,null,"CT80 Rev B2 V1.10","Emerson Sensi Classic UP500WB1"]
["TZ45",null,null,null,null,null,"CT80 Rev B2 V1.99D","Emerson Sensi Classic with HomeKit 1F87U-42WF"]
["TZ45 400A",null,null,null,null,null,null,"Emerson Sensi Touch ST75"]
["TZ45A",null,null,null,null,null,null,"Emerson Sensi Touch ST75W"]
["TBZ48",null,null,null,null,null,null,"Emerson Sensi Touch 1F95U-42WF"]
[]
["Unit Controlled",null,"Thermostat Model","Connected/Learning*","*Qualify for TRM Learning Savinngs if ES listed to save at least 10% of cooling savings and learing/geofencing capability. Otherwise, written as connected."]
[1,null,"Radio Thermostat CT30","Connected"]
[2,null,"Radio Thermostat CT80","Connected"]
[3,null,"Radio Thermostat CT100","Connected"]
[4,null,"Trane ComfortLink Control","Connected"]
[5,null,"RCS Z-Wave Communicating Thermostat","Connected"]
[6,null,"GoControl Z-Wave Thermostat","Connected"]
[7,null,"Alarm.com Smart Thermostat","Connected"]
[8,null,"ecobee3","Connected","*discontinued and will not be considered Learning"]
[9,null,"ecobee Smart","Connected","*discontinued and will not be considered Learning"]
[10,null,"ecobee Smart Si","Connected","*discontinued and will not be considered Learning"]
[null,null,"ecobee3 lite","Learning"]
[null,null,"ecobee4","Learning"]
[null,null,"Lyric Round","Learning"]
[null,null,"Lyric T5","Learning"]
[null,null,"Lyric T6 Pro","Learning"]
[null,null,"Wi-Fi Smart Thermostat","Connected"]
[null,null,"Wi-Fi Smart Thermostat w/Voice Control","Connected"]
[null,null,"Wi-Fi 7 Day Programmable Thermostat","Connected"]
[null,null,"Wi-Fi 7 Day Programmable Touchscreen Thermostat","Connected"]
[null,null,"Wi-Fi 9000","Connected"]
[null,null,"Wi-Fi 9000 w/Voice Control","Connected"]
[null,null,"Wi-Fi Focus Pro","Connected"]
[null,null,"LUX/GEO","Learning"]
[null,null,"LUX KONO","Learning"]
[null,null,"Nest Learning Thermostat","Learning"]
[null,null,"Nest Thermostat E","Learning"]
[null,null,"Filtrete 3M-50","Connected"]
[null,null,"CT30","Connected"]
[null,null,"CT50","Connected"]
[null,null,"CT80","Connected"]
[null,null,"Sensi Wi-Fi Programmable Thermostat","Learning"]
[null,null,"Sensi Touch Wi-Fi Thermostat","Learning"]
[null,null,"Radio Thermostat CT 100 w/Vivint Go!Control Panel","Connected"]
[]
["Dual Fuel Thermostats &Integrated Control Kits"]
["Which one is installed?",null,null,"Model Names"]
["Dual Fuel Thermostat",null,null,"Aprilaire","Bosche","Bryant","Building36","Carrier","Ecobee","Honeywell Home","Lennox Industries Inc.","LG Electronics","Nest","Nexia","Robertshaw","Tekmar"]
["Integrated Control",null,null,8446,"Bosch Connected Control BCC100 Thermostat","Evolution System Control","Intelligent Thermostat","COR","Ecobee 3 lite","Prestige IAQ","iComfort E30","Thermostat","Nest Third Gen","Trane/American Standard/Service First","Robertshaw","Invita"]
[null,null,null,8448,null,"COR",null,"COR 5C","Ecobee 4","Smart Round","iComfort M30"]
["Manufacturers",null,null,8465,null,"COR 5C",null,"COR 7C","Ecobee Smart Thermostat with Voice Control","T6 Pro","iComfort S30"]
["Dual Fuel Thermostat","Integrated Control",null,8466,null,"COR 7C",null,"Infintiy System Control",null,"T6 Pro Smart","iComfort WiFi"]
["Aprilaire","Carrier",null,8476,null,null,null,null,null,"VisionPro 800 Smart"]
["Bosche","CMNA ICP-MIDEA",null,8600,null,null,null,null,null,"VisionPro 800 Smart"]
["Bryant","Daikin",null,8620,null,null,null,null,null,"WiFi 8000"]
["Building36","EWC Controls",null,8910]
["Carrier","Fujitsu",null,"8476W"]
["Ecobee","Gree",null,"8620W"]
["Honeywell Home","Haier",null,"8910W"]
["Lennox Industries Inc.","LG Electronics",null,"8920W"]
["LG Electronics","Mitsubishi Electric",null,8800]
["Nest","Samsung Electric",null,8810]
["Nexia","Panasonic",null,8820]
["Robertshaw",null,null,8830]
["Tekmar",null,null,8840]
[]
["Based on list above. If not on list above, it will not be counted.",null,null,"Model Numbers"]
["Model","Capability",null,"Aprilaire","Bosche","Bryant","Building36","Carrier","Ecobee","Honeywell Home","Lennox Industries Inc.","LG Electronics","Nest","Nexia","Robertshaw","Tekmar"]
[8446,null,null,8446,"BCC100","SYSTXBBECC01","B36-T10","T6-WEM01-A","EB-STATE3LT***","YTHX9421R5085WW","E30","PREMTVBC0","T3008US","ACONT824AS52D*","9725I2",564]
[8448,null,null,8448,null,"T6-WEM01-A",null,"TSTWHA01","EB-STATE4***","YTHX9421R5101WW","M30","PREMTBVC1","T3016US","TCONT824AS52D*","9825I2","564B"]
[8465,null,null,8465,null,"TSTWHA01",null,"TSTWRH01","EB-STATE5***","TH8732WFH 5002","S30",null,"T3017US","ACONT724AS42D*",null,557]
[8466,null,null,8466,null,"TSTWRH01",null,"SYSTXCCITC01-B",null,"TH6320U 2008","WiFi",null,"T3021US","TCONT724AS42D*",null,563]
[8476,null,null,8476,null,null,null,null,null,"TH6320WF 2003",null,null,null,"ACONT624AS42D*"]
[8600,null,null,8600,null,null,null,null,null,"TH8320R 1003",null,null,null,"TCONT624AS42D*"]
[8620,null,null,8620,null,null,null,null,null,"TH8321R 1001",null,null,null,"AZON1050AC52Z*"]
[8910,null,null,8910,null,null,null,null,null,"TH8321WF 1001",null,null,null,"TZON1050AC52Z*"]
["8476W",null,null,"8476W",null,null,null,null,null,null,null,null,null,"ACONT850AC52U*"]
["8620W",null,null,"8620W",null,null,null,null,null,null,null,null,null,"TCONT850AC52U*"]
["8910W",null,null,"8910W"]
["8920W",null,null,"8920W"]
[8800,null,null,8800]
[8810,null,null,8810]
[8820,null,null,8820]
[8830,null,null,8830]
[8840,null,null,8840]
["BCC100"]
["SYSTXBBECC01",null,null,"Control Kits- Model Names"]
["T6-WEM01-A",null,null,"Carrier","CMNA ICP-MIDEA","Daikin","EWC Controls","Fujitsu","Gree","Haier","LG Electronics","Mitsubishi Electric","Samsung Electric","Panasonic"]
["TSTWHA01",null,null,"24V Interface","24V Interface","ENVI","Ultra-Zone","Wired Remote Controller (Touch Panel)","Flair Puck + Honeywell T6 Pro Smart","IFTTT","Third Party Tstat Method L Model Series IDU","T-stat Interface + Transformer","Thermostat Adaptor","Honeywell LYRIC"]
["TSTWRH01",null,null,null,null,null,null,"Novus N2020",null,null,"AUX Heater Kit Highwall Multi","Kumo Station + Kumo Cloud + Outdoor Temperature Sensor",null,"Honeywell LYRIC T6"]
["B36-T10",null,null,null,null,null,null,"Thermostat Converter",null,null,"Aux Heater Kit All Ducted/Cassette",null,null,"IFTTT Connect"]
["T6-WEM01-A",null,null,null,null,null,null,null,null,null,"Third Party Tstat Method A Model Series IDU"]
["TSTWHA01",null,null,null,null,null,null,null,null,null,"A Series IDU Model - Dry Contact Built In"]
["TSTWRH01"]
["SYSTXCCITC01-B",null,null,"Control Kits- Model Number"]
["EB-STATE3LT***","Learning",null,"Carrier","CMNA ICP-MIDEA","Daikin","EWC Controls","Fujitsu","Gree","Haier","LG Electronics","Mitsubishi Electric","Samsung Electric","Panasonic"]
["EB-STATE4***","Learning",null,"KSAIC0301230","KSAIC0401230","DACA-TSI-1","BMPlus 3000","UTY-RNRUZ2","ICS001P","QAWF01A","PDRYCB300","PAC-US444CN-1","TADPT2","TH8732WFH5002/U"]
["EB-STATE5***","Learning",null,null,null,null,"BMPlus 5000",8202011300,null,null,"PRARS1","PAC-WHS01HC-E",null,"TH6220WF2006"]
["YTHX9421R5085WW","Connected",null,null,null,null,"BMPlus 7000","UTY-TTRX",null,null,"PRARH0","C7089U1006/U",null,"PICDF19"]
["YTHX9421R5101WW","Connected",null,null,null,null,"UZC-4",null,null,null,"IDU MODEL","PAC-USWHS002-WF-1"]
["TH8732WFH 5002","Learning",null,null,null,null,"UZC-6",null,null,null,null,"VPL24-210"]
["TH6320U 2008","Learning"]
["TH6320WF 2003","Learning"]
["TH8320R 1003"]
["TH8321R 1001"]
["TH8321WF 1001","Connected"]
["E30"]
["M30"]
["S30"]
["WiFi"]
["PREMTVBC0"]
["PREMTBVC1"]
["T3008US","Learning"]
["T3016US","Learning"]
["T3017US","Learning"]
["T3021US","Learning"]
["ACONT824AS52D*"]

{"sheet":"Tables","index":13,"n_rows":19,"n_cols":36,"rows_kept":19,"cut":false,"hidden":true,"merged":[[2,14,2,29],[3,22,3,27],[4,26,5,26],[4,27,5,27],[8,24,8,25],[4,28,5,28],[7,14,7,17],[8,14,8,17],[8,22,8,23],[8,26,8,27],[6,14,6,17],[4,24,5,24],[4,25,5,25],[4,29,5,29],[14,32,15,32],[3,28,3,29],[4,18,5,18],[4,19,5,19],[4,20,5,20],[4,21,5,21],[4,22,5,22],[4,23,5,23],[14,31,15,31],[9,1,9,4],[3,14,5,17],[3,18,3,21],[13,31,13,32],[4,10,5,10],[4,11,5,11],[4,12,5,12],[6,1,6,4],[7,1,7,4],[8,1,8,4],[2,1,2,12],[3,1,5,4],[3,5,3,8],[3,9,3,10],[3,11,3,12],[4,5,5,5],[4,6,5,6],[4,7,5,7],[4,8,5,8],[4,9,5,9]]}
[]
[]
[null,"Projects for Customers with Electric Resistance Heating",null,null,null,null,null,null,null,null,null,null,null,null,"Whole House Projects"]
[null,"Eligible Equipment",null,null,null,"Efficiency Requirements",null,null,null,"Customer Incentive (per ton)",null,"Contractor Incentive (per project)",null,null,"Eligible Equipment",null,null,null,"Efficiency Requirements",null,null,null,"Customer Incentive (per ton)",null,null,null,null,null,"Contractor Incentive (per project)"]
[null,null,null,null,null,"Tier I SEER","Tier I HSPF","Tier II\nSEER","Tier II \nHSPF ","Tier I","Tier II","Tier I"," Tier II",null,null,null,null,null,"Tier I SEER","Tier I HSPF","Tier II\nSEER","Tier II \nHSPF ","Tier I\nNew Construction","Tier II\nNew Construction","Tier I\nExisting Oil w/ no CAC","Tier II\nExisting Oil w/ no CAC","Tier I\nAll Others","Tier II\nAll Others","Tier I","Tier II"]
[]
[null,"Ducted ASHP ",null,null,null,16,8.5,17,10,800,1000,500,500,null,"Ducted Cold Climate ASHP",null,null,null,"n/a","n/a",17,10,"n/a",1000,"n/a",800,"n/a",600,"n/a",500]
[null,"Ducted Cold Climate ASHP ",null,null,null,"n/a","n/a",17,10,"n/a",1000,"n/a",500,null,"Ductless Mini Split Systems - Cold Climate ASHP",null,null,null,"n/a","n/a",18,10,"n/a",1000,"n/a",800,"n/a",600,"n/a",500]
[null,"Ductless Mini Split Systems - ASHP ",null,null,null,18,8.5,18,10,800,1000,500,500]
[null,"Ductless Mini Split Systems - Cold Climate ASHP ",null,null,null,"n/a","n/a",18,10,"n/a",1000,"n/a",500]
[]
[]
[]
[null,null,null,null,null,null,null,null,null,null,null,null,null,null,null,null,null,null,null,null,null,null,null,null,null,null,null,null,null,null,null,"Contractor Incentive (per project)",null,null,"Contractor Incentive (per project)"]
[null,null,null,null,null,null,null,null,null,null,null,null,null,null,null,null,null,null,null,null,null,null,null,null,null,null,null,null,null,null,null,"Tier I"," Tier II",null,"Tier I"," Tier II"]
[]
[null,null,null,null,null,null,null,null,null,null,null,null,null,null,null,null,null,null,null,null,null,null,null,null,null,null,null,null,null,null,null,"n/a",500,null,"n/a",500]
[null,null,null,null,null,null,null,null,null,null,null,null,null,null,null,null,null,null,null,null,null,null,null,null,null,null,null,null,null,null,null,"n/a",500,null,"n/a",500]
[null,null,null,null,null,null,null,null,null,null,null,null,null,null,null,null,null,null,null,null,null,null,null,null,null,null,null,null,null,null,null,"n/a","n/a",null,"n/a","n/a"]

{"sheet":"ProposedEquipment0","index":14,"n_rows":25,"n_cols":137,"rows_kept":25,"cut":false,"hidden":true,"merged":[]}
["Row Number","BaseLine Row_ID","Product Line","Class Name","Product Name","Measure Code","Application ID","Application Version","Gross kW","Gross kWh","Gross Winter kW","Gross BE kWh","Delta Gross kWh","In Service Rate","Utility Gross kW","Utility Gross kWh","Utility Gross Winter kW","Utility Gross BE kWh","Delta Utility Gross kWh","Coincidence Factor","Free Ridership","Spillover","Line Loss Summer Demand (kW)","Line Loss Energy (kWh)","Net kW","Net kWh","Net Winter kW","Net BE kWh","Delta Net kWh","Total Net kW","Total Net kWh","Total Net Winter kW","Total Net BE kWh","Total Delta Net kWh","EE CO2 Savings","BE CO2 Savings","Total CO2 Savings","EE MMBTU Savings","BE MMBTU Savings","Total MMBTU Savings","Equipment Cost","Labor Cost","Total Cost","Elec Util Cust Incentive","Total Elec Util Cust Incentive","Contractor Incentive","Product Quantity","Location","Operation Hours","Waste Heat Factor – Demand","Waste Heat Factor - Energy","Proposed/Installed Wattage ","Lamp Type","Existing Device Code","Existing Wattage","kW Saved","Ballast Type","Wattage","Lamp Length (ft)","Number Lamps","Product ID","Watts Saved","Manufacturer","Model","Baseline EER","Baseline SEER","Baseline HSPF","Baseline Heating Efficiecny (%)","Baseline COP","Proposed/Installed EER","Proposed/Installed SEER","Proposed/Installed HSPF","Proposed/Installed COP","Full Load Hours Cool","Full Load Hours Heat","Cooling Btuh","Heating Btuh","Heating Fuel Type","Cooling Manual J","Heating Manual J","Condenser Manufacturer","Condenser Model","Condenser Serial#","Coil/Air Handler Manufacturer","Coil/Air Handler Model","Coil/Air Handler Serial#","Exist tons","Exist Mfr","Exist Model","QI kW C and A Factord","QI kW RS Factor","QI kWh Factor","QI kW C and A","QI kW RS","QI kWh","Primary Cooling","Primary Heating","Geothermal Loop Type","Energy Savings Factor kW","Energy Savings Factor kWh","Roof Area (sq ft)","Solar Reflectance Index (3YR)","Solar Reflectance Index (INITIAL)","Horsepower","CFM","Storage Capacity","Baseline Compressor Factor","Compressor Factor","Building Type ","Baseline Efficiency","Load Factor","Baseline Annual Usage (kWh)","Efficient Annual Usage (kWh)","Volume (ft3)","Harvest Rate (lb/day)","Bonus Factor","Total Load","Infiltration Factor - Closed","Infiltration Factor - Open","Free Cooling - Closed","Free Cooling - Open","Unit Type","Pre CFM","Post CFM","CFM Reduction","Existing AC Age","Building Square Footage","Pre Water Temperature","Post Water Temperature","Tank Insulation","Pre GPM","Post GPM","Conditioned","Pints per Day","Proposed EF","Dehumidifier Age","Workbook Name"]
[1,null,{"$f":"IF(OR(Worksheet!$V42=\"\",Worksheet!$V42=\"DNQ\",Worksheet!$V42=\"Missing Info\"),\"\",INDEX(References!V$22:V$45,MATCH(Qualifying_Index!$G27,References!$S$22:$S$45,0)))","v":""},{"$f":"IF(OR(Worksheet!$V42=\"\",Worksheet!$V42=\"DNQ\",Worksheet!$V3=\"Missing Info\"),\"\",INDEX(References!U$22:U$45,MATCH(Qualifying_Index!$G27,References!$S$22:$S$45,0)))","v":""},{"$f":"IF(OR(Worksheet!$V42=\"\",Worksheet!$V42=\"DNQ\",Worksheet!$V42=\"Missing Info\"),\"\",INDEX(References!W$22:W$45,MATCH(Qualifying_Index!$G27,References!$S$22:$S$45,0)))","v":""},{"$f":"IF(D2=\"\",\"\",INDEX(References!$T$22:$T$45,MATCH(Qualifying_Index!$G27,References!$S$22:$S$45,0)))","v":""},{"$f":"IF(D2=\"\",\"\",'Customer Information'!$L$46)","v":""},{"$f":"IF(C2=\"\",\"\",\"Whole House ASHP and ER v\"&Development!$A$2)","v":""},{"$f":"IF(E2=\"\",\"\",Qualifying_Index!AZ27)","v":""},{"$f":"IF(E2=\"\",\"\",Qualifying_Index!BA27+Qualifying_Index!BE27)","v":""},{"$f":"IF(G2=\"\",\"\",IF(References!$I$36=TRUE,Qualifying_Index!BD27,Qualifying_Index!BF27))","v":""},{"$f":"IF(G2=\"\",\"\",Qualifying_Index!BG27)","v":""},{"$f":"IF(D2=\"\",\"\",J2-L2)","v":""},{"$f":"IF(I2=\"\",\"\",1)","v":""},{"$f":"IF(I2=\"\",\"\",I2*N2*T2)","v":""},{"$f":"IF(J2=\"\",\"\",J2*N2)","v":""},{"$f":"IF(K2=\"\",\"\",K2*N2)","v":""},{"$f":"IF(L2=\"\",\"\",L2*N2)","v":""},{"$f":"IF(D2=\"\",\"\",P2-R2)","v":""},{"$f":"IF($D2=\"\",\"\",INDEX(References!$Z$22:$Z$45,MATCH(ProposedEquipment0!$F2,References!$T$22:$T$45,0)))","v":""},{"$f":"IF(D2=\"\",\"\",INDEX(References!$AC$22:$AC$45,MATCH(ProposedEquipment0!$F2,References!$T$22:$T$45,0)))","v":""},{"$f":"IF(D2=\"\",\"\",INDEX(References!$AD$22:$AD$45,MATCH(ProposedEquipment0!$F2,References!$T$22:$T$45,0)))","v":""},{"$f":"IF(D2=\"\",\"\",INDEX(References!$AE$22:$AE$45,MATCH(ProposedEquipment0!$F2,References!$T$22:$T$45,0)))","v":""},{"$f":"IF(D2=\"\",\"\",INDEX(References!$AF$22:$AF$45,MATCH(ProposedEquipment0!$F2,References!$T$22:$T$45,0)))","v":""},{"$f":"IF(D2=\"\",\"\",ROUND((I2*T2)/(1-W2)*(1-U2+V2),References!$B$4))","v":""},{"$f":"IF(D2=\"\",\"\",ROUND(J2/(1-X2)*(1-U2+V2),References!$B$5))","v":""},{"$f":"IF(D2=\"\",\"\",ROUND((K2)/(1-W2)*(1-U2+V2),References!$B$4))","v":""},{"$f":"IF(D2=\"\",\"\",ROUND(L2/(1-X2)*(1-U2+V2),References!$B$5))","v":""},{"$f":"IF(D2=\"\",\"\",Z2-AB2)","v":""},{"$f":"IF(D2=\"\",\"\",Y2*AU2)","v":""},{"$f":"IF(D2=\"\",\"\",Z2*AU2)","v":""},{"$f":"IF(D2=\"\",\"\",AA2*AU2)","v":""},{"$f":"IF(D2=\"\",\"\",AB2*AU2)","v":""},{"$f":"IF(D2=\"\",\"\",AE2-AG2)","v":""},{"$f":"IF(OR(References!$H$14=\"\",AE2=\"\"),\"\",IF(Qualifying_Index!BK27>0,Qualifying_Index!BC27+Qualifying_Index!BK27,Qualifying_Index!BC27))","v":""},{"$f":"IF(OR(References!$H$14=\"\",AE2=\"\"),\"\",IF(References!$J$36=FALSE,0,Qualifying_Index!BM27))","v":""},{"$f":"IF(OR(References!$H$14=\"\",AE2=\"\"),\"\",Qualifying_Index!BC27+Qualifying_Index!BM27)","v":""},{"$f":"IF(AE2=\"\",\"\",IF(Qualifying_Index!BH27<0,Qualifying_Index!BB27,Qualifying_Index!BB27+Qualifying_Index!BH27))","v":""},{"$f":"IF(Worksheet!H42=\"\",\"\",IF(Qualifying_Index!BH27>0,Qualifying_Index!BI27,Qualifying_Index!BI27+Qualifying_Index!BH27))","v":""},{"$f":"IF(D2=\"\",\"\",AL2+AM2)","v":""},null,null,{"$f":"IF(D2=\"\",\"\",Admin!AE4)","v":""},{"$f":"IF(OR(Worksheet!V42=\"DNQ\",Worksheet!V42=\"\"),\"\",ROUND(IF(AND(AQ2*0.7<Worksheet!V42,AQ2>0),AQ2*0.7,Worksheet!V42),0))","v":""},{"$f":"IF(OR(Worksheet!V42=\"DNQ\",AU2=\"\"),\"\",AR2*AU2)","v":""},{"$f":"IF(Worksheet!X42=\"DNQ\",\"\",Worksheet!X42)","v":""},{"$f":"IF(E2=\"\",\"\",1)","v":""},null,null,null,null,null,null,null,null,null,null,null,null,null,null,null,null,null,{"$f":"IF(E2=\"\",\"\",Qualifying_Index!C27)","v":""},{"$f":"IF(F2=\"\",\"\",Qualifying_Index!D27)","v":""},{"$f":"IF(G2=\"\",\"\",Qualifying_Index!E27)","v":""},{"$f":"IF(E2=\"\",\"\",IF(References!H14<>\"Electric\",References!$L$36,\"\"))","v":""},{"$f":"IF(D2=\"\",\"\",IF(Qualifying_Index!AT27=\"PTHP\",Qualifying_Index!E27,\"\"))","v":""},{"$f":"IF(D2=\"\",\"\",Qualifying_Index!K27)","v":""},{"$f":"IF(D2=\"\",\"\",Qualifying_Index!J27)","v":""},{"$f":"IF(D2=\"\",\"\",IF(Qualifying_Index!AT27=\"PTHP\",BU2*3.413,Qualifying_Index!L27))","v":""},{"$f":"IF(D2=\"\",\"\",IF(Qualifying_Index!AT27=\"PTHP\",Qualifying_Index!L27,\"\"))","v":""},{"$f":"IF(E2=\"\",\"\",Qualifying_Index!AW27)","v":""},{"$f":"IF(E2=\"\",\"\",Qualifying_Index!AX27)","v":""},{"$f":"IF(D2=\"\",\"\",Worksheet!F42)","v":""},{"$f":"IF(D2=\"\",\"\",Worksheet!H42)","v":""},{"$f":"IF(D2=\"\",\"\",References!$H$14)","v":""},{"$f":"IF(E2=\"\",\"\",Worksheet!U63)","v":""},{"$f":"IF(AU2=\"\",\"\",Worksheet!V63)","v":""},{"$f":"IF($E2=\"\",\"\",Worksheet!C63)","v":""},{"$f":"IF($E2=\"\",\"\",Worksheet!E63)","v":""},{"$f":"IF($E2=\"\",\"\",Worksheet!F63)","v":""},{"$f":"IF(E2=\"\",\"\",Worksheet!H63)","v":""},{"$f":"IF(E2=\"\",\"\",Worksheet!J63)","v":""},{"$f":"IF(E2=\"\",\"\",Worksheet!L63)","v":""},{"$f":"IF(D2=\"\",\"\",Worksheet!Q42/12000)","v":""},{"$f":"IF($D2=\"\",\"\",Worksheet!P63)","v":""},{"$f":"IF($D2=\"\",\"\",Worksheet!S63)","v":""},{"$f":"IF(E2=\"\",\"\",IF(D2=\"Cool Homes Ductless\",0,kW_CA))","v":""},null,{"$f":"IF(E2=\"\",\"\",IF(D2=\"Cool Homes Ductless\",0,QI_kWh))","v":""},{"$f":"IF($E2=\"\",\"\",IF(References!$A$15=FALSE,0,IF(NOT(ISERROR(SEARCH(\"Ductless Mini Split\",Worksheet!C42,1))),0,Unit1_QI_CA)))","v":""},null,{"$f":"IF($E2=\"\",\"\",IF(References!$A$15=FALSE,0,IF(NOT(ISERROR(SEARCH(\"Ductless Mini Split\",Worksheet!C42,1))),0,Unit1_QI_kWh)))","v":""},null,null,{"$f":"IF(NOT(LEFT(Worksheet!C42,3)=\"Geo\"),\"\",INDEX(References!$M$48:$M$51,MATCH(Worksheet!C42,References!$L$48:$L$51,0)))","v":""},null,null,null,null,null,null,null,null,null,null,null,null,null,null,null,null,null,null,null,null,null,null,null,null,null,null,null,null,{"$f":"IF(C2=\"\",\"\",'Customer Information'!$K$11)","v":""}]
[{"$f":"A2+1","v":2},null,{"$f":"IF(OR(Worksheet!$V43=\"\",Worksheet!$V43=\"DNQ\",Worksheet!$V43=\"Missing Info\"),\"\",INDEX(References!V$22:V$45,MATCH(Qualifying_Index!$G28,References!$S$22:$S$45,0)))","v":""},{"$f":"IF(OR(Worksheet!$V43=\"\",Worksheet!$V43=\"DNQ\",Worksheet!$V4=\"Missing Info\"),\"\",INDEX(References!U$22:U$45,MATCH(Qualifying_Index!$G28,References!$S$22:$S$45,0)))","v":""},{"$f":"IF(OR(Worksheet!$V43=\"\",Worksheet!$V43=\"DNQ\",Worksheet!$V43=\"Missing Info\"),\"\",INDEX(References!W$22:W$45,MATCH(Qualifying_Index!$G28,References!$S$22:$S$45,0)))","v":""},{"$f":"IF(D3=\"\",\"\",INDEX(References!$T$22:$T$45,MATCH(Qualifying_Index!$G28,References!$S$22:$S$45,0)))","v":""},{"$f":"IF(D3=\"\",\"\",'Customer Information'!$L$46)","v":""},{"$f":"IF(C3=\"\",\"\",\"Whole House ASHP and ER v\"&Development!$A$2)","v":""},{"$f":"IF(E3=\"\",\"\",Qualifying_Index!AZ28)","v":""},{"$f":"IF(E3=\"\",\"\",Qualifying_Index!BA28+Qualifying_Index!BE28)","v":""},{"$f":"IF(G3=\"\",\"\",IF(References!$I$36=TRUE,Qualifying_Index!BD28,Qualifying_Index!BF28))","v":""},{"$f":"IF(G3=\"\",\"\",Qualifying_Index!BG28)","v":""},{"$f":"IF(D3=\"\",\"\",J3-L3)","v":""},{"$f":"IF(I3=\"\",\"\",1)","v":""},{"$f":"IF(I3=\"\",\"\",I3*N3*T3)","v":""},{"$f":"IF(J3=\"\",\"\",J3*N3)","v":""},{"$f":"IF(K3=\"\",\"\",K3*N3)","v":""},{"$f":"IF(L3=\"\",\"\",L3*N3)","v":""},{"$f":"IF(D3=\"\",\"\",P3-R3)","v":""},{"$f":"IF($D3=\"\",\"\",INDEX(References!$Z$22:$Z$45,MATCH(ProposedEquipment0!$F3,References!$T$22:$T$45,0)))","v":""},{"$f":"IF(D3=\"\",\"\",INDEX(References!$AC$22:$AC$45,MATCH(ProposedEquipment0!$F3,References!$T$22:$T$45,0)))","v":""},{"$f":"IF(D3=\"\",\"\",INDEX(References!$AD$22:$AD$45,MATCH(ProposedEquipment0!$F3,References!$T$22:$T$45,0)))","v":""},{"$f":"IF(D3=\"\",\"\",INDEX(References!$AE$22:$AE$45,MATCH(ProposedEquipment0!$F3,References!$T$22:$T$45,0)))","v":""},{"$f":"IF(D3=\"\",\"\",INDEX(References!$AF$22:$AF$45,MATCH(ProposedEquipment0!$F3,References!$T$22:$T$45,0)))","v":""},{"$f":"IF(D3=\"\",\"\",ROUND((I3*T3)/(1-W3)*(1-U3+V3),References!$B$4))","v":""},{"$f":"IF(D3=\"\",\"\",ROUND(J3/(1-X3)*(1-U3+V3),References!$B$5))","v":""},{"$f":"IF(D3=\"\",\"\",ROUND((K3)/(1-W3)*(1-U3+V3),References!$B$4))","v":""},{"$f":"IF(D3=\"\",\"\",ROUND(L3/(1-X3)*(1-U3+V3),References!$B$5))","v":""},{"$f":"IF(D3=\"\",\"\",Z3-AB3)","v":""},{"$f":"IF(D3=\"\",\"\",Y3*AU3)","v":""},{"$f":"IF(D3=\"\",\"\",Z3*AU3)","v":""},{"$f":"IF(D3=\"\",\"\",AA3*AU3)","v":""},{"$f":"IF(D3=\"\",\"\",AB3*AU3)","v":""},{"$f":"IF(D3=\"\",\"\",AE3-AG3)","v":""},{"$f":"IF(OR(References!$H$14=\"\",AE3=\"\"),\"\",IF(Qualifying_Index!BK28>0,Qualifying_Index!BC28+Qualifying_Index!BK28,Qualifying_Index!BC28))","v":""},{"$f":"IF(OR(References!$H$14=\"\",AE3=\"\"),\"\",IF(References!$J$36=FALSE,0,Qualifying_Index!BM28))","v":""},{"$f":"IF(OR(References!$H$14=\"\",AE3=\"\"),\"\",Qualifying_Index!BC28+Qualifying_Index!BM28)","v":""},{"$f":"IF(AE3=\"\",\"\",IF(Qualifying_Index!BH28<0,Qualifying_Index!BB28,Qualifying_Index!BB28+Qualifying_Index!BH28))","v":""},{"$f":"IF(Worksheet!H43=\"\",\"\",IF(Qualifying_Index!BH28>0,Qualifying_Index!BI28,Qualifying_Index!BI28+Qualifying_Index!BH28))","v":""},{"$f":"IF(D3=\"\",\"\",AL3+AM3)","v":""},null,null,{"$f":"IF(D3=\"\",\"\",Admin!AE5)","v":""},{"$f":"IF(OR(Worksheet!V43=\"DNQ\",Worksheet!V43=\"\"),\"\",ROUND(IF(AND(AQ3*0.7<Worksheet!V43,AQ3>0),AQ3*0.7,Worksheet!V43),0))","v":""},{"$f":"IF(OR(Worksheet!V43=\"DNQ\",AU3=\"\"),\"\",AR3*AU3)","v":""},{"$f":"IF(Worksheet!X43=\"DNQ\",\"\",Worksheet!X43)","v":""},{"$f":"IF(E3=\"\",\"\",1)","v":""},null,null,null,null,null,null,null,null,null,null,null,null,null,null,null,null,null,{"$f":"IF(E3=\"\",\"\",Qualifying_Index!C28)","v":""},{"$f":"IF(F3=\"\",\"\",Qualifying_Index!D28)","v":""},{"$f":"IF(G3=\"\",\"\",Qualifying_Index!E28)","v":""},{"$f":"IF(E3=\"\",\"\",IF(References!H15<>\"Electric\",References!$L$36,\"\"))","v":""},{"$f":"IF(D3=\"\",\"\",IF(Qualifying_Index!AT28=\"PTHP\",Qualifying_Index!E28,\"\"))","v":""},{"$f":"IF(D3=\"\",\"\",Qualifying_Index!K28)","v":""},{"$f":"IF(D3=\"\",\"\",Qualifying_Index!J28)","v":""},{"$f":"IF(D3=\"\",\"\",IF(Qualifying_Index!AT28=\"PTHP\",BU3*3.413,Qualifying_Index!L28))","v":""},{"$f":"IF(D3=\"\",\"\",IF(Qualifying_Index!AT28=\"PTHP\",Qualifying_Index!L28,\"\"))","v":""},{"$f":"IF(E3=\"\",\"\",Qualifying_Index!AW28)","v":""},{"$f":"IF(E3=\"\",\"\",Qualifying_Index!AX28)","v":""},{"$f":"IF(D3=\"\",\"\",Worksheet!F43)","v":""},{"$f":"IF(D3=\"\",\"\",Worksheet!H43)","v":""},{"$f":"IF(D3=\"\",\"\",References!$H$14)","v":""},{"$f":"IF(E3=\"\",\"\",Worksheet!U64)","v":""},{"$f":"IF(AU3=\"\",\"\",Worksheet!V64)","v":""},{"$f":"IF($E3=\"\",\"\",Worksheet!C64)","v":""},{"$f":"IF($E3=\"\",\"\",Worksheet!E64)","v":""},{"$f":"IF($E3=\"\",\"\",Worksheet!F64)","v":""},{"$f":"IF(E3=\"\",\"\",Worksheet!H64)","v":""},{"$f":"IF(E3=\"\",\"\",Worksheet!J64)","v":""},{"$f":"IF(E3=\"\",\"\",Worksheet!L64)","v":""},{"$f":"IF(D3=\"\",\"\",Worksheet!Q43/12000)","v":""},{"$f":"IF($D3=\"\",\"\",Worksheet!P64)","v":""},{"$f":"IF($D3=\"\",\"\",Worksheet!S64)","v":""},{"$f":"IF(E3=\"\",\"\",IF(D3=\"Cool Homes Ductless\",0,kW_CA))","v":""},null,{"$f":"IF(E3=\"\",\"\",IF(D3=\"Cool Homes Ductless\",0,QI_kWh))","v":""},{"$f":"IF($E3=\"\",\"\",IF(References!$A$15=FALSE,0,IF(NOT(ISERROR(SEARCH(\"Ductless Mini Split\",Worksheet!C43,1))),0,Unit1_QI_CA)))","v":""},null,{"$f":"IF($E3=\"\",\"\",IF(References!$A$15=FALSE,0,IF(NOT(ISERROR(SEARCH(\"Ductless Mini Split\",Worksheet!C43,1))),0,Unit1_QI_kWh)))","v":""},null,null,{"$f":"IF(NOT(LEFT(Worksheet!C43,3)=\"Geo\"),\"\",INDEX(References!$M$48:$M$51,MATCH(Worksheet!C43,References!$L$48:$L$51,0)))","v":""},null,null,null,null,null,null,null,null,null,null,null,null,null,null,null,null,null,null,null,null,null,null,null,null,null,null,null,null,{"$f":"IF(C3=\"\",\"\",'Customer Information'!$K$11)","v":""}]
[{"$f":"A3+1","v":3},null,{"$f":"IF(OR(Worksheet!$V44=\"\",Worksheet!$V44=\"DNQ\",Worksheet!$V44=\"Missing Info\"),\"\",INDEX(References!V$22:V$45,MATCH(Qualifying_Index!$G29,References!$S$22:$S$45,0)))","v":""},{"$f":"IF(OR(Worksheet!$V44=\"\",Worksheet!$V44=\"DNQ\",Worksheet!$V5=\"Missing Info\"),\"\",INDEX(References!U$22:U$45,MATCH(Qualifying_Index!$G29,References!$S$22:$S$45,0)))","v":""},{"$f":"IF(OR(Worksheet!$V44=\"\",Worksheet!$V44=\"DNQ\",Worksheet!$V44=\"Missing Info\"),\"\",INDEX(References!W$22:W$45,MATCH(Qualifying_Index!$G29,References!$S$22:$S$45,0)))","v":""},{"$f":"IF(D4=\"\",\"\",INDEX(References!$T$22:$T$45,MATCH(Qualifying_Index!$G29,References!$S$22:$S$45,0)))","v":""},{"$f":"IF(D4=\"\",\"\",'Customer Information'!$L$46)","v":""},{"$f":"IF(C4=\"\",\"\",\"Whole House ASHP and ER v\"&Development!$A$2)","v":""},{"$f":"IF(E4=\"\",\"\",Qualifying_Index!AZ29)","v":""},{"$f":"IF(E4=\"\",\"\",Qualifying_Index!BA29+Qualifying_Index!BE29)","v":""},{"$f":"IF(G4=\"\",\"\",IF(References!$I$36=TRUE,Qualifying_Index!BD29,Qualifying_Index!BF29))","v":""},{"$f":"IF(G4=\"\",\"\",Qualifying_Index!BG29)","v":""},"","","","","","","",{"$f":"IF($D4=\"\",\"\",INDEX(References!$Z$22:$Z$45,MATCH(ProposedEquipment0!$F4,References!$T$22:$T$45,0)))","v":""},{"$f":"IF(D4=\"\",\"\",INDEX(References!$AC$22:$AC$45,MATCH(ProposedEquipment0!$F4,References!$T$22:$T$45,0)))","v":""},{"$f":"IF(D4=\"\",\"\",INDEX(References!$AD$22:$AD$45,MATCH(ProposedEquipment0!$F4,References!$T$22:$T$45,0)))","v":""},{"$f":"IF(D4=\"\",\"\",INDEX(References!$AE$22:$AE$45,MATCH(ProposedEquipment0!$F4,References!$T$22:$T$45,0)))","v":""},{"$f":"IF(D4=\"\",\"\",INDEX(References!$AF$22:$AF$45,MATCH(ProposedEquipment0!$F4,References!$T$22:$T$45,0)))","v":""},{"$f":"IF(D4=\"\",\"\",ROUND((I4*T4)/(1-W4)*(1-U4+V4),References!$B$4))","v":""},{"$f":"IF(D4=\"\",\"\",ROUND(J4/(1-X4)*(1-U4+V4),References!$B$5))","v":""},{"$f":"IF(D4=\"\",\"\",ROUND((K4)/(1-W4)*(1-U4+V4),References!$B$4))","v":""},{"$f":"IF(D4=\"\",\"\",ROUND(L4/(1-X4)*(1-U4+V4),References!$B$5))","v":""},"","","","","","",{"$f":"IF(OR(References!$H$14=\"\",AE4=\"\"),\"\",IF(Qualifying_Index!BK29>0,Qualifying_Index!BC29+Qualifying_Index!BK29,Qualifying_Index!BC29))","v":""},{"$f":"IF(OR(References!$H$14=\"\",AE4=\"\"),\"\",IF(References!$J$36=FALSE,0,Qualifying_Index!BM29))","v":""},{"$f":"IF(OR(References!$H$14=\"\",AE4=\"\"),\"\",Qualifying_Index!BC29+Qualifying_Index!BM29)","v":""},{"$f":"IF(AE4=\"\",\"\",IF(Qualifying_Index!BH29<0,Qualifying_Index!BB29,Qualifying_Index!BB29+Qualifying_Index!BH29))","v":""},{"$f":"IF(Worksheet!H44=\"\",\"\",IF(Qualifying_Index!BH29>0,Qualifying_Index!BI29,Qualifying_Index!BI29+Qualifying_Index!BH29))","v":""},"",null,null,{"$f":"IF(D4=\"\",\"\",Admin!AE6)","v":""},{"$f":"IF(OR(Worksheet!V44=\"DNQ\",Worksheet!V44=\"\"),\"\",ROUND(IF(AND(AQ4*0.7<Worksheet!V44,AQ4>0),AQ4*0.7,Worksheet!V44),0))","v":""},{"$f":"IF(OR(Worksheet!V44=\"DNQ\",AU4=\"\"),\"\",AR4*AU4)","v":""},{"$f":"IF(Worksheet!X44=\"DNQ\",\"\",Worksheet!X44)","v":""},"",null,null,null,null,null,null,null,null,null,null,null,null,null,null,null,null,null,{"$f":"IF(E4=\"\",\"\",Qualifying_Index!C29)","v":""},{"$f":"IF(F4=\"\",\"\",Qualifying_Index!D29)","v":""},{"$f":"IF(G4=\"\",\"\",Qualifying_Index!E29)","v":""},{"$f":"IF(E4=\"\",\"\",IF(References!H16<>\"Electric\",References!$L$36,\"\"))","v":""},{"$f":"IF(D4=\"\",\"\",IF(Qualifying_Index!AT29=\"PTHP\",Qualifying_Index!E29,\"\"))","v":""},{"$f":"IF(D4=\"\",\"\",Qualifying_Index!K29)","v":""},{"$f":"IF(D4=\"\",\"\",Qualifying_Index!J29)","v":""},{"$f":"IF(D4=\"\",\"\",IF(Qualifying_Index!AT29=\"PTHP\",BU4*3.413,Qualifying_Index!L29))","v":""},{"$f":"IF(D4=\"\",\"\",IF(Qualifying_Index!AT29=\"PTHP\",Qualifying_Index!L29,\"\"))","v":""},{"$f":"IF(E4=\"\",\"\",Qualifying_Index!AW29)","v":""},{"$f":"IF(E4=\"\",\"\",Qualifying_Index!AX29)","v":""},{"$f":"IF(D4=\"\",\"\",Worksheet!F44)","v":""},{"$f":"IF(D4=\"\",\"\",Worksheet!H44)","v":""},{"$f":"IF(D4=\"\",\"\",References!$H$14)","v":""},{"$f":"IF(E4=\"\",\"\",Worksheet!U65)","v":""},{"$f":"IF(AU4=\"\",\"\",Worksheet!V65)","v":""},{"$f":"IF($E4=\"\",\"\",Worksheet!C65)","v":""},{"$f":"IF($E4=\"\",\"\",Worksheet!E65)","v":""},{"$f":"IF($E4=\"\",\"\",Worksheet!F65)","v":""},{"$f":"IF(E4=\"\",\"\",Worksheet!H65)","v":""},{"$f":"IF(E4=\"\",\"\",Worksheet!J65)","v":""},{"$f":"IF(E4=\"\",\"\",Worksheet!L65)","v":""},{"$f":"IF(D4=\"\",\"\",Worksheet!Q44/12000)","v":""},{"$f":"IF($D4=\"\",\"\",Worksheet!P65)","v":""},{"$f":"IF($D4=\"\",\"\",Worksheet!S65)","v":""},"",null,"",{"$f":"IF($E4=\"\",\"\",IF(References!$A$15=FALSE,0,IF(NOT(ISERROR(SEARCH(\"Ductless Mini Split\",Worksheet!C44,1))),0,Unit1_QI_CA)))","v":""},null,{"$f":"IF($E4=\"\",\"\",IF(References!$A$15=FALSE,0,IF(NOT(ISERROR(SEARCH(\"Ductless Mini Split\",Worksheet!C44,1))),0,Unit1_QI_kWh)))","v":""},null,null,{"$f":"IF(NOT(LEFT(Worksheet!C44,3)=\"Geo\"),\"\",INDEX(References!$M$48:$M$51,MATCH(Worksheet!C44,References!$L$48:$L$51,0)))","v":""},null,null,null,null,null,null,null,null,null,null,null,null,null,null,null,null,null,null,null,null,null,null,null,null,null,null,null,null,{"$f":"IF(C4=\"\",\"\",'Customer Information'!$K$11)","v":""}]
[4,null,{"$f":"IF(OR(Worksheet!$V45=\"\",Worksheet!$V45=\"DNQ\",Worksheet!$V45=\"Missing Info\"),\"\",INDEX(References!V$22:V$45,MATCH(Qualifying_Index!$G30,References!$S$22:$S$45,0)))","v":""},{"$f":"IF(OR(Worksheet!$V45=\"\",Worksheet!$V45=\"DNQ\",Worksheet!$V6=\"Missing Info\"),\"\",INDEX(References!U$22:U$45,MATCH(Qualifying_Index!$G30,References!$S$22:$S$45,0)))","v":""},{"$f":"IF(OR(Worksheet!$V45=\"\",Worksheet!$V45=\"DNQ\",Worksheet!$V45=\"Missing Info\"),\"\",INDEX(References!W$22:W$45,MATCH(Qualifying_Index!$G30,References!$S$22:$S$45,0)))","v":""},{"$f":"IF(D5=\"\",\"\",INDEX(References!$T$22:$T$45,MATCH(Qualifying_Index!$G30,References!$S$22:$S$45,0)))","v":""},{"$f":"IF(D5=\"\",\"\",'Customer Information'!$L$46)","v":""},{"$f":"IF(C5=\"\",\"\",\"Whole House ASHP and ER v\"&Development!$A$2)","v":""},{"$f":"IF(E5=\"\",\"\",Qualifying_Index!AZ30)","v":""},{"$f":"IF(E5=\"\",\"\",Qualifying_Index!BA30+Qualifying_Index!BE30)","v":""},{"$f":"IF(G5=\"\",\"\",IF(References!$I$36=TRUE,Qualifying_Index!BD30,Qualifying_Index!BF30))","v":""},{"$f":"IF(G5=\"\",\"\",Qualifying_Index!BG30)","v":""},"","","","","","","",{"$f":"IF($D5=\"\",\"\",INDEX(References!$Z$22:$Z$45,MATCH(ProposedEquipment0!$F5,References!$T$22:$T$45,0)))","v":""},{"$f":"IF(D5=\"\",\"\",INDEX(References!$AC$22:$AC$45,MATCH(ProposedEquipment0!$F5,References!$T$22:$T$45,0)))","v":""},{"$f":"IF(D5=\"\",\"\",INDEX(References!$AD$22:$AD$45,MATCH(ProposedEquipment0!$F5,References!$T$22:$T$45,0)))","v":""},{"$f":"IF(D5=\"\",\"\",INDEX(References!$AE$22:$AE$45,MATCH(ProposedEquipment0!$F5,References!$T$22:$T$45,0)))","v":""},{"$f":"IF(D5=\"\",\"\",INDEX(References!$AF$22:$AF$45,MATCH(ProposedEquipment0!$F5,References!$T$22:$T$45,0)))","v":""},{"$f":"IF(D5=\"\",\"\",ROUND((I5*T5)/(1-W5)*(1-U5+V5),References!$B$4))","v":""},{"$f":"IF(D5=\"\",\"\",ROUND(J5/(1-X5)*(1-U5+V5),References!$B$5))","v":""},{"$f":"IF(D5=\"\",\"\",ROUND((K5)/(1-W5)*(1-U5+V5),References!$B$4))","v":""},{"$f":"IF(D5=\"\",\"\",ROUND(L5/(1-X5)*(1-U5+V5),References!$B$5))","v":""},"","","","","","",{"$f":"IF(OR(References!$H$14=\"\",AE5=\"\"),\"\",IF(Qualifying_Index!BK30>0,Qualifying_Index!BC30+Qualifying_Index!BK30,Qualifying_Index!BC30))","v":""},{"$f":"IF(OR(References!$H$14=\"\",AE5=\"\"),\"\",IF(References!$J$36=FALSE,0,Qualifying_Index!BM30))","v":""},{"$f":"IF(OR(References!$H$14=\"\",AE5=\"\"),\"\",Qualifying_Index!BC30+Qualifying_Index!BM30)","v":""},{"$f":"IF(AE5=\"\",\"\",IF(Qualifying_Index!BH30<0,Qualifying_Index!BB30,Qualifying_Index!BB30+Qualifying_Index!BH30))","v":""},{"$f":"IF(Worksheet!H45=\"\",\"\",IF(Qualifying_Index!BH30>0,Qualifying_Index!BI30,Qualifying_Index!BI30+Qualifying_Index!BH30))","v":""},"",null,null,{"$f":"IF(D5=\"\",\"\",Admin!AE7)","v":""},{"$f":"IF(OR(Worksheet!V45=\"DNQ\",Worksheet!V45=\"\"),\"\",ROUND(IF(AND(AQ5*0.7<Worksheet!V45,AQ5>0),AQ5*0.7,Worksheet!V45),0))","v":""},{"$f":"IF(OR(Worksheet!V45=\"DNQ\",AU5=\"\"),\"\",AR5*AU5)","v":""},{"$f":"IF(Worksheet!X45=\"DNQ\",\"\",Worksheet!X45)","v":""},"",null,null,null,null,null,null,null,null,null,null,null,null,null,null,null,null,null,{"$f":"IF(E5=\"\",\"\",Qualifying_Index!C30)","v":""},{"$f":"IF(F5=\"\",\"\",Qualifying_Index!D30)","v":""},{"$f":"IF(G5=\"\",\"\",Qualifying_Index!E30)","v":""},{"$f":"IF(E5=\"\",\"\",IF(References!H17<>\"Electric\",References!$L$36,\"\"))","v":""},{"$f":"IF(D5=\"\",\"\",IF(Qualifying_Index!AT30=\"PTHP\",Qualifying_Index!E30,\"\"))","v":""},{"$f":"IF(D5=\"\",\"\",Qualifying_Index!K30)","v":""},{"$f":"IF(D5=\"\",\"\",Qualifying_Index!J30)","v":""},{"$f":"IF(D5=\"\",\"\",IF(Qualifying_Index!AT30=\"PTHP\",BU5*3.413,Qualifying_Index!L30))","v":""},{"$f":"IF(D5=\"\",\"\",IF(Qualifying_Index!AT30=\"PTHP\",Qualifying_Index!L30,\"\"))","v":""},{"$f":"IF(E5=\"\",\"\",Qualifying_Index!AW30)","v":""},{"$f":"IF(E5=\"\",\"\",Qualifying_Index!AX30)","v":""},{"$f":"IF(D5=\"\",\"\",Worksheet!F45)","v":""},{"$f":"IF(D5=\"\",\"\",Worksheet!H45)","v":""},{"$f":"IF(D5=\"\",\"\",References!$H$14)","v":""},{"$f":"IF(E5=\"\",\"\",Worksheet!U66)","v":""},{"$f":"IF(AU5=\"\",\"\",Worksheet!V66)","v":""},{"$f":"IF($E5=\"\",\"\",Worksheet!C66)","v":""},{"$f":"IF($E5=\"\",\"\",Worksheet!E66)","v":""},{"$f":"IF($E5=\"\",\"\",Worksheet!F66)","v":""},{"$f":"IF(E5=\"\",\"\",Worksheet!H66)","v":""},{"$f":"IF(E5=\"\",\"\",Worksheet!J66)","v":""},{"$f":"IF(E5=\"\",\"\",Worksheet!L66)","v":""},{"$f":"IF(D5=\"\",\"\",Worksheet!Q45/12000)","v":""},{"$f":"IF($D5=\"\",\"\",Worksheet!P66)","v":""},{"$f":"IF($D5=\"\",\"\",Worksheet!S66)","v":""},"",null,"",{"$f":"IF($E5=\"\",\"\",IF(References!$A$15=FALSE,0,IF(NOT(ISERROR(SEARCH(\"Ductless Mini Split\",Worksheet!C45,1))),0,Unit1_QI_CA)))","v":""},null,{"$f":"IF($E5=\"\",\"\",IF(References!$A$15=FALSE,0,IF(NOT(ISERROR(SEARCH(\"Ductless Mini Split\",Worksheet!C45,1))),0,Unit1_QI_kWh)))","v":""},null,null,{"$f":"IF(NOT(LEFT(Worksheet!C45,3)=\"Geo\"),\"\",INDEX(References!$M$48:$M$51,MATCH(Worksheet!C45,References!$L$48:$L$51,0)))","v":""},null,null,null,null,null,null,null,null,null,null,null,null,null,null,null,null,null,null,null,null,null,null,null,null,null,null,null,null,{"$f":"IF(C5=\"\",\"\",'Customer Information'!$K$11)","v":""}]
[5,null,{"$f":"IF(OR(Worksheet!$V46=\"\",Worksheet!$V46=\"DNQ\",Worksheet!$V46=\"Missing Info\"),\"\",INDEX(References!V$22:V$45,MATCH(Qualifying_Index!$G31,References!$S$22:$S$45,0)))","v":""},{"$f":"IF(OR(Worksheet!$V46=\"\",Worksheet!$V46=\"DNQ\",Worksheet!$V7=\"Missing Info\"),\"\",INDEX(References!U$22:U$45,MATCH(Qualifying_Index!$G31,References!$S$22:$S$45,0)))","v":""},{"$f":"IF(OR(Worksheet!$V46=\"\",Worksheet!$V46=\"DNQ\",Worksheet!$V46=\"Missing Info\"),\"\",INDEX(References!W$22:W$45,MATCH(Qualifying_Index!$G31,References!$S$22:$S$45,0)))","v":""},{"$f":"IF(D6=\"\",\"\",INDEX(References!$T$22:$T$45,MATCH(Qualifying_Index!$G31,References!$S$22:$S$45,0)))","v":""},{"$f":"IF(D6=\"\",\"\",'Customer Information'!$L$46)","v":""},{"$f":"IF(C6=\"\",\"\",\"Whole House ASHP and ER v\"&Development!$A$2)","v":""},{"$f":"IF(E6=\"\",\"\",Qualifying_Index!AZ31)","v":""},{"$f":"IF(E6=\"\",\"\",Qualifying_Index!BA31+Qualifying_Index!BE31)","v":""},{"$f":"IF(G6=\"\",\"\",IF(References!$I$36=TRUE,Qualifying_Index!BD31,Qualifying_Index!BF31))","v":""},{"$f":"IF(G6=\"\",\"\",Qualifying_Index!BG31)","v":""},"","","","","","","",{"$f":"IF($D6=\"\",\"\",INDEX(References!$Z$22:$Z$45,MATCH(ProposedEquipment0!$F6,References!$T$22:$T$45,0)))","v":""},{"$f":"IF(D6=\"\",\"\",INDEX(References!$AC$22:$AC$45,MATCH(ProposedEquipment0!$F6,References!$T$22:$T$45,0)))","v":""},{"$f":"IF(D6=\"\",\"\",INDEX(References!$AD$22:$AD$45,MATCH(ProposedEquipment0!$F6,References!$T$22:$T$45,0)))","v":""},{"$f":"IF(D6=\"\",\"\",INDEX(References!$AE$22:$AE$45,MATCH(ProposedEquipment0!$F6,References!$T$22:$T$45,0)))","v":""},{"$f":"IF(D6=\"\",\"\",INDEX(References!$AF$22:$AF$45,MATCH(ProposedEquipment0!$F6,References!$T$22:$T$45,0)))","v":""},{"$f":"IF(D6=\"\",\"\",ROUND((I6*T6)/(1-W6)*(1-U6+V6),References!$B$4))","v":""},{"$f":"IF(D6=\"\",\"\",ROUND(J6/(1-X6)*(1-U6+V6),References!$B$5))","v":""},{"$f":"IF(D6=\"\",\"\",ROUND((K6)/(1-W6)*(1-U6+V6),References!$B$4))","v":""},{"$f":"IF(D6=\"\",\"\",ROUND(L6/(1-X6)*(1-U6+V6),References!$B$5))","v":""},"","","","","","",{"$f":"IF(OR(References!$H$14=\"\",AE6=\"\"),\"\",IF(Qualifying_Index!BK31>0,Qualifying_Index!BC31+Qualifying_Index!BK31,Qualifying_Index!BC31))","v":""},{"$f":"IF(OR(References!$H$14=\"\",AE6=\"\"),\"\",IF(References!$J$36=FALSE,0,Qualifying_Index!BM31))","v":""},{"$f":"IF(OR(References!$H$14=\"\",AE6=\"\"),\"\",Qualifying_Index!BC31+Qualifying_Index!BM31)","v":""},{"$f":"IF(AE6=\"\",\"\",IF(Qualifying_Index!BH31<0,Qualifying_Index!BB31,Qualifying_Index!BB31+Qualifying_Index!BH31))","v":""},{"$f":"IF(Worksheet!H46=\"\",\"\",IF(Qualifying_Index!BH31>0,Qualifying_Index!BI31,Qualifying_Index!BI31+Qualifying_Index!BH31))","v":""},"",null,null,{"$f":"IF(D6=\"\",\"\",Admin!AE8)","v":""},{"$f":"IF(OR(Worksheet!V46=\"DNQ\",Worksheet!V46=\"\"),\"\",ROUND(IF(AND(AQ6*0.7<Worksheet!V46,AQ6>0),AQ6*0.7,Worksheet!V46),0))","v":""},{"$f":"IF(OR(Worksheet!V46=\"DNQ\",AU6=\"\"),\"\",AR6*AU6)","v":""},{"$f":"IF(Worksheet!X46=\"DNQ\",\"\",Worksheet!X46)","v":""},"",null,null,null,null,null,null,null,null,null,null,null,null,null,null,null,null,null,{"$f":"IF(E6=\"\",\"\",Qualifying_Index!C31)","v":""},{"$f":"IF(F6=\"\",\"\",Qualifying_Index!D31)","v":""},{"$f":"IF(G6=\"\",\"\",Qualifying_Index!E31)","v":""},{"$f":"IF(E6=\"\",\"\",IF(References!H18<>\"Electric\",References!$L$36,\"\"))","v":""},{"$f":"IF(D6=\"\",\"\",IF(Qualifying_Index!AT31=\"PTHP\",Qualifying_Index!E31,\"\"))","v":""},{"$f":"IF(D6=\"\",\"\",Qualifying_Index!K31)","v":""},{"$f":"IF(D6=\"\",\"\",Qualifying_Index!J31)","v":""},{"$f":"IF(D6=\"\",\"\",IF(Qualifying_Index!AT31=\"PTHP\",BU6*3.413,Qualifying_Index!L31))","v":""},{"$f":"IF(D6=\"\",\"\",IF(Qualifying_Index!AT31=\"PTHP\",Qualifying_Index!L31,\"\"))","v":""},{"$f":"IF(E6=\"\",\"\",Qualifying_Index!AW31)","v":""},{"$f":"IF(E6=\"\",\"\",Qualifying_Index!AX31)","v":""},{"$f":"IF(D6=\"\",\"\",Worksheet!F46)","v":""},{"$f":"IF(D6=\"\",\"\",Worksheet!H46)","v":""},{"$f":"IF(D6=\"\",\"\",References!$H$14)","v":""},{"$f":"IF(E6=\"\",\"\",Worksheet!U67)","v":""},{"$f":"IF(AU6=\"\",\"\",Worksheet!V67)","v":""},{"$f":"IF($E6=\"\",\"\",Worksheet!C67)","v":""},{"$f":"IF($E6=\"\",\"\",Worksheet!E67)","v":""},{"$f":"IF($E6=\"\",\"\",Worksheet!F67)","v":""},{"$f":"IF(E6=\"\",\"\",Worksheet!H67)","v":""},{"$f":"IF(E6=\"\",\"\",Worksheet!J67)","v":""},{"$f":"IF(E6=\"\",\"\",Worksheet!L67)","v":""},{"$f":"IF(D6=\"\",\"\",Worksheet!Q46/12000)","v":""},{"$f":"IF($D6=\"\",\"\",Worksheet!P67)","v":""},{"$f":"IF($D6=\"\",\"\",Worksheet!S67)","v":""},"",null,"",{"$f":"IF($E6=\"\",\"\",IF(References!$A$15=FALSE,0,IF(NOT(ISERROR(SEARCH(\"Ductless Mini Split\",Worksheet!C46,1))),0,Unit1_QI_CA)))","v":""},null,{"$f":"IF($E6=\"\",\"\",IF(References!$A$15=FALSE,0,IF(NOT(ISERROR(SEARCH(\"Ductless Mini Split\",Worksheet!C46,1))),0,Unit1_QI_kWh)))","v":""},null,null,{"$f":"IF(NOT(LEFT(Worksheet!C46,3)=\"Geo\"),\"\",INDEX(References!$M$48:$M$51,MATCH(Worksheet!C46,References!$L$48:$L$51,0)))","v":""},null,null,null,null,null,null,null,null,null,null,null,null,null,null,null,null,null,null,null,null,null,null,null,null,null,null,null,null,{"$f":"IF(C6=\"\",\"\",'Customer Information'!$K$11)","v":""}]
[6,null,{"$f":"IF(OR(Worksheet!$V47=\"\",Worksheet!$V47=\"DNQ\",Worksheet!$V47=\"Missing Info\"),\"\",INDEX(References!V$22:V$45,MATCH(Qualifying_Index!$G32,References!$S$22:$S$45,0)))","v":""},{"$f":"IF(OR(Worksheet!$V47=\"\",Worksheet!$V47=\"DNQ\",Worksheet!$V8=\"Missing Info\"),\"\",INDEX(References!U$22:U$45,MATCH(Qualifying_Index!$G32,References!$S$22:$S$45,0)))","v":""},{"$f":"IF(OR(Worksheet!$V47=\"\",Worksheet!$V47=\"DNQ\",Worksheet!$V47=\"Missing Info\"),\"\",INDEX(References!W$22:W$45,MATCH(Qualifying_Index!$G32,References!$S$22:$S$45,0)))","v":""},{"$f":"IF(D7=\"\",\"\",INDEX(References!$T$22:$T$45,MATCH(Qualifying_Index!$G32,References!$S$22:$S$45,0)))","v":""},{"$f":"IF(D7=\"\",\"\",'Customer Information'!$L$46)","v":""},{"$f":"IF(C7=\"\",\"\",\"Whole House ASHP and ER v\"&Development!$A$2)","v":""},{"$f":"IF(E7=\"\",\"\",Qualifying_Index!AZ32)","v":""},{"$f":"IF(E7=\"\",\"\",Qualifying_Index!BA32+Qualifying_Index!BE32)","v":""},{"$f":"IF(G7=\"\",\"\",IF(References!$I$36=TRUE,Qualifying_Index!BD32,Qualifying_Index!BF32))","v":""},{"$f":"IF(G7=\"\",\"\",Qualifying_Index!BG32)","v":""},"","","","","","","",{"$f":"IF($D7=\"\",\"\",INDEX(References!$Z$22:$Z$45,MATCH(ProposedEquipment0!$F7,References!$T$22:$T$45,0)))","v":""},{"$f":"IF(D7=\"\",\"\",INDEX(References!$AC$22:$AC$45,MATCH(ProposedEquipment0!$F7,References!$T$22:$T$45,0)))","v":""},{"$f":"IF(D7=\"\",\"\",INDEX(References!$AD$22:$AD$45,MATCH(ProposedEquipment0!$F7,References!$T$22:$T$45,0)))","v":""},{"$f":"IF(D7=\"\",\"\",INDEX(References!$AE$22:$AE$45,MATCH(ProposedEquipment0!$F7,References!$T$22:$T$45,0)))","v":""},{"$f":"IF(D7=\"\",\"\",INDEX(References!$AF$22:$AF$45,MATCH(ProposedEquipment0!$F7,References!$T$22:$T$45,0)))","v":""},{"$f":"IF(D7=\"\",\"\",ROUND((I7*T7)/(1-W7)*(1-U7+V7),References!$B$4))","v":""},{"$f":"IF(D7=\"\",\"\",ROUND(J7/(1-X7)*(1-U7+V7),References!$B$5))","v":""},{"$f":"IF(D7=\"\",\"\",ROUND((K7)/(1-W7)*(1-U7+V7),References!$B$4))","v":""},{"$f":"IF(D7=\"\",\"\",ROUND(L7/(1-X7)*(1-U7+V7),References!$B$5))","v":""},"","","","","","",{"$f":"IF(OR(References!$H$14=\"\",AE7=\"\"),\"\",IF(Qualifying_Index!BK32>0,Qualifying_Index!BC32+Qualifying_Index!BK32,Qualifying_Index!BC32))","v":""},{"$f":"IF(OR(References!$H$14=\"\",AE7=\"\"),\"\",IF(References!$J$36=FALSE,0,Qualifying_Index!BM32))","v":""},{"$f":"IF(OR(References!$H$14=\"\",AE7=\"\"),\"\",Qualifying_Index!BC32+Qualifying_Index!BM32)","v":""},{"$f":"IF(AE7=\"\",\"\",IF(Qualifying_Index!BH32<0,Qualifying_Index!BB32,Qualifying_Index!BB32+Qualifying_Index!BH32))","v":""},{"$f":"IF(Worksheet!H47=\"\",\"\",IF(Qualifying_Index!BH32>0,Qualifying_Index!BI32,Qualifying_Index!BI32+Qualifying_Index!BH32))","v":""},"",null,null,{"$f":"IF(D7=\"\",\"\",Admin!AE9)","v":""},{"$f":"IF(OR(Worksheet!V47=\"DNQ\",Worksheet!V47=\"\"),\"\",ROUND(IF(AND(AQ7*0.7<Worksheet!V47,AQ7>0),AQ7*0.7,Worksheet!V47),0))","v":""},{"$f":"IF(OR(Worksheet!V47=\"DNQ\",AU7=\"\"),\"\",AR7*AU7)","v":""},{"$f":"IF(Worksheet!X47=\"DNQ\",\"\",Worksheet!X47)","v":""},"",null,null,null,null,null,null,null,null,null,null,null,null,null,null,null,null,null,{"$f":"IF(E7=\"\",\"\",Qualifying_Index!C32)","v":""},{"$f":"IF(F7=\"\",\"\",Qualifying_Index!D32)","v":""},{"$f":"IF(G7=\"\",\"\",Qualifying_Index!E32)","v":""},{"$f":"IF(E7=\"\",\"\",IF(References!H19<>\"Electric\",References!$L$36,\"\"))","v":""},{"$f":"IF(D7=\"\",\"\",IF(Qualifying_Index!AT32=\"PTHP\",Qualifying_Index!E32,\"\"))","v":""},{"$f":"IF(D7=\"\",\"\",Qualifying_Index!K32)","v":""},{"$f":"IF(D7=\"\",\"\",Qualifying_Index!J32)","v":""},{"$f":"IF(D7=\"\",\"\",IF(Qualifying_Index!AT32=\"PTHP\",BU7*3.413,Qualifying_Index!L32))","v":""},{"$f":"IF(D7=\"\",\"\",IF(Qualifying_Index!AT32=\"PTHP\",Qualifying_Index!L32,\"\"))","v":""},{"$f":"IF(E7=\"\",\"\",Qualifying_Index!AW32)","v":""},{"$f":"IF(E7=\"\",\"\",Qualifying_Index!AX32)","v":""},{"$f":"IF(D7=\"\",\"\",Worksheet!F47)","v":""},{"$f":"IF(D7=\"\",\"\",Worksheet!H47)","v":""},{"$f":"IF(D7=\"\",\"\",References!$H$14)","v":""},{"$f":"IF(E7=\"\",\"\",Worksheet!U68)","v":""},{"$f":"IF(AU7=\"\",\"\",Worksheet!V68)","v":""},{"$f":"IF($E7=\"\",\"\",Worksheet!C68)","v":""},{"$f":"IF($E7=\"\",\"\",Worksheet!E68)","v":""},{"$f":"IF($E7=\"\",\"\",Worksheet!F68)","v":""},{"$f":"IF(E7=\"\",\"\",Worksheet!H68)","v":""},{"$f":"IF(E7=\"\",\"\",Worksheet!J68)","v":""},{"$f":"IF(E7=\"\",\"\",Worksheet!L68)","v":""},{"$f":"IF(D7=\"\",\"\",Worksheet!Q47/12000)","v":""},{"$f":"IF($D7=\"\",\"\",Worksheet!P68)","v":""},{"$f":"IF($D7=\"\",\"\",Worksheet!S68)","v":""},"",null,"",{"$f":"IF($E7=\"\",\"\",IF(References!$A$15=FALSE,0,IF(NOT(ISERROR(SEARCH(\"Ductless Mini Split\",Worksheet!C47,1))),0,Unit1_QI_CA)))","v":""},null,{"$f":"IF($E7=\"\",\"\",IF(References!$A$15=FALSE,0,IF(NOT(ISERROR(SEARCH(\"Ductless Mini Split\",Worksheet!C47,1))),0,Unit1_QI_kWh)))","v":""},null,null,{"$f":"IF(NOT(LEFT(Worksheet!C47,3)=\"Geo\"),\"\",INDEX(References!$M$48:$M$51,MATCH(Worksheet!C47,References!$L$48:$L$51,0)))","v":""},null,null,null,null,null,null,null,null,null,null,null,null,null,null,null,null,null,null,null,null,null,null,null,null,null,null,null,null,{"$f":"IF(C7=\"\",\"\",'Customer Information'!$K$11)","v":""}]
[7,null,{"$f":"IF(OR(Worksheet!$V48=\"\",Worksheet!$V48=\"DNQ\",Worksheet!$V48=\"Missing Info\"),\"\",INDEX(References!V$22:V$45,MATCH(Qualifying_Index!$G33,References!$S$22:$S$45,0)))","v":""},{"$f":"IF(OR(Worksheet!$V48=\"\",Worksheet!$V48=\"DNQ\",Worksheet!$V10=\"Missing Info\"),\"\",INDEX(References!U$22:U$45,MATCH(Qualifying_Index!$G33,References!$S$22:$S$45,0)))","v":""},{"$f":"IF(OR(Worksheet!$V48=\"\",Worksheet!$V48=\"DNQ\",Worksheet!$V48=\"Missing Info\"),\"\",INDEX(References!W$22:W$45,MATCH(Qualifying_Index!$G33,References!$S$22:$S$45,0)))","v":""},{"$f":"IF(D8=\"\",\"\",INDEX(References!$T$22:$T$45,MATCH(Qualifying_Index!$G33,References!$S$22:$S$45,0)))","v":""},{"$f":"IF(D8=\"\",\"\",'Customer Information'!$L$46)","v":""},{"$f":"IF(C8=\"\",\"\",\"Whole House ASHP and ER v\"&Development!$A$2)","v":""},{"$f":"IF(E8=\"\",\"\",Qualifying_Index!AZ33)","v":""},{"$f":"IF(E8=\"\",\"\",Qualifying_Index!BA33+Qualifying_Index!BE33)","v":""},{"$f":"IF(G8=\"\",\"\",IF(References!$I$36=TRUE,Qualifying_Index!BD33,Qualifying_Index!BF33))","v":""},{"$f":"IF(G8=\"\",\"\",Qualifying_Index!BG33)","v":""},"","","","","","","",{"$f":"IF($D8=\"\",\"\",INDEX(References!$Z$22:$Z$45,MATCH(ProposedEquipment0!$F8,References!$T$22:$T$45,0)))","v":""},{"$f":"IF(D8=\"\",\"\",INDEX(References!$AC$22:$AC$45,MATCH(ProposedEquipment0!$F8,References!$T$22:$T$45,0)))","v":""},{"$f":"IF(D8=\"\",\"\",INDEX(References!$AD$22:$AD$45,MATCH(ProposedEquipment0!$F8,References!$T$22:$T$45,0)))","v":""},{"$f":"IF(D8=\"\",\"\",INDEX(References!$AE$22:$AE$45,MATCH(ProposedEquipment0!$F8,References!$T$22:$T$45,0)))","v":""},{"$f":"IF(D8=\"\",\"\",INDEX(References!$AF$22:$AF$45,MATCH(ProposedEquipment0!$F8,References!$T$22:$T$45,0)))","v":""},{"$f":"IF(D8=\"\",\"\",ROUND((I8*T8)/(1-W8)*(1-U8+V8),References!$B$4))","v":""},{"$f":"IF(D8=\"\",\"\",ROUND(J8/(1-X8)*(1-U8+V8),References!$B$5))","v":""},{"$f":"IF(D8=\"\",\"\",ROUND((K8)/(1-W8)*(1-U8+V8),References!$B$4))","v":""},{"$f":"IF(D8=\"\",\"\",ROUND(L8/(1-X8)*(1-U8+V8),References!$B$5))","v":""},"","","","","","",{"$f":"IF(OR(References!$H$14=\"\",AE8=\"\"),\"\",IF(Qualifying_Index!BK33>0,Qualifying_Index!BC33+Qualifying_Index!BK33,Qualifying_Index!BC33))","v":""},{"$f":"IF(OR(References!$H$14=\"\",AE8=\"\"),\"\",IF(References!$J$36=FALSE,0,Qualifying_Index!BM33))","v":""},{"$f":"IF(OR(References!$H$14=\"\",AE8=\"\"),\"\",Qualifying_Index!BC33+Qualifying_Index!BM33)","v":""},{"$f":"IF(AE8=\"\",\"\",IF(Qualifying_Index!BH33<0,Qualifying_Index!BB33,Qualifying_Index!BB33+Qualifying_Index!BH33))","v":""},{"$f":"IF(Worksheet!H48=\"\",\"\",IF(Qualifying_Index!BH33>0,Qualifying_Index!BI33,Qualifying_Index!BI33+Qualifying_Index!BH33))","v":""},"",null,null,{"$f":"IF(D8=\"\",\"\",Admin!AE10)","v":""},{"$f":"IF(OR(Worksheet!V48=\"DNQ\",Worksheet!V48=\"\"),\"\",ROUND(IF(AND(AQ8*0.7<Worksheet!V48,AQ8>0),AQ8*0.7,Worksheet!V48),0))","v":""},{"$f":"IF(OR(Worksheet!V48=\"DNQ\",AU8=\"\"),\"\",AR8*AU8)","v":""},{"$f":"IF(Worksheet!X48=\"DNQ\",\"\",Worksheet!X48)","v":""},"",null,null,null,null,null,null,null,null,null,null,null,null,null,null,null,null,null,{"$f":"IF(E8=\"\",\"\",Qualifying_Index!C33)","v":""},{"$f":"IF(F8=\"\",\"\",Qualifying_Index!D33)","v":""},{"$f":"IF(G8=\"\",\"\",Qualifying_Index!E33)","v":""},{"$f":"IF(E8=\"\",\"\",IF(References!H20<>\"Electric\",References!$L$36,\"\"))","v":""},{"$f":"IF(D8=\"\",\"\",IF(Qualifying_Index!AT33=\"PTHP\",Qualifying_Index!E33,\"\"))","v":""},{"$f":"IF(D8=\"\",\"\",Qualifying_Index!K33)","v":""},{"$f":"IF(D8=\"\",\"\",Qualifying_Index!J33)","v":""},{"$f":"IF(D8=\"\",\"\",IF(Qualifying_Index!AT33=\"PTHP\",BU8*3.413,Qualifying_Index!L33))","v":""},{"$f":"IF(D8=\"\",\"\",IF(Qualifying_Index!AT33=\"PTHP\",Qualifying_Index!L33,\"\"))","v":""},{"$f":"IF(E8=\"\",\"\",Qualifying_Index!AW33)","v":""},{"$f":"IF(E8=\"\",\"\",Qualifying_Index!AX33)","v":""},{"$f":"IF(D8=\"\",\"\",Worksheet!F48)","v":""},{"$f":"IF(D8=\"\",\"\",Worksheet!H48)","v":""},{"$f":"IF(D8=\"\",\"\",References!$H$14)","v":""},{"$f":"IF(E8=\"\",\"\",Worksheet!U69)","v":""},{"$f":"IF(AU8=\"\",\"\",Worksheet!V69)","v":""},{"$f":"IF($E8=\"\",\"\",Worksheet!C69)","v":""},{"$f":"IF($E8=\"\",\"\",Worksheet!E69)","v":""},{"$f":"IF($E8=\"\",\"\",Worksheet!F69)","v":""},{"$f":"IF(E8=\"\",\"\",Worksheet!H69)","v":""},{"$f":"IF(E8=\"\",\"\",Worksheet!J69)","v":""},{"$f":"IF(E8=\"\",\"\",Worksheet!L69)","v":""},{"$f":"IF(D8=\"\",\"\",Worksheet!Q48/12000)","v":""},{"$f":"IF($D8=\"\",\"\",Worksheet!P69)","v":""},{"$f":"IF($D8=\"\",\"\",Worksheet!S69)","v":""},"",null,"",{"$f":"IF($E8=\"\",\"\",IF(References!$A$15=FALSE,0,IF(NOT(ISERROR(SEARCH(\"Ductless Mini Split\",Worksheet!C48,1))),0,Unit1_QI_CA)))","v":""},null,{"$f":"IF($E8=\"\",\"\",IF(References!$A$15=FALSE,0,IF(NOT(ISERROR(SEARCH(\"Ductless Mini Split\",Worksheet!C48,1))),0,Unit1_QI_kWh)))","v":""},null,null,{"$f":"IF(NOT(LEFT(Worksheet!C48,3)=\"Geo\"),\"\",INDEX(References!$M$48:$M$51,MATCH(Worksheet!C48,References!$L$48:$L$51,0)))","v":""},null,null,null,null,null,null,null,null,null,null,null,null,null,null,null,null,null,null,null,null,null,null,null,null,null,null,null,null,{"$f":"IF(C8=\"\",\"\",'Customer Information'!$K$11)","v":""}]
[8,null,{"$f":"IF(OR(Worksheet!$V49=\"\",Worksheet!$V49=\"DNQ\",Worksheet!$V49=\"Missing Info\"),\"\",INDEX(References!V$22:V$45,MATCH(Qualifying_Index!$G34,References!$S$22:$S$45,0)))","v":""},{"$f":"IF(OR(Worksheet!$V49=\"\",Worksheet!$V49=\"DNQ\",Worksheet!$H12=\"Missing Info\"),\"\",INDEX(References!U$22:U$45,MATCH(Qualifying_Index!$G34,References!$S$22:$S$45,0)))","v":""},{"$f":"IF(OR(Worksheet!$V49=\"\",Worksheet!$V49=\"DNQ\",Worksheet!$V49=\"Missing Info\"),\"\",INDEX(References!W$22:W$45,MATCH(Qualifying_Index!$G34,References!$S$22:$S$45,0)))","v":""},{"$f":"IF(D9=\"\",\"\",INDEX(References!$T$22:$T$45,MATCH(Qualifying_Index!$G34,References!$S$22:$S$45,0)))","v":""},{"$f":"IF(D9=\"\",\"\",'Customer Information'!$L$46)","v":""},{"$f":"IF(C9=\"\",\"\",\"Whole House ASHP and ER v\"&Development!$A$2)","v":""},{"$f":"IF(E9=\"\",\"\",Qualifying_Index!AZ34)","v":""},{"$f":"IF(E9=\"\",\"\",Qualifying_Index!BA34+Qualifying_Index!BE34)","v":""},{"$f":"IF(G9=\"\",\"\",IF(References!$I$36=TRUE,Qualifying_Index!BD34,Qualifying_Index!BF34))","v":""},{"$f":"IF(G9=\"\",\"\",Qualifying_Index!BG34)","v":""},"","","","","","","",{"$f":"IF($D9=\"\",\"\",INDEX(References!$Z$22:$Z$45,MATCH(ProposedEquipment0!$F9,References!$T$22:$T$45,0)))","v":""},{"$f":"IF(D9=\"\",\"\",INDEX(References!$AC$22:$AC$45,MATCH(ProposedEquipment0!$F9,References!$T$22:$T$45,0)))","v":""},{"$f":"IF(D9=\"\",\"\",INDEX(References!$AD$22:$AD$45,MATCH(ProposedEquipment0!$F9,References!$T$22:$T$45,0)))","v":""},{"$f":"IF(D9=\"\",\"\",INDEX(References!$AE$22:$AE$45,MATCH(ProposedEquipment0!$F9,References!$T$22:$T$45,0)))","v":""},{"$f":"IF(D9=\"\",\"\",INDEX(References!$AF$22:$AF$45,MATCH(ProposedEquipment0!$F9,References!$T$22:$T$45,0)))","v":""},{"$f":"IF(D9=\"\",\"\",ROUND((I9*T9)/(1-W9)*(1-U9+V9),References!$B$4))","v":""},{"$f":"IF(D9=\"\",\"\",ROUND(J9/(1-X9)*(1-U9+V9),References!$B$5))","v":""},{"$f":"IF(D9=\"\",\"\",ROUND((K9)/(1-W9)*(1-U9+V9),References!$B$4))","v":""},{"$f":"IF(D9=\"\",\"\",ROUND(L9/(1-X9)*(1-U9+V9),References!$B$5))","v":""},"","","","","","",{"$f":"IF(OR(References!$H$14=\"\",AE9=\"\"),\"\",IF(Qualifying_Index!BK34>0,Qualifying_Index!BC34+Qualifying_Index!BK34,Qualifying_Index!BC34))","v":""},{"$f":"IF(OR(References!$H$14=\"\",AE9=\"\"),\"\",IF(References!$J$36=FALSE,0,Qualifying_Index!BM34))","v":""},{"$f":"IF(OR(References!$H$14=\"\",AE9=\"\"),\"\",Qualifying_Index!BC34+Qualifying_Index!BM34)","v":""},{"$f":"IF(AE9=\"\",\"\",IF(Qualifying_Index!BH34<0,Qualifying_Index!BB34,Qualifying_Index!BB34+Qualifying_Index!BH34))","v":""},{"$f":"IF(Worksheet!H49=\"\",\"\",IF(Qualifying_Index!BH34>0,Qualifying_Index!BI34,Qualifying_Index!BI34+Qualifying_Index!BH34))","v":""},"",null,null,{"$f":"IF(D9=\"\",\"\",Admin!AE11)","v":""},{"$f":"IF(OR(Worksheet!V49=\"DNQ\",Worksheet!V49=\"\"),\"\",ROUND(IF(AND(AQ9*0.7<Worksheet!V49,AQ9>0),AQ9*0.7,Worksheet!V49),0))","v":""},{"$f":"IF(OR(Worksheet!V49=\"DNQ\",AU9=\"\"),\"\",AR9*AU9)","v":""},{"$f":"IF(Worksheet!X49=\"DNQ\",\"\",Worksheet!X49)","v":""},"",null,null,null,null,null,null,null,null,null,null,null,null,null,null,null,null,null,{"$f":"IF(E9=\"\",\"\",Qualifying_Index!C34)","v":""},{"$f":"IF(F9=\"\",\"\",Qualifying_Index!D34)","v":""},{"$f":"IF(G9=\"\",\"\",Qualifying_Index!E34)","v":""},{"$f":"IF(E9=\"\",\"\",IF(References!H21<>\"Electric\",References!$L$36,\"\"))","v":""},{"$f":"IF(D9=\"\",\"\",IF(Qualifying_Index!AT34=\"PTHP\",Qualifying_Index!E34,\"\"))","v":""},{"$f":"IF(D9=\"\",\"\",Qualifying_Index!K34)","v":""},{"$f":"IF(D9=\"\",\"\",Qualifying_Index!J34)","v":""},{"$f":"IF(D9=\"\",\"\",IF(Qualifying_Index!AT34=\"PTHP\",BU9*3.413,Qualifying_Index!L34))","v":""},{"$f":"IF(D9=\"\",\"\",IF(Qualifying_Index!AT34=\"PTHP\",Qualifying_Index!L34,\"\"))","v":""},{"$f":"IF(E9=\"\",\"\",Qualifying_Index!AW34)","v":""},{"$f":"IF(E9=\"\",\"\",Qualifying_Index!AX34)","v":""},{"$f":"IF(D9=\"\",\"\",Worksheet!F49)","v":""},{"$f":"IF(D9=\"\",\"\",Worksheet!H49)","v":""},{"$f":"IF(D9=\"\",\"\",References!$H$14)","v":""},{"$f":"IF(E9=\"\",\"\",Worksheet!U70)","v":""},{"$f":"IF(AU9=\"\",\"\",Worksheet!V70)","v":""},{"$f":"IF($E9=\"\",\"\",Worksheet!C70)","v":""},{"$f":"IF($E9=\"\",\"\",Worksheet!E70)","v":""},{"$f":"IF($E9=\"\",\"\",Worksheet!F70)","v":""},{"$f":"IF(E9=\"\",\"\",Worksheet!H70)","v":""},{"$f":"IF(E9=\"\",\"\",Worksheet!J70)","v":""},{"$f":"IF(E9=\"\",\"\",Worksheet!L70)","v":""},{"$f":"IF(D9=\"\",\"\",Worksheet!Q49/12000)","v":""},{"$f":"IF($D9=\"\",\"\",Worksheet!P70)","v":""},{"$f":"IF($D9=\"\",\"\",Worksheet!S70)","v":""},"",null,"",{"$f":"IF($E9=\"\",\"\",IF(References!$A$15=FALSE,0,IF(NOT(ISERROR(SEARCH(\"Ductless Mini Split\",Worksheet!C49,1))),0,Unit1_QI_CA)))","v":""},null,{"$f":"IF($E9=\"\",\"\",IF(References!$A$15=FALSE,0,IF(NOT(ISERROR(SEARCH(\"Ductless Mini Split\",Worksheet!C49,1))),0,Unit1_QI_kWh)))","v":""},null,null,{"$f":"IF(NOT(LEFT(Worksheet!C49,3)=\"Geo\"),\"\",INDEX(References!$M$48:$M$51,MATCH(Worksheet!C49,References!$L$48:$L$51,0)))","v":""},null,null,null,null,null,null,null,null,null,null,null,null,null,null,null,null,null,null,null,null,null,null,null,null,null,null,null,null,{"$f":"IF(C9=\"\",\"\",'Customer Information'!$K$11)","v":""}]
[9,null,{"$f":"IF(OR(Worksheet!$V50=\"\",Worksheet!$V50=\"DNQ\",Worksheet!$V50=\"Missing Info\"),\"\",INDEX(References!V$22:V$45,MATCH(Qualifying_Index!$G35,References!$S$22:$S$45,0)))","v":""},{"$f":"IF(OR(Worksheet!$V50=\"\",Worksheet!$V50=\"DNQ\",Worksheet!$H13=\"Missing Info\"),\"\",INDEX(References!U$22:U$45,MATCH(Qualifying_Index!$G35,References!$S$22:$S$45,0)))","v":""},{"$f":"IF(OR(Worksheet!$V50=\"\",Worksheet!$V50=\"DNQ\",Worksheet!$V50=\"Missing Info\"),\"\",INDEX(References!W$22:W$45,MATCH(Qualifying_Index!$G35,References!$S$22:$S$45,0)))","v":""},{"$f":"IF(D10=\"\",\"\",INDEX(References!$T$22:$T$45,MATCH(Qualifying_Index!$G35,References!$S$22:$S$45,0)))","v":""},{"$f":"IF(D10=\"\",\"\",'Customer Information'!$L$46)","v":""},{"$f":"IF(C10=\"\",\"\",\"Whole House ASHP and ER v\"&Development!$A$2)","v":""},{"$f":"IF(E10=\"\",\"\",Qualifying_Index!AZ35)","v":""},{"$f":"IF(E10=\"\",\"\",Qualifying_Index!BA35+Qualifying_Index!BE35)","v":""},{"$f":"IF(G10=\"\",\"\",IF(References!$I$36=TRUE,Qualifying_Index!BD35,Qualifying_Index!BF35))","v":""},{"$f":"IF(G10=\"\",\"\",Qualifying_Index!BG35)","v":""},"","","","","","","",{"$f":"IF($D10=\"\",\"\",INDEX(References!$Z$22:$Z$45,MATCH(ProposedEquipment0!$F10,References!$T$22:$T$45,0)))","v":""},{"$f":"IF(D10=\"\",\"\",INDEX(References!$AC$22:$AC$45,MATCH(ProposedEquipment0!$F10,References!$T$22:$T$45,0)))","v":""},{"$f":"IF(D10=\"\",\"\",INDEX(References!$AD$22:$AD$45,MATCH(ProposedEquipment0!$F10,References!$T$22:$T$45,0)))","v":""},{"$f":"IF(D10=\"\",\"\",INDEX(References!$AE$22:$AE$45,MATCH(ProposedEquipment0!$F10,References!$T$22:$T$45,0)))","v":""},{"$f":"IF(D10=\"\",\"\",INDEX(References!$AF$22:$AF$45,MATCH(ProposedEquipment0!$F10,References!$T$22:$T$45,0)))","v":""},{"$f":"IF(D10=\"\",\"\",ROUND((I10*T10)/(1-W10)*(1-U10+V10),References!$B$4))","v":""},{"$f":"IF(D10=\"\",\"\",ROUND(J10/(1-X10)*(1-U10+V10),References!$B$5))","v":""},{"$f":"IF(D10=\"\",\"\",ROUND((K10)/(1-W10)*(1-U10+V10),References!$B$4))","v":""},{"$f":"IF(D10=\"\",\"\",ROUND(L10/(1-X10)*(1-U10+V10),References!$B$5))","v":""},"","","","","","",{"$f":"IF(OR(References!$H$14=\"\",AE10=\"\"),\"\",IF(Qualifying_Index!BK35>0,Qualifying_Index!BC35+Qualifying_Index!BK35,Qualifying_Index!BC35))","v":""},{"$f":"IF(OR(References!$H$14=\"\",AE10=\"\"),\"\",IF(References!$J$36=FALSE,0,Qualifying_Index!BM35))","v":""},{"$f":"IF(OR(References!$H$14=\"\",AE10=\"\"),\"\",Qualifying_Index!BC35+Qualifying_Index!BM35)","v":""},{"$f":"IF(AE10=\"\",\"\",IF(Qualifying_Index!BH35<0,Qualifying_Index!BB35,Qualifying_Index!BB35+Qualifying_Index!BH35))","v":""},{"$f":"IF(Worksheet!H50=\"\",\"\",IF(Qualifying_Index!BH35>0,Qualifying_Index!BI35,Qualifying_Index!BI35+Qualifying_Index!BH35))","v":""},"",null,null,{"$f":"IF(D10=\"\",\"\",Admin!AE12)","v":""},{"$f":"IF(OR(Worksheet!V50=\"DNQ\",Worksheet!V50=\"\"),\"\",ROUND(IF(AND(AQ10*0.7<Worksheet!V50,AQ10>0),AQ10*0.7,Worksheet!V50),0))","v":""},{"$f":"IF(OR(Worksheet!V50=\"DNQ\",AU10=\"\"),\"\",AR10*AU10)","v":""},{"$f":"IF(Worksheet!X50=\"DNQ\",\"\",Worksheet!X50)","v":""},"",null,null,null,null,null,null,null,null,null,null,null,null,null,null,null,null,null,{"$f":"IF(E10=\"\",\"\",Qualifying_Index!C35)","v":""},{"$f":"IF(F10=\"\",\"\",Qualifying_Index!D35)","v":""},{"$f":"IF(G10=\"\",\"\",Qualifying_Index!E35)","v":""},{"$f":"IF(E10=\"\",\"\",IF(References!H22<>\"Electric\",References!$L$36,\"\"))","v":""},{"$f":"IF(D10=\"\",\"\",IF(Qualifying_Index!AT35=\"PTHP\",Qualifying_Index!E35,\"\"))","v":""},{"$f":"IF(D10=\"\",\"\",Qualifying_Index!K35)","v":""},{"$f":"IF(D10=\"\",\"\",Qualifying_Index!J35)","v":""},{"$f":"IF(D10=\"\",\"\",IF(Qualifying_Index!AT35=\"PTHP\",BU10*3.413,Qualifying_Index!L35))","v":""},{"$f":"IF(D10=\"\",\"\",IF(Qualifying_Index!AT35=\"PTHP\",Qualifying_Index!L35,\"\"))","v":""},{"$f":"IF(E10=\"\",\"\",Qualifying_Index!AW35)","v":""},{"$f":"IF(E10=\"\",\"\",Qualifying_Index!AX35)","v":""},{"$f":"IF(D10=\"\",\"\",Worksheet!F50)","v":""},{"$f":"IF(D10=\"\",\"\",Worksheet!H50)","v":""},{"$f":"IF(D10=\"\",\"\",References!$H$14)","v":""},{"$f":"IF(E10=\"\",\"\",Worksheet!U71)","v":""},{"$f":"IF(AU10=\"\",\"\",Worksheet!V71)","v":""},{"$f":"IF($E10=\"\",\"\",Worksheet!C71)","v":""},{"$f":"IF($E10=\"\",\"\",Worksheet!E71)","v":""},{"$f":"IF($E10=\"\",\"\",Worksheet!F71)","v":""},{"$f":"IF(E10=\"\",\"\",Worksheet!H71)","v":""},{"$f":"IF(E10=\"\",\"\",Worksheet!J71)","v":""},{"$f":"IF(E10=\"\",\"\",Worksheet!L71)","v":""},{"$f":"IF(D10=\"\",\"\",Worksheet!Q50/12000)","v":""},{"$f":"IF($D10=\"\",\"\",Worksheet!P71)","v":""},{"$f":"IF($D10=\"\",\"\",Worksheet!S71)","v":""},"",null,"",{"$f":"IF($E10=\"\",\"\",IF(References!$A$15=FALSE,0,IF(NOT(ISERROR(SEARCH(\"Ductless Mini Split\",Worksheet!C50,1))),0,Unit1_QI_CA)))","v":""},null,{"$f":"IF($E10=\"\",\"\",IF(References!$A$15=FALSE,0,IF(NOT(ISERROR(SEARCH(\"Ductless Mini Split\",Worksheet!C50,1))),0,Unit1_QI_kWh)))","v":""},null,null,{"$f":"IF(NOT(LEFT(Worksheet!C50,3)=\"Geo\"),\"\",INDEX(References!$M$48:$M$51,MATCH(Worksheet!C50,References!$L$48:$L$51,0)))","v":""},null,null,null,null,null,null,null,null,null,null,null,null,null,null,null,null,null,null,null,null,null,null,null,null,null,null,null,null,{"$f":"IF(C10=\"\",\"\",'Customer Information'!$K$11)","v":""}]
[10,null,{"$f":"IF(OR(Worksheet!$V51=\"\",Worksheet!$V51=\"DNQ\",Worksheet!$V51=\"Missing Info\"),\"\",INDEX(References!V$22:V$45,MATCH(Qualifying_Index!$G36,References!$S$22:$S$45,0)))","v":""},{"$f":"IF(OR(Worksheet!$V51=\"\",Worksheet!$V51=\"DNQ\",Worksheet!$H14=\"Missing Info\"),\"\",INDEX(References!U$22:U$45,MATCH(Qualifying_Index!$G36,References!$S$22:$S$45,0)))","v":""},{"$f":"IF(OR(Worksheet!$V51=\"\",Worksheet!$V51=\"DNQ\",Worksheet!$V51=\"Missing Info\"),\"\",INDEX(References!W$22:W$45,MATCH(Qualifying_Index!$G36,References!$S$22:$S$45,0)))","v":""},{"$f":"IF(D11=\"\",\"\",INDEX(References!$T$22:$T$45,MATCH(Qualifying_Index!$G36,References!$S$22:$S$45,0)))","v":""},{"$f":"IF(D11=\"\",\"\",'Customer Information'!$L$46)","v":""},{"$f":"IF(C11=\"\",\"\",\"Whole House ASHP and ER v\"&Development!$A$2)","v":""},{"$f":"IF(E11=\"\",\"\",Qualifying_Index!AZ36)","v":""},{"$f":"IF(E11=\"\",\"\",Qualifying_Index!BA36+Qualifying_Index!BE36)","v":""},{"$f":"IF(G11=\"\",\"\",IF(References!$I$36=TRUE,Qualifying_Index!BD36,Qualifying_Index!BF36))","v":""},{"$f":"IF(G11=\"\",\"\",Qualifying_Index!BG36)","v":""},"","","","","","","",{"$f":"IF($D11=\"\",\"\",INDEX(References!$Z$22:$Z$45,MATCH(ProposedEquipment0!$F11,References!$T$22:$T$45,0)))","v":""},{"$f":"IF(D11=\"\",\"\",INDEX(References!$AC$22:$AC$45,MATCH(ProposedEquipment0!$F11,References!$T$22:$T$45,0)))","v":""},{"$f":"IF(D11=\"\",\"\",INDEX(References!$AD$22:$AD$45,MATCH(ProposedEquipment0!$F11,References!$T$22:$T$45,0)))","v":""},{"$f":"IF(D11=\"\",\"\",INDEX(References!$AE$22:$AE$45,MATCH(ProposedEquipment0!$F11,References!$T$22:$T$45,0)))","v":""},{"$f":"IF(D11=\"\",\"\",INDEX(References!$AF$22:$AF$45,MATCH(ProposedEquipment0!$F11,References!$T$22:$T$45,0)))","v":""},{"$f":"IF(D11=\"\",\"\",ROUND((I11*T11)/(1-W11)*(1-U11+V11),References!$B$4))","v":""},{"$f":"IF(D11=\"\",\"\",ROUND(J11/(1-X11)*(1-U11+V11),References!$B$5))","v":""},{"$f":"IF(D11=\"\",\"\",ROUND((K11)/(1-W11)*(1-U11+V11),References!$B$4))","v":""},{"$f":"IF(D11=\"\",\"\",ROUND(L11/(1-X11)*(1-U11+V11),References!$B$5))","v":""},"","","","","","",{"$f":"IF(OR(References!$H$14=\"\",AE11=\"\"),\"\",IF(Qualifying_Index!BK36>0,Qualifying_Index!BC36+Qualifying_Index!BK36,Qualifying_Index!BC36))","v":""},{"$f":"IF(OR(References!$H$14=\"\",AE11=\"\"),\"\",IF(References!$J$36=FALSE,0,Qualifying_Index!BM36))","v":""},{"$f":"IF(OR(References!$H$14=\"\",AE11=\"\"),\"\",Qualifying_Index!BC36+Qualifying_Index!BM36)","v":""},{"$f":"IF(AE11=\"\",\"\",IF(Qualifying_Index!BH36<0,Qualifying_Index!BB36,Qualifying_Index!BB36+Qualifying_Index!BH36))","v":""},{"$f":"IF(Worksheet!H51=\"\",\"\",IF(Qualifying_Index!BH36>0,Qualifying_Index!BI36,Qualifying_Index!BI36+Qualifying_Index!BH36))","v":""},"",null,null,{"$f":"IF(D11=\"\",\"\",Admin!AE13)","v":""},{"$f":"IF(OR(Worksheet!V51=\"DNQ\",Worksheet!V51=\"\"),\"\",ROUND(IF(AND(AQ11*0.7<Worksheet!V51,AQ11>0),AQ11*0.7,Worksheet!V51),0))","v":""},{"$f":"IF(OR(Worksheet!V51=\"DNQ\",AU11=\"\"),\"\",AR11*AU11)","v":""},{"$f":"IF(Worksheet!X51=\"DNQ\",\"\",Worksheet!X51)","v":""},"",null,null,null,null,null,null,null,null,null,null,null,null,null,null,null,null,null,{"$f":"IF(E11=\"\",\"\",Qualifying_Index!C36)","v":""},{"$f":"IF(F11=\"\",\"\",Qualifying_Index!D36)","v":""},{"$f":"IF(G11=\"\",\"\",Qualifying_Index!E36)","v":""},{"$f":"IF(E11=\"\",\"\",IF(References!H23<>\"Electric\",References!$L$36,\"\"))","v":""},{"$f":"IF(D11=\"\",\"\",IF(Qualifying_Index!AT36=\"PTHP\",Qualifying_Index!E36,\"\"))","v":""},{"$f":"IF(D11=\"\",\"\",Qualifying_Index!K36)","v":""},{"$f":"IF(D11=\"\",\"\",Qualifying_Index!J36)","v":""},{"$f":"IF(D11=\"\",\"\",IF(Qualifying_Index!AT36=\"PTHP\",BU11*3.413,Qualifying_Index!L36))","v":""},{"$f":"IF(D11=\"\",\"\",IF(Qualifying_Index!AT36=\"PTHP\",Qualifying_Index!L36,\"\"))","v":""},{"$f":"IF(E11=\"\",\"\",Qualifying_Index!AW36)","v":""},{"$f":"IF(E11=\"\",\"\",Qualifying_Index!AX36)","v":""},{"$f":"IF(D11=\"\",\"\",Worksheet!F51)","v":""},{"$f":"IF(D11=\"\",\"\",Worksheet!H51)","v":""},{"$f":"IF(D11=\"\",\"\",References!$H$14)","v":""},{"$f":"IF(E11=\"\",\"\",Worksheet!U72)","v":""},{"$f":"IF(AU11=\"\",\"\",Worksheet!V72)","v":""},{"$f":"IF($E11=\"\",\"\",Worksheet!C72)","v":""},{"$f":"IF($E11=\"\",\"\",Worksheet!E72)","v":""},{"$f":"IF($E11=\"\",\"\",Worksheet!F72)","v":""},{"$f":"IF(E11=\"\",\"\",Worksheet!H72)","v":""},{"$f":"IF(E11=\"\",\"\",Worksheet!J72)","v":""},{"$f":"IF(E11=\"\",\"\",Worksheet!L72)","v":""},{"$f":"IF(D11=\"\",\"\",Worksheet!Q51/12000)","v":""},{"$f":"IF($D11=\"\",\"\",Worksheet!P72)","v":""},{"$f":"IF($D11=\"\",\"\",Worksheet!S72)","v":""},"",null,"",{"$f":"IF($E11=\"\",\"\",IF(References!$A$15=FALSE,0,IF(NOT(ISERROR(SEARCH(\"Ductless Mini Split\",Worksheet!C51,1))),0,Unit1_QI_CA)))","v":""},null,{"$f":"IF($E11=\"\",\"\",IF(References!$A$15=FALSE,0,IF(NOT(ISERROR(SEARCH(\"Ductless Mini Split\",Worksheet!C51,1))),0,Unit1_QI_kWh)))","v":""},null,null,{"$f":"IF(NOT(LEFT(Worksheet!C51,3)=\"Geo\"),\"\",INDEX(References!$M$48:$M$51,MATCH(Worksheet!C51,References!$L$48:$L$51,0)))","v":""},null,null,null,null,null,null,null,null,null,null,null,null,null,null,null,null,null,null,null,null,null,null,null,null,null,null,null,null,{"$f":"IF(C11=\"\",\"\",'Customer Information'!$K$11)","v":""}]
[null,null,null,null,null,null,null,null,null,null,null,null,null,null,null,null,""]
[1,null,{"$f":"IF(D13=\"\",\"\",\"Cooling - HVAC Equipment\")","v":""},{"$f":"IF('Smart T-Stats'!K21=\"\",\"\",\"Residential HVAC Other\")","v":""},{"$f":"IF(D13=\"\",\"\",INDEX(References!$W$22:$W$36,MATCH('Smart T-Stats'!J21,References!$S$22:$S$36,0)))","v":""},{"$f":"IF(D13=\"\",\"\",INDEX(References!$T$22:$T$36,MATCH('Smart T-Stats'!J21,References!$S$22:$S$36,0)))","v":""},{"$f":"IF(D13=\"\",\"\",'Customer Information'!$L$46)","v":""},{"$f":"IF(C13=\"\",\"\",\"Whole House ASHP and ER v\"&Development!$A$2)","v":""},{"$f":"IF($D13=\"\",\"\",0)","v":""},{"$f":"IF($D13=\"\",\"\",Qualifying_Index!L42)","v":""},null,null,null,{"$f":"IF(I13=\"\",\"\",1)","v":""},{"$f":"IF(I13=\"\",\"\",I13*N13*T13)","v":""},{"$f":"IF(J13=\"\",\"\",J13*N13)","v":""},null,null,null,{"$f":"IF($D13=\"\",\"\",INDEX(References!$Z$34:$Z$36,MATCH(ProposedEquipment0!$F13,References!$T$34:$T$36,0)))","v":""},{"$f":"IF(D13=\"\",\"\",INDEX(References!$AC$34:$AC$36,MATCH(ProposedEquipment0!$F13,References!$T$34:$T$36,0)))","v":""},{"$f":"IF(E13=\"\",\"\",INDEX(References!$AD$34:$AD$36,MATCH(ProposedEquipment0!$F13,References!$T$34:$T$36,0)))","v":""},{"$f":"IF(F13=\"\",\"\",INDEX(References!$AE$34:$AE$36,MATCH(ProposedEquipment0!$F13,References!$T$34:$T$36,0)))","v":""},{"$f":"IF(G13=\"\",\"\",INDEX(References!$AF$34:$AF$36,MATCH(ProposedEquipment0!$F13,References!$T$34:$T$36,0)))","v":""},{"$f":"IF(D13=\"\",\"\",ROUND((I13*T13)/(1-W13)*(1-U13+V13),References!$B$4))","v":""},{"$f":"IF(D13=\"\",\"\",ROUND(J13/(1-X13)*(1-U13+V13),References!$B$5))","v":""},{"$f":"IF(D13=\"\",\"\",ROUND((K13*T13)/(1-W13)*(1-U13+V13),References!$B$4))","v":""},{"$f":"IF(D13=\"\",\"\",ROUND(L13/(1-X13)*(1-U13+V13),References!$B$5))","v":""},{"$f":"IF(D13=\"\",\"\",Z13-AB13)","v":""},{"$f":"IF(D13=\"\",\"\",Y13*AU13)","v":""},{"$f":"IF(D13=\"\",\"\",Z13*AU13)","v":""},{"$f":"IF(D13=\"\",\"\",AA13*AU13)","v":""},{"$f":"IF(D13=\"\",\"\",AB13*AU13)","v":""},{"$f":"IF(D13=\"\",\"\",AE13-AG13)","v":""},{"$f":"IF(OR(References!$H$14=\"\",AE13=\"\"),\"\",Qualifying_Index!N42)","v":""},{"$f":"IF(OR(References!$H$14=\"\",AE13=\"\"),\"\",IF(References!$J$36=FALSE,0,Qualifying_Index!BM38))","v":""},{"$f":"IF(OR(References!$H$14=\"\",AE13=\"\"),\"\",Qualifying_Index!N42)","v":""},{"$f":"IF(D13=\"\",\"\",Qualifying_Index!M42)","v":""},{"$f":"IF(D13=\"\",\"\",0)","v":""},{"$f":"IF(D13=\"\",\"\",AL13+AM13)","v":""},null,null,{"$f":"IF(D13=\"\",\"\",Admin!AE14)","v":""},{"$f":"IF(AU13=\"\",\"\",AU13*35)","v":""},{"$f":"IF(OR(Worksheet!V53=\"DNQ\",AU13=\"\"),\"\",AR13*AU13)","v":""},null,{"$f":"IF(D13=\"\",\"\",1)","v":""},null,null,null,null,null,null,null,null,null,null,null,null,null,null,null,null,null,null,null,null,null,null,null,null,null,null,{"$f":"IF(E13=\"\",\"\",Qualifying_Index!J42)","v":""},{"$f":"IF(E13=\"\",\"\",Qualifying_Index!K42)","v":""},null,null,{"$f":"IF(D13=\"\",\"\",References!$H$14)","v":""},null,null,null,null,{"$f":"IF($E13=\"\",\"\",'Smart T-Stats'!F21)","v":""},null,null,null,null,null,null,null,null,null,null,null,null,{"$f":"IF($E13=\"\",\"\",'Smart T-Stats'!H21)","v":""},{"$f":"IF($E13=\"\",\"\",'Smart T-Stats'!I21)","v":""},null,null,null,null,null,null,null,null,null,null,null,null,null,null,null,null,null,null,null,null,null,null,null,null,null,null,null,null,null,{"$f":"IF(C13=\"\",\"\",'Customer Information'!$K$11)","v":""}]
[2,null,"",{"$f":"IF('Smart T-Stats'!K22=\"\",\"\",\"Residential HVAC Other\")","v":""},{"$f":"IF(D14=\"\",\"\",INDEX(References!$W$22:$W$36,MATCH('Smart T-Stats'!J22,References!$S$22:$S$36,0)))","v":""},{"$f":"IF(D14=\"\",\"\",INDEX(References!$T$22:$T$36,MATCH('Smart T-Stats'!J22,References!$S$22:$S$36,0)))","v":""},{"$f":"IF(D14=\"\",\"\",'Customer Information'!$L$46)","v":""},{"$f":"IF(C14=\"\",\"\",\"Whole House ASHP and ER v\"&Development!$A$2)","v":""},"",{"$f":"IF($D14=\"\",\"\",Qualifying_Index!L43)","v":""},null,null,null,"","","",null,null,null,{"$f":"IF($D14=\"\",\"\",INDEX(References!$Z$34:$Z$36,MATCH(ProposedEquipment0!$F14,References!$T$34:$T$36,0)))","v":""},{"$f":"IF(D14=\"\",\"\",INDEX(References!$AC$34:$AC$36,MATCH(ProposedEquipment0!$F14,References!$T$34:$T$36,0)))","v":""},{"$f":"IF(E14=\"\",\"\",INDEX(References!$AD$34:$AD$36,MATCH(ProposedEquipment0!$F14,References!$T$34:$T$36,0)))","v":""},{"$f":"IF(F14=\"\",\"\",INDEX(References!$AE$34:$AE$36,MATCH(ProposedEquipment0!$F14,References!$T$34:$T$36,0)))","v":""},{"$f":"IF(G14=\"\",\"\",INDEX(References!$AF$34:$AF$36,MATCH(ProposedEquipment0!$F14,References!$T$34:$T$36,0)))","v":""},{"$f":"IF(D14=\"\",\"\",ROUND((I14*T14)/(1-W14)*(1-U14+V14),References!$B$4))","v":""},{"$f":"IF(D14=\"\",\"\",ROUND(J14/(1-X14)*(1-U14+V14),References!$B$5))","v":""},{"$f":"IF(D14=\"\",\"\",ROUND((K14*T14)/(1-W14)*(1-U14+V14),References!$B$4))","v":""},{"$f":"IF(D14=\"\",\"\",ROUND(L14/(1-X14)*(1-U14+V14),References!$B$5))","v":""},"","","","","","",{"$f":"IF(OR(References!$H$14=\"\",AE14=\"\"),\"\",Qualifying_Index!N43)","v":""},{"$f":"IF(OR(References!$H$14=\"\",AE14=\"\"),\"\",IF(References!$J$36=FALSE,0,Qualifying_Index!BM39))","v":""},{"$f":"IF(OR(References!$H$14=\"\",AE14=\"\"),\"\",Qualifying_Index!N43)","v":""},{"$f":"IF(D14=\"\",\"\",Qualifying_Index!M43)","v":""},{"$f":"IF(D14=\"\",\"\",0)","v":""},{"$f":"IF(D14=\"\",\"\",AL14+AM14)","v":""},null,null,{"$f":"IF(D14=\"\",\"\",Admin!AE15)","v":""},"",{"$f":"IF(OR(Worksheet!V54=\"DNQ\",AU14=\"\"),\"\",AR14*AU14)","v":""},null,"",null,null,null,null,null,null,null,null,null,null,null,null,null,null,null,null,null,null,null,null,null,null,null,null,null,null,{"$f":"IF(E14=\"\",\"\",Qualifying_Index!J43)","v":""},{"$f":"IF(E14=\"\",\"\",Qualifying_Index!K43)","v":""},null,null,{"$f":"IF(D14=\"\",\"\",References!$H$14)","v":""},null,null,null,null,{"$f":"IF($E14=\"\",\"\",'Smart T-Stats'!F22)","v":""},null,null,null,null,null,null,null,null,null,null,null,null,{"$f":"IF($E14=\"\",\"\",'Smart T-Stats'!H22)","v":""},{"$f":"IF($E14=\"\",\"\",'Smart T-Stats'!I22)","v":""},null,null,null,null,null,null,null,null,null,null,null,null,null,null,null,null,null,null,null,null,null,null,null,null,null,null,null,null,null,{"$f":"IF(C14=\"\",\"\",'Customer Information'!$K$11)","v":""}]
[3,null,"",{"$f":"IF('Smart T-Stats'!K23=\"\",\"\",\"Residential HVAC Other\")","v":""},{"$f":"IF(D15=\"\",\"\",INDEX(References!$W$22:$W$36,MATCH('Smart T-Stats'!J23,References!$S$22:$S$36,0)))","v":""},{"$f":"IF(D15=\"\",\"\",INDEX(References!$T$22:$T$36,MATCH('Smart T-Stats'!J23,References!$S$22:$S$36,0)))","v":""},{"$f":"IF(D15=\"\",\"\",'Customer Information'!$L$46)","v":""},{"$f":"IF(C15=\"\",\"\",\"Whole House ASHP and ER v\"&Development!$A$2)","v":""},"",{"$f":"IF($D15=\"\",\"\",Qualifying_Index!L44)","v":""},null,null,null,"","","",null,null,null,{"$f":"IF($D15=\"\",\"\",INDEX(References!$Z$34:$Z$36,MATCH(ProposedEquipment0!$F15,References!$T$34:$T$36,0)))","v":""},{"$f":"IF(D15=\"\",\"\",INDEX(References!$AC$34:$AC$36,MATCH(ProposedEquipment0!$F15,References!$T$34:$T$36,0)))","v":""},{"$f":"IF(E15=\"\",\"\",INDEX(References!$AD$34:$AD$36,MATCH(ProposedEquipment0!$F15,References!$T$34:$T$36,0)))","v":""},{"$f":"IF(F15=\"\",\"\",INDEX(References!$AE$34:$AE$36,MATCH(ProposedEquipment0!$F15,References!$T$34:$T$36,0)))","v":""},{"$f":"IF(G15=\"\",\"\",INDEX(References!$AF$34:$AF$36,MATCH(ProposedEquipment0!$F15,References!$T$34:$T$36,0)))","v":""},{"$f":"IF(D15=\"\",\"\",ROUND((I15*T15)/(1-W15)*(1-U15+V15),References!$B$4))","v":""},{"$f":"IF(D15=\"\",\"\",ROUND(J15/(1-X15)*(1-U15+V15),References!$B$5))","v":""},{"$f":"IF(D15=\"\",\"\",ROUND((K15*T15)/(1-W15)*(1-U15+V15),References!$B$4))","v":""},{"$f":"IF(D15=\"\",\"\",ROUND(L15/(1-X15)*(1-U15+V15),References!$B$5))","v":""},"","","","","","",{"$f":"IF(OR(References!$H$14=\"\",AE15=\"\"),\"\",Qualifying_Index!N44)","v":""},{"$f":"IF(OR(References!$H$14=\"\",AE15=\"\"),\"\",IF(References!$J$36=FALSE,0,Qualifying_Index!BM40))","v":""},{"$f":"IF(OR(References!$H$14=\"\",AE15=\"\"),\"\",Qualifying_Index!N44)","v":""},{"$f":"IF(D15=\"\",\"\",Qualifying_Index!M44)","v":""},"","",null,null,{"$f":"IF(D15=\"\",\"\",Admin!AE16)","v":""},"",{"$f":"IF(OR(Worksheet!V55=\"DNQ\",AU15=\"\"),\"\",AR15*AU15)","v":""},null,"",null,null,null,null,null,null,null,null,null,null,null,null,null,null,null,null,null,null,null,null,null,null,null,null,null,null,{"$f":"IF(E15=\"\",\"\",Qualifying_Index!J44)","v":""},{"$f":"IF(E15=\"\",\"\",Qualifying_Index!K44)","v":""},null,null,{"$f":"IF(D15=\"\",\"\",References!$H$14)","v":""},null,null,null,null,{"$f":"IF($E15=\"\",\"\",'Smart T-Stats'!F23)","v":""},null,null,null,null,null,null,null,null,null,null,null,null,{"$f":"IF($E15=\"\",\"\",'Smart T-Stats'!H23)","v":""},{"$f":"IF($E15=\"\",\"\",'Smart T-Stats'!I23)","v":""},null,null,null,null,null,null,null,null,null,null,null,null,null,null,null,null,null,null,null,null,null,null,null,null,null,null,null,null,null,{"$f":"IF(C15=\"\",\"\",'Customer Information'!$K$11)","v":""}]
[4,null,"",{"$f":"IF('Smart T-Stats'!K24=\"\",\"\",\"Residential HVAC Other\")","v":""},{"$f":"IF(D16=\"\",\"\",INDEX(References!$W$22:$W$36,MATCH('Smart T-Stats'!J24,References!$S$22:$S$36,0)))","v":""},{"$f":"IF(D16=\"\",\"\",INDEX(References!$T$22:$T$36,MATCH('Smart T-Stats'!J24,References!$S$22:$S$36,0)))","v":""},{"$f":"IF(D16=\"\",\"\",'Customer Information'!$L$46)","v":""},{"$f":"IF(C16=\"\",\"\",\"Whole House ASHP and ER v\"&Development!$A$2)","v":""},"",{"$f":"IF($D16=\"\",\"\",Qualifying_Index!L45)","v":""},null,null,null,"","","",null,null,null,{"$f":"IF($D16=\"\",\"\",INDEX(References!$Z$34:$Z$36,MATCH(ProposedEquipment0!$F16,References!$T$34:$T$36,0)))","v":""},{"$f":"IF(D16=\"\",\"\",INDEX(References!$AC$34:$AC$36,MATCH(ProposedEquipment0!$F16,References!$T$34:$T$36,0)))","v":""},{"$f":"IF(E16=\"\",\"\",INDEX(References!$AD$34:$AD$36,MATCH(ProposedEquipment0!$F16,References!$T$34:$T$36,0)))","v":""},{"$f":"IF(F16=\"\",\"\",INDEX(References!$AE$34:$AE$36,MATCH(ProposedEquipment0!$F16,References!$T$34:$T$36,0)))","v":""},{"$f":"IF(G16=\"\",\"\",INDEX(References!$AF$34:$AF$36,MATCH(ProposedEquipment0!$F16,References!$T$34:$T$36,0)))","v":""},{"$f":"IF(D16=\"\",\"\",ROUND((I16*T16)/(1-W16)*(1-U16+V16),References!$B$4))","v":""},{"$f":"IF(D16=\"\",\"\",ROUND(J16/(1-X16)*(1-U16+V16),References!$B$5))","v":""},{"$f":"IF(D16=\"\",\"\",ROUND((K16*T16)/(1-W16)*(1-U16+V16),References!$B$4))","v":""},{"$f":"IF(D16=\"\",\"\",ROUND(L16/(1-X16)*(1-U16+V16),References!$B$5))","v":""},"","","","","","",{"$f":"IF(OR(References!$H$14=\"\",AE16=\"\"),\"\",Qualifying_Index!N45)","v":""},{"$f":"IF(OR(References!$H$14=\"\",AE16=\"\"),\"\",IF(References!$J$36=FALSE,0,Qualifying_Index!BM41))","v":""},{"$f":"IF(OR(References!$H$14=\"\",AE16=\"\"),\"\",Qualifying_Index!N45)","v":""},{"$f":"IF(D16=\"\",\"\",Qualifying_Index!M45)","v":""},"","",null,null,{"$f":"IF(D16=\"\",\"\",Admin!AE17)","v":""},"",{"$f":"IF(OR(Worksheet!V56=\"DNQ\",AU16=\"\"),\"\",AR16*AU16)","v":""},null,"",null,null,null,null,null,null,null,null,null,null,null,null,null,null,null,null,null,null,null,null,null,null,null,null,null,null,{"$f":"IF(E16=\"\",\"\",Qualifying_Index!J45)","v":""},{"$f":"IF(E16=\"\",\"\",Qualifying_Index!K45)","v":""},null,null,{"$f":"IF(D16=\"\",\"\",References!$H$14)","v":""},null,null,null,null,{"$f":"IF($E16=\"\",\"\",'Smart T-Stats'!F24)","v":""},null,null,null,null,null,null,null,null,null,null,null,null,{"$f":"IF($E16=\"\",\"\",'Smart T-Stats'!H24)","v":""},{"$f":"IF($E16=\"\",\"\",'Smart T-Stats'!I24)","v":""},null,null,null,null,null,null,null,null,null,null,null,null,null,null,null,null,null,null,null,null,null,null,null,null,null,null,null,null,null,{"$f":"IF(C16=\"\",\"\",'Customer Information'!$K$11)","v":""}]
[5,null,"",{"$f":"IF('Smart T-Stats'!K25=\"\",\"\",\"Residential HVAC Other\")","v":""},{"$f":"IF(D17=\"\",\"\",INDEX(References!$W$22:$W$36,MATCH('Smart T-Stats'!J25,References!$S$22:$S$36,0)))","v":""},{"$f":"IF(D17=\"\",\"\",INDEX(References!$T$22:$T$36,MATCH('Smart T-Stats'!J25,References!$S$22:$S$36,0)))","v":""},{"$f":"IF(D17=\"\",\"\",'Customer Information'!$L$46)","v":""},{"$f":"IF(C17=\"\",\"\",\"Whole House ASHP and ER v\"&Development!$A$2)","v":""},"",{"$f":"IF($D17=\"\",\"\",Qualifying_Index!L46)","v":""},null,null,null,"","","",null,null,null,{"$f":"IF($D17=\"\",\"\",INDEX(References!$Z$34:$Z$36,MATCH(ProposedEquipment0!$F17,References!$T$34:$T$36,0)))","v":""},{"$f":"IF(D17=\"\",\"\",INDEX(References!$AC$34:$AC$36,MATCH(ProposedEquipment0!$F17,References!$T$34:$T$36,0)))","v":""},{"$f":"IF(E17=\"\",\"\",INDEX(References!$AD$34:$AD$36,MATCH(ProposedEquipment0!$F17,References!$T$34:$T$36,0)))","v":""},{"$f":"IF(F17=\"\",\"\",INDEX(References!$AE$34:$AE$36,MATCH(ProposedEquipment0!$F17,References!$T$34:$T$36,0)))","v":""},{"$f":"IF(G17=\"\",\"\",INDEX(References!$AF$34:$AF$36,MATCH(ProposedEquipment0!$F17,References!$T$34:$T$36,0)))","v":""},{"$f":"IF(D17=\"\",\"\",ROUND((I17*T17)/(1-W17)*(1-U17+V17),References!$B$4))","v":""},{"$f":"IF(D17=\"\",\"\",ROUND(J17/(1-X17)*(1-U17+V17),References!$B$5))","v":""},{"$f":"IF(D17=\"\",\"\",ROUND((K17*T17)/(1-W17)*(1-U17+V17),References!$B$4))","v":""},{"$f":"IF(D17=\"\",\"\",ROUND(L17/(1-X17)*(1-U17+V17),References!$B$5))","v":""},"","","","","","",{"$f":"IF(OR(References!$H$14=\"\",AE17=\"\"),\"\",Qualifying_Index!N46)","v":""},{"$f":"IF(OR(References!$H$14=\"\",AE17=\"\"),\"\",IF(References!$J$36=FALSE,0,Qualifying_Index!BM42))","v":""},{"$f":"IF(OR(References!$H$14=\"\",AE17=\"\"),\"\",Qualifying_Index!N46)","v":""},{"$f":"IF(D17=\"\",\"\",Qualifying_Index!M46)","v":""},"","",null,null,{"$f":"IF(D17=\"\",\"\",Admin!AE18)","v":""},"",{"$f":"IF(OR(Worksheet!V57=\"DNQ\",AU17=\"\"),\"\",AR17*AU17)","v":""},null,"",null,null,null,null,null,null,null,null,null,null,null,null,null,null,null,null,null,null,null,null,null,null,null,null,null,null,{"$f":"IF(E17=\"\",\"\",Qualifying_Index!J46)","v":""},{"$f":"IF(E17=\"\",\"\",Qualifying_Index!K46)","v":""},null,null,{"$f":"IF(D17=\"\",\"\",References!$H$14)","v":""},null,null,null,null,{"$f":"IF($E17=\"\",\"\",'Smart T-Stats'!F25)","v":""},null,null,null,null,null,null,null,null,null,null,null,null,{"$f":"IF($E17=\"\",\"\",'Smart T-Stats'!H25)","v":""},{"$f":"IF($E17=\"\",\"\",'Smart T-Stats'!I25)","v":""},null,null,null,null,null,null,null,null,null,null,null,null,null,null,null,null,null,null,null,null,null,null,null,null,null,null,null,null,null,{"$f":"IF(C17=\"\",\"\",'Customer Information'!$K$11)","v":""}]
[6,null,"",{"$f":"IF('Smart T-Stats'!K26=\"\",\"\",\"Residential HVAC Other\")","v":""},{"$f":"IF(D18=\"\",\"\",INDEX(References!$W$22:$W$36,MATCH('Smart T-Stats'!J26,References!$S$22:$S$36,0)))","v":""},{"$f":"IF(D18=\"\",\"\",INDEX(References!$T$22:$T$36,MATCH('Smart T-Stats'!J26,References!$S$22:$S$36,0)))","v":""},{"$f":"IF(D18=\"\",\"\",'Customer Information'!$L$46)","v":""},{"$f":"IF(C18=\"\",\"\",\"Whole House ASHP and ER v\"&Development!$A$2)","v":""},"",{"$f":"IF($D18=\"\",\"\",Qualifying_Index!L47)","v":""},null,null,null,"","","",null,null,null,{"$f":"IF($D18=\"\",\"\",INDEX(References!$Z$34:$Z$36,MATCH(ProposedEquipment0!$F18,References!$T$34:$T$36,0)))","v":""},{"$f":"IF(D18=\"\",\"\",INDEX(References!$AC$34:$AC$36,MATCH(ProposedEquipment0!$F18,References!$T$34:$T$36,0)))","v":""},{"$f":"IF(E18=\"\",\"\",INDEX(References!$AD$34:$AD$36,MATCH(ProposedEquipment0!$F18,References!$T$34:$T$36,0)))","v":""},{"$f":"IF(F18=\"\",\"\",INDEX(References!$AE$34:$AE$36,MATCH(ProposedEquipment0!$F18,References!$T$34:$T$36,0)))","v":""},{"$f":"IF(G18=\"\",\"\",INDEX(References!$AF$34:$AF$36,MATCH(ProposedEquipment0!$F18,References!$T$34:$T$36,0)))","v":""},{"$f":"IF(D18=\"\",\"\",ROUND((I18*T18)/(1-W18)*(1-U18+V18),References!$B$4))","v":""},{"$f":"IF(D18=\"\",\"\",ROUND(J18/(1-X18)*(1-U18+V18),References!$B$5))","v":""},{"$f":"IF(D18=\"\",\"\",ROUND((K18*T18)/(1-W18)*(1-U18+V18),References!$B$4))","v":""},{"$f":"IF(D18=\"\",\"\",ROUND(L18/(1-X18)*(1-U18+V18),References!$B$5))","v":""},"","","","","","",{"$f":"IF(OR(References!$H$14=\"\",AE18=\"\"),\"\",Qualifying_Index!N47)","v":""},{"$f":"IF(OR(References!$H$14=\"\",AE18=\"\"),\"\",IF(References!$J$36=FALSE,0,Qualifying_Index!BM43))","v":""},{"$f":"IF(OR(References!$H$14=\"\",AE18=\"\"),\"\",Qualifying_Index!N47)","v":""},{"$f":"IF(D18=\"\",\"\",Qualifying_Index!M47)","v":""},"","",null,null,{"$f":"IF(D18=\"\",\"\",Admin!AE19)","v":""},"",{"$f":"IF(OR(Worksheet!V58=\"DNQ\",AU18=\"\"),\"\",AR18*AU18)","v":""},null,"",null,null,null,null,null,null,null,null,null,null,null,null,null,null,null,null,null,null,null,null,null,null,null,null,null,null,{"$f":"IF(E18=\"\",\"\",Qualifying_Index!J47)","v":""},{"$f":"IF(E18=\"\",\"\",Qualifying_Index!K47)","v":""},null,null,{"$f":"IF(D18=\"\",\"\",References!$H$14)","v":""},null,null,null,null,{"$f":"IF($E18=\"\",\"\",'Smart T-Stats'!F26)","v":""},null,null,null,null,null,null,null,null,null,null,null,null,{"$f":"IF($E18=\"\",\"\",'Smart T-Stats'!H26)","v":""},{"$f":"IF($E18=\"\",\"\",'Smart T-Stats'!I26)","v":""},null,null,null,null,null,null,null,null,null,null,null,null,null,null,null,null,null,null,null,null,null,null,null,null,null,null,null,null,null,{"$f":"IF(C18=\"\",\"\",'Customer Information'!$K$11)","v":""}]
[7,null,"",{"$f":"IF('Smart T-Stats'!K27=\"\",\"\",\"Residential HVAC Other\")","v":""},{"$f":"IF(D19=\"\",\"\",INDEX(References!$W$22:$W$36,MATCH('Smart T-Stats'!J27,References!$S$22:$S$36,0)))","v":""},{"$f":"IF(D19=\"\",\"\",INDEX(References!$T$22:$T$36,MATCH('Smart T-Stats'!J27,References!$S$22:$S$36,0)))","v":""},{"$f":"IF(D19=\"\",\"\",'Customer Information'!$L$46)","v":""},{"$f":"IF(C19=\"\",\"\",\"Whole House ASHP and ER v\"&Development!$A$2)","v":""},"",{"$f":"IF($D19=\"\",\"\",Qualifying_Index!L48)","v":""},null,null,null,"","","",null,null,null,{"$f":"IF($D19=\"\",\"\",INDEX(References!$Z$34:$Z$36,MATCH(ProposedEquipment0!$F19,References!$T$34:$T$36,0)))","v":""},{"$f":"IF(D19=\"\",\"\",INDEX(References!$AC$34:$AC$36,MATCH(ProposedEquipment0!$F19,References!$T$34:$T$36,0)))","v":""},{"$f":"IF(E19=\"\",\"\",INDEX(References!$AD$34:$AD$36,MATCH(ProposedEquipment0!$F19,References!$T$34:$T$36,0)))","v":""},{"$f":"IF(F19=\"\",\"\",INDEX(References!$AE$34:$AE$36,MATCH(ProposedEquipment0!$F19,References!$T$34:$T$36,0)))","v":""},{"$f":"IF(G19=\"\",\"\",INDEX(References!$AF$34:$AF$36,MATCH(ProposedEquipment0!$F19,References!$T$34:$T$36,0)))","v":""},{"$f":"IF(D19=\"\",\"\",ROUND((I19*T19)/(1-W19)*(1-U19+V19),References!$B$4))","v":""},{"$f":"IF(D19=\"\",\"\",ROUND(J19/(1-X19)*(1-U19+V19),References!$B$5))","v":""},{"$f":"IF(D19=\"\",\"\",ROUND((K19*T19)/(1-W19)*(1-U19+V19),References!$B$4))","v":""},{"$f":"IF(D19=\"\",\"\",ROUND(L19/(1-X19)*(1-U19+V19),References!$B$5))","v":""},"","","","","","",{"$f":"IF(OR(References!$H$14=\"\",AE19=\"\"),\"\",Qualifying_Index!N48)","v":""},{"$f":"IF(OR(References!$H$14=\"\",AE19=\"\"),\"\",IF(References!$J$36=FALSE,0,Qualifying_Index!BM44))","v":""},{"$f":"IF(OR(References!$H$14=\"\",AE19=\"\"),\"\",Qualifying_Index!N48)","v":""},{"$f":"IF(D19=\"\",\"\",Qualifying_Index!M48)","v":""},"","",null,null,{"$f":"IF(D19=\"\",\"\",Admin!AE20)","v":""},"",{"$f":"IF(OR(Worksheet!V59=\"DNQ\",AU19=\"\"),\"\",AR19*AU19)","v":""},null,"",null,null,null,null,null,null,null,null,null,null,null,null,null,null,null,null,null,null,null,null,null,null,null,null,null,null,{"$f":"IF(E19=\"\",\"\",Qualifying_Index!J48)","v":""},{"$f":"IF(E19=\"\",\"\",Qualifying_Index!K48)","v":""},null,null,{"$f":"IF(D19=\"\",\"\",References!$H$14)","v":""},null,null,null,null,{"$f":"IF($E19=\"\",\"\",'Smart T-Stats'!F27)","v":""},null,null,null,null,null,null,null,null,null,null,null,null,{"$f":"IF($E19=\"\",\"\",'Smart T-Stats'!H27)","v":""},{"$f":"IF($E19=\"\",\"\",'Smart T-Stats'!I27)","v":""},null,null,null,null,null,null,null,null,null,null,null,null,null,null,null,null,null,null,null,null,null,null,null,null,null,null,null,null,null,{"$f":"IF(C19=\"\",\"\",'Customer Information'!$K$11)","v":""}]
[8,null,"",{"$f":"IF('Smart T-Stats'!K28=\"\",\"\",\"Residential HVAC Other\")","v":""},{"$f":"IF(D20=\"\",\"\",INDEX(References!$W$22:$W$36,MATCH('Smart T-Stats'!J28,References!$S$22:$S$36,0)))","v":""},{"$f":"IF(D20=\"\",\"\",INDEX(References!$T$22:$T$36,MATCH('Smart T-Stats'!J28,References!$S$22:$S$36,0)))","v":""},{"$f":"IF(D20=\"\",\"\",'Customer Information'!$L$46)","v":""},{"$f":"IF(C20=\"\",\"\",\"Whole House ASHP and ER v\"&Development!$A$2)","v":""},"",{"$f":"IF($D20=\"\",\"\",Qualifying_Index!L49)","v":""},null,null,null,"","","",null,null,null,{"$f":"IF($D20=\"\",\"\",INDEX(References!$Z$34:$Z$36,MATCH(ProposedEquipment0!$F20,References!$T$34:$T$36,0)))","v":""},{"$f":"IF(D20=\"\",\"\",INDEX(References!$AC$34:$AC$36,MATCH(ProposedEquipment0!$F20,References!$T$34:$T$36,0)))","v":""},{"$f":"IF(E20=\"\",\"\",INDEX(References!$AD$34:$AD$36,MATCH(ProposedEquipment0!$F20,References!$T$34:$T$36,0)))","v":""},{"$f":"IF(F20=\"\",\"\",INDEX(References!$AE$34:$AE$36,MATCH(ProposedEquipment0!$F20,References!$T$34:$T$36,0)))","v":""},{"$f":"IF(G20=\"\",\"\",INDEX(References!$AF$34:$AF$36,MATCH(ProposedEquipment0!$F20,References!$T$34:$T$36,0)))","v":""},{"$f":"IF(D20=\"\",\"\",ROUND((I20*T20)/(1-W20)*(1-U20+V20),References!$B$4))","v":""},{"$f":"IF(D20=\"\",\"\",ROUND(J20/(1-X20)*(1-U20+V20),References!$B$5))","v":""},{"$f":"IF(D20=\"\",\"\",ROUND((K20*T20)/(1-W20)*(1-U20+V20),References!$B$4))","v":""},{"$f":"IF(D20=\"\",\"\",ROUND(L20/(1-X20)*(1-U20+V20),References!$B$5))","v":""},"","","","","","",{"$f":"IF(OR(References!$H$14=\"\",AE20=\"\"),\"\",Qualifying_Index!N49)","v":""},{"$f":"IF(OR(References!$H$14=\"\",AE20=\"\"),\"\",IF(References!$J$36=FALSE,0,Qualifying_Index!BM45))","v":""},{"$f":"IF(OR(References!$H$14=\"\",AE20=\"\"),\"\",Qualifying_Index!N49)","v":""},{"$f":"IF(D20=\"\",\"\",Qualifying_Index!M49)","v":""},"","",null,null,{"$f":"IF(D20=\"\",\"\",Admin!AE21)","v":""},"",{"$f":"IF(OR(Worksheet!V60=\"DNQ\",AU20=\"\"),\"\",AR20*AU20)","v":""},null,"",null,null,null,null,null,null,null,null,null,null,null,null,null,null,null,null,null,null,null,null,null,null,null,null,null,null,{"$f":"IF(E20=\"\",\"\",Qualifying_Index!J49)","v":""},{"$f":"IF(E20=\"\",\"\",Qualifying_Index!K49)","v":""},null,null,{"$f":"IF(D20=\"\",\"\",References!$H$14)","v":""},null,null,null,null,{"$f":"IF($E20=\"\",\"\",'Smart T-Stats'!F28)","v":""},null,null,null,null,null,null,null,null,null,null,null,null,{"$f":"IF($E20=\"\",\"\",'Smart T-Stats'!H28)","v":""},{"$f":"IF($E20=\"\",\"\",'Smart T-Stats'!I28)","v":""},null,null,null,null,null,null,null,null,null,null,null,null,null,null,null,null,null,null,null,null,null,null,null,null,null,null,null,null,null,{"$f":"IF(C20=\"\",\"\",'Customer Information'!$K$11)","v":""}]
[9,null,"",{"$f":"IF('Smart T-Stats'!K29=\"\",\"\",\"Residential HVAC Other\")","v":""},{"$f":"IF(D21=\"\",\"\",INDEX(References!$W$22:$W$36,MATCH('Smart T-Stats'!J29,References!$S$22:$S$36,0)))","v":""},{"$f":"IF(D21=\"\",\"\",INDEX(References!$T$22:$T$36,MATCH('Smart T-Stats'!J29,References!$S$22:$S$36,0)))","v":""},{"$f":"IF(D21=\"\",\"\",'Customer Information'!$L$46)","v":""},{"$f":"IF(C21=\"\",\"\",\"Whole House ASHP and ER v\"&Development!$A$2)","v":""},"",{"$f":"IF($D21=\"\",\"\",Qualifying_Index!L50)","v":""},null,null,null,"","","",null,null,null,{"$f":"IF($D21=\"\",\"\",INDEX(References!$Z$34:$Z$36,MATCH(ProposedEquipment0!$F21,References!$T$34:$T$36,0)))","v":""},{"$f":"IF(D21=\"\",\"\",INDEX(References!$AC$34:$AC$36,MATCH(ProposedEquipment0!$F21,References!$T$34:$T$36,0)))","v":""},{"$f":"IF(E21=\"\",\"\",INDEX(References!$AD$34:$AD$36,MATCH(ProposedEquipment0!$F21,References!$T$34:$T$36,0)))","v":""},{"$f":"IF(F21=\"\",\"\",INDEX(References!$AE$34:$AE$36,MATCH(ProposedEquipment0!$F21,References!$T$34:$T$36,0)))","v":""},{"$f":"IF(G21=\"\",\"\",INDEX(References!$AF$34:$AF$36,MATCH(ProposedEquipment0!$F21,References!$T$34:$T$36,0)))","v":""},{"$f":"IF(D21=\"\",\"\",ROUND((I21*T21)/(1-W21)*(1-U21+V21),References!$B$4))","v":""},{"$f":"IF(D21=\"\",\"\",ROUND(J21/(1-X21)*(1-U21+V21),References!$B$5))","v":""},{"$f":"IF(D21=\"\",\"\",ROUND((K21*T21)/(1-W21)*(1-U21+V21),References!$B$4))","v":""},{"$f":"IF(D21=\"\",\"\",ROUND(L21/(1-X21)*(1-U21+V21),References!$B$5))","v":""},"","","","","","",{"$f":"IF(OR(References!$H$14=\"\",AE21=\"\"),\"\",Qualifying_Index!N50)","v":""},{"$f":"IF(OR(References!$H$14=\"\",AE21=\"\"),\"\",IF(References!$J$36=FALSE,0,Qualifying_Index!BM46))","v":""},{"$f":"IF(OR(References!$H$14=\"\",AE21=\"\"),\"\",Qualifying_Index!N50)","v":""},{"$f":"IF(D21=\"\",\"\",Qualifying_Index!M50)","v":""},"","",null,null,{"$f":"IF(D21=\"\",\"\",Admin!AE22)","v":""},"",{"$f":"IF(OR(Worksheet!V61=\"DNQ\",AU21=\"\"),\"\",AR21*AU21)","v":""},null,"",null,null,null,null,null,null,null,null,null,null,null,null,null,null,null,null,null,null,null,null,null,null,null,null,null,null,{"$f":"IF(E21=\"\",\"\",Qualifying_Index!J50)","v":""},{"$f":"IF(E21=\"\",\"\",Qualifying_Index!K50)","v":""},null,null,{"$f":"IF(D21=\"\",\"\",References!$H$14)","v":""},null,null,null,null,{"$f":"IF($E21=\"\",\"\",'Smart T-Stats'!F29)","v":""},null,null,null,null,null,null,null,null,null,null,null,null,{"$f":"IF($E21=\"\",\"\",'Smart T-Stats'!H29)","v":""},{"$f":"IF($E21=\"\",\"\",'Smart T-Stats'!I29)","v":""},null,null,null,null,null,null,null,null,null,null,null,null,null,null,null,null,null,null,null,null,null,null,null,null,null,null,null,null,null,{"$f":"IF(C21=\"\",\"\",'Customer Information'!$K$11)","v":""}]
[10,null,"",{"$f":"IF('Smart T-Stats'!K30=\"\",\"\",\"Residential HVAC Other\")","v":""},{"$f":"IF(D22=\"\",\"\",INDEX(References!$W$22:$W$36,MATCH('Smart T-Stats'!J30,References!$S$22:$S$36,0)))","v":""},{"$f":"IF(D22=\"\",\"\",INDEX(References!$T$22:$T$36,MATCH('Smart T-Stats'!J30,References!$S$22:$S$36,0)))","v":""},{"$f":"IF(D22=\"\",\"\",'Customer Information'!$L$46)","v":""},{"$f":"IF(C22=\"\",\"\",\"Whole House ASHP and ER v\"&Development!$A$2)","v":""},"",{"$f":"IF($D22=\"\",\"\",Qualifying_Index!L51)","v":""},null,null,null,"","","",null,null,null,{"$f":"IF($D22=\"\",\"\",INDEX(References!$Z$34:$Z$36,MATCH(ProposedEquipment0!$F22,References!$T$34:$T$36,0)))","v":""},{"$f":"IF(D22=\"\",\"\",INDEX(References!$AC$34:$AC$36,MATCH(ProposedEquipment0!$F22,References!$T$34:$T$36,0)))","v":""},{"$f":"IF(E22=\"\",\"\",INDEX(References!$AD$34:$AD$36,MATCH(ProposedEquipment0!$F22,References!$T$34:$T$36,0)))","v":""},{"$f":"IF(F22=\"\",\"\",INDEX(References!$AE$34:$AE$36,MATCH(ProposedEquipment0!$F22,References!$T$34:$T$36,0)))","v":""},{"$f":"IF(G22=\"\",\"\",INDEX(References!$AF$34:$AF$36,MATCH(ProposedEquipment0!$F22,References!$T$34:$T$36,0)))","v":""},{"$f":"IF(D22=\"\",\"\",ROUND((I22*T22)/(1-W22)*(1-U22+V22),References!$B$4))","v":""},{"$f":"IF(D22=\"\",\"\",ROUND(J22/(1-X22)*(1-U22+V22),References!$B$5))","v":""},{"$f":"IF(D22=\"\",\"\",ROUND((K22*T22)/(1-W22)*(1-U22+V22),References!$B$4))","v":""},{"$f":"IF(D22=\"\",\"\",ROUND(L22/(1-X22)*(1-U22+V22),References!$B$5))","v":""},"","","","","","",{"$f":"IF(OR(References!$H$14=\"\",AE22=\"\"),\"\",Qualifying_Index!N51)","v":""},{"$f":"IF(OR(References!$H$14=\"\",AE22=\"\"),\"\",IF(References!$J$36=FALSE,0,Qualifying_Index!BM47))","v":""},{"$f":"IF(OR(References!$H$14=\"\",AE22=\"\"),\"\",Qualifying_Index!N51)","v":""},{"$f":"IF(D22=\"\",\"\",Qualifying_Index!M51)","v":""},"","",null,null,{"$f":"IF(D22=\"\",\"\",Admin!AE23)","v":""},"",{"$f":"IF(OR(Worksheet!V62=\"DNQ\",AU22=\"\"),\"\",AR22*AU22)","v":""},null,"",null,null,null,null,null,null,null,null,null,null,null,null,null,null,null,null,null,null,null,null,null,null,null,null,null,null,{"$f":"IF(E22=\"\",\"\",Qualifying_Index!J51)","v":""},{"$f":"IF(E22=\"\",\"\",Qualifying_Index!K51)","v":""},null,null,{"$f":"IF(D22=\"\",\"\",References!$H$14)","v":""},null,null,null,null,{"$f":"IF($E22=\"\",\"\",'Smart T-Stats'!F30)","v":""},null,null,null,null,null,null,null,null,null,null,null,null,{"$f":"IF($E22=\"\",\"\",'Smart T-Stats'!H30)","v":""},{"$f":"IF($E22=\"\",\"\",'Smart T-Stats'!I30)","v":""},null,null,null,null,null,null,null,null,null,null,null,null,null,null,null,null,null,null,null,null,null,null,null,null,null,null,null,null,null,{"$f":"IF(C22=\"\",\"\",'Customer Information'!$K$11)","v":""}]
[11,null,"",{"$f":"IF('Smart T-Stats'!K31=\"\",\"\",\"Residential HVAC Other\")","v":""},{"$f":"IF(D23=\"\",\"\",INDEX(References!$W$22:$W$36,MATCH('Smart T-Stats'!J31,References!$S$22:$S$36,0)))","v":""},{"$f":"IF(D23=\"\",\"\",INDEX(References!$T$22:$T$36,MATCH('Smart T-Stats'!J31,References!$S$22:$S$36,0)))","v":""},{"$f":"IF(D23=\"\",\"\",'Customer Information'!$L$46)","v":""},{"$f":"IF(C23=\"\",\"\",\"Whole House ASHP and ER v\"&Development!$A$2)","v":""},"",{"$f":"IF($D23=\"\",\"\",Qualifying_Index!M52)","v":""},null,null,null,"","","",null,null,null,{"$f":"IF($D23=\"\",\"\",INDEX(References!$Z$34:$Z$36,MATCH(ProposedEquipment0!$F23,References!$T$34:$T$36,0)))","v":""},{"$f":"IF(D23=\"\",\"\",INDEX(References!$AC$34:$AC$36,MATCH(ProposedEquipment0!$F23,References!$T$34:$T$36,0)))","v":""},{"$f":"IF(E23=\"\",\"\",INDEX(References!$AD$34:$AD$36,MATCH(ProposedEquipment0!$F23,References!$T$34:$T$36,0)))","v":""},{"$f":"IF(F23=\"\",\"\",INDEX(References!$AE$34:$AE$36,MATCH(ProposedEquipment0!$F23,References!$T$34:$T$36,0)))","v":""},{"$f":"IF(G23=\"\",\"\",INDEX(References!$AF$34:$AF$36,MATCH(ProposedEquipment0!$F23,References!$T$34:$T$36,0)))","v":""},{"$f":"IF(D23=\"\",\"\",ROUND((I23*T23)/(1-W23)*(1-U23+V23),References!$B$4))","v":""},{"$f":"IF(D23=\"\",\"\",ROUND(J23/(1-X23)*(1-U23+V23),References!$B$5))","v":""},{"$f":"IF(D23=\"\",\"\",ROUND((K23*T23)/(1-W23)*(1-U23+V23),References!$B$4))","v":""},{"$f":"IF(D23=\"\",\"\",ROUND(L23/(1-X23)*(1-U23+V23),References!$B$5))","v":""},"","","","","","",{"$f":"IF(OR(References!$H$14=\"\",AE23=\"\"),\"\",Qualifying_Index!O52)","v":""},{"$f":"IF(OR(References!$H$14=\"\",AE23=\"\"),\"\",IF(References!$J$36=FALSE,0,Qualifying_Index!BM48))","v":""},{"$f":"IF(OR(References!$H$14=\"\",AE23=\"\"),\"\",Qualifying_Index!O52)","v":""},{"$f":"IF(D23=\"\",\"\",Qualifying_Index!N52)","v":""},"","",null,null,{"$f":"IF(D23=\"\",\"\",Admin!AE24)","v":""},"",{"$f":"IF(OR(Worksheet!V63=\"DNQ\",AU23=\"\"),\"\",AR23*AU23)","v":""},null,"",null,null,null,null,null,null,null,null,null,null,null,null,null,null,null,null,null,null,null,null,null,null,null,null,null,null,{"$f":"IF(E23=\"\",\"\",Qualifying_Index!K52)","v":""},{"$f":"IF(E23=\"\",\"\",Qualifying_Index!L52)","v":""},null,null,{"$f":"IF(D23=\"\",\"\",References!$H$14)","v":""},null,null,null,null,{"$f":"IF($E23=\"\",\"\",'Smart T-Stats'!F31)","v":""},null,null,null,null,null,null,null,null,null,null,null,null,{"$f":"IF($E23=\"\",\"\",'Smart T-Stats'!H31)","v":""},{"$f":"IF($E23=\"\",\"\",'Smart T-Stats'!I31)","v":""},null,null,null,null,null,null,null,null,null,null,null,null,null,null,null,null,null,null,null,null,null,null,null,null,null,null,null,null,null,{"$f":"IF(C23=\"\",\"\",'Customer Information'!$K$11)","v":""}]
[]
[1,null,{"$f":"IF(AND(Worksheet!$C$42<>\"\",References!$E$4),References!V$45,\"\")","v":""},{"$f":"IF(AND(Worksheet!$C$42<>\"\",References!$E$4),References!$U$45,\"\")","v":""},{"$f":"IF(AND(Worksheet!$C$42<>\"\",References!$E$4),References!$W$45,\"\")","v":""},{"$f":"IF(AND(Worksheet!$C$42<>\"\",References!$E$4),References!$T$45,\"\")","v":""},{"$f":"IF(D25=\"\",\"\",'Customer Information'!$L$46)","v":""},{"$f":"IF(C25=\"\",\"\",\"Whole House ASHP and ER v\"&Development!$A$2)","v":""},{"$f":"IF($D25=\"\",\"\",0)","v":""},{"$f":"IF($D25=\"\",\"\",0)","v":""},"","","",{"$f":"IF(D25=\"\",\"\",1)","v":""},{"$f":"IF(D25=\"\",\"\",I25*N25*T25)","v":""},{"$f":"IF(D25=\"\",\"\",J25*N25)","v":""},null,null,null,{"$f":"IF($D25=\"\",\"\",INDEX(References!$Z$22:$Z$45,MATCH(ProposedEquipment0!$F25,References!$T$22:$T$45,0)))","v":""},{"$f":"IF(D25=\"\",\"\",INDEX(References!$AC$22:$AC$45,MATCH(ProposedEquipment0!$F25,References!$T$22:$T$45,0)))","v":""},{"$f":"IF(E25=\"\",\"\",INDEX(References!$AD$22:$AD$45,MATCH(ProposedEquipment0!$F25,References!$T$22:$T$45,0)))","v":""},{"$f":"IF(F25=\"\",\"\",INDEX(References!$AE$22:$AE$45,MATCH(ProposedEquipment0!$F25,References!$T$22:$T$45,0)))","v":""},{"$f":"IF(G25=\"\",\"\",INDEX(References!$AF$22:$AF$45,MATCH(ProposedEquipment0!$F25,References!$T$22:$T$45,0)))","v":""},{"$f":"IF(D25=\"\",\"\",ROUND((I25*T25)/(1-W25)*(1-U25+V25),References!$B$4))","v":""},{"$f":"IF(D25=\"\",\"\",ROUND(J25/(1-X25)*(1-U25+V25),References!$B$5))","v":""},{"$f":"IF(D25=\"\",\"\",ROUND((K25*T25)/(1-W25)*(1-U25+V25),References!$B$4))","v":""},{"$f":"IF(D25=\"\",\"\",ROUND(L25/(1-X25)*(1-U25+V25),References!$B$5))","v":""},"",{"$f":"IF(D25=\"\",\"\",Y25*AU25)","v":""},{"$f":"IF(D25=\"\",\"\",Z25*AU25)","v":""},"","","",null,null,null,null,null,null,null,null,null,{"$f":"IF(AND(Worksheet!$C$42<>\"\",References!$E$4),References!X45,\"\")","v":""},{"$f":"IF(OR(Worksheet!V65=\"DNQ\",AU25=\"\"),\"\",AR25*AU25)","v":""},null,"",null,null,null,null,null,null,null,null,null,null,null,null,null,null,null,null,null,null,null,null,null,null,null,null,null,null,null,null,null,null,null,null,null,null,null,null,null,null,null,null,null,null,null,null,null,null,null,null,null,null,null,null,null,null,null,null,null,null,null,null,null,null,null,null,null,null,null,null,null,null,null,null,null,null,null,null,null,null,null,{"$f":"IF(C25=\"\",\"\",'Customer Information'!$K$11)","v":""}]

{"sheet":"Admin","index":15,"n_rows":25,"n_cols":31,"rows_kept":25,"cut":false,"hidden":false,"merged":[]}
[]
[]
[null,{"$f":"ProposedEquipment0!E1","v":"Product Name"},{"$f":"ProposedEquipment0!AU1","v":"Product Quantity"},{"$f":"ProposedEquipment0!F1","v":"Measure Code"},{"$f":"ProposedEquipment0!G1","v":"Application ID"},{"$f":"ProposedEquipment0!BM1","v":"Baseline EER"},{"$f":"ProposedEquipment0!BN1","v":"Baseline SEER"},{"$f":"ProposedEquipment0!BO1","v":"Baseline HSPF"},{"$f":"ProposedEquipment0!BX1","v":"Cooling Btuh"},{"$f":"ProposedEquipment0!BR1","v":"Proposed/Installed EER"},{"$f":"ProposedEquipment0!BS1","v":"Proposed/Installed SEER"},{"$f":"ProposedEquipment0!BT1","v":"Proposed/Installed HSPF"},{"$f":"ProposedEquipment0!BU1","v":"Proposed/Installed COP"},{"$f":"ProposedEquipment0!AR1","v":"Elec Util Cust Incentive"},{"$f":"ProposedEquipment0!AT1","v":"Contractor Incentive"},{"$f":"ProposedEquipment0!I1","v":"Gross kW"},{"$f":"ProposedEquipment0!J1","v":"Gross kWh"},{"$f":"ProposedEquipment0!K1","v":"Gross Winter kW"},{"$f":"ProposedEquipment0!L1","v":"Gross BE kWh"},{"$f":"ProposedEquipment0!M1","v":"Delta Gross kWh"},{"$f":"ProposedEquipment0!Y1","v":"Net kW"},{"$f":"ProposedEquipment0!Z1","v":"Net kWh"},{"$f":"ProposedEquipment0!AA1","v":"Net Winter kW"},{"$f":"ProposedEquipment0!AB1","v":"Net BE kWh"},{"$f":"ProposedEquipment0!AC1","v":"Delta Net kWh"},{"$f":"ProposedEquipment0!AD1","v":"Total Net kW"},{"$f":"ProposedEquipment0!AE1","v":"Total Net kWh"},{"$f":"ProposedEquipment0!AF1","v":"Total Net Winter kW"},{"$f":"ProposedEquipment0!AG1","v":"Total Net BE kWh"},{"$f":"ProposedEquipment0!AH1","v":"Total Delta Net kWh"},"Total Cost"]
[null,{"$f":"ProposedEquipment0!E2","v":""},{"$f":"ProposedEquipment0!AU2","v":""},{"$f":"ProposedEquipment0!F2","v":""},{"$f":"ProposedEquipment0!G2","v":""},{"$f":"ProposedEquipment0!BM2","v":""},{"$f":"ProposedEquipment0!BN2","v":""},{"$f":"ProposedEquipment0!BO2","v":""},{"$f":"ProposedEquipment0!BX2","v":""},{"$f":"ProposedEquipment0!BR2","v":""},{"$f":"ProposedEquipment0!BS2","v":""},{"$f":"ProposedEquipment0!BT2","v":""},{"$f":"ProposedEquipment0!BU2","v":""},{"$f":"ProposedEquipment0!AR2","v":""},{"$f":"ProposedEquipment0!AT2","v":""},{"$f":"ProposedEquipment0!I2","v":""},{"$f":"ProposedEquipment0!J2","v":""},{"$f":"ProposedEquipment0!K2","v":""},{"$f":"ProposedEquipment0!L2","v":""},{"$f":"ProposedEquipment0!M2","v":""},{"$f":"ProposedEquipment0!Y2","v":""},{"$f":"ProposedEquipment0!Z2","v":""},{"$f":"ProposedEquipment0!AA2","v":""},{"$f":"ProposedEquipment0!AB2","v":""},{"$f":"ProposedEquipment0!AC2","v":""},{"$f":"ProposedEquipment0!AD2","v":""},{"$f":"ProposedEquipment0!AE2","v":""},{"$f":"ProposedEquipment0!AF2","v":""},{"$f":"ProposedEquipment0!AG2","v":""},{"$f":"ProposedEquipment0!AH2","v":""}]
[null,{"$f":"ProposedEquipment0!E3","v":""},{"$f":"ProposedEquipment0!AU3","v":""},{"$f":"ProposedEquipment0!F3","v":""},{"$f":"ProposedEquipment0!G3","v":""},{"$f":"ProposedEquipment0!BM3","v":""},{"$f":"ProposedEquipment0!BN3","v":""},{"$f":"ProposedEquipment0!BO3","v":""},{"$f":"ProposedEquipment0!BX3","v":""},{"$f":"ProposedEquipment0!BR3","v":""},{"$f":"ProposedEquipment0!BS3","v":""},{"$f":"ProposedEquipment0!BT3","v":""},{"$f":"ProposedEquipment0!BU3","v":""},{"$f":"ProposedEquipment0!AR3","v":""},{"$f":"ProposedEquipment0!AT3","v":""},{"$f":"ProposedEquipment0!I3","v":""},{"$f":"ProposedEquipment0!J3","v":""},{"$f":"ProposedEquipment0!K3","v":""},{"$f":"ProposedEquipment0!L3","v":""},{"$f":"ProposedEquipment0!M3","v":""},{"$f":"ProposedEquipment0!Y3","v":""},{"$f":"ProposedEquipment0!Z3","v":""},{"$f":"ProposedEquipment0!AA3","v":""},{"$f":"ProposedEquipment0!AB3","v":""},{"$f":"ProposedEquipment0!AC3","v":""},{"$f":"ProposedEquipment0!AD3","v":""},{"$f":"ProposedEquipment0!AE3","v":""},{"$f":"ProposedEquipment0!AF3","v":""},{"$f":"ProposedEquipment0!AG3","v":""},{"$f":"ProposedEquipment0!AH3","v":""}]
[null,{"$f":"ProposedEquipment0!E4","v":""},{"$f":"ProposedEquipment0!AU4","v":""},{"$f":"ProposedEquipment0!F4","v":""},{"$f":"ProposedEquipment0!G4","v":""},{"$f":"ProposedEquipment0!BM4","v":""},{"$f":"ProposedEquipment0!BN4","v":""},{"$f":"ProposedEquipment0!BO4","v":""},{"$f":"ProposedEquipment0!BX4","v":""},{"$f":"ProposedEquipment0!BR4","v":""},{"$f":"ProposedEquipment0!BS4","v":""},{"$f":"ProposedEquipment0!BT4","v":""},{"$f":"ProposedEquipment0!BU4","v":""},{"$f":"ProposedEquipment0!AR4","v":""},{"$f":"ProposedEquipment0!AT4","v":""},{"$f":"ProposedEquipment0!I4","v":""},{"$f":"ProposedEquipment0!J4","v":""},{"$f":"ProposedEquipment0!K4","v":""},{"$f":"ProposedEquipment0!L4","v":""},{"$f":"ProposedEquipment0!M4","v":""},{"$f":"ProposedEquipment0!Y4","v":""},{"$f":"ProposedEquipment0!Z4","v":""},{"$f":"ProposedEquipment0!AA4","v":""},{"$f":"ProposedEquipment0!AB4","v":""},{"$f":"ProposedEquipment0!AC4","v":""},{"$f":"ProposedEquipment0!AD4","v":""},{"$f":"ProposedEquipment0!AE4","v":""},{"$f":"ProposedEquipment0!AF4","v":""},{"$f":"ProposedEquipment0!AG4","v":""},{"$f":"ProposedEquipment0!AH4","v":""}]
[null,{"$f":"ProposedEquipment0!E5","v":""},{"$f":"ProposedEquipment0!AU5","v":""},{"$f":"ProposedEquipment0!F5","v":""},{"$f":"ProposedEquipment0!G5","v":""},{"$f":"ProposedEquipment0!BM5","v":""},{"$f":"ProposedEquipment0!BN5","v":""},{"$f":"ProposedEquipment0!BO5","v":""},{"$f":"ProposedEquipment0!BX5","v":""},{"$f":"ProposedEquipment0!BR5","v":""},{"$f":"ProposedEquipment0!BS5","v":""},{"$f":"ProposedEquipment0!BT5","v":""},{"$f":"ProposedEquipment0!BU5","v":""},{"$f":"ProposedEquipment0!AR5","v":""},{"$f":"ProposedEquipment0!AT5","v":""},{"$f":"ProposedEquipment0!I5","v":""},{"$f":"ProposedEquipment0!J5","v":""},{"$f":"ProposedEquipment0!K5","v":""},{"$f":"ProposedEquipment0!L5","v":""},{"$f":"ProposedEquipment0!M5","v":""},{"$f":"ProposedEquipment0!Y5","v":""},{"$f":"ProposedEquipment0!Z5","v":""},{"$f":"ProposedEquipment0!AA5","v":""},{"$f":"ProposedEquipment0!AB5","v":""},{"$f":"ProposedEquipment0!AC5","v":""},{"$f":"ProposedEquipment0!AD5","v":""},{"$f":"ProposedEquipment0!AE5","v":""},{"$f":"ProposedEquipment0!AF5","v":""},{"$f":"ProposedEquipment0!AG5","v":""},{"$f":"ProposedEquipment0!AH5","v":""}]
[null,{"$f":"ProposedEquipment0!E6","v":""},{"$f":"ProposedEquipment0!AU6","v":""},{"$f":"ProposedEquipment0!F6","v":""},{"$f":"ProposedEquipment0!G6","v":""},{"$f":"ProposedEquipment0!BM6","v":""},{"$f":"ProposedEquipment0!BN6","v":""},{"$f":"ProposedEquipment0!BO6","v":""},{"$f":"ProposedEquipment0!BX6","v":""},{"$f":"ProposedEquipment0!BR6","v":""},{"$f":"ProposedEquipment0!BS6","v":""},{"$f":"ProposedEquipment0!BT6","v":""},{"$f":"ProposedEquipment0!BU6","v":""},{"$f":"ProposedEquipment0!AR6","v":""},{"$f":"ProposedEquipment0!AT6","v":""},{"$f":"ProposedEquipment0!I6","v":""},{"$f":"ProposedEquipment0!J6","v":""},{"$f":"ProposedEquipment0!K6","v":""},{"$f":"ProposedEquipment0!L6","v":""},{"$f":"ProposedEquipment0!M6","v":""},{"$f":"ProposedEquipment0!Y6","v":""},{"$f":"ProposedEquipment0!Z6","v":""},{"$f":"ProposedEquipment0!AA6","v":""},{"$f":"ProposedEquipment0!AB6","v":""},{"$f":"ProposedEquipment0!AC6","v":""},{"$f":"ProposedEquipment0!AD6","v":""},{"$f":"ProposedEquipment0!AE6","v":""},{"$f":"ProposedEquipment0!AF6","v":""},{"$f":"ProposedEquipment0!AG6","v":""},{"$f":"ProposedEquipment0!AH6","v":""}]
[null,{"$f":"ProposedEquipment0!E7","v":""},{"$f":"ProposedEquipment0!AU7","v":""},{"$f":"ProposedEquipment0!F7","v":""},{"$f":"ProposedEquipment0!G7","v":""},{"$f":"ProposedEquipment0!BM7","v":""},{"$f":"ProposedEquipment0!BN7","v":""},{"$f":"ProposedEquipment0!BO7","v":""},{"$f":"ProposedEquipment0!BX7","v":""},{"$f":"ProposedEquipment0!BR7","v":""},{"$f":"ProposedEquipment0!BS7","v":""},{"$f":"ProposedEquipment0!BT7","v":""},{"$f":"ProposedEquipment0!BU7","v":""},{"$f":"ProposedEquipment0!AR7","v":""},{"$f":"ProposedEquipment0!AT7","v":""},{"$f":"ProposedEquipment0!I7","v":""},{"$f":"ProposedEquipment0!J7","v":""},{"$f":"ProposedEquipment0!K7","v":""},{"$f":"ProposedEquipment0!L7","v":""},{"$f":"ProposedEquipment0!M7","v":""},{"$f":"ProposedEquipment0!Y7","v":""},{"$f":"ProposedEquipment0!Z7","v":""},{"$f":"ProposedEquipment0!AA7","v":""},{"$f":"ProposedEquipment0!AB7","v":""},{"$f":"ProposedEquipment0!AC7","v":""},{"$f":"ProposedEquipment0!AD7","v":""},{"$f":"ProposedEquipment0!AE7","v":""},{"$f":"ProposedEquipment0!AF7","v":""},{"$f":"ProposedEquipment0!AG7","v":""},{"$f":"ProposedEquipment0!AH7","v":""}]
[null,{"$f":"ProposedEquipment0!E8","v":""},{"$f":"ProposedEquipment0!AU8","v":""},{"$f":"ProposedEquipment0!F8","v":""},{"$f":"ProposedEquipment0!G8","v":""},{"$f":"ProposedEquipment0!BM8","v":""},{"$f":"ProposedEquipment0!BN8","v":""},{"$f":"ProposedEquipment0!BO8","v":""},{"$f":"ProposedEquipment0!BX8","v":""},{"$f":"ProposedEquipment0!BR8","v":""},{"$f":"ProposedEquipment0!BS8","v":""},{"$f":"ProposedEquipment0!BT8","v":""},{"$f":"ProposedEquipment0!BU8","v":""},{"$f":"ProposedEquipment0!AR8","v":""},{"$f":"ProposedEquipment0!AT8","v":""},{"$f":"ProposedEquipment0!I8","v":""},{"$f":"ProposedEquipment0!J8","v":""},{"$f":"ProposedEquipment0!K8","v":""},{"$f":"ProposedEquipment0!L8","v":""},{"$f":"ProposedEquipment0!M8","v":""},{"$f":"ProposedEquipment0!Y8","v":""},{"$f":"ProposedEquipment0!Z8","v":""},{"$f":"ProposedEquipment0!AA8","v":""},{"$f":"ProposedEquipment0!AB8","v":""},{"$f":"ProposedEquipment0!AC8","v":""},{"$f":"ProposedEquipment0!AD8","v":""},{"$f":"ProposedEquipment0!AE8","v":""},{"$f":"ProposedEquipment0!AF8","v":""},{"$f":"ProposedEquipment0!AG8","v":""},{"$f":"ProposedEquipment0!AH8","v":""}]
[null,{"$f":"ProposedEquipment0!E9","v":""},{"$f":"ProposedEquipment0!AU9","v":""},{"$f":"ProposedEquipment0!F9","v":""},{"$f":"ProposedEquipment0!G9","v":""},{"$f":"ProposedEquipment0!BM9","v":""},{"$f":"ProposedEquipment0!BN9","v":""},{"$f":"ProposedEquipment0!BO9","v":""},{"$f":"ProposedEquipment0!BX9","v":""},{"$f":"ProposedEquipment0!BR9","v":""},{"$f":"ProposedEquipment0!BS9","v":""},{"$f":"ProposedEquipment0!BT9","v":""},{"$f":"ProposedEquipment0!BU9","v":""},{"$f":"ProposedEquipment0!AR9","v":""},{"$f":"ProposedEquipment0!AT9","v":""},{"$f":"ProposedEquipment0!I9","v":""},{"$f":"ProposedEquipment0!J9","v":""},{"$f":"ProposedEquipment0!K9","v":""},{"$f":"ProposedEquipment0!L9","v":""},{"$f":"ProposedEquipment0!M9","v":""},{"$f":"ProposedEquipment0!Y9","v":""},{"$f":"ProposedEquipment0!Z9","v":""},{"$f":"ProposedEquipment0!AA9","v":""},{"$f":"ProposedEquipment0!AB9","v":""},{"$f":"ProposedEquipment0!AC9","v":""},{"$f":"ProposedEquipment0!AD9","v":""},{"$f":"ProposedEquipment0!AE9","v":""},{"$f":"ProposedEquipment0!AF9","v":""},{"$f":"ProposedEquipment0!AG9","v":""},{"$f":"ProposedEquipment0!AH9","v":""}]
[null,{"$f":"ProposedEquipment0!E10","v":""},{"$f":"ProposedEquipment0!AU10","v":""},{"$f":"ProposedEquipment0!F10","v":""},{"$f":"ProposedEquipment0!G10","v":""},{"$f":"ProposedEquipment0!BM10","v":""},{"$f":"ProposedEquipment0!BN10","v":""},{"$f":"ProposedEquipment0!BO10","v":""},{"$f":"ProposedEquipment0!BX10","v":""},{"$f":"ProposedEquipment0!BR10","v":""},{"$f":"ProposedEquipment0!BS10","v":""},{"$f":"ProposedEquipment0!BT10","v":""},{"$f":"ProposedEquipment0!BU10","v":""},{"$f":"ProposedEquipment0!AR10","v":""},{"$f":"ProposedEquipment0!AT10","v":""},{"$f":"ProposedEquipment0!I10","v":""},{"$f":"ProposedEquipment0!J10","v":""},{"$f":"ProposedEquipment0!K10","v":""},{"$f":"ProposedEquipment0!L10","v":""},{"$f":"ProposedEquipment0!M10","v":""},{"$f":"ProposedEquipment0!Y10","v":""},{"$f":"ProposedEquipment0!Z10","v":""},{"$f":"ProposedEquipment0!AA10","v":""},{"$f":"ProposedEquipment0!AB10","v":""},{"$f":"ProposedEquipment0!AC10","v":""},{"$f":"ProposedEquipment0!AD10","v":""},{"$f":"ProposedEquipment0!AE10","v":""},{"$f":"ProposedEquipment0!AF10","v":""},{"$f":"ProposedEquipment0!AG10","v":""},{"$f":"ProposedEquipment0!AH10","v":""}]
[null,{"$f":"ProposedEquipment0!E11","v":""},{"$f":"ProposedEquipment0!AU11","v":""},{"$f":"ProposedEquipment0!F11","v":""},{"$f":"ProposedEquipment0!G11","v":""},{"$f":"ProposedEquipment0!BM11","v":""},{"$f":"ProposedEquipment0!BN11","v":""},{"$f":"ProposedEquipment0!BO11","v":""},{"$f":"ProposedEquipment0!BX11","v":""},{"$f":"ProposedEquipment0!BR11","v":""},{"$f":"ProposedEquipment0!BS11","v":""},{"$f":"ProposedEquipment0!BT11","v":""},{"$f":"ProposedEquipment0!BU11","v":""},{"$f":"ProposedEquipment0!AR11","v":""},{"$f":"ProposedEquipment0!AT11","v":""},{"$f":"ProposedEquipment0!I11","v":""},{"$f":"ProposedEquipment0!J11","v":""},{"$f":"ProposedEquipment0!K11","v":""},{"$f":"ProposedEquipment0!L11","v":""},{"$f":"ProposedEquipment0!M11","v":""},{"$f":"ProposedEquipment0!Y11","v":""},{"$f":"ProposedEquipment0!Z11","v":""},{"$f":"ProposedEquipment0!AA11","v":""},{"$f":"ProposedEquipment0!AB11","v":""},{"$f":"ProposedEquipment0!AC11","v":""},{"$f":"ProposedEquipment0!AD11","v":""},{"$f":"ProposedEquipment0!AE11","v":""},{"$f":"ProposedEquipment0!AF11","v":""},{"$f":"ProposedEquipment0!AG11","v":""},{"$f":"ProposedEquipment0!AH11","v":""}]
[null,{"$f":"ProposedEquipment0!E13","v":""},{"$f":"ProposedEquipment0!AU13","v":""},{"$f":"ProposedEquipment0!F13","v":""},{"$f":"ProposedEquipment0!G13","v":""},null,null,null,null,null,null,null,null,{"$f":"ProposedEquipment0!AR13","v":""},null,{"$f":"ProposedEquipment0!I13","v":""},{"$f":"ProposedEquipment0!J13","v":""},{"$f":"ProposedEquipment0!K13","v":0},{"$f":"ProposedEquipment0!L13","v":0},{"$f":"ProposedEquipment0!M13","v":0},{"$f":"ProposedEquipment0!Y13","v":""},{"$f":"ProposedEquipment0!Z13","v":""},{"$f":"ProposedEquipment0!AA13","v":""},{"$f":"ProposedEquipment0!AB13","v":""},{"$f":"ProposedEquipment0!AC13","v":""},{"$f":"ProposedEquipment0!AD13","v":""},{"$f":"ProposedEquipment0!AE13","v":""},{"$f":"ProposedEquipment0!AF13","v":""},{"$f":"ProposedEquipment0!AG13","v":""},{"$f":"ProposedEquipment0!AH13","v":""}]
[null,{"$f":"ProposedEquipment0!E14","v":""},{"$f":"ProposedEquipment0!AU14","v":""},{"$f":"ProposedEquipment0!F14","v":""},{"$f":"ProposedEquipment0!G14","v":""},null,null,null,null,null,null,null,null,{"$f":"ProposedEquipment0!AR14","v":""},null,{"$f":"ProposedEquipment0!I14","v":""},{"$f":"ProposedEquipment0!J14","v":""},{"$f":"ProposedEquipment0!K14","v":0},{"$f":"ProposedEquipment0!L14","v":0},{"$f":"ProposedEquipment0!M14","v":0},{"$f":"ProposedEquipment0!Y14","v":""},{"$f":"ProposedEquipment0!Z14","v":""},{"$f":"ProposedEquipment0!AA14","v":""},{"$f":"ProposedEquipment0!AB14","v":""},{"$f":"ProposedEquipment0!AC14","v":""},{"$f":"ProposedEquipment0!AD14","v":""},{"$f":"ProposedEquipment0!AE14","v":""},{"$f":"ProposedEquipment0!AF14","v":""},{"$f":"ProposedEquipment0!AG14","v":""},{"$f":"ProposedEquipment0!AH14","v":""}]
[null,{"$f":"ProposedEquipment0!E15","v":""},{"$f":"ProposedEquipment0!AU15","v":""},{"$f":"ProposedEquipment0!F15","v":""},{"$f":"ProposedEquipment0!G15","v":""},null,null,null,null,null,null,null,null,{"$f":"ProposedEquipment0!AR15","v":""},null,{"$f":"ProposedEquipment0!I15","v":""},{"$f":"ProposedEquipment0!J15","v":""},{"$f":"ProposedEquipment0!K15","v":0},{"$f":"ProposedEquipment0!L15","v":0},{"$f":"ProposedEquipment0!M15","v":0},{"$f":"ProposedEquipment0!Y15","v":""},{"$f":"ProposedEquipment0!Z15","v":""},{"$f":"ProposedEquipment0!AA15","v":""},{"$f":"ProposedEquipment0!AB15","v":""},{"$f":"ProposedEquipment0!AC15","v":""},{"$f":"ProposedEquipment0!AD15","v":""},{"$f":"ProposedEquipment0!AE15","v":""},{"$f":"ProposedEquipment0!AF15","v":""},{"$f":"ProposedEquipment0!AG15","v":""},{"$f":"ProposedEquipment0!AH15","v":""}]
[null,{"$f":"ProposedEquipment0!E16","v":""},{"$f":"ProposedEquipment0!AU16","v":""},{"$f":"ProposedEquipment0!F16","v":""},{"$f":"ProposedEquipment0!G16","v":""},null,null,null,null,null,null,null,null,{"$f":"ProposedEquipment0!AR16","v":""},null,{"$f":"ProposedEquipment0!I16","v":""},{"$f":"ProposedEquipment0!J16","v":""},{"$f":"ProposedEquipment0!K16","v":0},{"$f":"ProposedEquipment0!L16","v":0},{"$f":"ProposedEquipment0!M16","v":0},{"$f":"ProposedEquipment0!Y16","v":""},{"$f":"ProposedEquipment0!Z16","v":""},{"$f":"ProposedEquipment0!AA16","v":""},{"$f":"ProposedEquipment0!AB16","v":""},{"$f":"ProposedEquipment0!AC16","v":""},{"$f":"ProposedEquipment0!AD16","v":""},{"$f":"ProposedEquipment0!AE16","v":""},{"$f":"ProposedEquipment0!AF16","v":""},{"$f":"ProposedEquipment0!AG16","v":""},{"$f":"ProposedEquipment0!AH16","v":""}]
[null,{"$f":"ProposedEquipment0!E17","v":""},{"$f":"ProposedEquipment0!AU17","v":""},{"$f":"ProposedEquipment0!F17","v":""},{"$f":"ProposedEquipment0!G17","v":""},null,null,null,null,null,null,null,null,{"$f":"ProposedEquipment0!AR17","v":""},null,{"$f":"ProposedEquipment0!I17","v":""},{"$f":"ProposedEquipment0!J17","v":""},{"$f":"ProposedEquipment0!K17","v":0},{"$f":"ProposedEquipment0!L17","v":0},{"$f":"ProposedEquipment0!M17","v":0},{"$f":"ProposedEquipment0!Y17","v":""},{"$f":"ProposedEquipment0!Z17","v":""},{"$f":"ProposedEquipment0!AA17","v":""},{"$f":"ProposedEquipment0!AB17","v":""},{"$f":"ProposedEquipment0!AC17","v":""},{"$f":"ProposedEquipment0!AD17","v":""},{"$f":"ProposedEquipment0!AE17","v":""},{"$f":"ProposedEquipment0!AF17","v":""},{"$f":"ProposedEquipment0!AG17","v":""},{"$f":"ProposedEquipment0!AH17","v":""}]
[null,{"$f":"ProposedEquipment0!E18","v":""},{"$f":"ProposedEquipment0!AU18","v":""},{"$f":"ProposedEquipment0!F18","v":""},{"$f":"ProposedEquipment0!G18","v":""},null,null,null,null,null,null,null,null,{"$f":"ProposedEquipment0!AR18","v":""},null,{"$f":"ProposedEquipment0!I18","v":""},{"$f":"ProposedEquipment0!J18","v":""},{"$f":"ProposedEquipment0!K18","v":0},{"$f":"ProposedEquipment0!L18","v":0},{"$f":"ProposedEquipment0!M18","v":0},{"$f":"ProposedEquipment0!Y18","v":""},{"$f":"ProposedEquipment0!Z18","v":""},{"$f":"ProposedEquipment0!AA18","v":""},{"$f":"ProposedEquipment0!AB18","v":""},{"$f":"ProposedEquipment0!AC18","v":""},{"$f":"ProposedEquipment0!AD18","v":""},{"$f":"ProposedEquipment0!AE18","v":""},{"$f":"ProposedEquipment0!AF18","v":""},{"$f":"ProposedEquipment0!AG18","v":""},{"$f":"ProposedEquipment0!AH18","v":""}]
[null,{"$f":"ProposedEquipment0!E19","v":""},{"$f":"ProposedEquipment0!AU19","v":""},{"$f":"ProposedEquipment0!F19","v":""},{"$f":"ProposedEquipment0!G19","v":""},null,null,null,null,null,null,null,null,{"$f":"ProposedEquipment0!AR19","v":""},null,{"$f":"ProposedEquipment0!I19","v":""},{"$f":"ProposedEquipment0!J19","v":""},{"$f":"ProposedEquipment0!K19","v":0},{"$f":"ProposedEquipment0!L19","v":0},{"$f":"ProposedEquipment0!M19","v":0},{"$f":"ProposedEquipment0!Y19","v":""},{"$f":"ProposedEquipment0!Z19","v":""},{"$f":"ProposedEquipment0!AA19","v":""},{"$f":"ProposedEquipment0!AB19","v":""},{"$f":"ProposedEquipment0!AC19","v":""},{"$f":"ProposedEquipment0!AD19","v":""},{"$f":"ProposedEquipment0!AE19","v":""},{"$f":"ProposedEquipment0!AF19","v":""},{"$f":"ProposedEquipment0!AG19","v":""},{"$f":"ProposedEquipment0!AH19","v":""}]
[null,{"$f":"ProposedEquipment0!E20","v":""},{"$f":"ProposedEquipment0!AU20","v":""},{"$f":"ProposedEquipment0!F20","v":""},{"$f":"ProposedEquipment0!G20","v":""},null,null,null,null,null,null,null,null,{"$f":"ProposedEquipment0!AR20","v":""},null,{"$f":"ProposedEquipment0!I20","v":""},{"$f":"ProposedEquipment0!J20","v":""},{"$f":"ProposedEquipment0!K20","v":0},{"$f":"ProposedEquipment0!L20","v":0},{"$f":"ProposedEquipment0!M20","v":0},{"$f":"ProposedEquipment0!Y20","v":""},{"$f":"ProposedEquipment0!Z20","v":""},{"$f":"ProposedEquipment0!AA20","v":""},{"$f":"ProposedEquipment0!AB20","v":""},{"$f":"ProposedEquipment0!AC20","v":""},{"$f":"ProposedEquipment0!AD20","v":""},{"$f":"ProposedEquipment0!AE20","v":""},{"$f":"ProposedEquipment0!AF20","v":""},{"$f":"ProposedEquipment0!AG20","v":""},{"$f":"ProposedEquipment0!AH20","v":""}]
[null,{"$f":"ProposedEquipment0!E21","v":""},{"$f":"ProposedEquipment0!AU21","v":""},{"$f":"ProposedEquipment0!F21","v":""},{"$f":"ProposedEquipment0!G21","v":""},null,null,null,null,null,null,null,null,{"$f":"ProposedEquipment0!AR21","v":""},null,{"$f":"ProposedEquipment0!I21","v":""},{"$f":"ProposedEquipment0!J21","v":""},{"$f":"ProposedEquipment0!K21","v":0},{"$f":"ProposedEquipment0!L21","v":0},{"$f":"ProposedEquipment0!M21","v":0},{"$f":"ProposedEquipment0!Y21","v":""},{"$f":"ProposedEquipment0!Z21","v":""},{"$f":"ProposedEquipment0!AA21","v":""},{"$f":"ProposedEquipment0!AB21","v":""},{"$f":"ProposedEquipment0!AC21","v":""},{"$f":"ProposedEquipment0!AD21","v":""},{"$f":"ProposedEquipment0!AE21","v":""},{"$f":"ProposedEquipment0!AF21","v":""},{"$f":"ProposedEquipment0!AG21","v":""},{"$f":"ProposedEquipment0!AH21","v":""}]
[null,{"$f":"ProposedEquipment0!E22","v":""},{"$f":"ProposedEquipment0!AU22","v":""},{"$f":"ProposedEquipment0!F22","v":""},{"$f":"ProposedEquipment0!G22","v":""},null,null,null,null,null,null,null,null,{"$f":"ProposedEquipment0!AR22","v":""},null,{"$f":"ProposedEquipment0!I22","v":""},{"$f":"ProposedEquipment0!J22","v":""},{"$f":"ProposedEquipment0!K22","v":0},{"$f":"ProposedEquipment0!L22","v":0},{"$f":"ProposedEquipment0!M22","v":0},{"$f":"ProposedEquipment0!Y22","v":""},{"$f":"ProposedEquipment0!Z22","v":""},{"$f":"ProposedEquipment0!AA22","v":""},{"$f":"ProposedEquipment0!AB22","v":""},{"$f":"ProposedEquipment0!AC22","v":""},{"$f":"ProposedEquipment0!AD22","v":""},{"$f":"ProposedEquipment0!AE22","v":""},{"$f":"ProposedEquipment0!AF22","v":""},{"$f":"ProposedEquipment0!AG22","v":""},{"$f":"ProposedEquipment0!AH22","v":""}]
[null,{"$f":"ProposedEquipment0!E23","v":""},{"$f":"ProposedEquipment0!AU23","v":""},{"$f":"ProposedEquipment0!F23","v":""},{"$f":"ProposedEquipment0!G23","v":""},null,null,null,null,null,null,null,null,{"$f":"ProposedEquipment0!AR23","v":""},null,{"$f":"ProposedEquipment0!I23","v":""},{"$f":"ProposedEquipment0!J23","v":""},{"$f":"ProposedEquipment0!K23","v":0},{"$f":"ProposedEquipment0!L23","v":0},{"$f":"ProposedEquipment0!M23","v":0},{"$f":"ProposedEquipment0!Y23","v":""},{"$f":"ProposedEquipment0!Z23","v":""},{"$f":"ProposedEquipment0!AA23","v":""},{"$f":"ProposedEquipment0!AB23","v":""},{"$f":"ProposedEquipment0!AC23","v":""},{"$f":"ProposedEquipment0!AD23","v":""},{"$f":"ProposedEquipment0!AE23","v":""},{"$f":"ProposedEquipment0!AF23","v":""},{"$f":"ProposedEquipment0!AG23","v":""},{"$f":"ProposedEquipment0!AH23","v":""}]
[null,{"$f":"ProposedEquipment0!E25","v":""},{"$f":"ProposedEquipment0!AU25","v":""},{"$f":"ProposedEquipment0!F25","v":""},{"$f":"ProposedEquipment0!G25","v":""},null,null,null,null,null,null,null,null,{"$f":"ProposedEquipment0!AR25","v":""},null,{"$f":"ProposedEquipment0!I25","v":""},{"$f":"ProposedEquipment0!J25","v":""},{"$f":"ProposedEquipment0!K25","v":""},{"$f":"ProposedEquipment0!L25","v":""},{"$f":"ProposedEquipment0!M25","v":""},{"$f":"ProposedEquipment0!Y25","v":""},{"$f":"ProposedEquipment0!Z25","v":""},{"$f":"ProposedEquipment0!AA25","v":""},{"$f":"ProposedEquipment0!AB25","v":""},{"$f":"ProposedEquipment0!AC25","v":""},{"$f":"ProposedEquipment0!AD25","v":""},{"$f":"ProposedEquipment0!AE25","v":""},{"$f":"ProposedEquipment0!AF25","v":""},{"$f":"ProposedEquipment0!AG25","v":""},{"$f":"ProposedEquipment0!AH25","v":""}]

{"sheet":"AIRFLOW FORM","index":16,"n_rows":127,"n_cols":15,"rows_kept":127,"cut":false,"hidden":false,"merged":[[126,3,126,5],[126,6,126,8],[118,5,119,10],[118,12,119,12],[118,0,119,4],[118,13,119,13],[25,4,25,5],[18,4,18,5],[99,4,99,5],[18,6,18,7],[46,4,46,5],[39,8,39,9],[71,4,71,5],[15,12,15,13],[5,7,5,8],[7,7,7,8],[30,2,30,11],[0,0,0,9],[15,4,15,5],[29,0,29,12],[18,0,18,3],[18,12,18,13],[1,0,1,9],[20,0,20,2],[22,4,22,5],[2,0,2,9]]}
[{"$f":"Development!$A$3&\" Residential Efficiency Program\"","v":"2019 Residential Efficiency Program"}]
["Post Installation/Airflow & Refrigerant Charge Form"]
["For Ducted Systems Only"]
["Equipment Data"]
[]
["Unit Number: ",null,null,null,null,null,"Manufacturer"]
[]
[null,null,null,null,null,null,"Model No."]
[]
[null,"Ducts Tested?",null,"Ducts Sealed?"]
[]
["Airflow"]
[]
["Please fill out all of the below fields as applicable for the installation"]
[]
["1. Rated Cooling Capacity (tons):",null,null,null,null,null,{"$f":"IF(OR(E16=\"\"),\"\",References!AJ4)","v":""},null,null,null,null,"2. Target Airflow Volume (CFM) PER TON:",null,null,{"$f":"IF(OR(M16=\"\"),\"\",References!AJ6)","v":""}]
[]
["Complete field 3a OR field 3b"]
["3a. Static pressure drop in inches of water column W.C. measures across evaporator coil if new installed:",null,null,null,null,null,{"$f":"IF(OR(E19=\"\"),\"\",References!AJ5)","v":""},null,"OR",null,null,"3b. External static pressure for fan coil unit:",null,null,{"$f":"IF(OR(M19=\"\"),\"\",References!AJ7)","v":""}]
[]
["4. Total Static measured with:"]
[]
["5. CFM Air Flow Estimated from Total Static Measurement:",null,null,null,null,null,{"$f":"IF(OR(E23=\"\"),\"\",References!AJ9)","v":""}]
["*If this field contains data, leave True Flow CFM field below blank"]
[]
["6. True Flow CFM measured:",null,null,null,null,null,{"$f":"IF(OR(E26=\"\"),\"\",References!AJ8)","v":""}]
["*If this field contains data, no data input is required for field 3a/3b and field 5"]
[]
[]
["Installations must have visible and accessible ports for airflow and temperature measurements. Ports must be sealed with contrasting color plugs. Please indicate"]
["location of test ports:"]
[]
["Notes: "]
["Convert Pascals to inches of WC as pascals X 249.09"]
["Copy of table or graph supplied by manufacturer and used to estimate airflow must be attached to this form."]
[]
[]
["Refrigerant Charge Method"]
[]
["Charging Method Used:"]
[]
["Option 1: SUBCOOLING Notes: Preferred Method. Typical for most Thermal Expansion Valve systems when outdoor temperature is greater than OEM spec. (Typ. 60°F)"]
[]
["Inputs"]
["Refrigerant Type"]
[]
[]
[]
[]
[null,"Required Subcooling:",null,null,null,"°F",{"$f":"IF(OR(E50=\"\"),\"\",References!AJ16)","v":""}]
[]
[null,"Outdoor Dry Bulb Temperature:",null,null,null,"°F",{"$f":"IF(OR(E52=\"\"),\"\",References!AJ17)","v":""}]
[]
["Measurements"]
[]
["Liquid Line Pressure",null,null,null,null,"psig",{"$f":"IF(OR(E56=\"\"),\"\",References!AJ18)","v":""}]
[]
["(F) Saturation temperature for measured pressure",null,null,null,null,"°F",{"$f":"IF(OR(E58=\"\"),\"\",References!AJ19)","v":""}]
[]
["(G) Liquid Line temperature",null,null,null,null,"°F",{"$f":"IF(OR(E60=\"\"),\"\",References!AJ20)","v":""}]
[]
["*Measured Subcooling (F minus G)",null,null,null,{"$f":"IF(OR(E58=\"\",E60=\"\"),\"\",E58-E60)","v":""},"°F"]
[]
["*Measured Subcooling must be within 3°F of the manufacturer specified Subcooling."]
[]
["Note: A copy of the documentation of the manufacturer's specified subcooling for the installed equipment must be attached to this form"]
["Option 2: SUPERHEAT Note: Can only be used for fixed orifice systems (Non-TXV) when outdoor temperature is greater than OEM spec. (Type 55°)"]
[]
["Inputs"]
["Refrigerant Type"]
[]
[]
[]
[]
[null,"Manufacturer Specified Superheat",null,null,null,"°F ",{"$f":"IF(OR(E75=\"\"),\"\",References!AJ28)","v":""}]
[null,"(from manufacturer service guide or as per manufacturer's specification or cut sheet)"]
[]
[null,"Indoor Wet Bulb Temperature",null,null,null,"°F",{"$f":"IF(OR(E78=\"\"),\"\",References!AJ29)","v":""}]
[]
[null,"Outdoor Dry Bulb Temperature",null,null,null,"°F",{"$f":"IF(OR(E80=\"\"),\"\",References!AJ30)","v":""}]
[]
[]
["Measurements"]
[]
["Vapor (suction) pressure",null,null,null,null,"psig",{"$f":"IF(OR(E85=\"\"),\"\",References!AJ31)","v":""}]
[]
["(D) Saturation temperature for measured pressure",null,null,null,null,"°F",{"$f":"IF(OR(E87=\"\"),\"\",References!AJ32)","v":""}]
[]
["(E) Vapor (suction) line temperature near compressor",null,null,null,null,"°F",{"$f":"IF(OR(E89=\"\"),\"\",References!AJ33)","v":""}]
[null,null,null,null,null,null,"  "]
["*Measured Superheat (E minus D)",null,null,null,{"$f":"IF(OR(E87=\"\",E89=\"\"),\"\",E89-E87)","v":""},"°F"]
[]
["*Measured Superheat must be within 5°F of the manufacturer specified Superheat."]
[]
["Note: A copy of the documentation of the manufacturer's specified superheat for the installed equipment must be attached to this form."]
["Option 3: Weigh In (can be used for any system ONLY when outdoor ambient temperature is below OEM specification.):"]
[]
["Refrigerant Type:"]
[]
[null,null,null,null,null,null,"(specify)"]
[]
["Outdoor Unit Capacity:",null,null,null,"Ounces:"]
[]
[]
["Does this capacity include an allowance for an evaporator ?"]
[]
[]
["Does this capacity include an allowance for a line set?"]
[]
[]
["Allowed in set length",null,null,"feet"]
[]
["(A) Suction Line Outside Diameter",null,null,null,"inches","Net length*",null,"feet","x",null,"ounces/foot","=",null,"ounces"]
[]
["(B) Liquid Line Outside Diameter",null,null,null,"inches","Net length*",null,"feet","x",null,"ounces/foot","=",null,"ounces"]
[]
["(C) Driers, Accumulator, and Evaporator Capacities (if not included above):",null,null,null,null,null,null,null,null,null,null,null,null,"ounces"]
[]
["*Net Length = Measured Length Minus (-) Allowed Length",null,null,null,null,"Total charge weighed in (A) + (B) + (C)",null,null,null,null,null,null,{"$f":"IF(AND(M113=\"\",M115=\"\",M117=\"\"),\"\",M113+M115+M117)","v":""},"ounces"]
[]
[]
["Note: Copy of table or graph supplied by manufacturer and used to estimate charge must be attached to this form."]
[]
[]
[]
[]
["Application Version:",null,{"$f":"Development!$A$4&\"_\"&Development!$A$2","v":"11.15.19_2.0"},null,null,null,null,null,null,null,null,null,null,"Effective:",{"$f":"Development!$A$4","v":"11.15.19"}]

{"sheet":"AIRFLOW FORM 2","index":17,"n_rows":127,"n_cols":15,"rows_kept":127,"cut":false,"hidden":true,"merged":[[126,3,126,5],[126,6,126,8],[88,12,89,12],[88,13,89,13],[97,4,97,5],[88,0,89,4],[88,5,89,10],[0,0,0,9],[1,0,1,9],[14,4,14,5],[14,12,14,13],[17,0,17,3],[4,7,4,8],[6,7,6,8],[8,1,8,2],[9,1,9,2],[69,4,69,5],[29,2,29,11],[21,4,21,5],[45,4,45,5],[17,12,17,13],[17,4,17,5],[19,4,19,5],[24,4,24,5],[28,0,28,12],[38,8,38,9]]}
[{"$f":"Development!$A$3&\" Residential Efficiency Program\"","v":"2019 Residential Efficiency Program"}]
["Post Installation/Airflow & Refrigerant Charge Form"]
["Equipment Data"]
[]
["Unit Number: ",null,null,null,null,null,"Manufacturer"]
[]
[null,null,null,null,null,null,"Model No."]
["For Ducted Systems Only"]
[null,"Ducts Tested?",null,"Ducts Sealed?"]
[]
["Airflow"]
[]
["Please fill out all of the below fields as applicable for the installation"]
[]
["1. Rated Cooling Capacity (tons):",null,null,null,null,null,{"$f":"IF(OR(E15=\"\"),\"\",References!AN4)","v":""},null,null,null,null,"2. Target Airflow Volume (CFM) PER TON:",null,null,{"$f":"IF(OR(M15=\"\"),\"\",References!AN6)","v":""}]
[]
["Complete field 3a OR field 3b"]
["3a. Static pressure drop in inches of water column W.C. measures across evaporator coil if new installed:",null,null,null,null,null,{"$f":"IF(OR(E18=\"\"),\"\",References!AN5)","v":""},null,"OR",null,null,"3b. External static pressure for fan coil unit:",null,null,{"$f":"IF(OR(M18=\"\"),\"\",References!AN7)","v":""}]
[]
["4. Total static measured with:"]
[]
["5. CFM Air Flow Estimated from Total Static Measurement:",null,null,null,null,null,{"$f":"IF(OR(E22=\"\"),\"\",References!AN9)","v":""}]
["*If this field contains data, leave True Flow CFM field below blank"]
[]
["6. True Flow CFM measured:",null,null,null,null,null,{"$f":"IF(OR(E25=\"\"),\"\",References!AN8)","v":""}]
["*If this field contains data, no data input is required for field 3a/3b and field 5"]
[]
[]
["Installations must have visible and accessible ports for airflow and temperature measurements. Ports must be sealed with contrasting color plugs. Please indicate"]
["location of test ports:"]
[]
["Notes: "]
["Convert Pascals to inches of WC as pascals X 249.09"]
["Copy of table or graph supplied by manufacturer and used to estimate airflow must be attached to this form."]
[]
[]
["Refrigerant Charge Method"]
[]
["Charging Method Used:"]
[]
["Option 1: SUBCOOLING Notes: Typical for most Thermal Expansion Valve systems when outdoor temperature is greater than OEM spec. (Typ. 60°F)"]
[]
["Inputs"]
["Refrigerant Type"]
[]
[]
[]
[]
[null,"Required Subcooling:",null,null,null,"°F",{"$f":"IF(OR(E49=\"\"),\"\",References!AN16)","v":""}]
[]
[null,"Outdoor Dry Bulb Temperature:",null,null,null,"°F",{"$f":"IF(OR(E51=\"\"),\"\",References!AN17)","v":""}]
[]
["Measurements"]
[]
["Liquid Line Pressure",null,null,null,null,"psig",{"$f":"IF(OR(E55=\"\"),\"\",References!AN18)","v":""}]
[]
["(F) Saturation temperature for measured pressure",null,null,null,null,"°F",{"$f":"IF(OR(E57=\"\"),\"\",References!AN19)","v":""}]
[]
["(G) Liquid Line temperature",null,null,null,null,"°F",{"$f":"IF(OR(E59=\"\"),\"\",References!AN20)","v":""}]
[]
["*Measured Subcooling (F minus G)",null,null,null,{"$f":"IF(OR(E57=\"\",E59=\"\"),\"\",E57-E59)","v":""},"°F"]
[]
["*Measured Subcooling must be within 3°F of the manufacturer specified Subcooling."]
[]
["Note: A copy of the documentation of the manufacturer's specified subcooling for the installed equipment must be attached to this form"]
["Option 2: Weigh In (can be used for any system ONLY when outdoor ambient temperature is below OEM specification.):"]
[]
["Refrigerant Type:"]
[]
[null,null,null,null,null,null,"(specify)"]
[]
["Outdoor Unit Capacity:",null,null,null,"Ounces:"]
[]
[]
["Does this capacity include an allowance for an evaporator ?"]
[]
[]
["Does this capacity include an allowance for a line set?"]
[]
[]
["Allowed in set length",null,null,"feet"]
[]
["(A) Suction Line Outside Diameter",null,null,null,"inches","Net length*",null,"feet","x",null,"ounces/foot","=",null,"ounces"]
[]
["(B) Liquid Line Outside Diameter",null,null,null,"inches","Net length*",null,"feet","x",null,"ounces/foot","=",null,"ounces"]
[]
["(C) Driers, Accumulator, and Evaporator Capacities (if not included above):",null,null,null,null,null,null,null,null,null,null,null,null,"ounces"]
[]
["*Net Length = Measured Length Minus (-) Allowed Length",null,null,null,null,"Total charge weighed in (A) + (B) + (C)",null,null,null,null,null,null,{"$f":"IF(AND(M83=\"\",M85=\"\",M87=\"\"),\"\",M83+M85+M87)","v":""},"ounces"]
[]
[]
["Note: Copy of table or graph supplied by manufacturer and used to estimate charge must be attached to this form."]
["Option 2: SUPERHEAT Note: Can only be used for fixed orifice systems (Non-TXV) when outdoor temperature is greater than OEM spec. (Type 55°)"]
[]
["Inputs"]
["Refrigerant Type"]
[]
[]
[]
[]
[null,"Manufacturer Specified Superheat",null,null,null,"°F ",{"$f":"IF(OR(E101=\"\"),\"\",References!AN28)","v":""}]
[null,"(from manufacturer service guide or as per manufacturer's specification or cut sheet)"]
[]
[null,"Indoor Wet Bulb Temperature",null,null,null,"°F",{"$f":"IF(OR(E104=\"\"),\"\",References!AN29)","v":""}]
[]
[null,"Outdoor Dry Bulb Temperature",null,null,null,"°F",{"$f":"IF(OR(E106=\"\"),\"\",References!AN30)","v":""}]
[]
[]
["Measurements"]
[]
["Vapor (suction) pressure",null,null,null,null,"psig",{"$f":"IF(OR(E111=\"\"),\"\",References!AN31)","v":""}]
[]
["(D) Saturation temperature for measured pressure",null,null,null,null,"°F",{"$f":"IF(OR(E113=\"\"),\"\",References!AN32)","v":""}]
[]
["(E) Vapor (suction) line temperature near compressor",null,null,null,null,"°F",{"$f":"IF(OR(E115=\"\"),\"\",References!AN33)","v":""}]
[]
["*Measured Superheat (E minus D)",null,null,null,{"$f":"IF(OR(E113=\"\",E115=\"\"),\"\",E115-E113)","v":""},"°F"]
[]
["*Measured Superheat must be within 5°F of the manufacturer specified Superheat."]
[]
["Note: A copy of the documentation of the manufacturer's specified superheat for the installed equipment must be attached to this form."]
[]
[]
[]
[]
[]
["Application Version:",null,{"$f":"Development!$A$4&\"_\"&Development!$A$2","v":"11.15.19_2.0"},null,null,null,null,null,null,null,null,null,null,"Effective:",{"$f":"Development!$A$4","v":"11.15.19"}]

{"sheet":"AIRFLOW FORM 3","index":18,"n_rows":127,"n_cols":15,"rows_kept":127,"cut":false,"hidden":true,"merged":[[0,0,0,9],[1,0,1,9],[14,4,14,5],[14,12,14,13],[17,0,17,3],[17,4,17,5],[4,7,4,8],[6,7,6,8],[88,12,89,12],[88,13,89,13],[19,4,19,5],[17,6,17,7],[17,12,17,13],[21,4,21,5],[28,0,28,12],[38,8,38,9],[29,2,29,11],[24,4,24,5],[97,4,97,5],[126,3,126,5],[126,6,126,8],[45,4,45,5],[69,4,69,5],[88,0,89,4],[88,5,89,10]]}
[{"$f":"Development!$A$3&\" Residential Efficiency Program\"","v":"2019 Residential Efficiency Program"}]
["Post Installation/Airflow & Refrigerant Charge Form"]
["Equipment Data"]
[]
["Unit Number: ",null,null,null,null,null,"Manufacturer"]
[]
[null,null,null,null,null,null,"Model No."]
["For Ducted Systems Only"]
[null,"Ducts Tested?",null,"Ducts Sealed?"]
[]
["Airflow"]
[]
["Please fill out all of the below fields as applicable for the installation"]
[]
["1. Rated Cooling Capacity (tons):",null,null,null,null,null,{"$f":"IF(OR(E15=\"\"),\"\",References!AR4)","v":""},null,null,null,null,"2. Target Airflow Volume (CFM) PER TON:",null,null,{"$f":"IF(OR(M15=\"\"),\"\",References!AR6)","v":""}]
[]
["Complete field 3a or 3b"]
["3a. Static pressure drop in inches of water column W.C. measures across evaporator coil if new installed:",null,null,null,null,null,{"$f":"IF(OR(E18=\"\"),\"\",References!AR5)","v":""},null,"OR",null,null,"3b. External static pressure for fan coil unit:",null,null,{"$f":"IF(OR(M18=\"\"),\"\",References!AR7)","v":""}]
[]
["4. Total Static measure with:"]
[]
["5. CFM Air Flow Estimated from Total Static Measurement:",null,null,null,null,null,{"$f":"IF(OR(E22=\"\"),\"\",References!AR9)","v":""}]
["If this field contains data, no data input is required for the True Flow CFM field below"]
[]
["6. True Flow CFM measured:",null,null,null,null,null,{"$f":"IF(OR(E25=\"\"),\"\",References!AR8)","v":""}]
["If this field contains data, no data input is required for field 3a/3b and field 5"]
[]
[]
["Installations must have visible and accessible ports for airflow and temperature measurements. Ports must be sealed with contrasting color plugs. Please indicate"]
["location of test ports:"]
[]
["Notes: "]
["Convert Pascals to inches of WC as pascals X 249.09"]
["Copy of table or graph supplied by manufacturer and used to estimate airflow must be attached to this form."]
[]
[]
["Refrigerant Charge Method"]
[]
["Charging Method Used:"]
[]
["Option 1: SUBCOOLING Notes: Typical for most Thermal Expansion Valve systems when outdoor temperature is greater than OEM spec. (Typ. 60°F)"]
[]
["Inputs"]
["Refrigerant Type"]
[]
[]
[]
[]
[null,"Required Subcooling:",null,null,null,"°F",{"$f":"IF(OR(E49=\"\"),\"\",References!AR16)","v":""}]
[]
[null,"Outdoor Dry Bulb Temperature:",null,null,null,"°F",{"$f":"IF(OR(E51=\"\"),\"\",References!AR17)","v":""}]
[]
["Measurements"]
[]
["Liquid Line Pressure",null,null,null,null,"psig",{"$f":"IF(OR(E55=\"\"),\"\",References!AR18)","v":""}]
[]
["(F) Saturation temperature for measured pressure",null,null,null,null,"°F",{"$f":"IF(OR(E57=\"\"),\"\",References!AR19)","v":""}]
[]
["(G) Liquid Line temperature",null,null,null,null,"°F",{"$f":"IF(OR(E59=\"\"),\"\",References!AR20)","v":""}]
[]
["*Measured Subcooling (F minus G)",null,null,null,{"$f":"IF(OR(E57=\"\",E59=\"\"),\"\",E57-E59)","v":""},"°F"]
[]
["*Measured Subcooling must be within 3°F of the manufacturer specified Subcooling."]
[]
["Note: A copy of the documentation of the manufacturer's specified subcooling for the installed equipment must be attached to this form"]
["Option 2: Weigh In (can be used for any system ONLY when outdoor ambient temperature is below OEM specification.):"]
[]
["Refrigerant Type:"]
[]
[null,null,null,null,null,null,"(specify)"]
[]
["Outdoor Unit Capacity:",null,null,null,"Ounces:"]
[]
[]
["Does this capacity include an allowance for an evaporator ?"]
[]
[]
["Does this capacity include an allowance for a line set?"]
[]
[]
["Allowed in set length",null,null,"feet"]
[]
["(A) Suction Line Outside Diameter",null,null,null,"inches","Net length*",null,"feet","x",null,"ounces/foot","=",null,"ounces"]
[]
["(B) Liquid Line Outside Diameter",null,null,null,"inches","Net length*",null,"feet","x",null,"ounces/foot","=",null,"ounces"]
[]
["(C) Driers, Accumulator, and Evaporator Capacities (if not included above):",null,null,null,null,null,null,null,null,null,null,null,null,"ounces"]
[]
["*Net Length = Measured Length Minus (-) Allowed Length",null,null,null,null,"Total charge weighed in (A) + (B) + (C)",null,null,null,null,null,null,{"$f":"IF(AND(M83=\"\",M85=\"\",M87=\"\"),\"\",M83+M85+M87)","v":""},"ounces"]
[]
[]
["Note: Copy of table or graph supplied by manufacturer and used to estimate charge must be attached to this form."]
["Option 2: SUPERHEAT Note: Can only be used for fixed orifice systems (Non-TXV) when outdoor temperature is greater than OEM spec. (Type 55°)"]
[]
["Inputs"]
["Refrigerant Type"]
[]
[]
[]
[]
[null,"Manufacturer Specified Superheat",null,null,null,"°F ",{"$f":"IF(OR(E101=\"\"),\"\",References!AR28)","v":""}]
[null,"(from manufacturer service guide or as per manufacturer's specification or cut sheet)"]
[]
[null,"Indoor Wet Bulb Temperature",null,null,null,"°F",{"$f":"IF(OR(E104=\"\"),\"\",References!AR29)","v":""}]
[]
[null,"Outdoor Dry Bulb Temperature",null,null,null,"°F",{"$f":"IF(OR(E106=\"\"),\"\",References!AR30)","v":""}]
[]
[]
["Measurements"]
[]
["Vapor (suction) pressure",null,null,null,null,"psig",{"$f":"IF(OR(E111=\"\"),\"\",References!AR31)","v":""}]
[]
["(D) Saturation temperature for measured pressure",null,null,null,null,"°F",{"$f":"IF(OR(E113=\"\"),\"\",References!AR32)","v":""}]
[]
["(E) Vapor (suction) line temperature near compressor",null,null,null,null,"°F",{"$f":"IF(OR(E115=\"\"),\"\",References!AR33)","v":""}]
[]
["*Measured Superheat (E minus D)",null,null,null,{"$f":"IF(OR(E113=\"\",E115=\"\"),\"\",E115-E113)","v":""},"°F"]
[]
["*Measured Superheat must be within 5°F of the manufacturer specified Superheat."]
[]
["Note: A copy of the documentation of the manufacturer's specified superheat for the installed equipment must be attached to this form."]
[]
[]
[]
[]
[]
["Application Version:",null,{"$f":"Development!$A$4&\"_\"&Development!$A$2","v":"11.15.19_2.0"},null,null,null,null,null,null,null,null,null,null,"Effective:",{"$f":"Development!$A$4","v":"11.15.19"}]

{"sheet":"AIRFLOW FORM 4","index":19,"n_rows":127,"n_cols":15,"rows_kept":127,"cut":false,"hidden":true,"merged":[[0,0,0,9],[1,0,1,9],[14,4,14,5],[14,12,14,13],[17,0,17,3],[17,4,17,5],[4,7,4,8],[6,7,6,8],[88,12,89,12],[88,13,89,13],[19,4,19,5],[17,12,17,13],[21,4,21,5],[28,0,28,12],[37,8,37,9],[29,2,29,11],[24,4,24,5],[97,4,97,5],[126,3,126,5],[126,6,126,8],[44,4,44,5],[69,4,69,5],[88,0,89,4],[88,5,89,10]]}
[{"$f":"Development!$A$3&\" Residential Efficiency Program\"","v":"2019 Residential Efficiency Program"}]
["Post Installation/Airflow & Refrigerant Charge Form"]
["Equipment Data"]
[]
["Unit Number: ",null,null,null,null,null,"Manufacturer"]
[]
[null,null,null,null,null,null,"Model No."]
["For Ducted Systems Only"]
[null,"Ducts Tested?",null,"Ducts Sealed?"]
[]
["Airflow"]
[]
["Please fill out all of the below fields as applicable for the installation"]
[]
["1. Rated Cooling Capacity (tons):",null,null,null,null,null,{"$f":"IF(OR(E15=\"\"),\"\",References!AW4)","v":""},null,null,null,null,"2. Target Airflow Volume (CFM) PER TON:",null,null,{"$f":"IF(OR(M15=\"\"),\"\",References!AW6)","v":""}]
[]
["Complete field 3a or 3b"]
["3a. Static pressure drop in inches of water column W.C. measures across evaporator coil if new installed:",null,null,null,null,null,{"$f":"IF(OR(E18=\"\"),\"\",References!AW5)","v":""},null,"OR",null,null,"3b. External static pressure for fan coil unit:",null,null,{"$f":"IF(OR(M18=\"\"),\"\",References!AW7)","v":""}]
[]
["4. Total Static measured with:"]
[]
["5. CFM Air Flow Estimated from Total Static Measurement:",null,null,null,null,null,{"$f":"IF(OR(E22=\"\"),\"\",References!AW9)","v":""}]
["If this field contains data, no data input is required for the True Flow CFM field below"]
[]
["6. True Flow CFM measured:",null,null,null,null,null,{"$f":"IF(OR(E25=\"\"),\"\",References!AW8)","v":""}]
["If this field contains data, no data input is required for field 3a/3b and field 5"]
[]
[]
["Installations must have visible and accessible ports for airflow and temperature measurements. Ports must be sealed with contrasting color plugs. Please indicate"]
["location of test ports:"]
[]
["Notes: "]
["Convert Pascals to inches of WC as pascals X 249.09"]
["Copy of table or graph supplied by manufacturer and used to estimate airflow must be attached to this form."]
[]
["Refrigerant Charge Method"]
[]
["Charging Method Used:"]
[]
["Option 1: SUBCOOLING Notes: Typical for most Thermal Expansion Valve systems when outdoor temperature is greater than OEM spec. (Typ. 60°F)"]
[]
["Inputs"]
["Refrigerant Type"]
[]
[]
[]
[]
[]
[null,"Required Subcooling:",null,null,null,"°F",{"$f":"IF(OR(E49=\"\"),\"\",References!AW16)","v":""}]
[]
[null,"Outdoor Dry Bulb Temperature:",null,null,null,"°F",{"$f":"IF(OR(E51=\"\"),\"\",References!AW17)","v":""}]
[]
["Measurements"]
[]
["Liquid Line Pressure",null,null,null,null,"psig",{"$f":"IF(OR(E55=\"\"),\"\",References!AW18)","v":""}]
[]
["(F) Saturation temperature for measured pressure",null,null,null,null,"°F",{"$f":"IF(OR(E57=\"\"),\"\",References!AW19)","v":""}]
[]
["(G) Liquid Line temperature",null,null,null,null,"°F",{"$f":"IF(OR(E59=\"\"),\"\",References!AW20)","v":""}]
[]
["*Measured Subcooling (F minus G)",null,null,null,{"$f":"IF(OR(E57=\"\",E59=\"\"),\"\",E57-E59)","v":""},"°F"]
[]
["*Measured Subcooling must be within 3°F of the manufacturer specified Subcooling."]
[]
["Note: A copy of the documentation of the manufacturer's specified subcooling for the installed equipment must be attached to this form"]
["Option 2: Weigh In (can be used for any system ONLY when outdoor ambient temperature is below OEM specification.):"]
[]
["Refrigerant Type:"]
[]
[null,null,null,null,null,null,"(specify)"]
[]
["Outdoor Unit Capacity:",null,null,null,"Ounces:"]
[]
[]
["Does this capacity include an allowance for an evaporator ?"]
[]
[]
["Does this capacity include an allowance for a line set?"]
[]
[]
["Allowed in set length",null,null,"feet"]
[]
["(A) Suction Line Outside Diameter",null,null,null,"inches","Net length*",null,"feet","x",null,"ounces/foot","=",null,"ounces"]
[]
["(B) Liquid Line Outside Diameter",null,null,null,"inches","Net length*",null,"feet","x",null,"ounces/foot","=",null,"ounces"]
[]
["(C) Driers, Accumulator, and Evaporator Capacities (if not included above):",null,null,null,null,null,null,null,null,null,null,null,null,"ounces"]
[]
["*Net Length = Measured Length Minus (-) Allowed Length",null,null,null,null,"Total charge weighed in (A) + (B) + (C)",null,null,null,null,null,null,{"$f":"IF(AND(M83=\"\",M85=\"\",M87=\"\"),\"\",M83+M85+M87)","v":""},"ounces"]
[]
[]
["Note: Copy of table or graph supplied by manufacturer and used to estimate charge must be attached to this form."]
["Option 2: SUPERHEAT Note: Can only be used for fixed orifice systems (Non-TXV) when outdoor temperature is greater than OEM spec. (Type 55°)"]
[]
["Inputs"]
["Refrigerant Type"]
[]
[]
[]
[]
[null,"Manufacturer Specified Superheat",null,null,null,"°F ",{"$f":"IF(OR(E101=\"\"),\"\",References!AW28)","v":""}]
[null,"(from manufacturer service guide or as per manufacturer's specification or cut sheet)"]
[]
[null,"Indoor Wet Bulb Temperature",null,null,null,"°F",{"$f":"IF(OR(E104=\"\"),\"\",References!AW29)","v":""}]
[]
[null,"Outdoor Dry Bulb Temperature",null,null,null,"°F",{"$f":"IF(OR(E106=\"\"),\"\",References!AW30)","v":""}]
[]
[]
["Measurements"]
[]
["Vapor (suction) pressure",null,null,null,null,"psig",{"$f":"IF(OR(E111=\"\"),\"\",References!AW31)","v":""}]
[]
["(D) Saturation temperature for measured pressure",null,null,null,null,"°F",{"$f":"IF(OR(E113=\"\"),\"\",References!AW32)","v":""}]
[]
["(E) Vapor (suction) line temperature near compressor",null,null,null,null,"°F",{"$f":"IF(OR(E115=\"\"),\"\",References!AW33)","v":""}]
[]
["*Measured Superheat (E minus D)",null,null,null,{"$f":"IF(OR(E113=\"\",E115=\"\"),\"\",E115-E113)","v":""},"°F"]
[]
["*Measured Superheat must be within 5°F of the manufacturer specified Superheat."]
[]
["Note: A copy of the documentation of the manufacturer's specified superheat for the installed equipment must be attached to this form."]
[]
[]
[]
[]
[]
["Application Version:",null,{"$f":"Development!$A$4&\"_\"&Development!$A$2","v":"11.15.19_2.0"},null,null,null,null,null,null,null,null,null,null,"Effective:",{"$f":"Development!$A$4","v":"11.15.19"}]

{"sheet":"AIRFLOW FORM 5","index":20,"n_rows":127,"n_cols":15,"rows_kept":127,"cut":false,"hidden":true,"merged":[[0,0,0,9],[1,0,1,9],[14,4,14,5],[14,12,14,13],[17,0,17,3],[17,4,17,5],[4,2,4,3],[4,7,4,8],[6,7,6,8],[88,12,89,12],[88,13,89,13],[17,12,17,13],[21,4,21,5],[28,0,28,12],[37,8,37,9],[29,2,29,11],[24,4,24,5],[97,4,97,5],[126,3,126,5],[126,6,126,8],[44,4,44,5],[69,4,69,5],[88,0,89,4],[88,5,89,10]]}
[{"$f":"Development!$A$3&\" Residential Efficiency Program\"","v":"2019 Residential Efficiency Program"}]
["Post Installation/Airflow & Refrigerant Charge Form"]
["Equipment Data"]
[]
["Unit Number: ",null,null,null,null,null,"Manufacturer"]
[]
[null,null,null,null,null,null,"Model No."]
["For Ducted Systems Only"]
[null,"Ducts Tested?",null,"Ducts Sealed?"]
[]
["Airflow"]
[]
["Please fill out all of the below fields as applicable for the installation"]
[]
["1. Rated Cooling Capacity (tons):",null,null,null,null,null,{"$f":"IF(OR(E15=\"\"),\"\",References!BB4)","v":""},null,null,null,null,"2. Target Airflow Volume (CFM) PER TON:",null,null,{"$f":"IF(OR(M15=\"\"),\"\",References!BB6)","v":""}]
[]
["Complete field 3a or 3b"]
["3a. Static pressure drop in inches of water column W.C. measures across evaporator coil if new installed:",null,null,null,null,null,{"$f":"IF(OR(E18=\"\"),\"\",References!BB5)","v":""},null,"OR",null,null,"3b. External static pressure for fan coil unit:",null,null,{"$f":"IF(OR(M18=\"\"),\"\",References!BB7)","v":""}]
[]
["4. Total Static measured with:"]
[]
["5. CFM Air Flow Estimated from Total Static Measurement:",null,null,null,null,null,{"$f":"IF(OR(E22=\"\"),\"\",References!BB9)","v":""}]
["If this field contains data, no data input is required for the True Flow CFM field below"]
[]
["6. True Flow CFM measured:",null,null,null,null,null,{"$f":"IF(OR(E25=\"\"),\"\",References!BB8)","v":""}]
["If this field contains data, no data input is required for field 3a/3b and field 5"]
[]
[]
["Installations must have visible and accessible ports for airflow and temperature measurements. Ports must be sealed with contrasting color plugs. Please indicate"]
["location of test ports:"]
[]
["Notes: "]
["Convert Pascals to inches of WC as pascals X 249.09"]
["Copy of table or graph supplied by manufacturer and used to estimate airflow must be attached to this form."]
[]
["Refrigerant Charge Method"]
[]
["Charging Method Used:"]
[]
["Option 1: SUBCOOLING Notes: Typical for most Thermal Expansion Valve systems when outdoor temperature is greater than OEM spec. (Typ. 60°F)"]
[]
["Inputs"]
["Refrigerant Type"]
[]
[]
[]
[]
[]
[null,"Required Subcooling:",null,null,null,"°F",{"$f":"IF(OR(E49=\"\"),\"\",References!BB16)","v":""}]
[]
[null,"Outdoor Dry Bulb Temperature:",null,null,null,"°F",{"$f":"IF(OR(E51=\"\"),\"\",References!BB17)","v":""}]
[]
["Measurements"]
[]
["Liquid Line Pressure",null,null,null,null,"psig",{"$f":"IF(OR(E55=\"\"),\"\",References!BB18)","v":""}]
[]
["(F) Saturation temperature for measured pressure",null,null,null,null,"°F",{"$f":"IF(OR(E57=\"\"),\"\",References!BB19)","v":""}]
[]
["(G) Liquid Line temperature",null,null,null,null,"°F",{"$f":"IF(OR(E59=\"\"),\"\",References!BB20)","v":""}]
[]
["*Measured Subcooling (F minus G)",null,null,null,{"$f":"IF(OR(E57=\"\",E59=\"\"),\"\",E57-E59)","v":""},"°F"]
[]
["*Measured Subcooling must be within 3°F of the manufacturer specified Subcooling."]
[]
["Note: A copy of the documentation of the manufacturer's specified subcooling for the installed equipment must be attached to this form"]
["Option 2: Weigh In (can be used for any system ONLY when outdoor ambient temperature is below OEM specification.):"]
[]
["Refrigerant Type:"]
[]
[null,null,null,null,null,null,"(specify)"]
[]
["Outdoor Unit Capacity:",null,null,null,"Ounces:"]
[]
[]
["Does this capacity include an allowance for an evaporator ?"]
[]
[]
["Does this capacity include an allowance for a line set?"]
[]
[]
["Allowed in set length",null,null,"feet"]
[]
["(A) Suction Line Outside Diameter",null,null,null,"inches","Net length*",null,"feet","x",null,"ounces/foot","=",null,"ounces"]
[]
["(B) Liquid Line Outside Diameter",null,null,null,"inches","Net length*",null,"feet","x",null,"ounces/foot","=",null,"ounces"]
[]
["(C) Driers, Accumulator, and Evaporator Capacities (if not included above):",null,null,null,null,null,null,null,null,null,null,null,null,"ounces"]
[]
["*Net Length = Measured Length Minus (-) Allowed Length",null,null,null,null,"Total charge weighed in (A) + (B) + (C)",null,null,null,null,null,null,{"$f":"IF(AND(M83=\"\",M85=\"\",M87=\"\"),\"\",M83+M85+M87)","v":""},"ounces"]
[]
[]
["Note: Copy of table or graph supplied by manufacturer and used to estimate charge must be attached to this form."]
["Option 2: SUPERHEAT Note: Can only be used for fixed orifice systems (Non-TXV) when outdoor temperature is greater than OEM spec. (Type 55°)"]
[]
["Inputs"]
["Refrigerant Type"]
[]
[]
[]
[]
[null,"Manufacturer Specified Superheat",null,null,null,"°F ",{"$f":"IF(OR(E101=\"\"),\"\",References!BB28)","v":""}]
[null,"(from manufacturer service guide or as per manufacturer's specification or cut sheet)"]
[]
[null,"Indoor Wet Bulb Temperature",null,null,null,"°F",{"$f":"IF(OR(E104=\"\"),\"\",References!BB29)","v":""}]
[]
[null,"Outdoor Dry Bulb Temperature",null,null,null,"°F",{"$f":"IF(OR(E106=\"\"),\"\",References!BB30)","v":""}]
[]
[]
["Measurements"]
[]
["Vapor (suction) pressure",null,null,null,null,"psig",{"$f":"IF(OR(E111=\"\"),\"\",References!BB31)","v":""}]
[]
["(D) Saturation temperature for measured pressure",null,null,null,null,"°F",{"$f":"IF(OR(E113=\"\"),\"\",References!BB32)","v":""}]
[]
["(E) Vapor (suction) line temperature near compressor",null,null,null,null,"°F",{"$f":"IF(OR(E115=\"\"),\"\",References!BB33)","v":""}]
[]
["*Measured Superheat (E minus D)",null,null,null,{"$f":"IF(OR(E113=\"\",E115=\"\"),\"\",E115-E113)","v":""},"°F"]
[]
["*Measured Superheat must be within 5°F of the manufacturer specified Superheat."]
[]
["Note: A copy of the documentation of the manufacturer's specified superheat for the installed equipment must be attached to this form."]
[]
[]
[]
[]
[]
["Application Version:",null,{"$f":"Development!$A$4&\"_\"&Development!$A$2","v":"11.15.19_2.0"},null,null,null,null,null,null,null,null,null,null,"Effective:",{"$f":"Development!$A$4","v":"11.15.19"}]

{"sheet":"AIRFLOW FORM 6","index":21,"n_rows":127,"n_cols":15,"rows_kept":127,"cut":false,"hidden":true,"merged":[[0,0,0,9],[1,0,1,9],[4,2,4,3],[4,7,4,8],[6,7,6,8],[14,4,14,5],[14,12,14,13],[17,0,17,3],[17,4,17,5],[17,12,17,13],[88,12,89,12],[88,13,89,13],[21,4,21,5],[28,0,28,12],[29,2,29,11],[37,8,37,9],[44,4,44,5],[24,4,24,5],[97,4,97,5],[126,3,126,5],[126,6,126,8],[69,4,69,5],[88,0,89,4],[88,5,89,10]]}
[{"$f":"Development!$A$3&\" Residential Efficiency Program\"","v":"2019 Residential Efficiency Program"}]
["Post Installation/Airflow & Refrigerant Charge Form"]
["Equipment Data"]
[]
["Unit Number: ",null,null,null,null,null,"Manufacturer"]
[]
[null,null,null,null,null,null,"Model No."]
["For Ducted Systems Only"]
[null,"Ducts Tested?",null,"Ducts Sealed?"]
[]
["Airflow"]
[]
["Please fill out all of the below fields as applicable for the installation"]
[]
["1. Rated Cooling Capacity (tons):",null,null,null,null,null,{"$f":"IF(OR(E15=\"\"),\"\",References!BG4)","v":""},null,null,null,null,"2. Target Airflow Volume (CFM) PER TON:",null,null,{"$f":"IF(OR(M15=\"\"),\"\",References!BG6)","v":""}]
[]
["Complete field 3a or 3b"]
["3a. Static pressure drop in inches of water column W.C. measures across evaporator coil if new installed:",null,null,null,null,null,{"$f":"IF(OR(E18=\"\"),\"\",References!BG5)","v":""},"OR",null,null,null,"3b. External static pressure for fan coil unit:",null,null,{"$f":"IF(OR(M18=\"\"),\"\",References!BG7)","v":""}]
[]
["4. Total Static measured with:"]
[]
["5. CFM Air Flow Estimated from Total Static Measurement:",null,null,null,null,null,{"$f":"IF(OR(E22=\"\"),\"\",References!BG9)","v":""}]
["If this field contains data, no data input is required for the True Flow CFM field below"]
[]
["6. True Flow CFM measured:",null,null,null,null,null,{"$f":"IF(OR(E25=\"\"),\"\",References!BG8)","v":""}]
["If this field contains data, no data input is required for field 3a/3b and field 5"]
[]
[]
["Installations must have visible and accessible ports for airflow and temperature measurements. Ports must be sealed with contrasting color plugs. Please indicate"]
["location of test ports:"]
[]
["Notes: "]
["Convert Pascals to inches of WC as pascals X 249.09"]
["Copy of table or graph supplied by manufacturer and used to estimate airflow must be attached to this form."]
[]
["Refrigerant Charge Method"]
[]
["Charging Method Used:"]
[]
["Option 1: SUBCOOLING Notes: Typical for most Thermal Expansion Valve systems when outdoor temperature is greater than OEM spec. (Typ. 60°F)"]
[]
["Inputs"]
["Refrigerant Type"]
[]
[]
[]
[]
[]
[null,"Required Subcooling:",null,null,null,"°F",{"$f":"IF(OR(E49=\"\"),\"\",References!BG16)","v":""}]
[]
[null,"Outdoor Dry Bulb Temperature:",null,null,null,"°F",{"$f":"IF(OR(E51=\"\"),\"\",References!BG17)","v":""}]
[]
["Measurements"]
[]
["Liquid Line Pressure",null,null,null,null,"psig",{"$f":"IF(OR(E55=\"\"),\"\",References!BG18)","v":""}]
[]
["(F) Saturation temperature for measured pressure",null,null,null,null,"°F",{"$f":"IF(OR(E57=\"\"),\"\",References!BG19)","v":""}]
[]
["(G) Liquid Line temperature",null,null,null,null,"°F",{"$f":"IF(OR(E59=\"\"),\"\",References!BG20)","v":""}]
[]
["*Measured Subcooling (F minus G)",null,null,null,{"$f":"IF(OR(E57=\"\",E59=\"\"),\"\",E57-E59)","v":""},"°F"]
[]
["*Measured Subcooling must be within 3°F of the manufacturer specified Subcooling."]
[]
["Note: A copy of the documentation of the manufacturer's specified subcooling for the installed equipment must be attached to this form"]
["Option 2: Weigh In (can be used for any system ONLY when outdoor ambient temperature is below OEM specification.):"]
[]
["Refrigerant Type:"]
[]
[null,null,null,null,null,null,"(specify)"]
[]
["Outdoor Unit Capacity:",null,null,null,"Ounces:"]
[]
[]
["Does this capacity include an allowance for an evaporator ?"]
[]
[]
["Does this capacity include an allowance for a line set?"]
[]
[]
["Allowed in set length",null,null,"feet"]
[]
["(A) Suction Line Outside Diameter",null,null,null,"inches","Net length*",null,"feet","x",null,"ounces/foot","=",null,"ounces"]
[]
["(B) Liquid Line Outside Diameter",null,null,null,"inches","Net length*",null,"feet","x",null,"ounces/foot","=",null,"ounces"]
[]
["(C) Driers, Accumulator, and Evaporator Capacities (if not included above):",null,null,null,null,null,null,null,null,null,null,null,null,"ounces"]
[]
["*Net Length = Measured Length Minus (-) Allowed Length",null,null,null,null,"Total charge weighed in (A) + (B) + (C)",null,null,null,null,null,null,{"$f":"IF(AND(M83=\"\",M85=\"\",M87=\"\"),\"\",M83+M85+M87)","v":""},"ounces"]
[]
[]
["Note: Copy of table or graph supplied by manufacturer and used to estimate charge must be attached to this form."]
["Option 2: SUPERHEAT Note: Can only be used for fixed orifice systems (Non-TXV) when outdoor temperature is greater than OEM spec. (Type 55°)"]
[]
["Inputs"]
["Refrigerant Type"]
[]
[]
[]
[]
[null,"Manufacturer Specified Superheat",null,null,null,"°F ",{"$f":"IF(OR(E101=\"\"),\"\",References!BG28)","v":""}]
[null,"(from manufacturer service guide or as per manufacturer's specification or cut sheet)"]
[]
[null,"Indoor Wet Bulb Temperature",null,null,null,"°F",{"$f":"IF(OR(E104=\"\"),\"\",References!BG29)","v":""}]
[]
[null,"Outdoor Dry Bulb Temperature",null,null,null,"°F",{"$f":"IF(OR(E106=\"\"),\"\",References!BG30)","v":""}]
[]
[]
["Measurements"]
[]
["Vapor (suction) pressure",null,null,null,null,"psig",{"$f":"IF(OR(E111=\"\"),\"\",References!BG31)","v":""}]
[]
["(D) Saturation temperature for measured pressure",null,null,null,null,"°F",{"$f":"IF(OR(E113=\"\"),\"\",References!BG32)","v":""}]
[]
["(E) Vapor (suction) line temperature near compressor",null,null,null,null,"°F",{"$f":"IF(OR(E115=\"\"),\"\",References!BG33)","v":""}]
[]
["*Measured Superheat (E minus D)",null,null,null,{"$f":"IF(OR(E113=\"\",E115=\"\"),\"\",E115-E113)","v":""},"°F"]
[]
["*Measured Superheat must be within 5°F of the manufacturer specified Superheat."]
[]
["Note: A copy of the documentation of the manufacturer's specified superheat for the installed equipment must be attached to this form."]
[]
[]
[]
[]
[]
["Application Version:",null,{"$f":"Development!$A$4&\"_\"&Development!$A$2","v":"11.15.19_2.0"},null,null,null,null,null,null,null,null,null,null,"Effective:",{"$f":"Development!$A$4","v":"11.15.19"}]

{"sheet":"AIRFLOW FORM 7","index":22,"n_rows":127,"n_cols":15,"rows_kept":127,"cut":false,"hidden":true,"merged":[[0,0,0,9],[1,0,1,9],[4,2,4,3],[4,7,4,8],[6,7,6,8],[14,4,14,5],[14,12,14,13],[17,0,17,3],[17,4,17,5],[17,12,17,13],[88,12,89,12],[88,13,89,13],[21,4,21,5],[28,0,28,12],[29,2,29,11],[37,8,37,9],[44,4,44,5],[24,4,24,5],[97,4,97,5],[126,3,126,5],[126,6,126,8],[69,4,69,5],[88,0,89,4],[88,5,89,10]]}
[{"$f":"Development!$A$3&\" Residential Efficiency Program\"","v":"2019 Residential Efficiency Program"}]
["Post Installation/Airflow & Refrigerant Charge Form"]
["Equipment Data"]
[]
["Unit Number: ",null,null,null,null,null,"Manufacturer"]
[]
[null,null,null,null,null,null,"Model No."]
["For Ducted Systems Only"]
[null,"Ducts Tested?",null,"Ducts Sealed?"]
[]
["Airflow"]
[]
["Please fill out all of the below fields as applicable for the installation"]
[]
["1. Rated Cooling Capacity (tons):",null,null,null,null,null,{"$f":"IF(OR(E15=\"\"),\"\",References!BL4)","v":""},null,null,null,null,"2. Target Airflow Volume (CFM) PER TON:",null,null,{"$f":"IF(OR(M15=\"\"),\"\",References!BL6)","v":""}]
[]
["Complete field 3a or 3b"]
["3a. Static pressure drop in inches of water column W.C. measures across evaporator coil if new installed:",null,null,null,null,null,{"$f":"IF(OR(E18=\"\"),\"\",References!BL5)","v":""},null,"OR",null,null,"3b. External static pressure for fan coil unit:",null,null,{"$f":"IF(OR(M18=\"\"),\"\",References!BL7)","v":""}]
[]
["4. Total Static measured with:"]
[]
["5. CFM Air Flow Estimated from Total Static Measurement:",null,null,null,null,null,{"$f":"IF(OR(E22=\"\"),\"\",References!BL9)","v":""}]
["If this field contains data, no data input is required for the True Flow CFM field below"]
[]
["6. True Flow CFM measured:",null,null,null,null,null,{"$f":"IF(OR(E25=\"\"),\"\",References!BL8)","v":""}]
["If this field contains data, no data input is required for field 3a/3b and field 5"]
[]
[]
["Installations must have visible and accessible ports for airflow and temperature measurements. Ports must be sealed with contrasting color plugs. Please indicate"]
["location of test ports:"]
[]
["Notes: "]
["Convert Pascals to inches of WC as pascals X 249.09"]
["Copy of table or graph supplied by manufacturer and used to estimate airflow must be attached to this form."]
[]
["Refrigerant Charge Method"]
[]
["Charging Method Used:"]
[]
["Option 1: SUBCOOLING Notes: Typical for most Thermal Expansion Valve systems when outdoor temperature is greater than OEM spec. (Typ. 60°F)"]
[]
["Inputs"]
["Refrigerant Type"]
[]
[]
[]
[]
[]
[null,"Required Subcooling:",null,null,null,"°F",{"$f":"IF(OR(E49=\"\"),\"\",References!BL16)","v":""}]
[]
[null,"Outdoor Dry Bulb Temperature:",null,null,null,"°F",{"$f":"IF(OR(E51=\"\"),\"\",References!BL17)","v":""}]
[]
["Measurements"]
[]
["Liquid Line Pressure",null,null,null,null,"psig",{"$f":"IF(OR(E55=\"\"),\"\",References!BL18)","v":""}]
[]
["(F) Saturation temperature for measured pressure",null,null,null,null,"°F",{"$f":"IF(OR(E57=\"\"),\"\",References!BL19)","v":""}]
[]
["(G) Liquid Line temperature",null,null,null,null,"°F",{"$f":"IF(OR(E59=\"\"),\"\",References!BL20)","v":""}]
[]
["*Measured Subcooling (F minus G)",null,null,null,{"$f":"IF(OR(E57=\"\",E59=\"\"),\"\",E57-E59)","v":""},"°F"]
[]
["*Measured Subcooling must be within 3°F of the manufacturer specified Subcooling."]
[]
["Note: A copy of the documentation of the manufacturer's specified subcooling for the installed equipment must be attached to this form"]
["Option 2: Weigh In (can be used for any system ONLY when outdoor ambient temperature is below OEM specification.):"]
[]
["Refrigerant Type:"]
[]
[null,null,null,null,null,null,"(specify)"]
[]
["Outdoor Unit Capacity:",null,null,null,"Ounces:"]
[]
[]
["Does this capacity include an allowance for an evaporator ?"]
[]
[]
["Does this capacity include an allowance for a line set?"]
[]
[]
["Allowed in set length",null,null,"feet"]
[]
["(A) Suction Line Outside Diameter",null,null,null,"inches","Net length*",null,"feet","x",null,"ounces/foot","=",null,"ounces"]
[]
["(B) Liquid Line Outside Diameter",null,null,null,"inches","Net length*",null,"feet","x",null,"ounces/foot","=",null,"ounces"]
[]
["(C) Driers, Accumulator, and Evaporator Capacities (if not included above):",null,null,null,null,null,null,null,null,null,null,null,null,"ounces"]
[]
["*Net Length = Measured Length Minus (-) Allowed Length",null,null,null,null,"Total charge weighed in (A) + (B) + (C)",null,null,null,null,null,null,{"$f":"IF(AND(M83=\"\",M85=\"\",M87=\"\"),\"\",M83+M85+M87)","v":""},"ounces"]
[]
[]
["Note: Copy of table or graph supplied by manufacturer and used to estimate charge must be attached to this form."]
["Option 2: SUPERHEAT Note: Can only be used for fixed orifice systems (Non-TXV) when outdoor temperature is greater than OEM spec. (Type 55°)"]
[]
["Inputs"]
["Refrigerant Type"]
[]
[]
[]
[]
[null,"Manufacturer Specified Superheat",null,null,null,"°F ",{"$f":"IF(OR(E101=\"\"),\"\",References!BL28)","v":""}]
[null,"(from manufacturer service guide or as per manufacturer's specification or cut sheet)"]
[]
[null,"Indoor Wet Bulb Temperature",null,null,null,"°F",{"$f":"IF(OR(E104=\"\"),\"\",References!BL29)","v":""}]
[]
[null,"Outdoor Dry Bulb Temperature",null,null,null,"°F",{"$f":"IF(OR(E106=\"\"),\"\",References!BL30)","v":""}]
[]
[]
["Measurements"]
[]
["Vapor (suction) pressure",null,null,null,null,"psig",{"$f":"IF(OR(E111=\"\"),\"\",References!BL31)","v":""}]
[]
["(D) Saturation temperature for measured pressure",null,null,null,null,"°F",{"$f":"IF(OR(E113=\"\"),\"\",References!BL32)","v":""}]
[]
["(E) Vapor (suction) line temperature near compressor",null,null,null,null,"°F",{"$f":"IF(OR(E115=\"\"),\"\",References!BL33)","v":""}]
[]
["*Measured Superheat (E minus D)",null,null,null,{"$f":"IF(OR(E113=\"\",E115=\"\"),\"\",E115-E113)","v":""},"°F"]
[]
["*Measured Superheat must be within 5°F of the manufacturer specified Superheat."]
[]
["Note: A copy of the documentation of the manufacturer's specified superheat for the installed equipment must be attached to this form."]
[]
[]
[]
[]
[]
["Application Version:",null,{"$f":"Development!$A$4&\"_\"&Development!$A$2","v":"11.15.19_2.0"},null,null,null,null,null,null,null,null,null,null,"Effective:",{"$f":"Development!$A$4","v":"11.15.19"}]

{"sheet":"AIRFLOW FORM 8","index":23,"n_rows":127,"n_cols":15,"rows_kept":127,"cut":false,"hidden":true,"merged":[[0,0,0,9],[1,0,1,9],[4,2,4,3],[4,7,4,8],[6,7,6,8],[14,4,14,5],[14,12,14,13],[17,0,17,3],[17,4,17,5],[17,12,17,13],[88,12,89,12],[88,13,89,13],[21,4,21,5],[28,0,28,12],[29,2,29,11],[37,8,37,9],[44,4,44,5],[24,4,24,5],[97,4,97,5],[126,3,126,5],[126,6,126,8],[69,4,69,5],[88,0,89,4],[88,5,89,10]]}
[{"$f":"Development!$A$3&\" Residential Efficiency Program\"","v":"2019 Residential Efficiency Program"}]
["Post Installation/Airflow & Refrigerant Charge Form"]
["Equipment Data"]
[]
["Unit Number: ",null,null,null,null,null,"Manufacturer"]
[]
[null,null,null,null,null,null,"Model No."]
["For Ducted Systems Only"]
[null,"Ducts Tested?",null,"Ducts Sealed?"]
[]
["Airflow"]
[]
["Please fill out all of the below fields as applicable for the installation"]
[]
["1. Rated Cooling Capacity (tons):",null,null,null,null,null,{"$f":"IF(OR(E15=\"\"),\"\",References!BQ4)","v":""},null,null,null,null,"2. Target Airflow Volume (CFM) PER TON:",null,null,{"$f":"IF(OR(M15=\"\"),\"\",References!BQ6)","v":""}]
[]
["Complete field 3a or 3b"]
["3a. Static pressure drop in inches of water column W.C. measures across evaporator coil if new installed:",null,null,null,null,null,{"$f":"IF(OR(E18=\"\"),\"\",References!BQ5)","v":""},null,"OR",null,null,"3b. External static pressure for fan coil unit:",null,null,{"$f":"IF(OR(M18=\"\"),\"\",References!BQ7)","v":""}]
[]
["4. Total Static measured with:"]
[]
["5. CFM Air Flow Estimated from Total Static Measurement:",null,null,null,null,null,{"$f":"IF(OR(E22=\"\"),\"\",References!BQ9)","v":""}]
["If this field contains data, no data input is required for the True Flow CFM field below"]
[]
["6. True Flow CFM measured:",null,null,null,null,null,{"$f":"IF(OR(E25=\"\"),\"\",References!BQ8)","v":""}]
["If this field contains data, no data input is required for field 3a/3b and field 5"]
[]
[]
["Installations must have visible and accessible ports for airflow and temperature measurements. Ports must be sealed with contrasting color plugs. Please indicate"]
["location of test ports:"]
[]
["Notes: "]
["Convert Pascals to inches of WC as pascals X 249.09"]
["Copy of table or graph supplied by manufacturer and used to estimate airflow must be attached to this form."]
[]
["Refrigerant Charge Method"]
[]
["Charging Method Used:"]
[]
["Option 1: SUBCOOLING Notes: Typical for most Thermal Expansion Valve systems when outdoor temperature is greater than OEM spec. (Typ. 60°F)"]
[]
["Inputs"]
["Refrigerant Type"]
[]
[]
[]
[]
[]
[null,"Required Subcooling:",null,null,null,"°F",{"$f":"IF(OR(E49=\"\"),\"\",References!BQ16)","v":""}]
[]
[null,"Outdoor Dry Bulb Temperature:",null,null,null,"°F",{"$f":"IF(OR(E51=\"\"),\"\",References!BQ17)","v":""}]
[]
["Measurements"]
[]
["Liquid Line Pressure",null,null,null,null,"psig",{"$f":"IF(OR(E55=\"\"),\"\",References!BQ18)","v":""}]
[]
["(F) Saturation temperature for measured pressure",null,null,null,null,"°F",{"$f":"IF(OR(E57=\"\"),\"\",References!BQ19)","v":""}]
[]
["(G) Liquid Line temperature",null,null,null,null,"°F",{"$f":"IF(OR(E59=\"\"),\"\",References!BQ20)","v":""}]
[]
["*Measured Subcooling (F minus G)",null,null,null,{"$f":"IF(OR(E57=\"\",E59=\"\"),\"\",E57-E59)","v":""},"°F"]
[]
["*Measured Subcooling must be within 3°F of the manufacturer specified Subcooling."]
[]
["Note: A copy of the documentation of the manufacturer's specified subcooling for the installed equipment must be attached to this form"]
["Option 2: Weigh In (can be used for any system ONLY when outdoor ambient temperature is below OEM specification.):"]
[]
["Refrigerant Type:"]
[]
[null,null,null,null,null,null,"(specify)"]
[]
["Outdoor Unit Capacity:",null,null,null,"Ounces:"]
[]
[]
["Does this capacity include an allowance for an evaporator ?"]
[]
[]
["Does this capacity include an allowance for a line set?"]
[]
[]
["Allowed in set length",null,null,"feet"]
[]
["(A) Suction Line Outside Diameter",null,null,null,"inches","Net length*",null,"feet","x",null,"ounces/foot","=",null,"ounces"]
[]
["(B) Liquid Line Outside Diameter",null,null,null,"inches","Net length*",null,"feet","x",null,"ounces/foot","=",null,"ounces"]
[]
["(C) Driers, Accumulator, and Evaporator Capacities (if not included above):",null,null,null,null,null,null,null,null,null,null,null,null,"ounces"]
[]
["*Net Length = Measured Length Minus (-) Allowed Length",null,null,null,null,"Total charge weighed in (A) + (B) + (C)",null,null,null,null,null,null,{"$f":"IF(AND(M83=\"\",M85=\"\",M87=\"\"),\"\",M83+M85+M87)","v":""},"ounces"]
[]
[]
["Note: Copy of table or graph supplied by manufacturer and used to estimate charge must be attached to this form."]
["Option 2: SUPERHEAT Note: Can only be used for fixed orifice systems (Non-TXV) when outdoor temperature is greater than OEM spec. (Type 55°)"]
[]
["Inputs"]
["Refrigerant Type"]
[]
[]
[]
[]
[null,"Manufacturer Specified Superheat",null,null,null,"°F ",{"$f":"IF(OR(E101=\"\"),\"\",References!BQ28)","v":""}]
[null,"(from manufacturer service guide or as per manufacturer's specification or cut sheet)"]
[]
[null,"Indoor Wet Bulb Temperature",null,null,null,"°F",{"$f":"IF(OR(E104=\"\"),\"\",References!BQ29)","v":""}]
[]
[null,"Outdoor Dry Bulb Temperature",null,null,null,"°F",{"$f":"IF(OR(E106=\"\"),\"\",References!BQ30)","v":""}]
[]
[]
["Measurements"]
[]
["Vapor (suction) pressure",null,null,null,null,"psig",{"$f":"IF(OR(E111=\"\"),\"\",References!BQ31)","v":""}]
[]
["(D) Saturation temperature for measured pressure",null,null,null,null,"°F",{"$f":"IF(OR(E113=\"\"),\"\",References!BQ32)","v":""}]
[]
["(E) Vapor (suction) line temperature near compressor",null,null,null,null,"°F",{"$f":"IF(OR(E115=\"\"),\"\",References!BQ33)","v":""}]
[]
["*Measured Superheat (E minus D)",null,null,null,{"$f":"IF(OR(E113=\"\",E115=\"\"),\"\",E115-E113)","v":""},"°F"]
[]
["*Measured Superheat must be within 5°F of the manufacturer specified Superheat."]
[]
["Note: A copy of the documentation of the manufacturer's specified superheat for the installed equipment must be attached to this form."]
[]
[]
[]
[]
[]
["Application Version:",null,{"$f":"Development!$A$4&\"_\"&Development!$A$2","v":"11.15.19_2.0"},null,null,null,null,null,null,null,null,null,null,"Effective:",{"$f":"Development!$A$4","v":"11.15.19"}]

{"sheet":"AIRFLOW FORM 9","index":24,"n_rows":127,"n_cols":15,"rows_kept":127,"cut":false,"hidden":true,"merged":[[0,0,0,9],[1,0,1,9],[4,2,4,3],[4,7,4,8],[6,7,6,8],[14,4,14,5],[14,12,14,13],[17,0,17,3],[17,4,17,5],[17,12,17,13],[88,12,89,12],[88,13,89,13],[21,4,21,5],[28,0,28,12],[29,2,29,11],[37,8,37,9],[44,4,44,5],[24,4,24,5],[97,4,97,5],[126,3,126,5],[126,6,126,8],[69,4,69,5],[88,0,89,4],[88,5,89,10]]}
[{"$f":"Development!$A$3&\" Residential Efficiency Program\"","v":"2019 Residential Efficiency Program"}]
["Post Installation/Airflow & Refrigerant Charge Form"]
["Equipment Data"]
[]
["Unit Number: ",null,null,null,null,null,"Manufacturer"]
[]
[null,null,null,null,null,null,"Model No."]
["For Ducted Systems Only"]
[null,"Ducts Tested?",null,"Ducts Sealed?"]
[]
["Airflow"]
[]
["Please fill out all of the below fields as applicable for the installation"]
[]
["1. Rated Cooling Capacity (tons):",null,null,null,null,null,{"$f":"IF(OR(E15=\"\"),\"\",References!BV4)","v":""},null,null,null,null,"2. Target Airflow Volume (CFM) PER TON:",null,null,{"$f":"IF(OR(M15=\"\"),\"\",References!BV6)","v":""}]
[]
["Complete field 3a or 3b"]
["3a. Static pressure drop in inches of water column W.C. measures across evaporator coil if new installed:",null,null,null,null,null,{"$f":"IF(OR(E18=\"\"),\"\",References!BV5)","v":""},null,"OR",null,null,"3b. External static pressure for fan coil unit:",null,null,{"$f":"IF(OR(M18=\"\"),\"\",References!BV7)","v":""}]
[]
["4. Total Static measured with:"]
[]
["5. CFM Air Flow Estimated from Total Static Measurement:",null,null,null,null,null,{"$f":"IF(OR(E22=\"\"),\"\",References!BV9)","v":""}]
["If this field contains data, no data input is required for the True Flow CFM field below"]
[]
["6. True Flow CFM measured:",null,null,null,null,null,{"$f":"IF(OR(E25=\"\"),\"\",References!BV8)","v":""}]
["If this field contains data, no data input is required for field 3a/3b and field 5"]
[]
[]
["Installations must have visible and accessible ports for airflow and temperature measurements. Ports must be sealed with contrasting color plugs. Please indicate"]
["location of test ports:"]
[]
["Notes: "]
["Convert Pascals to inches of WC as pascals X 249.09"]
["Copy of table or graph supplied by manufacturer and used to estimate airflow must be attached to this form."]
[]
["Refrigerant Charge Method"]
[]
["Charging Method Used:"]
[]
["Option 1: SUBCOOLING Notes: Typical for most Thermal Expansion Valve systems when outdoor temperature is greater than OEM spec. (Typ. 60°F)"]
[]
["Inputs"]
["Refrigerant Type"]
[]
[]
[]
[]
[]
[null,"Required Subcooling:",null,null,null,"°F",{"$f":"IF(OR(E49=\"\"),\"\",References!BV16)","v":""}]
[]
[null,"Outdoor Dry Bulb Temperature:",null,null,null,"°F",{"$f":"IF(OR(E51=\"\"),\"\",References!BV17)","v":""}]
[]
["Measurements"]
[]
["Liquid Line Pressure",null,null,null,null,"psig",{"$f":"IF(OR(E55=\"\"),\"\",References!BV18)","v":""}]
[]
["(F) Saturation temperature for measured pressure",null,null,null,null,"°F",{"$f":"IF(OR(E57=\"\"),\"\",References!BV19)","v":""}]
[]
["(G) Liquid Line temperature",null,null,null,null,"°F",{"$f":"IF(OR(E59=\"\"),\"\",References!BV20)","v":""}]
[]
["*Measured Subcooling (F minus G)",null,null,null,{"$f":"IF(OR(E57=\"\",E59=\"\"),\"\",E57-E59)","v":""},"°F"]
[]
["*Measured Subcooling must be within 3°F of the manufacturer specified Subcooling."]
[]
["Note: A copy of the documentation of the manufacturer's specified subcooling for the installed equipment must be attached to this form"]
["Option 2: Weigh In (can be used for any system ONLY when outdoor ambient temperature is below OEM specification.):"]
[]
["Refrigerant Type:"]
[]
[null,null,null,null,null,null,"(specify)"]
[]
["Outdoor Unit Capacity:",null,null,null,"Ounces:"]
[]
[]
["Does this capacity include an allowance for an evaporator ?"]
[]
[]
["Does this capacity include an allowance for a line set?"]
[]
[]
["Allowed in set length",null,null,"feet"]
[]
["(A) Suction Line Outside Diameter",null,null,null,"inches","Net length*",null,"feet","x",null,"ounces/foot","=",null,"ounces"]
[]
["(B) Liquid Line Outside Diameter",null,null,null,"inches","Net length*",null,"feet","x",null,"ounces/foot","=",null,"ounces"]
[]
["(C) Driers, Accumulator, and Evaporator Capacities (if not included above):",null,null,null,null,null,null,null,null,null,null,null,null,"ounces"]
[]
["*Net Length = Measured Length Minus (-) Allowed Length",null,null,null,null,"Total charge weighed in (A) + (B) + (C)",null,null,null,null,null,null,{"$f":"IF(AND(M83=\"\",M85=\"\",M87=\"\"),\"\",M83+M85+M87)","v":""},"ounces"]
[]
[]
["Note: Copy of table or graph supplied by manufacturer and used to estimate charge must be attached to this form."]
["Option 2: SUPERHEAT Note: Can only be used for fixed orifice systems (Non-TXV) when outdoor temperature is greater than OEM spec. (Type 55°)"]
[]
["Inputs"]
["Refrigerant Type"]
[]
[]
[]
[]
[null,"Manufacturer Specified Superheat",null,null,null,"°F ",{"$f":"IF(OR(E101=\"\"),\"\",References!BV28)","v":""}]
[null,"(from manufacturer service guide or as per manufacturer's specification or cut sheet)"]
[]
[null,"Indoor Wet Bulb Temperature",null,null,null,"°F",{"$f":"IF(OR(E104=\"\"),\"\",References!BV29)","v":""}]
[]
[null,"Outdoor Dry Bulb Temperature",null,null,null,"°F",{"$f":"IF(OR(E106=\"\"),\"\",References!BV30)","v":""}]
[]
[]
["Measurements"]
[]
["Vapor (suction) pressure",null,null,null,null,"psig",{"$f":"IF(OR(E111=\"\"),\"\",References!BV31)","v":""}]
[]
["(D) Saturation temperature for measured pressure",null,null,null,null,"°F",{"$f":"IF(OR(E113=\"\"),\"\",References!BV32)","v":""}]
[]
["(E) Vapor (suction) line temperature near compressor",null,null,null,null,"°F",{"$f":"IF(OR(E115=\"\"),\"\",References!BV33)","v":""}]
[]
["*Measured Superheat (E minus D)",null,null,null,{"$f":"IF(OR(E113=\"\",E115=\"\"),\"\",E115-E113)","v":""},"°F"]
[]
["*Measured Superheat must be within 5°F of the manufacturer specified Superheat."]
[]
["Note: A copy of the documentation of the manufacturer's specified superheat for the installed equipment must be attached to this form."]
[]
[]
[]
[]
[]
["Application Version:",null,{"$f":"Development!$A$4&\"_\"&Development!$A$2","v":"11.15.19_2.0"},null,null,null,null,null,null,null,null,null,null,"Effective:",{"$f":"Development!$A$4","v":"11.15.19"}]

{"sheet":"AIRFLOW FORM 10","index":25,"n_rows":127,"n_cols":15,"rows_kept":127,"cut":false,"hidden":true,"merged":[[0,0,0,9],[1,0,1,9],[4,2,4,3],[4,7,4,8],[6,7,6,8],[14,4,14,5],[14,12,14,13],[17,0,17,3],[17,4,17,5],[17,12,17,13],[88,12,89,12],[88,13,89,13],[21,4,21,5],[28,0,28,12],[29,2,29,11],[37,8,37,9],[44,4,44,5],[24,4,24,5],[97,4,97,5],[126,3,126,5],[126,6,126,8],[69,4,69,5],[88,0,89,4],[88,5,89,10]]}
[{"$f":"Development!$A$3&\" Residential Efficiency Program\"","v":"2019 Residential Efficiency Program"}]
["Post Installation/Airflow & Refrigerant Charge Form"]
["Equipment Data"]
[]
["Unit Number: ",null,null,null,null,null,"Manufacturer"]
[]
[null,null,null,null,null,null,"Model No."]
["For Ducted Systems Only"]
[null,"Ducts Tested?",null,"Ducts Sealed?"]
[]
["Airflow"]
[]
["Please fill out all of the below fields as applicable for the installation"]
[]
["1. Rated Cooling Capacity (tons):",null,null,null,null,null,{"$f":"IF(OR(E15=\"\"),\"\",References!CA4)","v":""},null,null,null,null,"2. Target Airflow Volume (CFM) PER TON:",null,null,{"$f":"IF(OR(M15=\"\"),\"\",References!CA6)","v":""}]
[]
["Complete field 3a or 3b"]
["3a. Static pressure drop in inches of water column W.C. measures across evaporator coil if new installed:",null,null,null,null,null,{"$f":"IF(OR(E18=\"\"),\"\",References!CA5)","v":""},null,"OR",null,null,"3b. External static pressure for fan coil unit:",null,null,{"$f":"IF(OR(M18=\"\"),\"\",References!CA7)","v":""}]
[]
["4. Total Static measured with:"]
[]
["5. CFM Air Flow Estimated from Total Static Measurement:",null,null,null,null,null,{"$f":"IF(OR(E22=\"\"),\"\",References!CA9)","v":""}]
["If this field contains data, no data input is required for the True Flow CFM field below"]
[]
["6. True Flow CFM measured:",null,null,null,null,null,{"$f":"IF(OR(E25=\"\"),\"\",References!CA8)","v":""}]
["If this field contains data, no data input is required for field 3a/3b and field 5"]
[]
[]
["Installations must have visible and accessible ports for airflow and temperature measurements. Ports must be sealed with contrasting color plugs. Please indicate"]
["location of test ports:"]
[]
["Notes: "]
["Convert Pascals to inches of WC as pascals X 249.09"]
["Copy of table or graph supplied by manufacturer and used to estimate airflow must be attached to this form."]
[]
["Refrigerant Charge Method"]
[]
["Charging Method Used:"]
[]
["Option 1: SUBCOOLING Notes: Typical for most Thermal Expansion Valve systems when outdoor temperature is greater than OEM spec. (Typ. 60°F)"]
[]
["Inputs"]
["Refrigerant Type"]
[]
[]
[]
[]
[]
[null,"Required Subcooling:",null,null,null,"°F",{"$f":"IF(OR(E49=\"\"),\"\",References!CA16)","v":""}]
[]
[null,"Outdoor Dry Bulb Temperature:",null,null,null,"°F",{"$f":"IF(OR(E51=\"\"),\"\",References!CA17)","v":""}]
[]
["Measurements"]
[]
["Liquid Line Pressure",null,null,null,null,"psig",{"$f":"IF(OR(E55=\"\"),\"\",References!CA18)","v":""}]
[]
["(F) Saturation temperature for measured pressure",null,null,null,null,"°F",{"$f":"IF(OR(E57=\"\"),\"\",References!CA19)","v":""}]
[]
["(G) Liquid Line temperature",null,null,null,null,"°F",{"$f":"IF(OR(E59=\"\"),\"\",References!CA20)","v":""}]
[]
["*Measured Subcooling (F minus G)",null,null,null,{"$f":"IF(OR(E57=\"\",E59=\"\"),\"\",E57-E59)","v":""},"°F"]
[]
["*Measured Subcooling must be within 3°F of the manufacturer specified Subcooling."]
[]
["Note: A copy of the documentation of the manufacturer's specified subcooling for the installed equipment must be attached to this form"]
["Option 2: Weigh In (can be used for any system ONLY when outdoor ambient temperature is below OEM specification.):"]
[]
["Refrigerant Type:"]
[]
[null,null,null,null,null,null,"(specify)"]
[]
["Outdoor Unit Capacity:",null,null,null,"Ounces:"]
[]
[]
["Does this capacity include an allowance for an evaporator ?"]
[]
[]
["Does this capacity include an allowance for a line set?"]
[]
[]
["Allowed in set length",null,null,"feet"]
[]
["(A) Suction Line Outside Diameter",null,null,null,"inches","Net length*",null,"feet","x",null,"ounces/foot","=",null,"ounces"]
[]
["(B) Liquid Line Outside Diameter",null,null,null,"inches","Net length*",null,"feet","x",null,"ounces/foot","=",null,"ounces"]
[]
["(C) Driers, Accumulator, and Evaporator Capacities (if not included above):",null,null,null,null,null,null,null,null,null,null,null,null,"ounces"]
[]
["*Net Length = Measured Length Minus (-) Allowed Length",null,null,null,null,"Total charge weighed in (A) + (B) + (C)",null,null,null,null,null,null,{"$f":"IF(AND(M83=\"\",M85=\"\",M87=\"\"),\"\",M83+M85+M87)","v":""},"ounces"]
[]
[]
["Note: Copy of table or graph supplied by manufacturer and used to estimate charge must be attached to this form."]
["Option 2: SUPERHEAT Note: Can only be used for fixed orifice systems (Non-TXV) when outdoor temperature is greater than OEM spec. (Type 55°)"]
[]
["Inputs"]
["Refrigerant Type"]
[]
[]
[]
[]
[null,"Manufacturer Specified Superheat",null,null,null,"°F ",{"$f":"IF(OR(E101=\"\"),\"\",References!CA28)","v":""}]
[null,"(from manufacturer service guide or as per manufacturer's specification or cut sheet)"]
[]
[null,"Indoor Wet Bulb Temperature",null,null,null,"°F",{"$f":"IF(OR(E104=\"\"),\"\",References!CA29)","v":""}]
[]
[null,"Outdoor Dry Bulb Temperature",null,null,null,"°F",{"$f":"IF(OR(E106=\"\"),\"\",References!CA30)","v":""}]
[]
[]
["Measurements"]
[]
["Vapor (suction) pressure",null,null,null,null,"psig",{"$f":"IF(OR(E111=\"\"),\"\",References!CA31)","v":""}]
[]
["(D) Saturation temperature for measured pressure",null,null,null,null,"°F",{"$f":"IF(OR(E113=\"\"),\"\",References!CA32)","v":""}]
[]
["(E) Vapor (suction) line temperature near compressor",null,null,null,null,"°F",{"$f":"IF(OR(E115=\"\"),\"\",References!CA33)","v":""}]
[]
["*Measured Superheat (E minus D)",null,null,null,{"$f":"IF(OR(E113=\"\",E115=\"\"),\"\",E115-E113)","v":""},"°F"]
[]
["*Measured Superheat must be within 5°F of the manufacturer specified Superheat."]
[]
["Note: A copy of the documentation of the manufacturer's specified superheat for the installed equipment must be attached to this form."]
[]
[]
[]
[]
[]
["Application Version:",null,{"$f":"Development!$A$4&\"_\"&Development!$A$2","v":"11.15.19_2.0"},null,null,null,null,null,null,null,null,null,null,"Effective:",{"$f":"Development!$A$4","v":"11.15.19"}]

{"sheet":"Project Completion Form","index":26,"n_rows":78,"n_cols":11,"rows_kept":78,"cut":false,"hidden":false,"merged":[[29,0,29,11],[26,0,26,11],[41,2,41,8],[41,10,41,11],[31,0,31,1],[31,2,31,8],[33,0,33,1],[34,0,34,11],[33,10,33,11],[35,0,35,11],[36,0,36,11],[39,2,39,8],[33,2,33,8],[27,0,27,11],[28,0,28,11],[5,9,5,11],[6,0,6,1],[5,2,5,5],[14,0,14,11],[6,2,6,5],[5,7,5,8],[17,10,17,11],[17,0,17,2],[7,0,7,1],[7,2,7,5],[9,0,9,11],[21,0,21,11],[0,141,0,150],[0,71,0,80],[0,61,0,70],[0,111,0,120],[0,81,0,90],[0,91,0,100],[0,21,0,30],[0,31,0,40],[0,41,0,50],[0,51,0,60],[1,21,1,30],[1,41,1,50],[3,0,3,11],[1,141,1,150],[5,0,5,1],[1,131,1,140],[1,61,1,70],[4,0,4,1],[4,2,4,5],[4,9,4,11],[1,111,1,120],[1,121,1,130],[1,0,1,6],[2,0,2,11],[1,91,1,100],[1,31,1,40],[1,71,1,80],[1,51,1,60],[0,251,0,255],[1,251,1,255],[0,101,0,110],[1,81,1,90],[1,211,1,220],[1,101,1,110],[0,131,0,140],[0,161,0,170],[0,211,0,220],[0,181,0,190],[0,151,0,160],[1,151,1,160],[1,181,1,190],[1,161,1,170],[1,171,1,180],[0,121,0,130],[0,191,0,200],[0,221,0,230],[1,241,1,250],[0,171,0,180],[1,231,1,240],[1,191,1,200],[0,231,0,240],[1,221,1,230],[0,241,0,250],[0,201,0,210],[1,201,1,210]]}
[{"$f":"Development!$A$3&\" Residential Efficiency Program\"","v":"2019 Residential Efficiency Program"}]
["       Project Completion Form"]
["Use this form to self certify project completion"]
["Customer Information"]
["Account No:",null,{"$f":"IF('Customer Information'!C5=\"\",\"\",'Customer Information'!C5)","v":""},null,null,null,null,null,"Home Phone:",{"$f":"IF('Customer Information'!K9=\"\",\"\",'Customer Information'!K9)","v":""}]
["Customer Name:",null,{"$f":"IF('Customer Information'!C6=\"\",\"\",'Customer Information'!C6)","v":""},null,null,null,null,"Cell Phone:",null,{"$f":"IF('Customer Information'!K10=\"\",\"\",'Customer Information'!K10)","v":""}]
["Installation Address:",null,{"$f":"IF('Customer Information'!C7=\"\",\"\",'Customer Information'!C7)","v":""}]
["Mailing Address:\n(if different than above)",null,{"$f":"IF('Customer Information'!C8=\"\",\"\",'Customer Information'!C8)","v":""}]
[]
["Airflow"]
[]
[]
[]
[]
["Installation Information"]
[]
[]
["Installation Completion Date :",null,null,null,null,null,null,null,null,"Project Cost ( as reflected on invoice ) :"]
[]
[null,null,null,null,null,null,null,null,null,null,"Customer Payment:"]
[]
["I would like customer rebate: (check one)"]
[]
[]
[null,"(must complete a Rebate Assignment Form / This option may not be offered by all Contractors)"]
[]
["Customer Verification Statement: "]
[]
["I, the Customer, certify that the equipment listed on the rebate application has been purchased and installed at the address indicated on the application.  I understand that PSEG Long Island reserves the right to verify any equipment purchases or installations which may include a site visit.  I further understand that PSEG Long Island may adjust the incentive amount before issuing the rebate based upon the verification and documentation provided by me or my Contractors responsible for the installation of the equipment."]
["Disclaimer: Terms and conditions are subject to change without notice, including early termination of this promotion. No additional fees apply. The rebate will be issued in the form of a check unless otherwise indicated. PSEG Long Island administers the rebate program on behalf of the Long Island Power Authority, the rebate program sponsor. Please visit www.psegliny.com/efficiency for more details. "]
[]
["Customer Name:\n(Print)"]
[]
["Customer Signature:",null,null,null,null,null,null,null,null,"Date:"]
[]
["Contractor Verification Statement:"]
["I, the Contractor, certify that the equipment listed on the rebate application has been purchased and installed at the address indicated on the application.  I understand that PSEG Long Island reserves the right to verify any equipment purchases or installations which may include a site visit.  I further understand that PSEG Long Island may adjust the incentive amount before issuing the rebate based upon the verification and documentation provided by me or my technicians responsible for the installation of the equipment."]
[]
[]
["Contractor Name:\n(Print)"]
[]
["Contractor Signature:",null,null,null,null,null,null,null,null,"Date:"]
[]
["Please send all required documents to ",null,null,"HomeComfortLI@pseg.com"]
[]
[]
[]
[]
[]
[]
[]
[]
[]
[]
[]
[]
[]
[]
[]
[]
[]
[]
[]
[]
[]
[]
[]
[]
[]
[]
[]
[]
[]
[]
[]
[]
[]
[null,"Application Version:",{"$f":"Development!$A$4&\"_\"&Development!$A$2","v":"11.15.19_2.0"},null,null,null,null,null,null,"Effective:",{"$f":"Development!$A$4","v":"11.15.19"}]

{"sheet":"Development","index":27,"n_rows":172,"n_cols":4,"rows_kept":172,"cut":false,"hidden":true,"merged":[]}
[]
["2.0","Version Number"]
[2019,"Program Year"]
["11.15.19","Effective Date"]
[]
["Date","Description","Initials","Version"]
["5.8.19","Legacy 2019 Home Comfort Application v1.0","MT","1.0_Draft 1.0"]
["5.8.19","Rebate tables on the Worksheet tab were updated to show the new efficiency tier levels and rebates","MT","1.0_Draft 1.0"]
["5.20.19","Added Existing Heating Equipment table to the References tab ","MCR","1.0_Draft 1.2"]
["5.20.19","Added TRUE of FALSE for Beneficial electrification for each existing heating type on the Existing Heating Equipment table","MCR","1.0_Draft 1.2"]
["5.20.19","Added New Construction to both the Existing Heating Tpye and Primary Heating Source check boxes on the Customer Information tab","MCR","1.0_Draft 1.2"]
["5.20.19","Added New Construction and Air Source Heat Pump to the list of Existing Heating Equipment","MCR","1.0_Draft 1.2"]
["5.20.19","Added values for Efficiency, Displacement, and CO2 emissions","MCR","1.0_Draft 1.2"]
["5.20.19","Added Existing Cooling Equipment table to the References tab ","MCR","1.0_Draft 1.2"]
["5.20.19","Updated Baseline EER, Baseline SEER, Baseline HSPF, and Displacement Factor on the Worksheet tab to reference the Existing Heating Equipment table ","MCR","1.0_Draft 1.2"]
["5.20.19","Updated rebates on the References tab to be consistent with the proposal","MCR","1.0_Draft 1.2"]
["5.20.19","Reduced the size of the New Equipment Type drop down on the Worksheet tab to only include this offering","MCR","1.0_Draft 1.2"]
["5.20.19","Moved Naming tab information to table in References tab, and deleted the Naming tab","MCR","1.0_Draft 1.2"]
["5.20.19","Updated the Prop0 formulas to reference the References tab instead of the Naming tab","MCR","1.0_Draft 1.2"]
["5.20.19","Updated the Tier EER SEER and HSPF values on the Reference tab to be consistent with the proposal","MCR","1.0_Draft 1.2"]
["5.21.19","Added Pre Inspection tab","MCR","1.0_Draft 1.3"]
["5.21.19","Changed the name of the Inspection Form Tab to say Post Inspection Form","MCR","1.0_Draft 1.3"]
["5.21.19","Added True/False for each heating equipment type able to be selected on the Customer Information tab","MCR","1.0_Draft 1.3"]
["5.22.19","Moved hidden calculation in the Worksheet tab to the Qualifying Index tab","MCR","1.0_Draft 1.3.1"]
["5.22.19","Added Existing Building and New Construction option buttons to the Customer Information tab and put them in a Group box","MCR","1.0_Draft 1.3.1"]
["5.22.19","Shifted columns for Unit Efficiency on the Worksheet tab to columns J:M","MCR","1.0_Draft 1.3.1"]
["5.22.19","Added the Existing Equipment Type and Efficiency to colmns P:S on the Worksheet tab","MCR","1.0_Draft 1.3.1"]
["5.22.19","Added the Existing Equipment Operation, Manufactur, and Model to colmns O51:S61 on the Worksheet tab ","MCR","1.0_Draft 1.3.1"]
["5.23.19","Wrote marco to hide and unhide Columns O:S on the Worksheet tab depending on whather the project is for a Existing Building or New Construction. Macro will also clear contents when hidden.","MCR","1.0_Draft 1.3.1"]
["5.23.19","Moved Smart Thermostat check box, QIV contractor check box, and Clear All button Worksheet tab so that columns could hide without objects error","MCR","1.0_Draft 1.3.1"]
["5.24.19","Added Ductless Mini Split and Other to list of existing equipment on the References tab, and expanded the drop down on the worksheet tab","MCR","1.0_Draft 1.3.1"]
["5.24.19","Adjust the Prop0 to the Mater Prop0 layout","MCR","1.0_Draft 1.3.1"]
["5.24.19","Adjusted the Existing Equipment table on the Reference tab to organize by fuel type and equipment type","MCR","1.0_Draft 1.3.1"]
["5.24.19","Added Tonnage to Existing Equipment on the Worksheet tab","MCR","1.0_Draft 1.3.1"]
["5.28.19","Added Cooling and Heating Savings section to the Qualifying Index tab","MCR","1.0_Draft 1.3.2"]
["5.28.19","Cooling and Heating Savings will calculte the cooling kW, kWh, MMBTU, and CO2 savings, as well as the heating kW, kWh, MMBTU beneficial electrification, and kW, kWh, MMBTU, and CO2 savings","MCR","1.0_Draft 1.3.2"]
["5.28.19","Mapped the correct savings value to the right column of the Prop0 tab","MCR","1.0_Draft 1.3.2"]
["5.28.19","Extended Prop0 tab to include field from Comprehensive lighting, FT lighting, Outdoor Lighting, HVAC, Refrigeration, Standard, HPDI, REAP, and Geothermal Applications. This application will have the first master Prop0 tab","MCR","1.0_Draft 1.3.2"]
["5.29.19","Removed QIV language","MCR","1.0_Draft 1.3.2"]
["5.29.19","Removed pink comments from Customer Information, T&Cs, Required Documents, and Guidelines","MCR","1.0_Draft 1.3.2"]
["5.29.19","Changed the application submission date from January 1, 2019 to the effective date of the application","MCR","1.0_Draft 1.3.2"]
["6.5.19","Customer Information tab: added field to collect square footage of home","MT","1.0_Draft 1.3.4"]
["6.5.19","Adjusted row heights and column width on guidelines tab so text can be fully visible.","MT","1.0_Draft 1.3.4"]
["6.5.19","Corrected typo on guidelines tab","MT","1.0_Draft 1.3.4"]
["6.5.19","On worksheet tab: merged and centered cells for input of serial number under Installed System Specifications section","MT","1.0_Draft 1.3.4"]
["6.5.19","Hid formulas within tables on both inspection tabs","MT","1.0_Draft 1.3.4"]
["6.5.19","Locked all cells not requiring data input on inspection tabs","MT","1.0_Draft 1.3.4"]
["6.6.19","Formatted PSEG-LI Logos across each tab","MT","1.0_Draft 1.3.4"]
["6.6.19","Changed settings for QIV Contractor checkbox on the Worksheet tab to move and size with cells","MCR","1.0_Draft 1.3.4"]
["6.6.19","Hid rows that are connected to the QIV Contractor checkbox so the checkbox will also be hidden","MCR","1.0_Draft 1.3.4"]
["6.6.19","Removed \"Check her to Assign Rebate\" check box because it is already checked under Rebate Payment Method in the section above","MCR","1.0_Draft 1.3.4"]
["6.6.19","Moved the formula that shos/hides the Assignment Form tab to the \"Assigned Installation Contractor\" check box","MCR","1.0_Draft 1.3.4"]
["6.6.19","Reinstated the Ductless HP options in the table on the Worksheet tab with the old teir values of 18 SEER and 8.5 or 10 HSPF","MCR","1.0_Draft 1.3.4"]
["6.6.19","Added new rebate and incentive values to the Ductless HPs on the Worksheets tab table","MCR","1.0_Draft 1.3.4"]
["6.6.19","Added the Word \"Ducted\" before all non-ductless heat pumps listed on the Worksheet tab table","MCR","1.0_Draft 1.3.4"]
["6.7.19","Require ccASHP for new construction Whole House Solutions","MCR","1.0_Draft 1.3.5"]
["6.7.19","Added Option 3 on Airflow Form","MCR","1.0_Draft 1.3.5"]
["6.7.19","Noted that Option 1 was the preferred method for Airflow testing on the Airflow tab","MCR","1.0_Draft 1.3.5"]
["6.7.19","On the Qualifying Index tab the logic for Equipment + Tier was updated to say <> CAC PTHP or Ductless, as opposed to = ASHP or Ductless HP","MCR","1.0_Draft 1.3.5"]
["6.7.19","Added EE and BE CO2 columns to Prop 0 which will reference the CO2 savings calculated on the Qualifying index tab","MCR","1.0_Draft 1.3.5"]
["6.7.19","Added Heating CO2 Savings from kWh and ff to Qualifying Index tab to properly separate out the CO2 savings","MCR","1.0_Draft 1.3.5"]
["6.7.19","Updated Product Names and Measure codes to be more consistan with the current method to set up Measure Codes","MCR","1.0_Draft 1.3.5"]
["6.7.19","Added Ducted ccASHP EH Tier II, Ductless Mini Split - ASHP EH Tier II, and Ductless Mini Split - ccASHP EH Tier II to the Rebate lookup table on the References tab","MCR","1.0_Draft 1.3.5"]
["6.7.19","Updated the table on the worksheet to only reflect the ccASHPs offered for New Construction Whole House Solutions","MCR","1.0_Draft 1.3.5"]
["6.7.19","Adjusted Existing Building/ New Construction button code to clear the new Existing equipment table range","MCR","1.0_Draft 1.3.5"]
["6.7.19","Added space on the Post Inspection form to collect secondary heating systems as well as integrated controls","MCR","1.0_Draft 1.3.5"]
["6.7.19","Added Requirement for Integrated Controls on the Guidelines tab","MCR","1.0_Draft 1.3.5"]
["6.7.19","Added check box for Integrated controls on the Worksheet tab","MCR","1.0_Draft 1.3.5"]
["6.7.19","Added row for Integrated controls on the Prop0, Only populated fields for Product Line, Class, Name, Measure Code, Savings (0), and Rebate. Currently not requiring additional info on controls.","MCR","1.0_Draft 1.3.5"]
["6.7.19","Added Integrated controls to the table on the Worksheet tab","MCR","1.0_Draft 1.3.5"]
["6.7.19","Updated language prefacing Assignment Letter","MT","1.0_Draft 1.3.5"]
["6.7.19","Updated Terms & Conditions and Guidelines with new policy related to secondary heating source. Updated Guidelines to reflect newsizing requirements ","MT","1.0_Draft 1.3.5"]
["6.10.19","Added QIV factor savings to Heating EE kW and kWh savings on the Qualifying Index","MCR","1.0_Draft 1.3.6"]
["6.10.19","Updated Winter kW Savings to be depndant on whether the heating is EE or BE","MCR","1.0_Draft 1.3.6"]
["6.10.19","Chnaged the Qualifying Index to always have negative kW for BE savings","MCR","1.0_Draft 1.3.6"]
["6.10.19","Added an \"IF\" statement to the Integrated Controls on the Prop0 tab so savings will apear as \"\" if there are no Integrated controls","MCR","1.0_Draft 1.3.6"]
["6.12.19","Worksheet tab: split eligibility and rebate table into two; one for new construction and the other for electric resistance heating customers","MT","1.0_Draft 1.3.7"]
["6.12.19","Increased row height on Terms & Conditions tab so text is legible","MT","1.0_Draft 1.3.7"]
["6.12.19","Required Documents Tab: made sure manual j requirement applied to heating and cooling load calculations","MT","1.0_Draft 1.3.7"]
["6.13.19","Moved Worksheet tables to be one on top of the other","MCR","1.0_Draft 1.3.8"]
["6.13.19","Added PopUp and Note on Customer Information to notify the contractor this offering is only available to NC whole house or existing ER","MCR","1.0_Draft 1.3.8"]
["6.13.19","Added Learning vs Connected table to references to differentiate between ENERGYSTAR rated Learning/geofencing thermostats, and ones only with Wifi capability","MCR","1.0_Draft 1.3.8"]
["6.13.19","Added Smart Tstat Savings calcs to Qualifying index using ASHP real data or TRM assumptions","MCR","1.0_Draft 1.3.8"]
["6.13.19","Smart Tstat Savings will follow the original Index and Match protocol for connected thermostats, and will calculate using HVAC info and energy savings factors for Leanring thermostats","MCR","1.0_Draft 1.3.8"]
["6.13.19","Populated Qualifying Index Smart Tstat saving to Prop0","MCR","1.0_Draft 1.3.8"]
["6.13.19","Ductless ccASHP tier 2 was changed to be be $1000 per ton. It was incorrectly written as $800","MCR","1.0_Draft 1.3.9"]
["6.13.19","Rebate calculation on the Worksheet was updated to search if References cell H14 was blank instead of G14","MCR","1.0_Draft 1.3.9"]
["6.13.19","Updated Coincidence factor to be 65% to be consistant with the ODC TRM","MCR","1.0_Draft 1.3.9"]
["6.13.19","Measure codes for whole House Solutions were updated to show WH-NC for whole house new construction","MCR","1.0_Draft 1.3.9"]
["6.14.19","Increased row height on Terms & Conditions tab even more so text is legible","MT","1.0_Draft 1.4"]
["6.18.19","Draft 1.0 approved by client and ready for release. ","MT",1]
["7.9.19","Fixed QIV kWh savings to allow heating QIV savings when \"Ducted ccASHP\" is selected. Previously, it was only for \"Ducted ASHP\".","MCR","1.1_Draft 1.0"]
["7.9.19","Adjusted formatting for SqFt. On Customer Information tab. Previously it was following the phone number format","MCR","1.1_Draft 1.0"]
["7.9.19","Added \"WH\" to the Product Name of Whole House Heat Pumps","MCR","1.1_Draft 1.0"]
["7.9.19","Removed \"EE\" from renamed savings fields to make mapping easier for the first iteration of the Master Prop0","MCR","1.1_Draft 1.0"]
["7.9.19","Updated formula on References tab I36:N36 to allow formulas to work when NC is selected without a source or primary heating","MCR","1.1_Draft 1.0"]
["7.9.19","Updated EE and BE MMBTU formulas on Prop0 to have positive kWh MMBTU (Heating MMBTU Savings (kWh)) savings be counted as EE MMBTU and Negative kWh MMBTU counted as BE MMBTU","MCR","1.1_Draft 1.0"]
["7.10.19","Mapped Building SqFt to Prop0 column DW","MCR","1.1_Draft 1.1"]
["7.10.19","Changed contractor incentive to reference ReferencesH36 instead of ReferencesG14, because incentive was not appearing if NC was selected w/o a heating source or equipment","MCR","1.1_Draft 1.1"]
["7.11.19","Changed rounding values on Reference tab to be 7 and 5 for kW and kWh savings respectively","MCR","1.1_Draft 1.1"]
["7.11.19","Customer and contractor information were not populating to the Pre-Isection Form tab. Formulas were added to match the Post-Inspection Form tab.","MCR","1.1_Draft 1.1"]
["7.23.19","EFLH was correctly displayed for calculations, but incorrectly mapped to Prop0. Prop0 Full load hours now reference the Qualifying Index tab","MCR","1.1_Draft 1.2"]
["7.23.19","Added NOT ISNUMBER function for Existing equipment logic on the Qualifying Index to avoid non-number values from being used in formulas","MCR","1.1_Draft 1.2"]
["7.23.19","Changed Qualifying Index Winter kW calcs to reference HSPF not EER","MCR","1.1_Draft 1.2"]
["7.24.19","Changed font and border colors, and logos to match LM colors and logos on all tabs","MCR","1.1_Draft 1.2"]
["7.25.19","Changed Winter kW to look at heating efficiencies ","MCR","1.1_Draft 1.3"]
["7.25.19","Changed NC SEER baseline to 14 SEER to be consistant with the WH proposal ","MCR","1.1_Draft 1.3"]
["7.25.19","Rounded rebate to the nearest dollar","MCR","1.1_Draft 1.3"]
["7.29.19","Removed \"New Construction\" from the Elecrtic Heating table on the Worksheet","MCR","1.1_Draft 1.4"]
["7.29.19","Removed Coincidence Factor from Winter kW Savings as there is not Winter Peak yet","MCR","1.1_Draft 1.5"]
["7.31.19","Worksheet: Updated number formatting in \"existing\" table for cooling btuh","ED","1.1_Draft1.6"]
["7.31.19","Prop 0: Updated formula in Column K (Gross Winter kW) to drag down References I36 to all equipment lines","Ed","1.1_Draft1.7"]
["7.31.19","Qualifying Index: Column BC - Changed formula to reference column AJ instead of AI","ED","1.1_Draft1.7"]
["7.31.19","Prop 0: kW and MMBTU BE/EE Formulas dragged down","ED","1.1_Draft1.7"]
[]
["8.6.19","Locked up and finalized workbook per client approval; updated effective date to 8.6.2019 and version to 1.0 since this is the first INTERNAL version of the workbook","ED",1]
[]
["9.18.19","Reference: Changed the Ductless mini split ccASHP Tier 2 for Electric Heat measure code from CH302 to CH220","MCR","draft1.0"]
["9.18.19","Reference: Changed the Ductless mini split ccASHP Tier 2 for Whole House measure code from CH313 to CH220","MCR","draft1.0"]
["9.18.19","Reference: Changed the Ducted ccASHP Tier 2 for Electric Heat measure code from CH312 to CH221","MCR","draft1.0"]
["9.18.19","Reference: Changed the Ducted ccASHP Tier 2 for Whole House measure code from CH312 to CH221","MCR","draft1.0"]
["9.18.19","Refrences: Updated contractor incentive from $500 to $1,500 this will be effective for Sept 1st through October 31st","MCR","draft1.0"]
["9.18.19","Worksheet: changed Contractor Incentive on electric heat  eligibility table from $500 to $1,500","MCR","draft1.0"]
[]
["10.17.19","Early release of Whole House Application with senarios 2 & 3 available","MCR","2.0_draft1.0"]
["10.17.19","Customer Information: Added \"Whole House Existing Building\" and \"Whole House New Construction\" Option buttons","MCR","2.0_draft1.0"]
["10.17.19","Customer Information: Linked new Option buttons to References A21 & Macro","MCR","2.0_draft1.0"]
["10.17.19","References: Added a Whole House TRUE FALSE in C21","MCR","2.0_draft1.0"]
["10.17.19","Qualifying_Index: Added Column I to track which WH scenario is true","MCR","2.0_draft1.0"]
["10.17.19","Qualifying_Index: Cooling and Heating EFLH will change based on whether the project is Whole house, new constrcution, etc.","MCR","2.0_draft1.0"]
["10.17.19","Qualifying_Index: Revised New or Retrofit column to include Whole House","MCR","2.0_draft1.0"]
["10.17.19","Qualifying_Index: Revised New Equipment + Tier to include Whole House Scenario","MCR","2.0_draft1.0"]
["10.17.19","References: Added Scenarios 2 & 3 from 2020 Master Internal Resi draft 1.2.2","MCR","2.0_draft1.0"]
["10.18.19","Qualifying_Index: Adjusted rebate formula to include new Whole House scenarios","MCR","2.0_draft1.1"]
["10.18.19","Qualifying Index: Adjusted formulas in AG AH AJ AK to check if project is Whole House instead of New Construction","MCR","2.0_draft1.1"]
["10.18.19","Worksheet: Expanded rebate table","MCR","2.0_draft1.2"]
[]
["10.18.19","Change to External worksheet: Remove \"INTERNAL\", change colors to orange, logos are all PSEGLI","MCR","2.0_draft1.0"]
[]
["10.22.19","Worksheet: Changed logic in P38  formula to include Whole House New Construction","MCR","2.0_draft1.1"]
["10.22.19","Worksheet: Removed tables","MCR","2.0_draft1.1"]
["10.22.19","Added new tab \"Tables\"","MCR","2.0_draft1.1"]
["10.22.19","Tables: Recreated Electric Heat and Whole House eligibility tables","MCR","2.0_draft1.1"]
["10.22.19","Worksheet: Copied tables from \"Tables\" as pictures","MCR","2.0_draft1.1"]
["10.22.19","Customer Macro: Added two new Macros for the two Whole House option buttons that will trigger a pop up explaining the main criteria for whole house","MCR","2.0_draft1.1"]
["10.22.19","Customer Macro: Added two new Macros for the two Whole House option buttons that will trigger a pop up explaining the main criteria for whole house","MCR","2.0_draft1.1"]
["10.22.19","References: Changed H14 formula to include Whole House New Construction","MCR","2.0_draft1.1"]
["10.22.19","Qualifying_Index: Changed New or Retrofit to look for Whole House first","MCR","2.0_draft1.1"]
["11.4.19","References: Added Integrated Controls Section Listing Manufactures, and Models for both Dual Fuel Thermostats and Integrated controls. Based on masssave 10/18 list","MCR ","2.0_draft1.2"]
["11.4.19","Integrated Controls: Copied Dual Fuel Thermostat Tab and renamed \"Integrated Controls\"","MCR ","2.0_draft1.2"]
["11.4.19","Integrated Controls: Hid all but one row for User inputs","MCR ","2.0_draft1.3"]
["11.4.19","Integrated Controls: Linked drop downs to new Integrated Controls section in References. Manufacturers will update based on whether Thermostat or Control is selected.","MCR ","2.0_draft1.3"]
["11.4.19","Integrated Controls: Updated Customer and Contractor incentive based on 10/30/19 meeting. Contractor will get larger incentive for their labor.","MCR ","2.0_draft1.3"]
["11.4.19","Integrated Controls: Updated Instructions","MCR ","2.0_draft1.3"]
["11.4.19","Integrated Controls: Changed the eligibilty explanation in row 4 to be more relevant for dual fuel thermostats and integrated controls","MCR ","2.0_draft1.3"]
["11.4.19","Worksheet: Linked Integrated Control Check box to Integrated control sheet to hide/unhide","MCR ","2.0_draft1.3"]
["11.4.19","Worksheet: Removed Integrated Control incentive","MCR ","2.0_draft1.3"]
["11.4.19","Integrated Control: Added Contractor Incentive Column to table","MCR ","2.0_draft1.3"]
["11.4.19","Qualifying_Index: Added Integrated controls Section","MCR ","2.0_draft1.3"]
["11.4.19","Prop0: Linked Savings for integrated controls to the Qualifying Index","MCR ","2.0_draft1.3"]
["11.4.19","Prop0: Linked customer and contractor incentives, manufacturer, and model for integrated controls to the Integrated controls tab","MCR ","2.0_draft1.3"]
["11.4.19","Integrated Controls: Added instructions for smart thermostats","MCR ","2.0_draft1.3"]
["11.5.19","Qualifying_Index: Added Logic for SEER, HSPF Teirs 1 and 2 to find EH specific Minimum efficiencies","MCR","2.0_draft 1.4"]
["11.5.19","References: Populated Minimum efficiencies for Ductless ccASHP EH replacements","MCR","2.0_draft 1.4"]
["11.5.19","Integrated Controls: Deleted the Customer Incentive column","MCR","2.0_draft 1.4"]
["11.5.19","Integrated Controls: Chnaged Contractor Incentive to $500","MCR","2.0_draft 1.4"]
["11.6.19","References: Chnaged \"Air Source HP\" to \"Ducted Air Source HP\"","MCR","2.0_draft 1.4.1"]
["11.6.19","Qualifying Index:  Added logic to Whole House Scenario to generate scenario 3 for existing ducted ASHPs","MCR","2.0_draft 1.4.1"]
["11.7.19","Worksheet: Changed instructions to inform user to fill in the Customer Inouts tab first","MCR","2.0_draft 1.4.2"]
["11.7.19","Customer Information: Updated language at the top to explain which customers are eligible for the two rebate offerings on this application.","MCR","2.0_draft 1.4.2"]
["11.8.19","Integrated Controls: Switched Rebate back to Customer","MCR","2.0_draft 1.4.3"]
["11.8.19","Prop0: Moved Contractor incentive to Customer Rebate column","MCR","2.0_draft 1.4.3"]